Workbook

Sheet Contents
A1: 80 | M1: ESC USE ONLY
D2: ESSENTIAL SERVICES COMMISSION
D3: Water Price Review - 2023
D4: Financial Model Template
B7: Table of Contents | F7: Water Business: | H7: =+N24 -> Wannon Water | I7: =+O24 -> WNW
B8: Section & Sheet Titles | F8: Regulatory Period: | H8: 2023-24 to 2027-28 (Fifth) | N8: [Decision] | O8: [Month] | P8: [Year] | Q8: [Version]
F9: Model Name: | H9: =I7&"_Price Review Template_"&O9&P9&Q9 -> WNW_Price Review Template_Oct2021 - v1 | N9: Draft | O9: Oct | P9: 2021 | Q9: - v1 | R9: << Select
B10: 1 | C10: Model Quality Check | F10: Decision type: | H10: =+N9&" Decision" -> Draft Decision | N10: Draft | O10: Jan | P10: 2016 | Q10: - v1
B11: 2 | C11: =+KeyAssumptionsPriceControl_FO!B1 -> Key Assumptions Price Control | N11: Final | O11: Feb | P11: 2017
B12: 3 | C12: =+Expenditure_Detail!B1 -> Expenditure - Detail | F12: Model Key: | O12: Mar | P12: 2018
B13: 4 | C13: =Opex_FO!B1 -> Operating Expenditure - Forecast | O13: Apr | P13: 2019
B14: 5 | C14: =Opex_Breakdown!B1 -> Operating Expenditure - Breakdown | G14: BLUE | H14: =+I7&" - DATA INPUT CELL" -> WNW - DATA INPUT CELL | O14: May | P14: 2020
B15: 6 | C15: =+'Capex_FO input'!B1 -> Capital Expenditure - Forecast Input | O15: Jun | P15: 2021
B16: 7 | C16: =Capex_FO_AC!B1 -> Capital Expenditure - Asset Category Breakdown | G16: PURPLE | H16: NOTES / INSTRUCTIONS | O16: Jul | P16: 2022
B17: 8 | C17: =ExpSummary_FO!B1 -> Expenditure Summary | O17: Aug | P17: 2023
B18: 9 | C18: =RollForward_FO!B1 -> Rolled forward regulatory asset base (RAB) | G18: GREY | H18: MODEL PARAMETERS / ASSUMPTIONS | O18: Sep
B19: 10 | C19: =PrevPerAdj_FO!B1 -> Previous period adjustments | O19: Oct
B20: 11 | C20: =RevenuePriceCap_FO!C1 -> Revenue forecast (price caps) | G20: WHITE | H20: FORMULA / HARDCODED VALUES | O20: Nov
B21: 12 | C21: Revenue forecast (tariff basket) | O21: Dec
B22: 13 | C22: =NotPres_FO!B1 -> Non Prescribed Services | G22: ORANGE | H22: FORMULA DIFFERENT TO ADJACENT CELL
B23: 14 | C23: ='Finance&Tax_FO'!B1 -> Cash, debt and tax assumptions | N23: [Business]
B24: 15 | C24: ='Rev&RAV_FO'!B1 -> Revenue requirement detail | G24: GREEN | H24: DATA FROM 2018 DECISION OR PERFORMANCE REPORT | N24: Wannon Water | O24: =+VLOOKUP(N24,N25:O42,2,FALSE) -> WNW
B25: 16 | C25: =Indicators_FO!B1 -> Financial indicators | N25: Barwon Water | O25: BW
B26: 17 | C26: =Outcomes!B1 -> Outcomes | G26: RED | H26: ERROR CHECK | N26: Central Highlands Water | O26: CHW
B27: 18 | C27: =GSL!B1 -> Guaranteed Service Levels (GSL) | N27: Greater Western Water | O27: GWW
B28: 19 | C28: Dashboard - Pricing | N28: Coliban Water | O28: CW
B29: 20 | C29: Dashboard - Opex | N29: East Gippsland Water | O29: EGW
B30: 21 | C30: Dashboard - Capex | N30: Gippsland Water | O30: CGW
B31: 22 | C31: Dashboard - Data | N31: Goulburn Valley Water | O31: GVW
B32: 23 | C32: Household Bill | N32: GWM Water | O32: GWMW | P32: diff model
N33: Lower Murray Water - Urban | O33: LMW-U | P33: diff model
N34: Lower Murray Water - Rural | O34: LMW-R
N35: North East Water | O35: NEW
N36: South East Water | O36: SEW
N37: South Gippsland Water | O37: SGW
N38: Southern Rural Water | O38: SRW | P38: diff model
N39: Wannon Water | O39: WNW
N40: Westernport Water | O40: WPW
N41: Yarra Valley Water | O41: YVW

Sheet Adjustments log (hidden)
A3: 1 | B3: Operating expenditure
B4: $m 2022-23
C6: 2023-24 | D6: 2024-25 | E6: 2025-26 | F6: 2026-27 | G6: 2027-28 | H6: Total
B7: Proposed - controllable operating expenditure | H7: =SUM(C7:G7) -> 0
B8: DD adjustments
B9: xx | H9: =SUM(C9:G9) -> 0
B10: xx | H10: =SUM(C10:G10) -> 0
B11: xx | H11: =SUM(C11:G11) -> 0
B12: xx | H12: =SUM(C12:G12) -> 0
B13: xx | H13: =SUM(C13:G13) -> 0
B14: FD adjustments
B15: xx | H15: =SUM(C15:G15) -> 0
B16: xx | H16: =SUM(C16:G16) -> 0
B17: xx | H17: =SUM(C17:G17) -> 0
B18: xx | H18: =SUM(C18:G18) -> 0
B19: xx | H19: 0
B20: Total adjustments | C20: =SUM(C8:C19) -> 0 | D20: 0 | E20: 0 | F20: 0 | G20: 0 | H20: 0
B21: Final decision - controllable operating expenditure | C21: =C7+C20 -> 0 | D21: 0 | E21: 0 | F21: 0 | G21: 0 | H21: 0
B23: Proposed - non-controllable operating expenditure | H23: =SUM(C23:G23) -> 0
B24: DD adjustments
B25: xx | H25: =SUM(C25:G25) -> 0
B26: xx | H26: =SUM(C26:G26) -> 0
B27: xx | H27: =SUM(C27:G27) -> 0
B28: xx | H28: =SUM(C28:G28) -> 0
B29: FD adjustments
B30: xx | H30: =SUM(C30:G30) -> 0
B31: xx | H31: =SUM(C31:G31) -> 0
B32: Total adjustments | C32: =SUM(C24:C31) -> 0 | D32: 0 | E32: 0 | F32: 0 | G32: 0 | H32: 0
B33: Final decision - non-controllable operating expenditure | C33: =C23+C32 -> 0 | D33: 0 | E33: 0 | F33: 0 | G33: 0 | H33: 0
B35: Proposed - total operating expenditure | C35: =C7+C23 -> 0 | D35: 0 | E35: 0 | F35: 0 | G35: 0 | H35: 0
B36: Total adjustments | C36: =C20+C32 -> 0 | D36: 0 | E36: 0 | F36: 0 | G36: 0 | H36: 0
B37: Final decision - total operating expenditure | C37: =SUM(C35:C36) -> 0 | D37: 0 | E37: 0 | F37: 0 | G37: 0 | H37: 0
B39: Check
A42: 2 | B42: Capital expenditure
B43: $m 2022-23
C45: 2023-24 | D45: 2024-25 | E45: 2025-26 | F45: 2026-27 | G45: 2027-28 | H45: Total
B46: Proposed - capital expenditure | H46: =SUM(C46:G46) -> 0
B47: DD adjustments
B48: xx | H48: =SUM(C48:G48) -> 0
B49: xx | H49: =SUM(C49:G49) -> 0
B50: xx | H50: =SUM(C50:G50) -> 0
B51: xx | H51: =SUM(C51:G51) -> 0
B52: FD adjustments
B53: xx | H53: =SUM(C53:G53) -> 0
B54: xx
B55: Total adjustments | C55: =SUM(C47:C54) -> 0 | D55: 0 | E55: 0 | F55: 0 | G55: 0 | H55: 0
B56: Draft decision - capital expenditure | C56: =C46+C55 -> 0 | D56: 0 | E56: 0 | F56: 0 | G56: 0 | H56: 0
B58: Check

Sheet Model Quality Check
A1: 80 | B1: Model Quality Check
B2: =+Contents!H7 -> Wannon Water
B3: Go to Table of Contents
K4: FIRST REG PERIOD | O4: SECOND REG PERIOD | T4: THIRD REG PERIOD | Y4: FOURTH REG PERIOD | AD4: FIFTH REG PERIOD | AI4: SIXTH REG PERIOD
F6: Straight Line | J6: 2006 | K6: 2007 | L6: 2008 | M6: 2009 | N6: 2010 | O6: 2011 | P6: 2012 | Q6: 2013 | R6: 2014 | S6: 2015 | T6: 2016 | U6: 2017 | V6: 2018 | W6: 2019 | X6: 2020 | Y6: 2021 | Z6: 2022 | AA6: 2023 | AB6: 2024 | AC6: 2025 | AD6: 2026 | AE6: 2027 | AF6: 2028 | AG6: 2029 | AH6: 2030 | AI6: 2031 | AJ6: 2032 | AK6: 2033
F7: Declining Balance | J7: =+CONCATENATE(J6-1,"-",RIGHT(J6,2)) -> 2005-06 | K7: 2006-07 | L7: 2007-08 | M7: 2008-09 | N7: 2009-10 | O7: 2010-11 | P7: 2011-12 | Q7: 2012-13 | R7: 2013-14 | S7: 2014-15 | T7: 2015-16 | U7: 2016-17 | V7: 2017-18 | W7: =+CONCATENATE(W6-1,"-",RIGHT(W6,2)) -> 2018-19 | X7: 2019-20 | Y7: 2020-21 | Z7: 2021-22 | AA7: 2022-23 | AB7: 2023-24 | AC7: 2024-25 | AD7: 2025-26 | AE7: 2026-27 | AF7: =+CONCATENATE(AF6-1,"-",RIGHT(AF6,2)) -> 2027-28 | AG7: 2028-29 | AH7: 2029-30 | AI7: 2030-31 | AJ7: 2031-32 | AK7: 2032-33
D9: Model ready for submission: | I9: =SUM(AA15:AK49) -> 1 | R9: (If No, please ensure that the error check is corrected at the source)
D11: All financial indicators satisfied: | I11: =SUM(AB54:AK59) -> 1
E14: 1. | F14: Opex_FO
G15: Reconciliation to 'Opex_Breakdown' tab row 37 | AB15: =Opex_FO!AC100 -> 0 | AC15: =Opex_FO!AD100 -> 0 | AD15: =Opex_FO!AE100 -> 0 | AE15: =Opex_FO!AF100 -> 0 | AF15: =Opex_FO!AG100 -> 0 | AG15: =Opex_FO!AH100 -> 0 | AH15: =Opex_FO!AI100 -> 0 | AI15: =Opex_FO!AJ100 -> 0 | AJ15: =Opex_FO!AK100 -> 0 | AK15: =Opex_FO!AL100 -> 0
E17: 2. | F17: Opex_Breakdown
G18: Reconciliation to 'Opex_FO' tab row 95 | AB18: =Opex_Breakdown!AC42 -> 0 | AC18: =Opex_Breakdown!AD42 -> 0 | AD18: =Opex_Breakdown!AE42 -> 0 | AE18: =Opex_Breakdown!AF42 -> 0 | AF18: =Opex_Breakdown!AG42 -> 0 | AG18: =Opex_Breakdown!AH42 -> 0 | AH18: =Opex_Breakdown!AI42 -> 0 | AI18: =Opex_Breakdown!AJ42 -> 0 | AJ18: =Opex_Breakdown!AK42 -> 0 | AK18: =Opex_Breakdown!AL42 -> 0
G20: Reconciliation of Opex by service and function | AB20: =Opex_Breakdown!AC27 -> 0 | AC20: =Opex_Breakdown!AD27 -> 0 | AD20: =Opex_Breakdown!AE27 -> 0 | AE20: =Opex_Breakdown!AF27 -> 0 | AF20: =Opex_Breakdown!AG27 -> 0 | AG20: =Opex_Breakdown!AH27 -> 0 | AH20: =Opex_Breakdown!AI27 -> 0 | AI20: =Opex_Breakdown!AJ27 -> 0 | AJ20: =Opex_Breakdown!AK27 -> 0 | AK20: =Opex_Breakdown!AL27 -> 0
E22: 3. | F22: Capex_FO input
G23: Reconciliation of total prescribed capex between cost driver and capital type | AB23: ='Capex_FO input'!D26 -> 0 | AC23: ='Capex_FO input'!E26 -> 0 | AD23: ='Capex_FO input'!F26 -> 0 | AE23: ='Capex_FO input'!G26 -> 0 | AF23: ='Capex_FO input'!H26 -> 0 | AG23: ='Capex_FO input'!I26 -> 0 | AH23: ='Capex_FO input'!J26 -> 0 | AI23: ='Capex_FO input'!K26 -> 0 | AJ23: ='Capex_FO input'!L26 -> 0 | AK23: ='Capex_FO input'!M26 -> 0
E25: 4. | F25: Capex_FO_AC
G26: Reconciliation to 'Capex_FO input' tab row 29 | AA26: =Capex_FO_AC!AB30 -> 0 | AB26: =Capex_FO_AC!AC30 -> 0 | AC26: =Capex_FO_AC!AD30 -> 0 | AD26: =Capex_FO_AC!AE30 -> 0 | AE26: =Capex_FO_AC!AF30 -> 0 | AF26: =Capex_FO_AC!AG30 -> 0 | AG26: =Capex_FO_AC!AH30 -> 0 | AH26: =Capex_FO_AC!AI30 -> 0 | AI26: =Capex_FO_AC!AJ30 -> 0 | AJ26: =Capex_FO_AC!AK30 -> 0 | AK26: =Capex_FO_AC!AL30 -> 0
E28: 5. | F28: RollForward_FO
G29: Reconciliation of existing assets book value to RAB | AB29: =IF(ROUND(RollForward_FO!G84,2)=ROUND(RollForward_FO!G82,2),0,1) -> 0
E31: 6. | F31: RevenuePriceCap_FO
G32: Price control - Fifth period | AB32: =IF(KeyAssumptionsPriceControl_FO!I48=1,IF(RevenuePriceCap_FO!AD34="PRICE CONTROL OK",0,1),0) -> 1 | AC32: =IF(KeyAssumptionsPriceControl_FO!I48=1,RevenuePriceCap_FO!AD34,"") -> INSUFFICIENT REVENUE
G34: Price control - Sixth period | AB34: =IF(KeyAssumptionsPriceControl_FO!I48=1,IF(RevenuePriceCap_FO!AI34="PRICE CONTROL OK",0,1),0) -> 0 | AC34: =IF(KeyAssumptionsPriceControl_FO!I48=1,RevenuePriceCap_FO!AI34,"") -> PRICE CONTROL OK
G36: Tariff revenue reconciliation | AB36: =RevenuePriceCap_FO!AC458 -> 0 | AC36: =RevenuePriceCap_FO!AD458 -> 0 | AD36: =RevenuePriceCap_FO!AE458 -> 0 | AE36: =RevenuePriceCap_FO!AF458 -> 0 | AF36: =RevenuePriceCap_FO!AG458 -> 0 | AG36: =RevenuePriceCap_FO!AH458 -> 0 | AH36: =RevenuePriceCap_FO!AI458 -> 0 | AI36: =RevenuePriceCap_FO!AJ458 -> 0 | AJ36: =RevenuePriceCap_FO!AK458 -> 0 | AK36: =RevenuePriceCap_FO!AL458 -> 0
E38: 7. | F38: RevenueTariffBasket_FO
G39: Price control - Fifth period | AB39: =IF(KeyAssumptionsPriceControl_FO!I48=2,IF(RevenueTariffBasket_FO!AD34="PRICE CONTROL OK",0,1),0) -> 0 | AC39: =IF(KeyAssumptionsPriceControl_FO!I48=2,RevenueTariffBasket_FO!AD34,"") -> 
G41: Price control - Sixth period | AB41: =IF(KeyAssumptionsPriceControl_FO!I48=2,IF(RevenueTariffBasket_FO!AI41="PRICE CONTROL OK",0,1),0) -> 0 | AC41: =IF(KeyAssumptionsPriceControl_FO!I48=2,RevenueTariffBasket_FO!AI34,"") -> 
G43: Tariff revenue reconciliation | AB43: =RevenueTariffBasket_FO!AC458 -> 0 | AC43: =RevenueTariffBasket_FO!AD458 -> 0 | AD43: =RevenueTariffBasket_FO!AE458 -> 0 | AE43: =RevenueTariffBasket_FO!AF458 -> 0 | AF43: =RevenueTariffBasket_FO!AG458 -> 0 | AG43: =RevenueTariffBasket_FO!AH458 -> 0 | AH43: =RevenueTariffBasket_FO!AI458 -> 0 | AI43: =RevenueTariffBasket_FO!AJ458 -> 0 | AJ43: =RevenueTariffBasket_FO!AK458 -> 0 | AK43: =RevenueTariffBasket_FO!AL458 -> 0
E45: 8. | F45: Rev&RAV_FO
G46: Rolled forward RAV reconciliation | AB46: ='Rev&RAV_FO'!AC80 -> 0 | AC46: ='Rev&RAV_FO'!AD80 -> 0 | AD46: ='Rev&RAV_FO'!AE80 -> 0 | AE46: ='Rev&RAV_FO'!AF80 -> 0 | AF46: ='Rev&RAV_FO'!AG80 -> 0 | AG46: ='Rev&RAV_FO'!AH80 -> 0 | AH46: ='Rev&RAV_FO'!AI80 -> 0 | AI46: ='Rev&RAV_FO'!AJ80 -> 0 | AJ46: ='Rev&RAV_FO'!AK80 -> 0 | AK46: ='Rev&RAV_FO'!AL80 -> 0
E48: 9. | F48: GSL
G49: Reconciliation to 'Opex_Breakdown' tab row 23 | AB49: =IF(ROUND(GSL!AC40,2)=ROUND(GSL!AC39,2),0,1) -> 0 | AC49: =IF(ROUND(GSL!AD40,2)=ROUND(GSL!AD39,2),0,1) -> 0 | AD49: =IF(ROUND(GSL!AE40,2)=ROUND(GSL!AE39,2),0,1) -> 0 | AE49: =IF(ROUND(GSL!AF40,2)=ROUND(GSL!AF39,2),0,1) -> 0 | AF49: =IF(ROUND(GSL!AG40,2)=ROUND(GSL!AG39,2),0,1) -> 0 | AG49: =IF(ROUND(GSL!AH40,2)=ROUND(GSL!AH39,2),0,1) -> 0 | AH49: =IF(ROUND(GSL!AI40,2)=ROUND(GSL!AI39,2),0,1) -> 0 | AI49: =IF(ROUND(GSL!AJ40,2)=ROUND(GSL!AJ39,2),0,1) -> 0 | AJ49: =IF(ROUND(GSL!AK40,2)=ROUND(GSL!AK39,2),0,1) -> 0 | AK49: =IF(ROUND(GSL!AL40,2)=ROUND(GSL!AL39,2),0,1) -> 0
E53: 1. | F53: Primary Indicator
G54: FFO interest cover | AB54: =Indicators_FO!AC$226 -> 0 | AC54: =Indicators_FO!AD$226 -> 0 | AD54: =Indicators_FO!AE$226 -> 0 | AE54: =Indicators_FO!AF$226 -> 0 | AF54: =Indicators_FO!AG$226 -> 0 | AG54: =Indicators_FO!AH$226 -> 0 | AH54: =Indicators_FO!AI$226 -> 0 | AI54: =Indicators_FO!AJ$226 -> 0 | AJ54: =Indicators_FO!AK$226 -> 0 | AK54: =Indicators_FO!AL$226 -> 0
E56: 2. | F56: Secondary indicators
G57: Net debt / RAV | AB57: =Indicators_FO!AC$235 -> 0 | AC57: =Indicators_FO!AD$235 -> 0 | AD57: =Indicators_FO!AE$235 -> 0 | AE57: =Indicators_FO!AF$235 -> 0 | AF57: =Indicators_FO!AG$235 -> 0 | AG57: =Indicators_FO!AH$235 -> 0 | AH57: =Indicators_FO!AI$235 -> 0 | AI57: =Indicators_FO!AJ$235 -> 0 | AJ57: =Indicators_FO!AK$235 -> 0 | AK57: =Indicators_FO!AL$235 -> 0
G58: FFO / Net debt | AB58: =Indicators_FO!AC$243 -> 0 | AC58: =Indicators_FO!AD$243 -> 0 | AD58: =Indicators_FO!AE$243 -> 0 | AE58: =Indicators_FO!AF$243 -> 0 | AF58: =Indicators_FO!AG$243 -> 0 | AG58: =Indicators_FO!AH$243 -> 0 | AH58: =Indicators_FO!AI$243 -> 0 | AI58: =Indicators_FO!AJ$243 -> 0 | AJ58: =Indicators_FO!AK$243 -> 0 | AK58: =Indicators_FO!AL$243 -> 0
G59: Internal financing ratio | AB59: =Indicators_FO!AC$252 -> 1 | AC59: =Indicators_FO!AD$252 -> 0 | AD59: =Indicators_FO!AE$252 -> 0 | AE59: =Indicators_FO!AF$252 -> 0 | AF59: =Indicators_FO!AG$252 -> 0 | AG59: =Indicators_FO!AH$252 -> 0 | AH59: =Indicators_FO!AI$252 -> 0 | AI59: =Indicators_FO!AJ$252 -> 0 | AJ59: =Indicators_FO!AK$252 -> 0 | AK59: =Indicators_FO!AL$252 -> 0

Sheet KeyAssumptionsPriceControl_FO
A1: 80 | B1: Key Assumptions Price Control
B2: =+Contents!H7 -> Wannon Water
B3: Go to Table of Contents
L4: FIRST REG PERIOD | P4: SECOND REG PERIOD | U4: THIRD REG PERIOD | Z4: FOURTH REG PERIOD | AE4: FIFTH REG PERIOD | AJ4: SIXTH REG PERIOD
F6: Straight Line | K6: 2006 | L6: 2007 | M6: 2008 | N6: 2009 | O6: 2010 | P6: 2011 | Q6: 2012 | R6: 2013 | S6: 2014 | T6: 2015 | U6: 2016 | V6: 2017 | W6: 2018 | X6: 2019 | Y6: 2020 | Z6: 2021 | AA6: 2022 | AB6: 2023 | AC6: 2024 | AD6: 2025 | AE6: 2026 | AF6: 2027 | AG6: 2028 | AH6: 2029 | AI6: 2030 | AJ6: 2031 | AK6: 2032 | AL6: 2033
F7: Declining Balance | I7: 2003-04 | J7: 2004-05 | K7: =+CONCATENATE(K6-1,"-",RIGHT(K6,2)) -> 2005-06 | L7: =+CONCATENATE(L6-1,"-",RIGHT(L6,2)) -> 2006-07 | M7: 2007-08 | N7: 2008-09 | O7: 2009-10 | P7: 2010-11 | Q7: 2011-12 | R7: 2012-13 | S7: 2013-14 | T7: 2014-15 | U7: 2015-16 | V7: 2016-17 | W7: 2017-18 | X7: 2018-19 | Y7: 2019-20 | Z7: 2020-21 | AA7: 2021-22 | AB7: 2022-23 | AC7: 2023-24 | AD7: 2024-25 | AE7: 2025-26 | AF7: 2026-27 | AG7: 2027-28 | AH7: =+CONCATENATE(AH6-1,"-",RIGHT(AH6,2)) -> 2028-29 | AI7: =+CONCATENATE(AI6-1,"-",RIGHT(AI6,2)) -> 2029-30 | AJ7: =+CONCATENATE(AJ6-1,"-",RIGHT(AJ6,2)) -> 2030-31 | AK7: =+CONCATENATE(AK6-1,"-",RIGHT(AK6,2)) -> 2031-32 | AL7: =+CONCATENATE(AL6-1,"-",RIGHT(AL6,2)) -> 2032-33
E11: Inflation assumptions
AB12: Estimate
F13: March quarter annual CPI | I13: 141.3 | J13: 144.1 | K13: 147.5 | L13: 151.9 | M13: 155.6 | N13: 162.2 | O13: 166.2 | P13: 171 | Q13: 176.7 | R13: 99.9 | S13: 102.4 | T13: 105.4 | U13: 106.8 | V13: 108.2 | W13: 110.5 | X13: 112.6 | Y13: 114.1 | Z13: 116.6 | AA13: 117.9 | AB13: 123.9
F14: Inflation | J14: =+J13/I13-1 -> 0.01981599434 | K14: 0.02359472588 | L14: 0.02983050847 | M14: 0.02435813035 | N14: 0.04241645244 | O14: 0.02466091245 | P14: 0.02888086643 | Q14: 0.03333333333 | R14: 0.01584606678 | S14: =+IF(S13=0,$Z$44,S13/R13-1) -> 0.02502502503 | T14: 0.029296875 | U14: 0.01328273245 | V14: 0.01310861423 | W14: 0.02125693161 | X14: 0.01900452489 | Y14: 0.01332149201 | Z14: 0.02191060473 | AA14: 0.01114922813 | AB14: 0.05089058524 | AC14: =+IF(AC13=0,$AC$44,AC13/AB13-1) -> 0.03 | AD14: 0.03 | AE14: 0.03 | AF14: 0.03 | AG14: 0.03 | AH14: 0.03 | AI14: 0.03 | AJ14: 0.03 | AK14: 0.03 | AL14: 0.03
F15: Inflation factor | I15: 0.7871866295 | J15: 0.8027855153 | K15: 0.8217270195 | L15: 0.8462395543 | M15: 0.8668523677 | N15: 0.9036211699 | O15: 0.9259052925 | P15: 0.9526462396 | Q15: 0.9844011142 | R15: =+R13/$AB$13 -> 0.8062953995 | S15: 0.8264729621 | T15: 0.8506860371 | U15: 0.8619854722 | V15: 0.8732849072 | W15: 0.8918482647 | X15: 0.9087974173 | Y15: 0.9209039548 | Z15: 0.9410815174 | AA15: 0.9515738499 | AB15: 1 | AC15: =+AB15*(1+AC14) -> 1.03 | AD15: 1.0609 | AE15: 1.092727 | AF15: 1.12550881 | AG15: 1.159274074 | AH15: 1.194052297 | AI15: 1.229873865 | AJ15: 1.266770081 | AK15: 1.304773184 | AL15: 1.343916379
I16: CPI index re-referenced in 2012-13, shaded values have been hardcoded to lock in RAB value.
E21: Cost of debt - 10 year trailing average (Nominal)
AA22: Estimate | AB22: Estimate | AC22: Estimate | AD22: Estimate | AE22: Estimate | AF22: Estimate | AG22: Estimate | AH22: Estimate | AI22: Estimate | AJ22: Estimate | AK22: Estimate | AL22: Estimate
E23: Cost of debt | L23: 0.06981666667 | M23: 0.07414 | N23: 0.0691525788 | O23: 0.07361870984 | P23: 0.07046784142 | Q23: 0.06308887941 | R23: 0.0526945046 | S23: 0.070525 | T23: 0.05360833333 | U23: 0.05270138413 | V23: 0.04908333333 | W23: 0.045283 | X23: 0.046133 | Y23: 0.03305833333 | Z23: 0.03045 | AA23: 0.037533 | AB23: =AA23 -> 0.037533 | AC23: =AB23 -> 0.037533 | AD23: =AC23 -> 0.037533 | AE23: =AD23 -> 0.037533 | AF23: =AE23 -> 0.037533 | AG23: =AF23 -> 0.037533 | AH23: =AG23 -> 0.037533 | AI23: =AH23 -> 0.037533 | AJ23: =AI23 -> 0.037533 | AK23: =AJ23 -> 0.037533 | AL23: =AK23 -> 0.037533
E24: Re-financing weightings - average 10 yrs | L24: =1/10 -> 0.1 | M24: =1/10 -> 0.1 | N24: =1/10 -> 0.1 | O24: =1/10 -> 0.1 | P24: =1/10 -> 0.1 | Q24: 0.1 | R24: 0.1 | S24: 0.1 | T24: 0.1 | U24: 0.1 | V24: 0.1 | W24: 0.1 | X24: 0.1 | Y24: 0.1 | Z24: 0.1 | AA24: 0.1 | AB24: 0.1 | AC24: 0.1 | AD24: 0.1 | AE24: 0.1 | AF24: 0.1 | AG24: 0.1 | AH24: 0.1 | AI24: 0.1 | AJ24: 0.1 | AK24: 0.1 | AL24: 0.1
E26: Cost of debt - 10 year trailing average | V26: =IF(U23<>"",SUMPRODUCT(L23:U23,L24:U24),"") -> 0.06498138982 | W26: 0.06290805649 | X26: 0.06002235649 | Y26: 0.05772039861 | Z26: 0.05366436096 | AA26: 0.04966257681 | AB26: =IF(AA23<>"",SUMPRODUCT(R23:AA23,R24:AA24),"") -> 0.04710698887 | AC26: =IF(AB23<>"",SUMPRODUCT(S23:AB23,S24:AB24),"") -> 0.04559083841 | AD26: =IF(AC23<>"",SUMPRODUCT(T23:AC23,T24:AC24),"") -> 0.04229163841 | AE26: 0.04068410508 | AF26: 0.03916726667 | AG26: 0.03801223333 | AH26: 0.03723723333 | AI26: 0.03637723333 | AJ26: 0.0368247 | AK26: 0.037533 | AL26: 0.037533
E30: WACC assumptions (retained for historical purposes only) | Z30: Regulatory Rate of Return (RRR) - Nominal
K32: 1st period | M32: 2nd period | O32: 3rd period | Z32: Cost of Debt | AC32: =+AC26 -> 0.04559083841 | AD32: =+AD26 -> 0.04229163841 | AE32: 0.04068410508 | AF32: 0.03916726667 | AG32: 0.03801223333 | AH32: 0.03723723333 | AI32: 0.03637723333 | AJ32: 0.0368247 | AK32: 0.037533 | AL32: 0.037533
E33: Parameters
F34: Risk Free Rate (Real) | K34: =Determination_Lookup!W8 -> 0.0267 | M34: =Determination_Lookup!X8 -> 0.0323 | O34: =Determination_Lookup!Y8 -> 0.005959
F35: Debt Premium | K35: =Determination_Lookup!W9 -> 0.0116 | M35: =Determination_Lookup!X9 -> 0.0175 | O35: =Determination_Lookup!Y9 -> 0.0399
F36: Equity Premium | K36: =Determination_Lookup!W10 -> 0.06 | M36: =Determination_Lookup!X10 -> 0.06 | O36: =Determination_Lookup!Y10 -> 0.06 | Z36: Regulatory Rate of Return (RRR) - Real
F37: Equity Beta | K37: =Determination_Lookup!W11 -> 0.75 | M37: =Determination_Lookup!X11 -> 0.65 | O37: =Determination_Lookup!Y11 -> 0.65
F38: Gearing (Debt/Assets) | K38: =Determination_Lookup!W12 -> 0.6 | M38: =Determination_Lookup!X12 -> 0.6 | O38: =Determination_Lookup!Y12 -> 0.6 | Z38: Cost of Debt | AC38: =(1+AC32)/(1+AC44)-1 -> 0.01513673632 | AD38: =(1+AD32)/(1+AD44)-1 -> 0.01193362953 | AE38: 0.01037291755 | AF38: 0.0089002589 | AG38: 0.007778867314 | AH38: 0.007026440129 | AI38: 0.006191488673 | AJ38: 0.00662592233 | AK38: 0.007313592233 | AL38: 0.007313592233
F39: Forecast Inflation | K39: =Determination_Lookup!W13 -> 0.0255 | M39: =Determination_Lookup!X13 -> 0.025 | O39: =Determination_Lookup!Y13 -> 0.0275
F40: Franking credit value | K40: =Determination_Lookup!W14 -> 0.5 | M40: =Determination_Lookup!X14 -> 0.5 | O40: =Determination_Lookup!Y14 -> 0.5 | Z40: Return on Equity | AC40: =IF(AE64<>0,(AE64/100),IF(AE62<>0,(AE62/100),(AE60/100))) -> 0.041 | AD40: =+$AC$40 -> 0.041 | AE40: 0.041 | AF40: 0.041 | AG40: 0.041 | AH40: 0.041 | AI40: 0.041 | AJ40: 0.041 | AK40: 0.041 | AL40: 0.041
E42: 'Vanilla' After Tax WACC (Real) | K42: =ROUND(((K34+K36*K37)*(1-K38))+((K34+K35)*K38),3) -> 0.052 | M42: =ROUND(((M34+M36*M37)*(1-M38))+((M34+M35)*M38),3) -> 0.058 | O42: =ROUND(((O34+O36*O37)*(1-O38))+((O34+O35)*O38),3) -> 0.045 | Z42: RRR (real) | AC42: =ROUND((AC40*(1-AC43)+AC38*AC43),4) -> 0.0255 | AD42: 0.0236 | AE42: 0.0226 | AF42: 0.0217 | AG42: 0.0211 | AH42: 0.0206 | AI42: 0.0201 | AJ42: 0.0204 | AK42: 0.0208 | AL42: 0.0208
Z43: Gearing | AC43: 0.6 | AD43: =+AC43 -> 0.6 | AE43: 0.6 | AF43: 0.6 | AG43: 0.6 | AH43: 0.6 | AI43: 0.6 | AJ43: 0.6 | AK43: 0.6 | AL43: 0.6
Z44: Forecast Inflation | AC44: 0.03 | AD44: =+AC44 -> 0.03 | AE44: 0.03 | AF44: 0.03 | AG44: 0.03 | AH44: 0.03 | AI44: 0.03 | AJ44: 0.03 | AK44: 0.03 | AL44: 0.03
L45: Regulatory Rate of Return (RRR) [retained for historical purposes only]
E46: Form of price control selected
O47: 4th period
E48: Price caps | I48: 1 | L48: Cost of Debt | O48: =Determination_Lookup!W25 -> 0.03618998679 | Z48: PREMO Assessment Matrix (linked to Regulatory Rate of Return calculation above)
L49: Return on Equity | O49: =Determination_Lookup!W26 -> 0.039 | U49: PREMO Graded Scoring System (for reference only)
E50: Revenue cap / Hybrid Tariff Basket | L50: Gearing | O50: =Determination_Lookup!W27 -> 0.6
L51: Forecast Inflation | O51: =Determination_Lookup!W28 -> 0.023 | AB51: Water business self-assessment
L52: RRR (real) | O52: =Determination_Lookup!W29 -> 0.0373
AB53: Leading | AC53: Advanced | AD53: Standard | AE53: Basic
Z54: ESC assessment of submission | AA54: Leading | AB54: 4.9
U55: Risk | AA55: Advanced | AB55: 4.3 | AC55: 4.5
U56: Engagement | V56: [Select] | AA56: Standard | AB56: 3.7 | AC56: 3.9 | AD56: 4.1
U57: Management | V57: [Select] | AA57: Basic | AD57: 3.5 | AE57: 3.7
U58: Outcomes | V58: [Select]
U60: Total Score | Z60: Water business self-assessment (Maximum allowable ROE) | AD60: Standard | AE60: =+VLOOKUP(AD60,$AD$71:$AE$75,2,FALSE) -> 4.1
Z62: ROE Override (Must be less than Maximum allowable ROE) | AE62: =+IF(AD62<=AE60,AD62,"CHECK") -> 0
U64: Rating | Z64: ESC assessment of submission | AD64: [Select] | AE64: =IFERROR(IF(AD64=AD60,AE60,VLOOKUP(AD60&AD64,AD78:AE82,2,FALSE)),0) -> 0
AD66: Difference | AE66: =IFERROR(IF(AE64=0,"",AE64-AE60),"") -> 
U70: ESC USE ONLY | AD70: Business self assessment
AD71: [Select]
AD72: Leading | AE72: =+AB54 -> 4.9
AD73: Advanced | AE73: =+AC55 -> 4.5
AD74: Standard | AE74: =+AD56 -> 4.1
AD75: Basic | AE75: =+AE57 -> 3.7
AD77: downgrading
AD78: =AD53&AA57 -> StandardBasic | AE78: =+AD57 -> 3.5
AD79: =+AC53&AA56 -> AdvancedStandard | AE79: =+AC56 -> 3.9
AD80: =+AB53&AA55 -> LeadingAdvanced | AE80: =+AB55 -> 4.3
AD81: =+AB53&AA56 -> LeadingStandard | AE81: =+AB56 -> 3.7
AD82: =+AD60&"Basic" -> StandardBasic | AE82: CHECK

Sheet Expenditure_Detail
A1: 80 | B1: Expenditure - Detail
B2: =Model_Name -> Wannon Water
B3: Go to Table of Contents
L4: FIRST REG PERIOD | P4: SECOND REG PERIOD | U4: THIRD REG PERIOD | Z4: FOURTH REG PERIOD | AE4: FIFTH REG PERIOD | AJ4: SIXTH REG PERIOD
K5: 2006 | L5: 2007 | M5: 2008 | N5: 2009 | O5: 2010 | P5: 2011 | Q5: 2012 | R5: 2013 | S5: 2014 | T5: 2015 | U5: 2016 | V5: 2017 | W5: 2018 | X5: 2019 | Y5: 2020 | Z5: 2021 | AA5: 2022 | AB5: 2023 | AC5: 2024 | AD5: 2025 | AE5: 2026 | AF5: 2027 | AG5: 2028 | AH5: 2029 | AI5: 2030 | AJ5: 2031 | AK5: 2032 | AL5: 2033
B6: $m, 01/01/23 | K6: =+CONCATENATE(K5-1,"-",RIGHT(K5,2)) -> 2005-06 | L6: =+CONCATENATE(L5-1,"-",RIGHT(L5,2)) -> 2006-07 | M6: 2007-08 | N6: 2008-09 | O6: 2009-10 | P6: 2010-11 | Q6: 2011-12 | R6: 2012-13 | S6: 2013-14 | T6: 2014-15 | U6: 2015-16 | V6: 2016-17 | W6: 2017-18 | X6: 2018-19 | Y6: 2019-20 | Z6: 2020-21 | AA6: 2021-22 | AB6: 2022-23 | AC6: 2023-24 | AD6: 2024-25 | AE6: 2025-26 | AF6: 2026-27 | AG6: 2027-28 | AH6: =+CONCATENATE(AH5-1,"-",RIGHT(AH5,2)) -> 2028-29 | AI6: =+CONCATENATE(AI5-1,"-",RIGHT(AI5,2)) -> 2029-30 | AJ6: =+CONCATENATE(AJ5-1,"-",RIGHT(AJ5,2)) -> 2030-31 | AK6: =+CONCATENATE(AK5-1,"-",RIGHT(AK5,2)) -> 2031-32 | AL6: =+CONCATENATE(AL5-1,"-",RIGHT(AL5,2)) -> 2032-33
B8: This worksheet outlines the key cost drivers of operating expenditure - capitalised costs are excluded. This tab does not link to the Rev&RAV_FO worksheet
C11: Expenditure Summary
D13: Total Labour costs | W13: =W34 -> 20.87350588 | X13: 21.57136412 | Y13: 21.7188773 | Z13: 21.28827273 | AA13: 22.41549618 | AB13: 22.32087433 | AC13: 22.72423405 | AD13: 22.81090197 | AE13: 22.9006869 | AF13: 22.9127273 | AG13: 22.92521171 | AH13: =AH34 -> 22.92521171 | AI13: =AI34 -> 22.92521171 | AJ13: =AJ34 -> 22.92521171 | AK13: =AK34 -> 22.92521171 | AL13: =AL34 -> 22.92521171
D14: Total Energy costs | W14: =W92 -> 3.572336378 | X14: 4.615196875 | Y14: 4.03919538 | Z14: 4.092096557 | AA14: 4.186607272 | AB14: 3.539742098 | AC14: 3.372124289 | AD14: 3.580526688 | AE14: 3.664884436 | AF14: =AF92 -> 3.639663107 | AG14: 3.511340418 | AH14: =AH92 -> 3.511340418 | AI14: =AI92 -> 3.511340418 | AJ14: =AJ92 -> 3.511340418 | AK14: =AK92 -> 3.511340418 | AL14: =AL92 -> 3.511340418
D15: Total IT costs | W15: =W103 -> 3.76521448 | X15: 4.073515098 | Y15: 4.908220859 | Z15: 4.402381647 | AA15: 5.936480916 | AB15: 4.471560748 | AC15: 4.251803748 | AD15: 5.9168613 | AE15: 5.961852662 | AF15: 6.087605498 | AG15: 6.114967773 | AH15: =AH103 -> 6.114967773 | AI15: =AI103 -> 6.114967773 | AJ15: =AJ103 -> 6.114967773 | AK15: =AK103 -> 6.114967773 | AL15: =AL103 -> 6.114967773
D16: Total Chemical costs | W16: =W114 -> 0.9420918706 | X16: 0.9823674485 | Y16: 0.887075135 | Z16: 0.8625671475 | AA16: 1.010878977 | AB16: 1.010878977 | AC16: 1.010878977 | AD16: 1.010878977 | AE16: 1.410878977 | AF16: 1.910878977 | AG16: 1.910878977 | AH16: =AH114 -> 1.910878977 | AI16: =AI114 -> 1.910878977 | AJ16: =AJ114 -> 1.910878977 | AK16: =AK114 -> 1.910878977 | AL16: =AL114 -> 1.910878977
C21: Labour assumptions
D23: Current FTEs (at 30 June) | W23: 202 | X23: 197 | Y23: 200 | Z23: 199 | AA23: 211
D24: Actual and forecast labour costs for current FTEs ($m) | W24: =18.616/KeyAssumptionsPriceControl_FO!W15 -> 20.87350588 | X24: =19.604/KeyAssumptionsPriceControl_FO!X15 -> 21.57136412 | Y24: =20.001/KeyAssumptionsPriceControl_FO!Y15 -> 21.7188773 | Z24: =20.034/KeyAssumptionsPriceControl_FO!Z15 -> 21.28827273 | AA24: =21.33/KeyAssumptionsPriceControl_FO!AA15 -> 22.41549618 | AB24: =AA24 -> 22.41549618 | AC24: 22.41549618 | AD24: 22.41549618 | AE24: 22.41549618 | AF24: 22.41549618 | AG24: 22.41549618 | AH24: 22.41549618 | AI24: 22.41549618 | AJ24: 22.41549618 | AK24: 22.41549618 | AL24: 22.41549618
D25: Cost per FTE ($000) | W25: =+W24/W23*10^3 -> 103.3341875 | X25: =+X24/X23*10^3 -> 109.4993103 | Y25: =+Y24/Y23*10^3 -> 108.5943865 | Z25: =+Z24/Z23*10^3 -> 106.9762449 | AA25: =+AA24/AA23*10^3 -> 106.2345791 | AB25: =+AB24/$AA$23*10^3 -> 106.2345791 | AC25: 106.2345791 | AD25: 106.2345791 | AE25: 106.2345791 | AF25: 106.2345791 | AG25: 106.2345791 | AH25: 106.2345791 | AI25: 106.2345791 | AJ25: 106.2345791 | AK25: 106.2345791 | AL25: 106.2345791
D26: Annual growth in labour costs for current FTEs | X26: =+X25/W25-1 -> 0.05966198475 | Y26: -0.008264195935 | Z26: -0.01490078534 | AA26: -0.006932995211 | AB26: 0 | AC26: 0 | AD26: 0 | AE26: 0 | AF26: 0 | AG26: 0 | AH26: =+AH25/AG25-1 -> 0 | AI26: =+AI25/AH25-1 -> 0 | AJ26: =+AJ25/AI25-1 -> 0 | AK26: =+AK25/AJ25-1 -> 0 | AL26: =+AL25/AK25-1 -> 0
D28: Change in FTEs in future periods (net no. annual change) | AB28: 0 | AC28: 3 | AD28: 4 | AE28: 5 | AF28: 0 | AG28: 0 | AH28: 0 | AI28: 0 | AJ28: 0 | AK28: 0 | AL28: 0
D29: Increase or decrease in labour costs ($m) | AB29: =-Opex_FO!AA43 -> -0.09462184874 | AC29: =0.318/KeyAssumptionsPriceControl_FO!AC15 -> 0.3087378641 | AD29: =0.419486/KeyAssumptionsPriceControl_FO!AD15 -> 0.3954057875 | AE29: =0.530181/KeyAssumptionsPriceControl_FO!AE15 -> 0.4851907201 | AF29: =0.559638/KeyAssumptionsPriceControl_FO!AF15 -> 0.4972311145 | AG29: =0.5909/KeyAssumptionsPriceControl_FO!AG15 -> 0.5097155307 | AH29: =AG29 -> 0.5097155307 | AI29: =AH29 -> 0.5097155307 | AJ29: =AI29 -> 0.5097155307 | AK29: =AJ29 -> 0.5097155307 | AL29: =AK29 -> 0.5097155307
D33: Total FTEs | W33: =+W23 -> 202 | X33: 197 | Y33: 200 | Z33: 199 | AA33: 211 | AB33: =+$AA$23+SUM($AB28:AB28) -> 211 | AC33: =+$AA$23+SUM($AB28:AC28) -> 214 | AD33: =+$AA$23+SUM($AB28:AD28) -> 218 | AE33: =+$AA$23+SUM($AB28:AE28) -> 223 | AF33: =+$AA$23+SUM($AB28:AF28) -> 223 | AG33: =+$AA$23+SUM($AB28:AG28) -> 223 | AH33: =+$AA$23+SUM($AB28:AH28) -> 223 | AI33: =+$AA$23+SUM($AB28:AI28) -> 223 | AJ33: =+$AA$23+SUM($AB28:AJ28) -> 223 | AK33: =+$AA$23+SUM($AB28:AK28) -> 223 | AL33: =+$AA$23+SUM($AB28:AL28) -> 223
D34: Total labour costs ($m) | W34: 20.87350588 | X34: 21.57136412 | Y34: 21.7188773 | Z34: 21.28827273 | AA34: 22.41549618 | AB34: =+AB29+AB24 -> 22.32087433 | AC34: 22.72423405 | AD34: 22.81090197 | AE34: 22.9006869 | AF34: 22.9127273 | AG34: 22.92521171 | AH34: 22.92521171 | AI34: 22.92521171 | AJ34: 22.92521171 | AK34: 22.92521171 | AL34: 22.92521171
D35: Cost per FTE | W35: =+W34/W33 -> 0.1033341875 | X35: 0.1094993103 | Y35: 0.1085943865 | Z35: 0.1069762449 | AA35: 0.1062345791 | AB35: 0.1057861343 | AC35: 0.1061880096 | AD35: 0.104637165 | AE35: 0.1026936632 | AF35: 0.102747656 | AG35: 0.10280364 | AH35: =+AH34/AH33 -> 0.10280364 | AI35: =+AI34/AI33 -> 0.10280364 | AJ35: =+AJ34/AJ33 -> 0.10280364 | AK35: =+AK34/AK33 -> 0.10280364 | AL35: =+AL34/AL33 -> 0.10280364
D36: Annual growth in total labour costs | X36: =+X34/W34-1 -> 0.03343272771 | Y36: 0.006838379762 | Z36: -0.01982628141 | AA36: 0.05295044226 | AB36: -0.004221269427 | AC36: 0.01807096383 | AD36: 0.003813898558 | AE36: 0.003936053588 | AF36: 0.0005257656451 | AG36: 0.0005448681865 | AH36: =+AH34/AG34-1 -> 0 | AI36: 0 | AJ36: 0 | AK36: 0 | AL36: 0
D37: Annual growth in total labour costs per FTE | X37: =+X35/W35-1 -> 0.05966198475 | Y37: -0.008264195935 | Z37: -0.01490078534 | AA37: -0.006932995211 | AB37: -0.004221269427 | AC37: 0.003798940975 | AD37: -0.01460470509 | AE37: -0.0185737234 | AF37: 0.0005257656451 | AG37: 0.0005448681865 | AH37: 0 | AI37: 0 | AJ37: 0 | AK37: 0 | AL37: 0
C42: Energy assumptions
D44: Electricity - traditional sources
D46: BASE LOAD
D48: Large sites
D49: Total kWh | W49: 20552783 | X49: 20163947 | Y49: 18165079 | Z49: 17004395 | AA49: 19278623 | AB49: 19871419 | AC49: =AB49 -> 19871419 | AD49: 19871419 | AE49: 19871419 | AF49: 19871419 | AG49: 19871419 | AH49: 19871419 | AI49: 19871419 | AJ49: 19871419 | AK49: 19871419 | AL49: 19871419
D50: Total electricity costs ($m) | W50: =2.812522/KeyAssumptionsPriceControl_FO!W15 -> 3.153588016 | X50: =3.771402/KeyAssumptionsPriceControl_FO!X15 -> 4.149881952 | Y50: =3.338074/KeyAssumptionsPriceControl_FO!Y15 -> 3.624779742 | Z50: =3.427957/KeyAssumptionsPriceControl_FO!Z15 -> 3.642571804 | AA50: =3.575585/KeyAssumptionsPriceControl_FO!AA15 -> 3.757548613 | AB50: 3.108556098 | AC50: 3.061246586 | AD50: 3.276501496 | AE50: 3.242545935 | AF50: 3.214616011 | AG50: 3.084062967 | AH50: =AG50 -> 3.084062967 | AI50: =AH50 -> 3.084062967 | AJ50: =AI50 -> 3.084062967 | AK50: =AJ50 -> 3.084062967 | AL50: =AK50 -> 3.084062967
D51: Average c/kWh | W51: =+W50/W49*100*10^6 -> 15.34384913 | X51: 20.58070254 | Y51: 19.95465994 | Z51: 21.42135491 | AA51: 19.49075208 | AB51: 15.64335238 | AC51: =+AC50/AC49*100*10^6 -> 15.40527421 | AD51: 16.48851296 | AE51: 16.31763657 | AF51: 16.17708333 | AG51: 15.5200943 | AH51: 15.5200943 | AI51: 15.5200943 | AJ51: 15.5200943 | AK51: 15.5200943 | AL51: 15.5200943
D52: % increase p.a. | X52: =+X51/W51-1 -> 0.3412998498 | Y52: =+Y51/X51-1 -> -0.0304189129 | Z52: =+Z51/Y51-1 -> 0.07350137643 | AA52: =+AA51/Z51-1 -> -0.09012515038 | AB52: =+AB51/AA51-1 -> -0.1973961642 | AC52: =+AC51/AB51-1 -> -0.01521912757 | AD52: 0.07031609656 | AE52: -0.01036335911 | AF52: -0.008613578268 | AG52: -0.04061232942 | AH52: 0 | AI52: 0 | AJ52: 0 | AK52: 0 | AL52: 0
D54: Medium sites
D55: Total kWh
D56: Total electricity costs ($m)
D57: Average c/kWh | W57: =+W56/W55*100*10^6 ->  | AC57: =+AC56/AC55*100*10^6 -> 
D58: % increase p.a. | X58: =+X57/W57-1 ->  | Y58: =+Y57/X57-1 ->  | Z58: =+Z57/Y57-1 ->  | AA58: =+AA57/Z57-1 ->  | AB58: =+AB57/AA57-1 ->  | AC58: =+AC57/AB57-1 -> 
D60: Small sites
D61: Total kWh | W61: 1636306 | X61: 1597614 | Y61: 1246346 | Z61: 1630921 | AA61: 1990655 | AB61: =AA61 -> 1990655 | AC61: 1990655 | AD61: 1990655 | AE61: 1990655 | AF61: 1990655 | AG61: 1990655 | AH61: 1990655 | AI61: 1990655 | AJ61: 1990655 | AK61: 1990655 | AL61: 1990655
D62: Total electricity costs ($m) | W62: =0.37346/KeyAssumptionsPriceControl_FO!W15 -> 0.418748362 | X62: =0.422877/KeyAssumptionsPriceControl_FO!X15 -> 0.4653149227 | Y62: =0.381637/KeyAssumptionsPriceControl_FO!Y15 -> 0.414415638 | Z62: =0.427756/KeyAssumptionsPriceControl_FO!AA15 -> 0.4495247532 | AA62: =0.408281/KeyAssumptionsPriceControl_FO!AA15 -> 0.429058659 | AB62: 0.431186 | AC62: =AA62 -> 0.429058659 | AD62: =AC62 -> 0.429058659 | AE62: 0.429058659 | AF62: 0.429058659 | AG62: 0.429058659 | AH62: 0.429058659 | AI62: 0.429058659 | AJ62: 0.429058659 | AK62: 0.429058659 | AL62: 0.429058659
D63: Average c/kWh | W63: =+W62/W61*100*10^6 -> 25.59107905 | X63: 29.12561625 | Y63: 33.25044875 | Z63: 27.56263198 | AA63: 21.55364235 | AB63: 21.66050873 | AC63: =+AC62/AC61*100*10^6 -> 21.55364235 | AD63: 21.55364235 | AE63: 21.55364235 | AF63: 21.55364235 | AG63: 21.55364235 | AH63: 21.55364235 | AI63: 21.55364235 | AJ63: 21.55364235 | AK63: 21.55364235 | AL63: 21.55364235
D64: % increase p.a. | X64: =+X63/W63-1 -> 0.1381159891 | Y64: =+Y63/X63-1 -> 0.141622154 | Z64: =+Z63/Y63-1 -> -0.1710598498 | AA64: =+AA63/Z63-1 -> -0.2180121856 | AB64: =+AB63/AA63-1 -> 0.004958158802 | AC64: =+AC63/AB63-1 -> -0.00493369675 | AD64: 0 | AE64: 0 | AF64: 0 | AG64: 0 | AH64: 0 | AI64: 0 | AJ64: 0 | AK64: 0 | AL64: 0
D67: NEW PROJECTS
D69: Large sites
D70: Total kWh | AC70: -700000 | AD70: -700000 | AE70: 42000 | AF70: 59000 | AG70: 77000 | AH70: =AG70 -> 77000 | AI70: 77000 | AJ70: 77000 | AK70: 77000 | AL70: 77000
D71: Total electricity costs ($m) | AC71: -0.1181809556 | AD71: -0.1250334672 | AE71: -0.00672015733 | AF71: -0.004011563288 | AG71: -0.001781208406 | AH71: -0.001781208406 | AI71: -0.001781208406 | AJ71: -0.001781208406 | AK71: -0.001781208406 | AL71: -0.001781208406
D72: Average c/kWh | W72: =+W71/W70*100*10^6 ->  | AC72: =+AC71/AC70*100*10^6 -> 16.88299366 | AD72: 17.86192389 | AE72: -16.0003746 | AF72: -6.799259811 | AG72: -2.31325767 | AH72: -2.31325767 | AI72: -2.31325767 | AJ72: -2.31325767 | AK72: -2.31325767 | AL72: -2.31325767
D73: % increase p.a. | X73: =+X72/W72-1 ->  | Y73: =+Y72/X72-1 ->  | Z73: =+Z72/Y72-1 ->  | AA73: =+AA72/Z72-1 ->  | AB73: =+AB72/AA72-1 ->  | AC73: =+AC72/AB72-1 ->  | AD73: 0.05798321364 | AE73: -1.895781143 | AF73: -0.5750562107 | AG73: -0.6597780149 | AH73: 0 | AI73: 0 | AJ73: 0 | AK73: 0 | AL73: 0
D75: Medium sites
D76: Total kWh
D77: Total electricity costs ($m)
D78: Average c/kWh | W78: =+W77/W76*100*10^6 ->  | AC78: =+AC77/AC76*100*10^6 -> 
D79: % increase p.a. | X79: =+X78/W78-1 ->  | Y79: =+Y78/X78-1 ->  | Z79: =+Z78/Y78-1 ->  | AA79: =+AA78/Z78-1 ->  | AB79: =+AB78/AA78-1 ->  | AC79: =+AC78/AB78-1 -> 
D81: Small sites
D82: Total kWh
D83: Total electricity costs ($m)
D84: Average c/kWh | W84: =+W83/W82*100*10^6 ->  | X84: =+X83/X82*100*10^6 ->  | AH84: =+AH83/AH82*100*10^6 ->  | AI84: =+AI83/AI82*100*10^6 ->  | AJ84: =+AJ83/AJ82*100*10^6 ->  | AK84: =+AK83/AK82*100*10^6 ->  | AL84: =+AL83/AL82*100*10^6 -> 
D85: % increase p.a. | X85: =+X84/W84-1 ->  | Y85: =+Y84/X84-1 ->  | Z85: =+Z84/Y84-1 ->  | AA85: =+AA84/Z84-1 ->  | AB85: =+AB84/AA84-1 ->  | AC85: =+AC84/AB84-1 -> 
D88: Greenhouse Gas Offsets
D89: % increase p.a. | X89: =X88/W88-1 ->  | AH89: =AH88/AG88-1 ->  | AI89: =AI88/AH88-1 ->  | AJ89: =AJ88/AI88-1 ->  | AK89: =AK88/AJ88-1 ->  | AL89: =AL88/AK88-1 -> 
D92: TOTAL ENERGY COSTS | W92: =+SUM(W50,W56,W62,W71,W77,W83,W88) -> 3.572336378 | X92: 4.615196875 | Y92: 4.03919538 | Z92: 4.092096557 | AA92: 4.186607272 | AB92: 3.539742098 | AC92: 3.372124289 | AD92: 3.580526688 | AE92: 3.664884436 | AF92: 3.639663107 | AG92: =+SUM(AG50,AG56,AG62,AG71,AG77,AG83,AG88) -> 3.511340418 | AH92: 3.511340418 | AI92: 3.511340418 | AJ92: 3.511340418 | AK92: 3.511340418 | AL92: 3.511340418
D93: % increase p.a. | W93: =W92/V92-1 ->  | X93: 0.2919267354 | Y93: -0.1248054005 | Z93: 0.01309695903 | AA93: 0.0230959153 | AB93: -0.154508205 | AC93: -0.04735311324 | AD93: 0.06180151769 | AE93: 0.02356015067 | AF93: -0.006881889345 | AG93: -0.03525674925 | AH93: =AH92/AG92-1 -> 0 | AI93: =AI92/AH92-1 -> 0 | AJ93: =AJ92/AI92-1 -> 0 | AK93: =AK92/AJ92-1 -> 0 | AL93: =AL92/AK92-1 -> 0
C98: IT cost assumptions
D100: Water related IT costs
D101: Sewerage and trade waste related IT costs
D102: Other IT costs | W102: =3.358/KeyAssumptionsPriceControl_FO!W15 -> 3.76521448 | X102: =3.702/KeyAssumptionsPriceControl_FO!X15 -> 4.073515098 | Y102: =4.52/KeyAssumptionsPriceControl_FO!Y15 -> 4.908220859 | Z102: =4.143/KeyAssumptionsPriceControl_FO!Z15 -> 4.402381647 | AA102: =5.649/KeyAssumptionsPriceControl_FO!AA15 -> 5.936480916 | AB102: =AA102-Opex_FO!AA40 -> 4.471560748 | AC102: =AB102+Opex_FO!AC71+Opex_FO!AC73 -> 4.251803748 | AD102: =AB102+Opex_FO!AD71+Opex_FO!AD73 -> 5.9168613 | AE102: =AB102+Opex_FO!AE71+Opex_FO!AE73 -> 5.961852662 | AF102: =AB102+Opex_FO!AF71+Opex_FO!AF73 -> 6.087605498 | AG102: =AB102+Opex_FO!AG71+Opex_FO!AG73 -> 6.114967773 | AH102: =AG102 -> 6.114967773 | AI102: =AH102 -> 6.114967773 | AJ102: =AI102 -> 6.114967773 | AK102: =AJ102 -> 6.114967773 | AL102: =AK102 -> 6.114967773
D103: Total IT costs | W103: =SUM(W100:W102) -> 3.76521448 | X103: 4.073515098 | Y103: 4.908220859 | Z103: 4.402381647 | AA103: 5.936480916 | AB103: 4.471560748 | AC103: =SUM(AC100:AC102) -> 4.251803748 | AD103: 5.9168613 | AE103: 5.961852662 | AF103: 6.087605498 | AG103: 6.114967773 | AH103: 6.114967773 | AI103: 6.114967773 | AJ103: 6.114967773 | AK103: 6.114967773 | AL103: 6.114967773
D104: % increase p.a. | X104: =X103/W103-1 -> 0.08188128982 | Y104: 0.2049104376 | Z104: -0.1030595865 | AA104: 0.3484703037 | AB104: -0.2467657504 | AC104: -0.04914548015 | AD104: 0.391612043 | AE104: 0.007603923722 | AF104: 0.02109291241 | AG104: 0.004494751674 | AH104: =AH103/AG103-1 -> 0 | AI104: =AI103/AH103-1 -> 0 | AJ104: =AJ103/AI103-1 -> 0 | AK104: =AK103/AJ103-1 -> 0 | AL104: =AL103/AK103-1 -> 0
C109: Chemical cost assumptions
D111: Water related chemical costs | W111: =0.600206/KeyAssumptionsPriceControl_FO!W15 -> 0.672991162 | X111: =0.64879/KeyAssumptionsPriceControl_FO!X15 -> 0.713899476 | Y111: =0.581952/KeyAssumptionsPriceControl_FO!Y15 -> 0.6319356074 | Z111: =0.615206/KeyAssumptionsPriceControl_FO!Z15 -> 0.6537223276 | AA111: =0.672029/KeyAssumptionsPriceControl_FO!AA15 -> 0.7062289491 | AB111: =AA111 -> 0.7062289491 | AC111: 0.7062289491 | AD111: 0.7062289491 | AE111: 0.7062289491 | AF111: 0.7062289491 | AG111: 0.7062289491 | AH111: 0.7062289491 | AI111: 0.7062289491 | AJ111: 0.7062289491 | AK111: 0.7062289491 | AL111: 0.7062289491
D112: Sewerage and trade waste related chemical costs | W112: =0.239997/KeyAssumptionsPriceControl_FO!W15 -> 0.2691007086 | X112: =0.243983/KeyAssumptionsPriceControl_FO!X15 -> 0.2684679725 | Y112: =0.234959/KeyAssumptionsPriceControl_FO!Y15 -> 0.2551395276 | Z112: =0.19654/KeyAssumptionsPriceControl_FO!Z15 -> 0.2088448199 | AA112: =0.289897/KeyAssumptionsPriceControl_FO!AA15 -> 0.304650028 | AB112: =AA112 -> 0.304650028 | AC112: =AB112 -> 0.304650028 | AD112: =AC112 -> 0.304650028 | AE112: =AD112+0.4 -> 0.704650028 | AF112: =AD112+0.9 -> 1.204650028 | AG112: =AF112 -> 1.204650028 | AH112: 1.204650028 | AI112: 1.204650028 | AJ112: 1.204650028 | AK112: 1.204650028 | AL112: 1.204650028
D113: Other chemical costs
D114: Total chemical costs | W114: =SUM(W111:W113) -> 0.9420918706 | X114: 0.9823674485 | Y114: 0.887075135 | Z114: 0.8625671475 | AA114: 1.010878977 | AB114: 1.010878977 | AC114: =SUM(AC111:AC113) -> 1.010878977 | AD114: 1.010878977 | AE114: 1.410878977 | AF114: 1.910878977 | AG114: 1.910878977 | AH114: 1.910878977 | AI114: 1.910878977 | AJ114: 1.910878977 | AK114: 1.910878977 | AL114: 1.910878977
D115: % increase p.a. | X115: =X114/W114-1 -> 0.04275122115 | Y115: -0.09700271896 | Z115: -0.02762785979 | AA115: 0.1719423584 | AB115: 0 | AC115: 0 | AD115: 0 | AE115: 0.3956952405 | AF115: 0.3543890072 | AG115: 0 | AH115: =AH114/AG114-1 -> 0 | AI115: =AI114/AH114-1 -> 0 | AJ115: =AJ114/AI114-1 -> 0 | AK115: =AK114/AJ114-1 -> 0 | AL115: =AL114/AK114-1 -> 0

Sheet Opex_FO
A1: 80 | B1: Operating Expenditure - Forecast
B2: =Model_Name -> Wannon Water
B3: Go to Table of Contents
L4: FIRST REG PERIOD | P4: SECOND REG PERIOD | U4: THIRD REG PERIOD | Z4: FOURTH REG PERIOD | AE4: FIFTH REG PERIOD | AJ4: SIXTH REG PERIOD
K5: 2006 | L5: 2007 | M5: 2008 | N5: 2009 | O5: 2010 | P5: 2011 | Q5: 2012 | R5: 2013 | S5: 2014 | T5: 2015 | U5: 2016 | V5: 2017 | W5: 2018 | X5: 2019 | Y5: 2020 | Z5: 2021 | AA5: 2022 | AB5: 2023 | AC5: 2024 | AD5: 2025 | AE5: 2026 | AF5: 2027 | AG5: 2028 | AH5: 2029 | AI5: 2030 | AJ5: 2031 | AK5: 2032 | AL5: 2033
B6: =Expenditure_Detail!$B$6 -> $m, 01/01/23 | K6: =+CONCATENATE(K5-1,"-",RIGHT(K5,2)) -> 2005-06 | L6: =+CONCATENATE(L5-1,"-",RIGHT(L5,2)) -> 2006-07 | M6: 2007-08 | N6: 2008-09 | O6: 2009-10 | P6: 2010-11 | Q6: 2011-12 | R6: 2012-13 | S6: 2013-14 | T6: 2014-15 | U6: 2015-16 | V6: 2016-17 | W6: 2017-18 | X6: 2018-19 | Y6: 2019-20 | Z6: 2020-21 | AA6: 2021-22 | AB6: 2022-23 | AC6: 2023-24 | AD6: 2024-25 | AE6: 2025-26 | AF6: 2026-27 | AG6: 2027-28 | AH6: =+CONCATENATE(AH5-1,"-",RIGHT(AH5,2)) -> 2028-29 | AI6: =+CONCATENATE(AI5-1,"-",RIGHT(AI5,2)) -> 2029-30 | AJ6: =+CONCATENATE(AJ5-1,"-",RIGHT(AJ5,2)) -> 2030-31 | AK6: =+CONCATENATE(AK5-1,"-",RIGHT(AK5,2)) -> 2031-32 | AL6: =+CONCATENATE(AL5-1,"-",RIGHT(AL5,2)) -> 2032-33
C9: Parameters | G9: 4th period | I9: 5th period
D11: Cost efficiency improvement rate (% per annum) | G11: =Determination_Lookup!X33 -> 0.01 | I11: =IFERROR(AVERAGE(AC11:AG11),"-") -> 0.01 | AC11: 0.01 | AD11: =AC11 -> 0.01 | AE11: =AD11 -> 0.01 | AF11: 0.01 | AG11: 0.01 | AH11: 0.01 | AI11: 0.01 | AJ11: 0.01 | AK11: 0.01 | AL11: 0.01
D13: Customer growth forecast (% per annum) | G13: =Determination_Lookup!X34 -> 0.008082741793 | I13: =IFERROR(AVERAGE(AC13:AG13),"-") -> 0.007435311721 | Y13: =IF(Y15="","",Y15/X15-1) -> 0.006951180084 | Z13: =IF(Z15="","",Z15/Y15-1) -> 0.01077907483 | AA13: =IF(AA15="","",AA15/Z15-1) -> 0.008962403285 | AB13: 0.007432085514 | AC13: 0.007433165601 | AD13: 0.007434242168 | AE13: 0.007435315223 | AF13: 0.007436384776 | AG13: 0.007437450837 | AH13: 0.007438513415 | AI13: 0.00743957252 | AJ13: 0.007440628161 | AK13: 0.007441680348 | AL13: 0.00744272909
F14: Net baseline opex growth | G14: =IFERROR(G13-G11,"-") -> -0.001917258207 | I14: =IFERROR(I13-I11,"-") -> -0.002564688279
D15: Water customers (No.) - Residential & Non-Residential - [BED 1] | W15: =+Determination_Lookup!M20 -> 43070 | X15: =+Determination_Lookup!N20 -> 43302 | Y15: =+Determination_Lookup!O20 -> 43603 | Z15: 44073 | AA15: 44468 | AB15: =+AA$15*(1+AB$13) -> 44798.48998 | AC15: 45131.48457 | AD15: 45467.00296 | AE15: 45805.06446 | AF15: 46145.68854 | AG15: 46488.89483 | AH15: =+AG$15*(1+AH$13) -> 46834.7031 | AI15: =+AH$15*(1+AI$13) -> 47183.13327 | AJ15: =+AI$15*(1+AJ$13) -> 47534.20542 | AK15: =+AJ$15*(1+AK$13) -> 47887.93978 | AL15: =+AK$15*(1+AL$13) -> 48244.35675
D17: Sewer customers (No.) - Residential & Non-Residential - [BED 2] | W17: =+Determination_Lookup!M21 -> 36816 | X17: =+Determination_Lookup!N21 -> 37038 | Y17: =+Determination_Lookup!O21 -> 37321 | Z17: 37732 | AA17: 38151 | AB17: =+AA$17*(1+AB$13) -> 38434.54149 | AC17: 38720.23181 | AD17: 39008.08739 | AE17: 39298.12481 | AF17: 39590.36079 | AG17: 39884.81215 | AH17: =+AG$17*(1+AH$13) -> 40181.49586 | AI17: =+AH$17*(1+AI$13) -> 40480.42901 | AJ17: =+AI$17*(1+AJ$13) -> 40781.62883 | AK17: =+AJ$17*(1+AK$13) -> 41085.11268 | AL17: =+AK$17*(1+AL$13) -> 41390.89804
D19: Total metered volume of water delivered to customers (ML) - [BED 10] | W19: =+Determination_Lookup!M22 -> 12033 | X19: =+Determination_Lookup!N22 -> 11986 | Y19: =+Determination_Lookup!O22 -> 11469 | Z19: 10987 | AA19: 11679 | AB19: =(RevenuePriceCap_FO!AB124+RevenuePriceCap_FO!AB127+RevenuePriceCap_FO!AB130+RevenuePriceCap_FO!AB133+RevenuePriceCap_FO!AB136+RevenuePriceCap_FO!AB196+RevenuePriceCap_FO!AB199+RevenuePriceCap_FO!AB202+RevenuePriceCap_FO!AB205+RevenuePriceCap_FO!AB208+RevenuePriceCap_FO!AB217)/1000 -> 11750.18967 | AC19: =(RevenuePriceCap_FO!AC124+RevenuePriceCap_FO!AC127+RevenuePriceCap_FO!AC130+RevenuePriceCap_FO!AC133+RevenuePriceCap_FO!AC136+RevenuePriceCap_FO!AC196+RevenuePriceCap_FO!AC199+RevenuePriceCap_FO!AC202+RevenuePriceCap_FO!AC205+RevenuePriceCap_FO!AC208+RevenuePriceCap_FO!AC217)/1000 -> 11822.75986 | AD19: =(RevenuePriceCap_FO!AD124+RevenuePriceCap_FO!AD127+RevenuePriceCap_FO!AD130+RevenuePriceCap_FO!AD133+RevenuePriceCap_FO!AD136+RevenuePriceCap_FO!AD196+RevenuePriceCap_FO!AD199+RevenuePriceCap_FO!AD202+RevenuePriceCap_FO!AD205+RevenuePriceCap_FO!AD208+RevenuePriceCap_FO!AD217)/1000 -> 11895.88258 | AE19: =(RevenuePriceCap_FO!AE124+RevenuePriceCap_FO!AE127+RevenuePriceCap_FO!AE130+RevenuePriceCap_FO!AE133+RevenuePriceCap_FO!AE136+RevenuePriceCap_FO!AE196+RevenuePriceCap_FO!AE199+RevenuePriceCap_FO!AE202+RevenuePriceCap_FO!AE205+RevenuePriceCap_FO!AE208+RevenuePriceCap_FO!AE217)/1000 -> 11968.10804 | AF19: =(RevenuePriceCap_FO!AF124+RevenuePriceCap_FO!AF127+RevenuePriceCap_FO!AF130+RevenuePriceCap_FO!AF133+RevenuePriceCap_FO!AF136+RevenuePriceCap_FO!AF196+RevenuePriceCap_FO!AF199+RevenuePriceCap_FO!AF202+RevenuePriceCap_FO!AF205+RevenuePriceCap_FO!AF208+RevenuePriceCap_FO!AF217)/1000 -> 12040.84953 | AG19: =(RevenuePriceCap_FO!AG124+RevenuePriceCap_FO!AG127+RevenuePriceCap_FO!AG130+RevenuePriceCap_FO!AG133+RevenuePriceCap_FO!AG136+RevenuePriceCap_FO!AG196+RevenuePriceCap_FO!AG199+RevenuePriceCap_FO!AG202+RevenuePriceCap_FO!AG205+RevenuePriceCap_FO!AG208+RevenuePriceCap_FO!AG217)/1000 -> 12114.37133 | AH19: =(RevenuePriceCap_FO!AH124+RevenuePriceCap_FO!AH127+RevenuePriceCap_FO!AH130+RevenuePriceCap_FO!AH133+RevenuePriceCap_FO!AH136+RevenuePriceCap_FO!AH196+RevenuePriceCap_FO!AH199+RevenuePriceCap_FO!AH202+RevenuePriceCap_FO!AH205+RevenuePriceCap_FO!AH208+RevenuePriceCap_FO!AH217)/1000 -> 12189.30188 | AI19: =(RevenuePriceCap_FO!AI124+RevenuePriceCap_FO!AI127+RevenuePriceCap_FO!AI130+RevenuePriceCap_FO!AI133+RevenuePriceCap_FO!AI136+RevenuePriceCap_FO!AI196+RevenuePriceCap_FO!AI199+RevenuePriceCap_FO!AI202+RevenuePriceCap_FO!AI205+RevenuePriceCap_FO!AI208+RevenuePriceCap_FO!AI217)/1000 -> 12264.77472 | AJ19: =(RevenuePriceCap_FO!AJ124+RevenuePriceCap_FO!AJ127+RevenuePriceCap_FO!AJ130+RevenuePriceCap_FO!AJ133+RevenuePriceCap_FO!AJ136+RevenuePriceCap_FO!AJ196+RevenuePriceCap_FO!AJ199+RevenuePriceCap_FO!AJ202+RevenuePriceCap_FO!AJ205+RevenuePriceCap_FO!AJ208+RevenuePriceCap_FO!AJ217)/1000 -> 12339.54859 | AK19: =(RevenuePriceCap_FO!AK124+RevenuePriceCap_FO!AK127+RevenuePriceCap_FO!AK130+RevenuePriceCap_FO!AK133+RevenuePriceCap_FO!AK136+RevenuePriceCap_FO!AK196+RevenuePriceCap_FO!AK199+RevenuePriceCap_FO!AK202+RevenuePriceCap_FO!AK205+RevenuePriceCap_FO!AK208+RevenuePriceCap_FO!AK217)/1000 -> 12415.3098 | AL19: =(RevenuePriceCap_FO!AL124+RevenuePriceCap_FO!AL127+RevenuePriceCap_FO!AL130+RevenuePriceCap_FO!AL133+RevenuePriceCap_FO!AL136+RevenuePriceCap_FO!AL196+RevenuePriceCap_FO!AL199+RevenuePriceCap_FO!AL202+RevenuePriceCap_FO!AL205+RevenuePriceCap_FO!AL208+RevenuePriceCap_FO!AL217)/1000 -> 12491.61279
D20: Residential, Non-Residential & Recycled (Residential & Non-Residential)
C24: Baseline Forecast
D26: Baseline year - total prescribed operating expenditure in 2021-22: | AA26: =+Opex_Breakdown!AA37 -> 55.31814018
D28: Less non-controllable expenditure items incurred in 2021-22:
E29: External bulk water charges (excl. temporary purchases) | AA29: =+Opex_Breakdown!AA29 -> 0.3594045802
E30: External temporary water purchases | AA30: =+Opex_Breakdown!AA30 -> 0 | AC30: Comparison with approved 2021-22 total controllable opex
E31: Licence fees | AA31: =+Opex_Breakdown!AA31 -> 0.3287349895 | AC31: per 2018 determination model
E32: Environment Contribution | AA32: =+Opex_Breakdown!AA32 -> 3.328212519
E33: Other non-controllable | AA33: =+Opex_Breakdown!AA33 -> 0
AA34: =SUM(AA29:AA33) -> 4.016352089 | AD34: 2021-22 | AE34: Difference | AF34: %
D36: Baseline year - total controllable operating expenditure in 2021-22: | AA36: =+AA26-AA34 -> 51.30178809 | AD36: =Determination_Lookup!Q18 -> 40.79917414 | AE36: =+AA52-AD36 -> 6.375831884 | AF36: =+AE36/AD36 -> 0.1562735526
D38: Adjustments for non-recurring expenditure items incurred in 2021-22 and any efficiency savings to be realised from 2021-22: | AC38: ($, 2022-23)
D40: 1 | E40: IT Costs | AA40: 1.464920168
D41: 2 | E41: Warrnambool WTP - UV Upgrade | AA41: -0.1196646667
D42: 3 | E42: Labour | AA42: -0.4033116672
D43: 4 | E43: Licences/ Substricptions | AA43: 0.09462184874
D44: 5 | E44: Capital Project Write-offs | AA44: 2.530375
D45: 6 | E45: Desludging | AA45: 0.2752741597
D46: 7 | E46: Port Fairy Smart Energy | AA46: 0.1179905462
D47: 8 | E47: Digital Meter Trial | AA47: 0.06827731092
D48: 9 | E48: Engagement projects | AA48: 0.09829936975
D49: 10
AA50: =SUM(AA40:AA49) -> 4.126782069
D52: Adjusted baseline controllable operating expenditure (2021-22) | AA52: =+AA36-AA50 -> 47.17500602
D54: Adjusted baseline controllable operating expenditure (Forecast) | AB54: =+AA52*(1+$AB$13-$G$11) -> 47.05386464 | AC54: =+AB$54*(1+AC$13-AC$11) -> 46.93308516 | AD54: 46.81266623 | AE54: 46.6926065 | AF54: 46.57290462 | AG54: 46.45355926 | AH54: 46.3345691 | AI54: 46.21593279 | AJ54: 46.09764903 | AK54: 45.97971651 | AL54: 45.86213392
C58: Operating expenditure - reconciliation
D61: Adjusted baseline controllable operating expenditure (Forecast) | AC61: =+AC54 -> 46.93308516 | AD61: 46.81266623 | AE61: 46.6926065 | AF61: 46.57290462 | AG61: 46.45355926 | AH61: 46.3345691 | AI61: 46.21593279 | AJ61: 46.09764903 | AK61: 45.97971651 | AL61: 45.86213392
H62: Controllable
D63: Forecast variations to baseline operating expenditure (above or below baseline) | H63: only
D65: 1 | E65: Carbon Emissions Reduction (2030 Target) | H65: Water | AC65: 0 | AD65: 0 | AE65: 0.07197055649 | AF65: 0.15620194 | AG65: 0.141578073 | AH65: 0.1268576414 | AI65: 0.2461547688 | AJ65: 0 | AK65: 0 | AL65: 0
D66: 2 | E66: Warrnambool STP Upgrade - new operating costs | H66: Sewerage | AC66: 0 | AD66: 0 | AE66: 0.21079819 | AF66: 0.4272027149 | AG66: 0.4305665158 | AH66: 0.4361728507 | AI66: 0.4395366516 | AJ66: 0.4451429864 | AK66: 0.4485067873 | AL66: 0.4858531672
D67: 3 | E67: Customer Experience - CX Investment Package | H67: Water | AC67: 0.3843486 | AD67: 0.5469858375 | AE67: 0.707705775 | AF67: 0.8895227625 | AG67: 0.95523975 | AH67: 0.95523975 | AI67: 0.95523975 | AJ67: 0.95523975 | AK67: 0.95523975 | AL67: 0.95523975
D68: 4 | E68: Electrcity Prices | H68: Water | AC68: -0.410253 | AD68: -0.07468 | AE68: 0.005491 | AF68: 0.093737 | AG68: 0.064718 | AH68: 0.066077078 | AI68: 0.06746469664 | AJ68: 0.06888145527 | AK68: 0.07032796583 | AL68: 0.07180485311
D69: 5 | E69: Electrcity Demand (solar projects) | H69: Water | AC69: -0.121726 | AD69: -0.132648 | AE69: -0.135193 | AF69: -0.13807 | AG69: -0.136216 | AH69: -0.139076536 | AI69: -0.1419971433 | AJ69: -0.1449790833 | AK69: -0.148023644 | AL69: -0.1511321405
D70: 6 | E70: Warrnambool STP - Electricity Demand Increases | H70: Sewerage | AC70: 0 | AD70: 0 | AE70: 0.12785 | AF70: 0.133555 | AG70: 0.134152 | AH70: 0.136969192 | AI70: 0.139845545 | AJ70: 0.1427823015 | AK70: 0.1457807298 | AL70: 0.1488421251
D71: 7 | E71: CX Plus - Billing and CRM System - Licencing costs | H71: Water | AC71: -0.219757 | AD71: 1.230300552 | AE71: 1.275291914 | AF71: 1.32104475 | AG71: 1.348407025 | AH71: 1.348407025 | AI71: 1.348407025 | AJ71: 1.348407025 | AK71: 1.348407025 | AL71: 1.348407025
D72: 8 | E72: Water Taste - Great Tasting Water project | H72: Water | AC72: 0 | AD72: 0.772 | AE72: 0.392 | AF72: 0.392 | AG72: 0.392 | AH72: 0.392 | AI72: 0.702 | AJ72: 0.702 | AK72: 0.702 | AL72: 0.702
D73: 9 | E73: Digital projects - Licencing costs | H73: Water | AC73: 0 | AD73: 0.215 | AE73: 0.215 | AF73: 0.295 | AG73: 0.295 | AH73: 0.295 | AI73: 0.295 | AJ73: 0.295 | AK73: 0.295 | AL73: 0.295
D74: 10 | E74: Warrnambool STP UV System | H74: Sewerage | AC74: 0 | AD74: 0.19 | AE74: 0.19 | AF74: 0.27 | AG74: 0.27 | AH74: 0.27 | AI74: 0.27 | AJ74: 0.27 | AK74: 0.27 | AL74: 0.27
D75: 11 | H75: [Service]
D76: 12 | H76: [Service]
D77: 13 | H77: [Service]
D78: 14 | H78: [Service]
D79: 15 | H79: [Service]
D81: Total changes required to baseline operating expenditure | AC81: =SUM(AC65:AC80) -> -0.3673874 | AD81: 2.74695839 | AE81: 3.060914436 | AF81: 3.840194167 | AG81: 3.895445364 | AH81: 3.887647001 | AI81: 4.321651294 | AJ81: 4.082474435 | AK81: 4.087238614 | AL81: 4.12601478
D84: Total controllable operating expenditure | AC84: =+AC81+AC61 -> 46.56569776 | AD84: 49.55962462 | AE84: 49.75352093 | AF84: 50.41309879 | AG84: 50.34900463 | AH84: 50.2222161 | AI84: 50.53758409 | AJ84: 50.18012347 | AK84: 50.06695513 | AL84: 49.9881487
D86: Non-controllable operating expenditure
D87: External bulk water charges (excl. temporary purchases) | AC87: =+Opex_Breakdown!AC29 -> 0.3594045802 | AD87: =+Opex_Breakdown!AD29 -> 0.3594045802 | AE87: =+Opex_Breakdown!AE29 -> 0.3594045802 | AF87: =+Opex_Breakdown!AF29 -> 0.3594045802 | AG87: =+Opex_Breakdown!AG29 -> 0.3594045802 | AH87: =+Opex_Breakdown!AH29 -> 0.3594045802 | AI87: =+Opex_Breakdown!AI29 -> 0.3594045802 | AJ87: =+Opex_Breakdown!AJ29 -> 0.3594045802 | AK87: =+Opex_Breakdown!AK29 -> 0.3594045802 | AL87: =+Opex_Breakdown!AL29 -> 0.3594045802
D88: External temporary water purchases | AC88: =+Opex_Breakdown!AC30 -> 0 | AD88: =+Opex_Breakdown!AD30 -> 0 | AE88: =+Opex_Breakdown!AE30 -> 0 | AF88: =+Opex_Breakdown!AF30 -> 0 | AG88: =+Opex_Breakdown!AG30 -> 0 | AH88: =+Opex_Breakdown!AH30 -> 0 | AI88: =+Opex_Breakdown!AI30 -> 0 | AJ88: =+Opex_Breakdown!AJ30 -> 0 | AK88: =+Opex_Breakdown!AK30 -> 0 | AL88: =+Opex_Breakdown!AL30 -> 0
D89: Licence fees | AC89: =+Opex_Breakdown!AC31 -> 0.3287349895 | AD89: =+Opex_Breakdown!AD31 -> 0.3287349895 | AE89: =+Opex_Breakdown!AE31 -> 0.3287349895 | AF89: =+Opex_Breakdown!AF31 -> 0.3287349895 | AG89: =+Opex_Breakdown!AG31 -> 0.3287349895 | AH89: =+Opex_Breakdown!AH31 -> 0.3287349895 | AI89: =+Opex_Breakdown!AI31 -> 0.3287349895 | AJ89: =+Opex_Breakdown!AJ31 -> 0.3287349895 | AK89: =+Opex_Breakdown!AK31 -> 0.3287349895 | AL89: =+Opex_Breakdown!AL31 -> 0.3287349895
D90: Environment Contribution | AC90: =+Opex_Breakdown!AC32 -> 3.102840353 | AD90: =+Opex_Breakdown!AD32 -> 3.039020913 | AE90: =+Opex_Breakdown!AE32 -> 2.976514117 | AF90: =+Opex_Breakdown!AF32 -> 2.915292965 | AG90: =+Opex_Breakdown!AG32 -> 2.855331013 | AH90: =+Opex_Breakdown!AH32 -> 2.796602364 | AI90: =+Opex_Breakdown!AI32 -> 2.739081649 | AJ90: =+Opex_Breakdown!AJ32 -> 2.682744025 | AK90: =+Opex_Breakdown!AK32 -> 2.627565156 | AL90: =+Opex_Breakdown!AL32 -> 2.573521211
D91: Other non-controllable | AC91: =+Opex_Breakdown!AC33 -> 0 | AD91: =+Opex_Breakdown!AD33 -> 0 | AE91: =+Opex_Breakdown!AE33 -> 0 | AF91: =+Opex_Breakdown!AF33 -> 0 | AG91: =+Opex_Breakdown!AG33 -> 0 | AH91: =+Opex_Breakdown!AH33 -> 0 | AI91: =+Opex_Breakdown!AI33 -> 0 | AJ91: =+Opex_Breakdown!AJ33 -> 0 | AK91: =+Opex_Breakdown!AK33 -> 0 | AL91: =+Opex_Breakdown!AL33 -> 0
D92: Total non-controllable operating expenditure | AC92: =SUM(AC87:AC91) -> 3.790979922 | AD92: 3.727160483 | AE92: 3.664653687 | AF92: 3.603432534 | AG92: 3.543470583 | AH92: =SUM(AH87:AH91) -> 3.484741933 | AI92: =SUM(AI87:AI91) -> 3.427221219 | AJ92: =SUM(AJ87:AJ91) -> 3.370883594 | AK92: =SUM(AK87:AK91) -> 3.315704726 | AL92: =SUM(AL87:AL91) -> 3.261660781
D95: Total prescribed operating expenditure | AC95: =+AC92+AC84 -> 50.35667768 | AD95: 53.2867851 | AE95: 53.41817462 | AF95: 54.01653132 | AG95: 53.89247521 | AH95: 53.70695803 | AI95: 53.9648053 | AJ95: 53.55100706 | AK95: 53.38265985 | AL95: 53.24980948
AB98: To reconcile to 'Opex_Breakdown' tab row 37 >> | AC98: =+Opex_Breakdown!AC37 -> 50.35667768 | AD98: =+Opex_Breakdown!AD37 -> 53.2867851 | AE98: =+Opex_Breakdown!AE37 -> 53.41817462 | AF98: =+Opex_Breakdown!AF37 -> 54.01653132 | AG98: =+Opex_Breakdown!AG37 -> 53.89247521 | AH98: =+Opex_Breakdown!AH37 -> 53.70695803 | AI98: =+Opex_Breakdown!AI37 -> 53.9648053 | AJ98: =+Opex_Breakdown!AJ37 -> 53.55100706 | AK98: =+Opex_Breakdown!AK37 -> 53.38265985 | AL98: =+Opex_Breakdown!AL37 -> 53.24980948
AB99: Difference | AC99: =+AC98-AC95 -> 0 | AD99: 0 | AE99: 0 | AF99: 0 | AG99: 0 | AH99: 0 | AI99: 0 | AJ99: 0 | AK99: 0 | AL99: 0
AB100: Test | AC100: =IF(ROUND(AC98,2)=ROUND(AC95,2),0,1) -> 0 | AD100: =IF(ROUND(AD98,2)=ROUND(AD95,2),0,1) -> 0 | AE100: 0 | AF100: 0 | AG100: 0 | AH100: 0 | AI100: 0 | AJ100: 0 | AK100: 0 | AL100: 0
AC139: =+AC$160 -> 2023-24 | AD139: 2024-25 | AE139: 2025-26 | AF139: 2026-27 | AG139: 2027-28 | AH139: 2028-29 | AI139: 2029-30 | AJ139: 2030-31 | AK139: 2031-32 | AL139: 2032-33
AB140: Total controllable opex | AC140: =+AC84 -> 46.56569776 | AD140: 49.55962462 | AE140: 49.75352093 | AF140: 50.41309879 | AG140: 50.34900463 | AH140: 50.2222161 | AI140: 50.53758409 | AJ140: 50.18012347 | AK140: 50.06695513 | AL140: 49.9881487
AB141: Change - $ | AD141: =+AD140-AC140 -> 2.993926859 | AE141: 0.1938963136 | AF141: 0.659577855 | AG141: -0.06409416135 | AH141: -0.1267885316 | AI141: 0.3153679887 | AJ141: -0.3574606158 | AK141: -0.1131683424 | AL141: -0.07880642557
AB142: Change - % | AC142: =IFERROR(AC141/AB140,"") ->  | AD142: 0.06429468477 | AE142: 0.003912384629 | AF142: 0.01325690811 | AG142: -0.001271379123 | AH142: -0.002518193409 | AI142: 0.006279451869 | AJ142: -0.007073163909 | AK142: -0.002255242406 | AL142: -0.001574020736
AC144: =+AC$160 -> 2023-24 | AD144: 2024-25 | AE144: 2025-26 | AF144: 2026-27 | AG144: 2027-28 | AH144: 2028-29 | AI144: 2029-30 | AJ144: 2030-31 | AK144: 2031-32 | AL144: 2032-33
AB145: Total non-controllable opex | AC145: =+AC92 -> 3.790979922 | AD145: 3.727160483 | AE145: 3.664653687 | AF145: 3.603432534 | AG145: 3.543470583 | AH145: 3.484741933 | AI145: 3.427221219 | AJ145: 3.370883594 | AK145: 3.315704726 | AL145: 3.261660781
AB146: Change - $ | AD146: =+AD145-AC145 -> -0.06381943918 | AE146: -0.06250679646 | AF146: -0.06122115226 | AG146: -0.05996195128 | AH146: -0.05872864964 | AI146: -0.05752071463 | AJ146: -0.05633762452 | AK146: -0.05517886828 | AL146: -0.05404394543
AB147: Change - % | AC147: =IFERROR(AC146/AB145,"") ->  | AD147: -0.01683454951 | AE147: -0.01677062116 | AF147: -0.01670584931 | AG147: -0.01664023142 | AH147: -0.01657376526 | AI147: -0.01650644889 | AJ147: -0.01643828073 | AK147: -0.0163692595 | AL147: -0.01629938426
AC149: =+AC$160 -> 2023-24 | AD149: 2024-25 | AE149: 2025-26 | AF149: 2026-27 | AG149: 2027-28 | AH149: 2028-29 | AI149: 2029-30 | AJ149: 2030-31 | AK149: 2031-32 | AL149: 2032-33
AB150: Total prescribed opex | AC150: =+AC140+AC145 -> 50.35667768 | AD150: 53.2867851 | AE150: 53.41817462 | AF150: 54.01653132 | AG150: 53.89247521 | AH150: 53.70695803 | AI150: 53.9648053 | AJ150: 53.55100706 | AK150: 53.38265985 | AL150: 53.24980948
AB151: Change - $ | AD151: =+AD150-AC150 -> 2.930107419 | AE151: 0.1313895171 | AF151: 0.5983567028 | AG151: -0.1240561126 | AH151: -0.1855171813 | AI151: 0.2578472741 | AJ151: -0.4137982403 | AK151: -0.1683472107 | AL151: -0.132850371
AB152: Change - % | AC152: =IFERROR(AC151/AB150,"") ->  | AD152: 0.05818706782 | AE152: 0.002465705463 | AF152: 0.01120136933 | AG152: -0.002296632338 | AH152: -0.003442357779 | AI152: 0.004801003139 | AJ152: -0.007667927976 | AK152: -0.003143679642 | AL152: -0.00248864278
AB155: Controllable vs. Non-controllable opex - % | AC155: =+AC$160 -> 2023-24 | AD155: 2024-25 | AE155: 2025-26 | AF155: 2026-27 | AG155: 2027-28 | AH155: 2028-29 | AI155: 2029-30 | AJ155: 2030-31 | AK155: 2031-32 | AL155: 2032-33
AB156: Controllable opex - % | AC156: =+AC84/AC95 -> 0.9247174338 | AD156: 0.9300546941 | AE156: 0.9313968755 | AF156: 0.9332901901 | AG156: 0.9342492515 | AH156: 0.9351156338 | AI156: 0.9364915485 | AJ156: 0.937052844 | AK156: 0.9378879821 | AL156: 0.9387479352
AB157: Non-controllable opex - % | AC157: =+AC92/AC95 -> 0.07528256622 | AD157: 0.06994530587 | AE157: 0.06860312455 | AF157: 0.06670980987 | AG157: 0.06575074849 | AH157: 0.06488436622 | AI157: 0.06350845147 | AJ157: 0.06294715598 | AK157: 0.06211201793 | AL157: 0.06125206479
AC158: =SUM(AC156:AC157) -> 1 | AD158: 1 | AE158: 1 | AF158: 1 | AG158: 1 | AH158: 1 | AI158: 1 | AJ158: 1 | AK158: 1 | AL158: 1
AA160: =+AA6 -> 2021-22 | AB160: 2022-23 | AC160: 2023-24 | AD160: 2024-25 | AE160: 2025-26 | AF160: 2026-27 | AG160: 2027-28 | AH160: =+AH6 -> 2028-29 | AI160: =+AI6 -> 2029-30 | AJ160: =+AJ6 -> 2030-31 | AK160: =+AK6 -> 2031-32 | AL160: =+AL6 -> 2032-33
Y161: Fourth reg period opex | Z161: Third Reg period Opex | AA161: =+AA169-SUM(AA162:AA168) -> 55.31814018 | AB161: =+AB169-SUM(AB162:AB168) -> 50.89940699
Z162: Adjusted baseline opex | AC162: =+AC61 -> 46.93308516 | AD162: 46.81266623 | AE162: 46.6926065 | AF162: 46.57290462 | AG162: 46.45355926 | AH162: 46.3345691 | AI162: 46.21593279 | AJ162: 46.09764903 | AK162: 45.97971651 | AL162: 45.86213392
Z163: Forecast variations to baseline operating expenditure | AC163: =+AC81 -> -0.3673874 | AD163: 2.74695839 | AE163: 3.060914436 | AF163: 3.840194167 | AG163: 3.895445364 | AH163: 3.887647001 | AI163: 4.321651294 | AJ163: 4.082474435 | AK163: 4.087238614 | AL163: 4.12601478
Z164: Licence fees | AA164: =+AA193 -> 0 | AB164: =+AB193 -> 0 | AC164: =+AC89 -> 0.3287349895 | AD164: 0.3287349895 | AE164: 0.3287349895 | AF164: 0.3287349895 | AG164: 0.3287349895 | AH164: =+AH89 -> 0.3287349895 | AI164: 0.3287349895 | AJ164: 0.3287349895 | AK164: 0.3287349895 | AL164: 0.3287349895
Z165: Environment Contribution | AA165: =+AA194 -> 0 | AB165: =+AB194 -> 0 | AC165: =+AC90 -> 3.102840353 | AD165: 3.039020913 | AE165: 2.976514117 | AF165: 2.915292965 | AG165: 2.855331013 | AH165: 2.796602364 | AI165: 2.739081649 | AJ165: 2.682744025 | AK165: 2.627565156 | AL165: 2.573521211
Z166: External bulk water charges | AA166: =+AA191 -> 0 | AB166: =+AB191 -> 0 | AC166: =+AC87 -> 0.3594045802 | AD166: 0.3594045802 | AE166: 0.3594045802 | AF166: 0.3594045802 | AG166: 0.3594045802 | AH166: =+AH87 -> 0.3594045802 | AI166: 0.3594045802 | AJ166: 0.3594045802 | AK166: 0.3594045802 | AL166: 0.3594045802
Z167: External temporary water purchases | AA167: =+AA192 -> 0 | AB167: =+AB192 -> 0 | AC167: =+AC88 -> 0 | AD167: 0 | AE167: 0 | AF167: 0 | AG167: 0 | AH167: 0 | AI167: 0 | AJ167: 0 | AK167: 0 | AL167: 0
Z168: Other non-controllable | AA168: =+AA195 -> 0 | AB168: =+AB195 -> 0 | AC168: =+AC91 -> 0 | AD168: 0 | AE168: 0 | AF168: 0 | AG168: 0 | AH168: =+AH91 -> 0 | AI168: =+AI91 -> 0 | AJ168: =+AJ91 -> 0 | AK168: =+AK91 -> 0 | AL168: =+AL91 -> 0
Z169: Total prescribed opex | AA169: =+Opex_Breakdown!AA37 -> 55.31814018 | AB169: =+Opex_Breakdown!AB37 -> 50.89940699 | AC169: =SUM(AC162:AC168) -> 50.35667768 | AD169: 53.2867851 | AE169: 53.41817462 | AF169: 54.01653132 | AG169: 53.89247521 | AH169: =SUM(AH162:AH168) -> 53.70695803 | AI169: =SUM(AI162:AI168) -> 53.9648053 | AJ169: =SUM(AJ162:AJ168) -> 53.55100706 | AK169: =SUM(AK162:AK168) -> 53.38265985 | AL169: =SUM(AL162:AL168) -> 53.24980948
AC171: =+AC$160 -> 2023-24 | AD171: 2024-25 | AE171: 2025-26 | AF171: 2026-27 | AG171: 2027-28 | AH171: 2028-29 | AI171: 2029-30 | AJ171: 2030-31 | AK171: 2031-32 | AL171: 2032-33
AB172: Adjusted baseline opex | AC172: =+AC162/AC$169 -> 0.9320131375 | AD172: 0.8785042321 | AE172: 0.8740958827 | AF172: 0.8621972474 | AG172: 0.8619674469 | AH172: 0.8627293519 | AI172: 0.8564087748 | AJ172: 0.8608175936 | AK172: 0.8613230708 | AL172: 0.8612638124
AB173: Forecast variations to baseline operating expenditure | AC173: =+AC163/AC$169 -> -0.007295703706 | AD173: 0.05155046198 | AE173: 0.05730099273 | AF173: 0.07109294272 | AG173: 0.07228180462 | AH173: 0.07238628185 | AI173: 0.08008277375 | AJ173: 0.07623525044 | AK173: 0.07656491125 | AL173: 0.07748412285
AB174: Licence fees | AC174: =+AC164/AC$169 -> 0.006528131017 | AD174: 0.006169165373 | AE174: 0.006153991443 | AF174: 0.006085821904 | AG174: 0.006099830973 | AH174: 0.006120901305 | AI174: 0.006091655249 | AJ174: 0.006138726562 | AK174: 0.006158085611 | AL174: 0.00617344912
AB175: Environment Contribution | AC175: =+AC165/AC$169 -> 0.06161725704 | AD175: 0.05703141797 | AE175: 0.05572100017 | AF175: 0.0539703845 | AG175: 0.05298199799 | AH175: 0.05207150929 | AI175: 0.05075681518 | AJ175: 0.0500969855 | AK175: 0.04922132325 | AL175: 0.04832920974
AB176: External bulk water charges (excl. temporary purchases) | AC176: =+AC166/AC$169 -> 0.007137178159 | AD176: 0.006744722532 | AE176: 0.006728132938 | AF176: 0.006653603468 | AG176: 0.006668919524 | AH176: 0.00669195563 | AI176: 0.00665998104 | AJ176: 0.006711443908 | AK176: 0.006732609075 | AL176: 0.006749405935
AB177: External temporary water purchases | AC177: =+AC167/AC$169 -> 0 | AD177: 0 | AE177: 0 | AF177: 0 | AG177: 0 | AH177: 0 | AI177: 0 | AJ177: 0 | AK177: 0 | AL177: 0
AB178: Other non-controllable | AC178: =+AC168/AC$169 -> 0 | AD178: 0 | AE178: 0 | AF178: 0 | AG178: 0 | AH178: 0 | AI178: 0 | AJ178: 0 | AK178: 0 | AL178: 0
AB179: Total prescribed opex | AC179: =+AC169/AC$169 -> 1 | AD179: 1 | AE179: 1 | AF179: 1 | AG179: 1 | AH179: 1 | AI179: 1 | AJ179: 1 | AK179: 1 | AL179: 1
AC181: =+AC$160 -> 2023-24 | AD181: 2024-25 | AE181: 2025-26 | AF181: 2026-27 | AG181: 2027-28 | AH181: 2028-29 | AI181: 2029-30 | AJ181: 2030-31 | AK181: 2031-32 | AL181: 2032-33
AB182: Water | AC182: =+SUMIF($H$65:$H$80,$AB182,AC$65:AC$80) -> -0.3673874 | AD182: =+SUMIF($H$65:$H$80,$AB182,AD$65:AD$80) -> 2.55695839 | AE182: 2.532266245 | AF182: 3.009436452 | AG182: 3.060726848 | AH182: 3.044504958 | AI182: 3.472269097 | AJ182: 3.224549147 | AK182: 3.222951097 | AL182: 3.221319488
AB183: Sewerage | AC183: 0 | AD183: 0.19 | AE183: 0.52864819 | AF183: 0.8307577149 | AG183: 0.8347185158 | AH183: 0.8431420427 | AI183: 0.8493821966 | AJ183: 0.8579252879 | AK183: 0.8642875171 | AL183: 0.9046952923
AB184: Recycled Water | AC184: 0 | AD184: 0 | AE184: 0 | AF184: 0 | AG184: 0 | AH184: 0 | AI184: 0 | AJ184: 0 | AK184: 0 | AL184: 0
AB185: Rural water | AC185: 0 | AD185: 0 | AE185: 0 | AF185: 0 | AG185: 0 | AH185: 0 | AI185: 0 | AJ185: 0 | AK185: 0 | AL185: 0
AB186: Bulk Water | AC186: 0 | AD186: 0 | AE186: 0 | AF186: 0 | AG186: 0 | AH186: 0 | AI186: 0 | AJ186: 0 | AK186: 0 | AL186: 0
AB187: Forecast variations to baseline operating expenditure | AC187: =SUM(AC182:AC186) -> -0.3673874 | AD187: 2.74695839 | AE187: 3.060914436 | AF187: 3.840194167 | AG187: 3.895445364 | AH187: 3.887647001 | AI187: 4.321651294 | AJ187: 4.082474435 | AK187: 4.087238614 | AL187: 4.12601478
AA190: =+AA6 -> 2021-22 | AB190: 2022-23 | AC190: 2023-24 | AD190: 2024-25 | AE190: 2025-26 | AF190: 2026-27 | AG190: 2027-28 | AH190: =+AH6 -> 2028-29 | AI190: =+AI6 -> 2029-30 | AJ190: =+AJ6 -> 2030-31 | AK190: =+AK6 -> 2031-32 | AL190: =+AL6 -> 2032-33
Z191: External bulk water charges (excl. temporary purchases) | AA191: =+AA87 -> 0 | AB191: 0 | AC191: 0.3594045802 | AD191: 0.3594045802 | AE191: 0.3594045802 | AF191: 0.3594045802 | AG191: 0.3594045802 | AH191: =+AH87 -> 0.3594045802 | AI191: 0.3594045802 | AJ191: 0.3594045802 | AK191: 0.3594045802 | AL191: 0.3594045802
Z192: External temporary water purchases | AA192: =+AA88 -> 0 | AB192: 0 | AC192: 0 | AD192: 0 | AE192: 0 | AF192: 0 | AG192: 0 | AH192: 0 | AI192: 0 | AJ192: 0 | AK192: 0 | AL192: 0
Z193: Licence fees | AA193: =+AA89 -> 0 | AB193: 0 | AC193: 0.3287349895 | AD193: 0.3287349895 | AE193: 0.3287349895 | AF193: 0.3287349895 | AG193: 0.3287349895 | AH193: 0.3287349895 | AI193: 0.3287349895 | AJ193: 0.3287349895 | AK193: 0.3287349895 | AL193: 0.3287349895
Z194: Environment Contribution | AA194: =+AA90 -> 0 | AB194: 0 | AC194: 3.102840353 | AD194: 3.039020913 | AE194: 2.976514117 | AF194: 2.915292965 | AG194: 2.855331013 | AH194: 2.796602364 | AI194: 2.739081649 | AJ194: 2.682744025 | AK194: 2.627565156 | AL194: 2.573521211
Z195: Other non-controllable | AA195: =+AA91 -> 0 | AB195: 0 | AC195: 0 | AD195: 0 | AE195: 0 | AF195: 0 | AG195: 0 | AH195: 0 | AI195: 0 | AJ195: 0 | AK195: 0 | AL195: 0
Z196: Total Non-controllable operating expenditure | AA196: =SUM(AA191:AA195) -> 0 | AB196: 0 | AC196: 3.790979922 | AD196: 3.727160483 | AE196: 3.664653687 | AF196: 3.603432534 | AG196: 3.543470583 | AH196: =SUM(AH191:AH195) -> 3.484741933 | AI196: =SUM(AI191:AI195) -> 3.427221219 | AJ196: =SUM(AJ191:AJ195) -> 3.370883594 | AK196: =SUM(AK191:AK195) -> 3.315704726 | AL196: =SUM(AL191:AL195) -> 3.261660781
AB198: Check | AC198: =IF(ROUND(AC169,2)=ROUND(AC95,2),0,1) -> 0 | AD198: =IF(ROUND(AD169,2)=ROUND(AD95,2),0,1) -> 0 | AE198: 0 | AF198: 0 | AG198: 0 | AH198: 0 | AI198: 0 | AJ198: 0 | AK198: 0 | AL198: 0
AC199: =IF(ROUND(AC187,2)=ROUND(AC163,2),0,1) -> 0 | AD199: =IF(ROUND(AD187,2)=ROUND(AD163,2),0,1) -> 0 | AE199: 0 | AF199: 0 | AG199: 0 | AH199: 0 | AI199: 0 | AJ199: 0 | AK199: 0 | AL199: 0
AC200: =IF(ROUND(AC150,2)=ROUND(AC169,2),0,1) -> 0 | AD200: =IF(ROUND(AD150,2)=ROUND(AD169,2),0,1) -> 0 | AE200: 0 | AF200: 0 | AG200: 0 | AH200: 0 | AI200: 0 | AJ200: 0 | AK200: 0 | AL200: 0
AC201: =IF(ROUND(AC196,2)=ROUND(AC145,2),0,1) -> 0 | AD201: =IF(ROUND(AD196,2)=ROUND(AD145,2),0,1) -> 0 | AE201: 0 | AF201: 0 | AG201: 0 | AH201: 0 | AI201: 0 | AJ201: 0 | AK201: 0 | AL201: 0

Sheet Opex_Breakdown
A1: 80 | B1: Operating Expenditure - Breakdown
B2: =+Contents!H7 -> Wannon Water
B3: Go to Table of Contents
L4: FIRST REG PERIOD | P4: SECOND REG PERIOD | U4: THIRD REG PERIOD | Z4: FOURTH REG PERIOD | AE4: FIFTH REG PERIOD | AJ4: SIXTH REG PERIOD
K6: 2006 | L6: 2007 | M6: 2008 | N6: 2009 | O6: 2010 | P6: 2011 | Q6: 2012 | R6: 2013 | S6: 2014 | T6: 2015 | U6: 2016 | V6: 2017 | W6: 2018 | X6: 2019 | Y6: 2020 | Z6: 2021 | AA6: 2022 | AB6: 2023 | AC6: 2024 | AD6: 2025 | AE6: 2026 | AF6: 2027 | AG6: 2028 | AH6: 2029 | AI6: 2030 | AJ6: 2031 | AK6: 2032 | AL6: 2033
B7: =Expenditure_Detail!$B$6 -> $m, 01/01/23 | K7: =+CONCATENATE(K6-1,"-",RIGHT(K6,2)) -> 2005-06 | L7: =+CONCATENATE(L6-1,"-",RIGHT(L6,2)) -> 2006-07 | M7: 2007-08 | N7: 2008-09 | O7: 2009-10 | P7: 2010-11 | Q7: 2011-12 | R7: 2012-13 | S7: 2013-14 | T7: 2014-15 | U7: 2015-16 | V7: 2016-17 | W7: 2017-18 | X7: =+CONCATENATE(X6-1,"-",RIGHT(X6,2)) -> 2018-19 | Y7: 2019-20 | Z7: 2020-21 | AA7: 2021-22 | AB7: 2022-23 | AC7: 2023-24 | AD7: 2024-25 | AE7: 2025-26 | AF7: 2026-27 | AG7: 2027-28 | AH7: =+CONCATENATE(AH6-1,"-",RIGHT(AH6,2)) -> 2028-29 | AI7: =+CONCATENATE(AI6-1,"-",RIGHT(AI6,2)) -> 2029-30 | AJ7: =+CONCATENATE(AJ6-1,"-",RIGHT(AJ6,2)) -> 2030-31 | AK7: =+CONCATENATE(AK6-1,"-",RIGHT(AK6,2)) -> 2031-32 | AL7: =+CONCATENATE(AL6-1,"-",RIGHT(AL6,2)) -> 2032-33
D10: Operating Expenditure Summary
E12: =C48 -> Water | W12: =+W57-W50-W54 -> 22.46682624 | X12: 23.07554973 | Y12: 22.82431288 | Z12: 22.6271578 | AA12: 26.46974799 | AB12: 22.27499387 | AC12: =+AC57-AC50-AC54 -> 24.19197374 | AD12: 25.74738907 | AE12: 25.84812276 | AF12: 26.19078895 | AG12: 26.15749053 | AH12: 26.0916209 | AI12: 26.25546198 | AJ12: 26.0697528 | AK12: 26.01095918 | AL12: 25.9700174
E13: =C59 -> Sewerage | W13: =W68-W61-W65 -> 20.01125158 | X13: 19.57642007 | Y13: 20.28658896 | Z13: 20.71340223 | AA13: 24.8320401 | AB13: 24.76827355 | AC13: =AC68-AC61-AC65 -> 22.37372402 | AD13: 23.81223555 | AE13: 23.90539818 | AF13: 24.22230984 | AG13: 24.1915141 | AH13: 24.13059519 | AI13: 24.2821221 | AJ13: 24.11037067 | AK13: 24.05599594 | AL13: 24.01813131
E14: =C70 -> Recycled Water | W14: =W79-W72-W76 -> 0 | X14: 0 | Y14: 0 | Z14: 0 | AA14: 0 | AB14: 0 | AC14: =AC79-AC72-AC76 -> 0 | AD14: 0 | AE14: 0 | AF14: 0 | AG14: 0 | AH14: 0 | AI14: 0 | AJ14: 0 | AK14: 0 | AL14: 0
E15: =C81 -> Rural Water | W15: =W90-W83-W87 -> 0 | X15: 0 | Y15: 0 | Z15: 0 | AA15: 0 | AB15: 0 | AC15: =AC90-AC83-AC87 -> 0 | AD15: 0 | AE15: 0 | AF15: 0 | AG15: 0 | AH15: 0 | AI15: 0 | AJ15: 0 | AK15: 0 | AL15: 0
E16: Bulk Water | W16: =W100-W97 -> 0 | X16: 0 | Y16: 0 | Z16: 0 | AA16: 0 | AB16: 0 | AC16: =AC100-AC97 -> 0 | AD16: 0 | AE16: 0 | AF16: 0 | AG16: 0 | AH16: 0 | AI16: 0 | AJ16: 0 | AK16: 0 | AL16: 0
E17: Total controllable operating expenditure | W17: =SUM(W12:W16) -> 42.47807783 | X17: 42.6519698 | Y17: 43.11090184 | Z17: 43.34056003 | AA17: 51.30178809 | AB17: 47.04326742 | AC17: 46.56569776 | AD17: 49.55962462 | AE17: 49.75352093 | AF17: 50.41309879 | AG17: 50.34900463 | AH17: =SUM(AH12:AH16) -> 50.2222161 | AI17: =SUM(AI12:AI16) -> 50.53758409 | AJ17: =SUM(AJ12:AJ16) -> 50.18012347 | AK17: =SUM(AK12:AK16) -> 50.06695513 | AL17: =SUM(AL12:AL16) -> 49.9881487
E20: Operations & Maintenance | W20: =W49+W60+W71+W82+W93 -> 14.36679367 | X20: 15.54141741 | Y20: 15.32081595 | Z20: 15.60438679 | AA20: 16.26876359 | AB20: 12.10020472 | AC20: 16.28760385 | AD20: 17.33481021 | AE20: 17.40263066 | AF20: 17.63333573 | AG20: 17.61091708 | AH20: =AH49+AH60+AH71+AH82+AH93 -> 17.56656938 | AI20: =AI49+AI60+AI71+AI82+AI93 -> 17.67687781 | AJ20: =AJ49+AJ60+AJ71+AJ82+AJ93 -> 17.55184635 | AK20: =AK49+AK60+AK71+AK82+AK93 -> 17.51226269 | AL20: =AL49+AL60+AL71+AL82+AL93 -> 17.48469802
E21: Treatment | W21: =W51+W62+W73+W84+W94 -> 8.017058824 | X21: 8.131625222 | Y21: 7.440515337 | Z21: 7.52538422 | AA21: 7.794444962 | AB21: 7.774429494 | AC21: 8.660477839 | AD21: 9.217300531 | AE21: 9.253362156 | AF21: 9.376033128 | AG21: 9.364112635 | AH21: =AH51+AH62+AH73+AH84+AH94 -> 9.340531988 | AI21: 9.39918541 | AJ21: 9.332703431 | AK21: 9.311655922 | AL21: 9.296999182
E22: Customer Service and billing | W22: =W52+W63+W74+W85+W95 -> 2.817743891 | X22: 2.964357016 | Y22: 2.777705521 | Z22: 2.503502573 | AA22: 2.836469288 | AB22: 2.829185477 | AC22: 2.871575093 | AD22: 3.056202108 | AE22: 3.068159146 | AF22: 3.10883345 | AG22: 3.104880944 | AH22: 3.097062254 | AI22: 3.116510107 | AJ22: 3.09446652 | AK22: 3.087487748 | AL22: 3.082627978
E23: GSL Payments | W23: =W53+W64+W75+W86+W96 -> 0 | X23: 0 | Y23: 0 | Z23: 0 | AA23: 0 | AB23: 0 | AC23: 0 | AD23: 0 | AE23: 0 | AF23: 0 | AG23: 0 | AH23: 0 | AI23: 0 | AJ23: 0 | AK23: 0 | AL23: 0
E24: Corporate | W24: =W55+W66+W77+W88+W98 -> 14.14254027 | X24: 12.85875133 | Y24: 14.48142331 | Z24: 14.06041852 | AA24: 20.15321249 | AB24: 20.10146077 | AC24: 14.95176093 | AD24: 15.91307968 | AE24: 15.97533777 | AF24: 16.18712135 | AG24: 16.16654139 | AH24: =AH55+AH66+AH77+AH88+AH98 -> 16.12583091 | AI24: 16.22709229 | AJ24: 16.1123154 | AK24: 16.07597823 | AL24: 16.0506743
E25: Other operating expenditure | W25: =W56+W67+W78+W89+W99 -> 3.133941176 | X25: 3.155818828 | Y25: 3.090441718 | Z25: 3.646867925 | AA25: 4.248897761 | AB25: 4.237986955 | AC25: 3.79428005 | AD25: 4.03823209 | AE25: 4.054031207 | AF25: 4.107775127 | AG25: 4.102552587 | AH25: 4.092221566 | AI25: 4.117918474 | AJ25: 4.088791762 | AK25: 4.079570546 | AL25: 4.073149217
E26: Total controllable operating expenditure | W26: =SUM(W20:W25) -> 42.47807783 | X26: 42.6519698 | Y26: 43.11090184 | Z26: 43.34056003 | AA26: 51.30178809 | AB26: 47.04326742 | AC26: 46.56569776 | AD26: 49.55962462 | AE26: 49.75352093 | AF26: 50.41309879 | AG26: 50.34900463 | AH26: =SUM(AH20:AH25) -> 50.2222161 | AI26: =SUM(AI20:AI25) -> 50.53758409 | AJ26: =SUM(AJ20:AJ25) -> 50.18012347 | AK26: =SUM(AK20:AK25) -> 50.06695513 | AL26: =SUM(AL20:AL25) -> 49.9881487
AC27: =IF(ROUND(AC26,2)=ROUND(AC17,2),0,1) -> 0 | AD27: =IF(ROUND(AD26,2)=ROUND(AD17,2),0,1) -> 0 | AE27: 0 | AF27: 0 | AG27: 0 | AH27: 0 | AI27: 0 | AJ27: 0 | AK27: 0 | AL27: 0
E29: External bulk water charges (excl. temporary purchases) | W29: =W50+W61+W72+W83 -> 0.3812307692 | X29: =X50+X61+X72+X83 -> 0.3576154529 | Y29: =Y50+Y61+Y72+Y83 -> 0.3735460123 | Z29: 0.3719125214 | AA29: 0.3594045802 | AB29: 0.3594045802 | AC29: 0.3594045802 | AD29: 0.3594045802 | AE29: 0.3594045802 | AF29: 0.3594045802 | AG29: 0.3594045802 | AH29: =AH50+AH61+AH72+AH83 -> 0.3594045802 | AI29: =AI50+AI61+AI72+AI83 -> 0.3594045802 | AJ29: =AJ50+AJ61+AJ72+AJ83 -> 0.3594045802 | AK29: =AK50+AK61+AK72+AK83 -> 0.3594045802 | AL29: =AL50+AL61+AL72+AL83 -> 0.3594045802
E30: External temporary water purchases | W30: =+W102 -> 0 | X30: 0 | Y30: 0 | Z30: 0 | AA30: 0 | AB30: 0 | AC30: 0 | AD30: 0 | AE30: 0 | AF30: 0 | AG30: 0 | AH30: =+AH102 -> 0 | AI30: =+AI102 -> 0 | AJ30: =+AJ102 -> 0 | AK30: =+AK102 -> 0 | AL30: =+AL102 -> 0
E31: Licence fees | W31: =+W109 -> 0.2511638009 | X31: 0.2838916519 | Y31: 0.2676706933 | Z31: 0.2744778165 | AA31: 0.3287349895 | AB31: 0.3287349895 | AC31: 0.3287349895 | AD31: 0.3287349895 | AE31: 0.3287349895 | AF31: 0.3287349895 | AG31: 0.3287349895 | AH31: =+AH109 -> 0.3287349895 | AI31: =+AI109 -> 0.3287349895 | AJ31: =+AJ109 -> 0.3287349895 | AK31: =+AK109 -> 0.3287349895 | AL31: =+AL109 -> 0.3287349895
E32: Environment Contribution | W32: =W111 -> 2.867079638 | X32: 3.637774423 | Y32: 3.58995092 | Z32: 3.365277015 | AA32: 3.328212519 | AB32: 3.168 | AC32: 3.102840353 | AD32: 3.039020913 | AE32: 2.976514117 | AF32: 2.915292965 | AG32: 2.855331013 | AH32: =AH111 -> 2.796602364 | AI32: =AI111 -> 2.739081649 | AJ32: =AJ111 -> 2.682744025 | AK32: =AK111 -> 2.627565156 | AL32: =AL111 -> 2.573521211
E33: Other non-controllable | W33: =+W124 -> 0 | X33: 0 | Y33: 0 | Z33: 0 | AA33: 0 | AB33: 0 | AC33: 0 | AD33: 0 | AE33: 0 | AF33: 0 | AG33: =+AG124 -> 0 | AH33: 0 | AI33: 0 | AJ33: 0 | AK33: 0 | AL33: 0
E34: Total non-controllable operating expenditure | W34: =SUM(W29:W33) -> 3.499474208 | X34: 4.279281528 | Y34: 4.231167626 | Z34: 4.011667353 | AA34: 4.016352089 | AB34: 3.85613957 | AC34: 3.790979922 | AD34: 3.727160483 | AE34: 3.664653687 | AF34: 3.603432534 | AG34: 3.543470583 | AH34: =SUM(AH29:AH33) -> 3.484741933 | AI34: =SUM(AI29:AI33) -> 3.427221219 | AJ34: =SUM(AJ29:AJ33) -> 3.370883594 | AK34: =SUM(AK29:AK33) -> 3.315704726 | AL34: =SUM(AL29:AL33) -> 3.261660781
E37: Total prescribed operating expenditure | W37: =+W34+W17 -> 45.97755204 | X37: 46.93125133 | Y37: 47.34206947 | Z37: 47.35222739 | AA37: 55.31814018 | AB37: 50.89940699 | AC37: 50.35667768 | AD37: 53.2867851 | AE37: 53.41817462 | AF37: 54.01653132 | AG37: 53.89247521 | AH37: =+AH34+AH17 -> 53.70695803 | AI37: =+AI34+AI17 -> 53.9648053 | AJ37: =+AJ34+AJ17 -> 53.55100706 | AK37: =+AK34+AK17 -> 53.38265985 | AL37: =+AL34+AL17 -> 53.24980948
AB40: To reconcile to 'Opex_FO' tab row 95>> | AC40: =+Opex_FO!AC95 -> 50.35667768 | AD40: =+Opex_FO!AD95 -> 53.2867851 | AE40: =+Opex_FO!AE95 -> 53.41817462 | AF40: =+Opex_FO!AF95 -> 54.01653132 | AG40: =+Opex_FO!AG95 -> 53.89247521 | AH40: =+Opex_FO!AH95 -> 53.70695803 | AI40: =+Opex_FO!AI95 -> 53.9648053 | AJ40: =+Opex_FO!AJ95 -> 53.55100706 | AK40: =+Opex_FO!AK95 -> 53.38265985 | AL40: =+Opex_FO!AL95 -> 53.24980948
AB41: Difference | AC41: =+AC40-AC37 -> 0 | AD41: 0 | AE41: 0 | AF41: 0 | AG41: 0 | AH41: =+AH40-AH37 -> 0 | AI41: =+AI40-AI37 -> 0 | AJ41: =+AJ40-AJ37 -> 0 | AK41: =+AK40-AK37 -> 0 | AL41: =+AL40-AL37 -> 0
AB42: Test | AC42: =IF(ROUND(AC40,2)=ROUND(AC37,2),0,1) -> 0 | AD42: 0 | AE42: 0 | AF42: 0 | AG42: 0 | AH42: 0 | AI42: 0 | AJ42: 0 | AK42: 0 | AL42: 0
B46: Total operating expenditure
C48: Water
D49: Operations & Maintenance | W49: =7.467/KeyAssumptionsPriceControl_FO!W15 -> 8.372500452 | X49: 9.353019538 | Y49: 8.718607362 | Z49: 8.587991424 | AA49: 8.923132977 | AB49: 4.773437065 | AC49: 9.248361177 | AD49: 9.842981644 | AE49: 9.881491174 | AF49: 10.01248919 | AG49: 9.999759525 | AH49: 9.974578196 | AI49: 10.03721308 | AJ49: 9.966218227 | AK49: 9.943741989 | AL49: 9.928090333
D50: External bulk charges (excl. temporary purchases) | W50: =+W131 -> 0.3812307692 | X50: 0.3576154529 | Y50: 0.3735460123 | Z50: 0.3719125214 | AA50: 0.3594045802 | AB50: 0.3594045802 | AC50: 0.3594045802 | AD50: 0.3594045802 | AE50: 0.3594045802 | AF50: 0.3594045802 | AG50: 0.3594045802 | AH50: =+AH131 -> 0.3594045802 | AI50: 0.3594045802 | AJ50: 0.3594045802 | AK50: 0.3594045802 | AL50: 0.3594045802 | AM50: see reconciliation below
D51: Treatment | W51: =3.291/KeyAssumptionsPriceControl_FO!W15 -> 3.690089593 | X51: 3.83033659 | Y51: 3.588865031 | Z51: 3.552295883 | AA51: 3.561100382 | AB51: 3.55195578 | AC51: 3.765701344 | AD51: 4.007815925 | AE51: 4.023496043 | AF51: 4.07683516 | AG51: 4.071651957 | AH51: 4.06139875 | AI51: 4.086902108 | AJ51: 4.057994779 | AK51: 4.048843017 | AL51: 4.042470055
D52: Customer Service and billing | W52: =1.285/KeyAssumptionsPriceControl_FO!W15 -> 1.440828054 | X52: 1.511888099 | Y52: 1.430116564 | Z52: 1.281504288 | AA52: 1.448032646 | AB52: 1.444314222 | AC52: 1.46960836 | AD52: 1.564096366 | AE52: 1.570215713 | AF52: 1.591031918 | AG52: 1.589009113 | AH52: 1.585007681 | AI52: 1.594960661 | AJ52: 1.583679242 | AK52: 1.580107662 | AL52: 1.57762054
D53: GSL Payments | X53: 0 | Y53: 0 | Z53: 0 | AA53: 0 | AB53: 0 | AC53: 0 | AD53: 0 | AE53: 0 | AF53: 0 | AG53: 0 | AH53: 0 | AI53: 0 | AJ53: 0 | AK53: 0 | AL53: 0
D54: Licence Fees | W54: =0.051/KeyAssumptionsPriceControl_FO!W15 -> 0.05718461538 | X54: 0.07042273535 | Y54: 0.04562578951 | Z54: 0.04707987479 | AA54: 0.08196946565 | AB54: 0.08175897507 | AC54: 0.06897999554 | AD54: 0.06897999554 | AE54: 0.06897999554 | AF54: 0.06897999554 | AG54: 0.06897999554 | AH54: 0.06897999554 | AI54: 0.06897999554 | AJ54: 0.06897999554 | AK54: 0.06897999554 | AL54: 0.06897999554
D55: Corporate | W55: =6.483/KeyAssumptionsPriceControl_FO!W15 -> 7.269173756 | X55: 6.620837478 | Y55: 7.386220859 | Z55: 7.20978988 | AA55: 10.28021104 | AB55: 10.25381234 | AC55: 7.653831697 | AD55: 8.145932393 | AE55: 8.177802414 | AF55: 8.286214789 | AG55: 8.275679869 | AH55: 8.254840106 | AI55: 8.306675977 | AJ55: 8.247921497 | AK55: 8.229320434 | AL55: 8.216367313
D56: Other operating expenditure | W56: =1.511/KeyAssumptionsPriceControl_FO!W15 -> 1.694234389 | X56: 1.759468028 | Y56: 1.700503067 | Z56: 1.995576329 | AA56: 2.257270941 | AB56: 2.251474463 | AC56: 2.054471165 | AD56: 2.186562741 | AE56: 2.195117415 | AF56: 2.224217885 | AG56: 2.221390061 | AH56: 2.215796171 | AI56: 2.229710157 | AJ56: 2.213939051 | AK56: 2.208946082 | AL56: 2.205469155
C57: =+CONCATENATE("Total ",C48) -> Total Water | K57: =+SUM(K49:K56) -> 0 | L57: =+SUM(L49:L56) -> 0 | M57: 0 | N57: 0 | O57: 0 | P57: 0 | Q57: 0 | R57: 0 | S57: 0 | T57: 0 | U57: 0 | V57: 0 | W57: =+SUM(W49:W56) -> 22.90524163 | X57: 23.50358792 | Y57: 23.24348469 | Z57: 23.0461502 | AA57: 26.91112204 | AB57: 22.71615743 | AC57: 24.62035832 | AD57: 26.17577365 | AE57: 26.27650733 | AF57: 26.61917352 | AG57: 26.5858751 | AH57: =+SUM(AH49:AH56) -> 26.52000548 | AI57: =+SUM(AI49:AI56) -> 26.68384656 | AJ57: =+SUM(AJ49:AJ56) -> 26.49813737 | AK57: =+SUM(AK49:AK56) -> 26.43934376 | AL57: =+SUM(AL49:AL56) -> 26.39840197
C59: Sewerage
D60: =+D49 -> Operations & Maintenance | W60: =5.346/KeyAssumptionsPriceControl_FO!W15 -> 5.994293213 | X60: 6.188397869 | Y60: 6.602208589 | Z60: 7.016395369 | AA60: 7.345630611 | AB60: 7.326767659 | AC60: 7.039242677 | AD60: 7.491828566 | AE60: 7.521139481 | AF60: 7.620846536 | AG60: 7.611157551 | AH60: 7.591991184 | AI60: 7.639664728 | AJ60: 7.585628127 | AK60: 7.568520697 | AL60: 7.556607688
D61: =+D50 -> External bulk charges (excl. temporary purchases) | W61: =+W132 -> 0 | X61: 0 | Y61: 0 | Z61: 0 | AA61: 0 | AB61: 0 | AC61: 0 | AD61: 0 | AE61: 0 | AF61: 0 | AG61: 0 | AH61: =+AH132 -> 0 | AI61: 0 | AJ61: 0 | AK61: 0 | AL61: 0 | AM61: see reconciliation below
D62: Treatment | W62: =3.859/KeyAssumptionsPriceControl_FO!W15 -> 4.326969231 | X62: 4.301288632 | Y62: 3.851650307 | Z62: 3.973088336 | AA62: 4.23334458 | AB62: 4.222473713 | AC62: 4.894776494 | AD62: 5.209484606 | AE62: 5.229866113 | AF62: 5.299197968 | AG62: 5.292460678 | AH62: 5.279133239 | AI62: 5.312283302 | AJ62: 5.274708651 | AK62: 5.262812905 | AL62: 5.254529128
D63: Customer Service and billing | W63: =1.228/KeyAssumptionsPriceControl_FO!W15 -> 1.376915837 | X63: 1.452468917 | Y63: 1.347588957 | Z63: 1.221998285 | AA63: 1.388436641 | AB63: 1.384871255 | AC63: 1.401966733 | AD63: 1.492105742 | AE63: 1.497943434 | AF63: 1.517801532 | AG63: 1.515871831 | AH63: 1.512054572 | AI63: 1.521549446 | AJ63: 1.510787278 | AK63: 1.507380086 | AL63: 1.505007439
D64: GSL Payments | W64: 0 | X64: 0 | Y64: 0 | Z64: 0 | AA64: 0 | AB64: 0 | AC64: 0 | AD64: 0 | AE64: 0 | AF64: 0 | AG64: 0 | AH64: 0 | AI64: 0 | AJ64: 0 | AK64: 0 | AL64: 0
D65: Licence Fees | W65: =0.173/KeyAssumptionsPriceControl_FO!W15 -> 0.1939791855 | X65: 0.2134689165 | Y65: 0.2220449037 | Z65: 0.2273979417 | AA65: 0.2469592875 | AB65: 0.2463251172 | AC65: 0.259754994 | AD65: 0.259754994 | AE65: 0.259754994 | AF65: 0.259754994 | AG65: 0.259754994 | AH65: 0.259754994 | AI65: 0.259754994 | AJ65: 0.259754994 | AK65: 0.259754994 | AL65: 0.259754994
D66: Corporate | W66: =6.13/KeyAssumptionsPriceControl_FO!W15 -> 6.873366516 | X66: 6.237913854 | Y66: 7.095202454 | Z66: 6.850628645 | AA66: 9.87300145 | AB66: 9.847648427 | AC66: 7.297929228 | AD66: 7.767147287 | AE66: 7.797535355 | AF66: 7.900906565 | AG66: 7.890861517 | AH66: 7.870990802 | AI66: 7.92041631 | AJ66: 7.864393907 | AK66: 7.846657792 | AL66: 7.83430699
D67: Other operating expenditure | W67: =1.284/KeyAssumptionsPriceControl_FO!W15 -> 1.439706787 | X67: 1.396350799 | Y67: 1.38993865 | Z67: 1.651291595 | AA67: 1.991626819 | AB67: 1.986512492 | AC67: 1.739808885 | AD67: 1.851669349 | AE67: 1.858913792 | AF67: 1.883557241 | AG67: 1.881162526 | AH67: 1.876425395 | AI67: 1.888208318 | AJ67: 1.874852711 | AK67: 1.870624464 | AL67: 1.867680062
C68: =+CONCATENATE("Total ",C59) -> Total Sewerage | W68: =+SUM(W60:W67) -> 20.20523077 | X68: 19.78988899 | Y68: 20.50863386 | Z68: 20.94080017 | AA68: 25.07899939 | AB68: 25.01459866 | AC68: 22.63347901 | AD68: 24.07199055 | AE68: 24.16515317 | AF68: 24.48206484 | AG68: 24.4512691 | AH68: =+SUM(AH60:AH67) -> 24.39035019 | AI68: =+SUM(AI60:AI67) -> 24.5418771 | AJ68: =+SUM(AJ60:AJ67) -> 24.37012567 | AK68: =+SUM(AK60:AK67) -> 24.31575094 | AL68: =+SUM(AL60:AL67) -> 24.2778863
C70: Recycled Water
D71: =+D60 -> Operations & Maintenance
D72: =+D61 -> External bulk charges (excl. temporary purchases) | W72: =+W133 -> 0 | X72: 0 | Y72: 0 | Z72: 0 | AA72: 0 | AB72: 0 | AC72: 0 | AD72: 0 | AE72: 0 | AF72: 0 | AG72: 0 | AH72: =+AH133 -> 0 | AI72: 0 | AJ72: 0 | AK72: 0 | AL72: 0 | AM72: see reconciliation below
D73: Treatment
D74: Customer Service and billing
D75: GSL Payments
D76: Licence Fees
D77: Corporate
D78: Other operating expenditure
C79: =+CONCATENATE("Total ",C70) -> Total Recycled Water | W79: =+SUM(W71:W78) -> 0 | X79: 0 | Y79: 0 | Z79: 0 | AA79: 0 | AB79: 0 | AC79: 0 | AD79: 0 | AE79: 0 | AF79: 0 | AG79: 0 | AH79: =+SUM(AH71:AH78) -> 0 | AI79: =+SUM(AI71:AI78) -> 0 | AJ79: =+SUM(AJ71:AJ78) -> 0 | AK79: =+SUM(AK71:AK78) -> 0 | AL79: =+SUM(AL71:AL78) -> 0
C81: Rural Water
D82: =+D60 -> Operations & Maintenance
D83: =+D61 -> External bulk charges (excl. temporary purchases) | W83: =+W134 -> 0 | X83: 0 | Y83: 0 | Z83: 0 | AA83: 0 | AB83: 0 | AC83: 0 | AD83: 0 | AE83: 0 | AF83: 0 | AG83: 0 | AH83: =+AH134 -> 0 | AI83: 0 | AJ83: 0 | AK83: 0 | AL83: 0 | AM83: see reconciliation below
D84: Treatment
D85: Customer Service and billing
D86: GSL Payments
D87: Licence Fees
D88: Corporate
D89: Other operating expenditure
C90: =+CONCATENATE("Total ",C81) -> Total Rural Water | W90: =+SUM(W82:W89) -> 0 | X90: 0 | Y90: 0 | Z90: 0 | AA90: 0 | AB90: 0 | AC90: 0 | AD90: 0 | AE90: 0 | AF90: 0 | AG90: 0 | AH90: =+SUM(AH82:AH89) -> 0 | AI90: =+SUM(AI82:AI89) -> 0 | AJ90: =+SUM(AJ82:AJ89) -> 0 | AK90: =+SUM(AK82:AK89) -> 0 | AL90: =+SUM(AL82:AL89) -> 0
C92: Bulk Water
D93: Operations & Maintenance
D94: Treatment
D95: Customer Service and billing
D96: GSL Payments
D97: Licence Fees
D98: Corporate
D99: Other operating expenditure
C100: Total Bulk water | W100: =+SUM(W93:W99) -> 0 | X100: 0 | Y100: 0 | Z100: 0 | AA100: 0 | AB100: 0 | AC100: 0 | AD100: 0 | AE100: 0 | AF100: 0 | AG100: 0 | AH100: =+SUM(AH93:AH99) -> 0 | AI100: =+SUM(AI93:AI99) -> 0 | AJ100: =+SUM(AJ93:AJ99) -> 0 | AK100: =+SUM(AK93:AK99) -> 0 | AL100: =+SUM(AL93:AL99) -> 0
C102: External temporary water purchases
C105: Licence fees
D106: Essential Services Commission | W106: =0.041/KeyAssumptionsPriceControl_FO!W15 -> 0.0459719457 | X106: 0.06051953819 | Y106: 0.03436514724 | Z106: 0.04814248199 | AA106: 0.1076523109 | AB106: 0.1076523109 | AC106: 0.1076523109 | AD106: 0.1076523109 | AE106: 0.1076523109 | AF106: 0.1076523109 | AG106: 0.1076523109 | AH106: 0.1076523109 | AI106: 0.1076523109 | AJ106: 0.1076523109 | AK106: 0.1076523109 | AL106: 0.1076523109
D107: Department of Human Services | W107: =0.03/KeyAssumptionsPriceControl_FO!W15 -> 0.03363800905 | X107: 0.03961278863 | Y107: 0.02809956442 | Z107: 0.02231475129 | AA107: 0.02704978992 | AB107: 0.02704978992 | AC107: 0.02704978992 | AD107: 0.02704978992 | AE107: 0.02704978992 | AF107: 0.02704978992 | AG107: 0.02704978992 | AH107: 0.02704978992 | AI107: 0.02704978992 | AJ107: 0.02704978992 | AK107: 0.02704978992 | AL107: 0.02704978992
D108: Environment Protection Authority | W108: =0.153/KeyAssumptionsPriceControl_FO!W15 -> 0.1715538462 | X108: 0.183759325 | Y108: 0.2052059816 | Z108: 0.2040205832 | AA108: 0.1940328887 | AB108: 0.1940328887 | AC108: 0.1940328887 | AD108: 0.1940328887 | AE108: 0.1940328887 | AF108: 0.1940328887 | AG108: 0.1940328887 | AH108: 0.1940328887 | AI108: 0.1940328887 | AJ108: 0.1940328887 | AK108: 0.1940328887 | AL108: 0.1940328887
C109: =+CONCATENATE("Total ",C105) -> Total Licence fees | W109: =+SUM(W106:W108) -> 0.2511638009 | X109: 0.2838916519 | Y109: 0.2676706933 | Z109: 0.2744778165 | AA109: 0.3287349895 | AB109: 0.3287349895 | AC109: 0.3287349895 | AD109: 0.3287349895 | AE109: 0.3287349895 | AF109: 0.3287349895 | AG109: 0.3287349895 | AH109: =+SUM(AH106:AH108) -> 0.3287349895 | AI109: =+SUM(AI106:AI108) -> 0.3287349895 | AJ109: =+SUM(AJ106:AJ108) -> 0.3287349895 | AK109: =+SUM(AK106:AK108) -> 0.3287349895 | AL109: =+SUM(AL106:AL108) -> 0.3287349895
C111: Environment Contribution | W111: =2.557/KeyAssumptionsPriceControl_FO!W15 -> 2.867079638 | X111: 3.637774423 | Y111: 3.58995092 | Z111: 3.365277015 | AA111: 3.328212519 | AB111: 3.168 | AC111: 3.102840353 | AD111: 3.039020913 | AE111: 2.976514117 | AF111: 2.915292965 | AG111: 2.855331013 | AH111: 2.796602364 | AI111: 2.739081649 | AJ111: 2.682744025 | AK111: 2.627565156 | AL111: 2.573521211
C113: Other non-controllable
D114: [Non-controllable 1]
D115: [Non-controllable 2]
D116: [Non-controllable 3]
D117: [Non-controllable 4]
D118: [Non-controllable 5]
D119: [Non-controllable 6]
D120: [Non-controllable 7]
D121: [Non-controllable 8]
D122: [Non-controllable 9]
D123: [Non-controllable 10]
W124: =SUM(W114:W123) -> 0 | X124: 0 | Y124: 0 | Z124: 0 | AA124: 0 | AB124: 0 | AC124: 0 | AD124: 0 | AE124: 0 | AF124: 0 | AG124: 0 | AH124: =SUM(AH114:AH123) -> 0 | AI124: =SUM(AI114:AI123) -> 0 | AJ124: =SUM(AJ114:AJ123) -> 0 | AK124: =SUM(AK114:AK123) -> 0 | AL124: =SUM(AL114:AL123) -> 0
C127: External bulk charges (excl. temporary purchases)
C128: Reconciliation
C130: Service | W130: =+W7 -> 2017-18 | X130: =+X7 -> 2018-19 | Y130: 2019-20 | Z130: 2020-21 | AA130: 2021-22 | AB130: 2022-23 | AC130: 2023-24 | AD130: 2024-25 | AE130: 2025-26 | AF130: 2026-27 | AG130: 2027-28 | AH130: =+AH7 -> 2028-29 | AI130: =+AI7 -> 2029-30 | AJ130: =+AJ7 -> 2030-31 | AK130: =+AK7 -> 2031-32 | AL130: =+AL7 -> 2032-33
D131: Water | W131: =+SUMIF($I$138:$I$179,$D$131,W$138:W$179) -> 0.3812307692 | X131: 0.3576154529 | Y131: 0.3735460123 | Z131: 0.3719125214 | AA131: 0.3594045802 | AB131: 0.3594045802 | AC131: 0.3594045802 | AD131: 0.3594045802 | AE131: 0.3594045802 | AF131: 0.3594045802 | AG131: 0.3594045802 | AH131: 0.3594045802 | AI131: 0.3594045802 | AJ131: 0.3594045802 | AK131: 0.3594045802 | AL131: 0.3594045802
D132: Sewerage | W132: =+SUMIF($I$138:$I$179,$D$132,W$138:W$179) -> 0 | X132: 0 | Y132: 0 | Z132: 0 | AA132: 0 | AB132: 0 | AC132: 0 | AD132: 0 | AE132: 0 | AF132: 0 | AG132: 0 | AH132: 0 | AI132: 0 | AJ132: 0 | AK132: 0 | AL132: 0
D133: Recycled Water | W133: =+SUMIF($I$138:$I$179,$D$133,W$138:W$179) -> 0 | X133: 0 | Y133: 0 | Z133: 0 | AA133: 0 | AB133: 0 | AC133: 0 | AD133: 0 | AE133: 0 | AF133: 0 | AG133: 0 | AH133: 0 | AI133: 0 | AJ133: 0 | AK133: 0 | AL133: 0
D134: Rural Water | W134: =+SUMIF($I$138:$I$179,$D$134,W$138:W$179) -> 0 | X134: 0 | Y134: 0 | Z134: 0 | AA134: 0 | AB134: 0 | AC134: 0 | AD134: 0 | AE134: 0 | AF134: 0 | AG134: 0 | AH134: 0 | AI134: 0 | AJ134: 0 | AK134: 0 | AL134: 0
C135: Total External Bulk Charges | W135: =SUM(W131:W134) -> 0.3812307692 | X135: 0.3576154529 | Y135: 0.3735460123 | Z135: 0.3719125214 | AA135: 0.3594045802 | AB135: 0.3594045802 | AC135: 0.3594045802 | AD135: 0.3594045802 | AE135: 0.3594045802 | AF135: 0.3594045802 | AG135: 0.3594045802 | AH135: =SUM(AH131:AH134) -> 0.3594045802 | AI135: =SUM(AI131:AI134) -> 0.3594045802 | AJ135: =SUM(AJ131:AJ134) -> 0.3594045802 | AK135: =SUM(AK131:AK134) -> 0.3594045802 | AL135: =SUM(AL131:AL134) -> 0.3594045802
C137: Description | H137: Source | I137: Service | J137: Price
B138: 1 | C138: Hamilton | H138: Other Sources | I138: Water | J138: Fixed | W138: 0.2805752423 | X138: 0.2710813825 | Y138: 0.2883624944 | Z138: 0.2745803217 | AA138: 0.2732450213 | AB138: =AA138 -> 0.2732450213 | AC138: =AB138 -> 0.2732450213 | AD138: 0.2732450213 | AE138: 0.2732450213 | AF138: 0.2732450213 | AG138: 0.2732450213 | AH138: 0.2732450213 | AI138: 0.2732450213 | AJ138: 0.2732450213 | AK138: 0.2732450213 | AL138: 0.2732450213 | AO138: ESC USE ONLY
B139: 2 | C139: Hamilton | H139: Other Sources | I139: Water | J139: Variable | W139: 0.00674720852 | X139: 0.007264741474 | Y139: 0.005782790445 | Z139: 0.01080403826 | AA139: 0.005063497899 | AB139: 0.005063497899 | AC139: =AB139 -> 0.005063497899 | AD139: 0.005063497899 | AE139: 0.005063497899 | AF139: 0.005063497899 | AG139: 0.005063497899 | AH139: 0.005063497899 | AI139: 0.005063497899 | AJ139: 0.005063497899 | AK139: 0.005063497899 | AL139: 0.005063497899
B140: 3 | C140: Glenthompson | H140: Other Sources | I140: Water | J140: Fixed | W140: 0.01750663677 | X140: 0.0169980198 | Y140: 0.01700325733 | Z140: 0.0170042933 | AA140: 0.01699058824 | AB140: 0.01699058824 | AC140: =AB140 -> 0.01699058824 | AD140: 0.01699058824 | AE140: 0.01699058824 | AF140: 0.01699058824 | AG140: 0.01699058824 | AH140: 0.01699058824 | AI140: 0.01699058824 | AJ140: 0.01699058824 | AK140: 0.01699058824 | AL140: 0.01699058824 | AO140: [Service]
B141: 4 | C141: Glenthompson | H141: Other Sources | I141: Water | J141: Variable | W141: 0.05246702915 | X141: 0.03831481848 | Y141: 0.03992152009 | Z141: 0.04202439957 | AA141: 0.04235289916 | AB141: 0.04235289916 | AC141: =AB141 -> 0.04235289916 | AD141: 0.04235289916 | AE141: 0.04235289916 | AF141: 0.04235289916 | AG141: 0.04235289916 | AH141: 0.04235289916 | AI141: 0.04235289916 | AJ141: 0.04235289916 | AK141: 0.04235289916 | AL141: 0.04235289916 | AO141: Water
B142: 5 | C142: Balmoral | H142: Other Sources | I142: Water | J142: Fixed | W142: 0.01718744395 | X142: 0.01669174917 | Y142: 0.01669315961 | Z142: 0.01669543039 | AA142: 0.01668907563 | AB142: 0.01668907563 | AC142: =AB142 -> 0.01668907563 | AD142: 0.01668907563 | AE142: 0.01668907563 | AF142: 0.01668907563 | AG142: 0.01668907563 | AH142: 0.01668907563 | AI142: 0.01668907563 | AJ142: 0.01668907563 | AK142: 0.01668907563 | AL142: 0.01668907563 | AO142: Sewerage
B143: 6 | C143: Balmoral | H143: Other Sources | I143: Water | J143: Variable | W143: 0.00674720852 | X143: 0.007264741474 | Y143: 0.005782790445 | Z143: 0.01080403826 | AA143: 0.005063497899 | AB143: 0.005063497899 | AC143: =AB143 -> 0.005063497899 | AD143: 0.005063497899 | AE143: 0.005063497899 | AF143: 0.005063497899 | AG143: 0.005063497899 | AH143: 0.005063497899 | AI143: 0.005063497899 | AJ143: 0.005063497899 | AK143: 0.005063497899 | AL143: 0.005063497899 | AO143: Recycled Water
B144: 7 | H144: [Source] | I144: [Service] | J144: [Price] | AO144: Rural Water
B145: 8 | H145: [Source] | I145: [Service] | J145: [Price]
B146: 9 | H146: [Source] | I146: [Service] | J146: [Price] | AO146: [Source]
B147: 10 | H147: [Source] | I147: [Service] | J147: [Price] | AO147: Melbourne Water
B148: 11 | H148: [Source] | I148: [Service] | J148: [Price] | AO148: Goulburn-Murray Water
B149: 12 | H149: [Source] | I149: [Service] | J149: [Price] | AO149: Other Sources
B150: 13 | H150: [Source] | I150: [Service] | J150: [Price]
B151: 14 | H151: [Source] | I151: [Service] | J151: [Price]
B152: 15 | H152: [Source] | I152: [Service] | J152: [Price]
B153: 16 | H153: [Source] | I153: [Service] | J153: [Price]
B154: 17 | H154: [Source] | I154: [Service] | J154: [Price]
B155: 18 | H155: [Source] | I155: [Service] | J155: [Price]
B156: 19 | H156: [Source] | I156: [Service] | J156: [Price]
B157: 20 | H157: [Source] | I157: [Service] | J157: [Price]
B158: 21 | H158: [Source] | I158: [Service] | J158: [Price]
B159: 22 | H159: [Source] | I159: [Service] | J159: [Price]
B160: 23 | H160: [Source] | I160: [Service] | J160: [Price]
B161: 24 | H161: [Source] | I161: [Service] | J161: [Price]
B162: 25 | H162: [Source] | I162: [Service] | J162: [Price]
B163: 26 | H163: [Source] | I163: [Service] | J163: [Price]
B164: 27 | H164: [Source] | I164: [Service] | J164: [Price]
B165: 28 | H165: [Source] | I165: [Service] | J165: [Price]
B166: 29 | H166: [Source] | I166: [Service] | J166: [Price]
B167: 30 | H167: [Source] | I167: [Service] | J167: [Price]
B168: 31 | H168: [Source] | I168: [Service] | J168: [Price]
B169: 32 | H169: [Source] | I169: [Service] | J169: [Price]
B170: 33 | H170: [Source] | I170: [Service] | J170: [Price]
B171: 34 | H171: [Source] | I171: [Service] | J171: [Price]
B172: 35 | H172: [Source] | I172: [Service] | J172: [Price]
B173: 36 | H173: [Source] | I173: [Service] | J173: [Price]
B174: 37 | H174: [Source] | I174: [Service] | J174: [Price]
B175: 38 | H175: [Source] | I175: [Service] | J175: [Price]
B176: 39 | H176: [Source] | I176: [Service] | J176: [Price]
B177: 40 | H177: [Source] | I177: [Service] | J177: [Price]

Sheet Capex_FO input
B1: Capital Expenditure - Forecast Input | Q1: =Q36 -> Gross capital expenditure | AB1: =AB36 -> Government contributions | AM1: =AM36 -> Customer contributions | AX1: =AX36 -> Net capital expenditure | BI1: =BI36 -> Regulatory Depreciation | BT1: =BT36 -> Accumulated capex | CE1: =CE36 -> Gross capital expenditure | CP1: =CP36 -> Tax Depreciation
B2: =+Contents!H7 -> Wannon Water | Q2: =Q37 -> $m, 01/01/23 | AB2: =AB37 -> $m, 01/01/23 | AM2: =AM37 -> $m, 01/01/23 | AX2: =AX37 -> $m, 01/01/23 | BI2: =BI37 -> $m, 01/01/23 | BT2: =BT37 -> $m, 01/01/23 | CE2: =CE37 -> Nominal,$ | CP2: =CP37 -> Nominal,$
B3: Go to Table of Contents | Q3: =Q39 -> 2023-24 | R3: =R39 -> 2024-25 | S3: 2025-26 | T3: 2026-27 | U3: 2027-28 | V3: 2028-29 | W3: 2029-30 | X3: 2030-31 | Y3: =Y39 -> 2031-32 | Z3: =Z39 -> 2032-33 | AB3: 2023-24 | AC3: 2024-25 | AD3: 2025-26 | AE3: 2026-27 | AF3: 2027-28 | AG3: 2028-29 | AH3: 2029-30 | AI3: 2030-31 | AJ3: 2031-32 | AK3: 2032-33 | AM3: 2023-24 | AN3: 2024-25 | AO3: 2025-26 | AP3: 2026-27 | AQ3: 2027-28 | AR3: 2028-29 | AS3: 2029-30 | AT3: 2030-31 | AU3: 2031-32 | AV3: 2032-33 | AX3: 2023-24 | AY3: 2024-25 | AZ3: 2025-26 | BA3: 2026-27 | BB3: 2027-28 | BC3: 2028-29 | BD3: 2029-30 | BE3: 2030-31 | BF3: 2031-32 | BG3: 2032-33 | BI3: 2023-24 | BJ3: 2024-25 | BK3: 2025-26 | BL3: 2026-27 | BM3: 2027-28 | BN3: 2028-29 | BO3: 2029-30 | BP3: 2030-31 | BQ3: 2031-32 | BR3: 2032-33 | BT3: 2023-24 | BU3: 2024-25 | BV3: 2025-26 | BW3: 2026-27 | BX3: 2027-28 | BY3: 2028-29 | BZ3: 2029-30 | CA3: 2030-31 | CB3: =CB39 -> 2031-32 | CC3: =CC39 -> 2032-33 | CE3: 2023-24 | CF3: 2024-25 | CG3: 2025-26 | CH3: 2026-27 | CI3: 2027-28 | CJ3: 2028-29 | CK3: 2029-30 | CL3: 2030-31 | CM3: =CM39 -> 2031-32 | CN3: =CN39 -> 2032-33 | CP3: 2023-24 | CQ3: 2024-25 | CR3: =CR39 -> 2025-26 | CS3: 2026-27 | CT3: 2027-28 | CU3: 2028-29 | CV3: 2029-30 | CW3: 2030-31 | CX3: =CX39 -> 2031-32 | CY3: =CY39 -> 2032-33
C7: Input Summary | F7: FIFTH REG PERIOD | K7: SIXTH REG PERIOD
D9: =+Q39 -> 2023-24 | E9: =+R39 -> 2024-25 | F9: 2025-26 | G9: 2026-27 | H9: 2027-28 | I9: 2028-29 | J9: 2029-30 | K9: 2030-31 | L9: =+Y39 -> 2031-32 | M9: =+Z39 -> 2032-33
C10: By Cost Driver
C11: Net capital expenditure - Renewals | D11: =+SUMIF($F$42:$F$1016,"Renewals",AX$42:AX$1016) -> 8.481943039 | E11: 9.909256381 | F11: 8.484463133 | G11: 7.899873304 | H11: 9.690625552 | I11: 11.10145635 | J11: 9.727966196 | K11: 9.766506127 | L11: =+SUMIF($F$42:$F$1016,"Renewals",BF$42:BF$1016) -> 9.613433632 | M11: =+SUMIF($F$42:$F$1016,"Renewals",BG$42:BG$1016) -> 8.622120252
C12: Net capital expenditure - Growth | D12: =+SUMIF($F$42:$F$1016,"Growth",AX$42:AX$1016) -> 41.8441725 | E12: 16.187035 | F12: 0.4396025 | G12: 0.745391 | H12: 0.0505825 | I12: 0.72103438 | J12: 8.64943675 | K12: -0.38925486 | L12: =+SUMIF($F$42:$F$1016,"Growth",BF$42:BF$1016) -> 2.80818687 | M12: =+SUMIF($F$42:$F$1016,"Growth",BG$42:BG$1016) -> 4.5266475
C13: Net capital expenditure - Improvements / Compliance | D13: =+SUMIF($F$42:$F$1016,"Improvements / Compliance",AX$42:AX$1016) -> 13.9676945 | E13: 8.460145 | F13: 9.59822591 | G13: 9.88953841 | H13: 4.11974967 | I13: 6.50471125 | J13: 6.20285313 | K13: 12.28206713 | L13: =+SUMIF($F$42:$F$1016,"Improvements / Compliance",BF$42:BF$1016) -> 17.52767014 | M13: =+SUMIF($F$42:$F$1016,"Improvements / Compliance",BG$42:BG$1016) -> 6.02146442
C14: Government Contributions | D14: =+AB41 -> 0 | E14: 0 | F14: 0 | G14: 0 | H14: 0 | I14: 0.05 | J14: 0 | K14: 0.05 | L14: =+AJ41 -> 0 | M14: =+AK41 -> 0.05
C15: Customer Contributions | D15: =+AM41 -> 1.4619525 | E15: 1.47426 | F15: 1.4885475 | G15: 1.4943 | H15: 1.5085875 | I15: 1.520895 | J15: 1.53042 | K15: 1.5427275 | L15: =+AU41 -> 1.54947 | M15: =+AV41 -> 1.5703125
C16: Total prescribed capex | D16: =SUM(D11:D15) -> 65.75576254 | E16: 36.03069638 | F16: 20.01083904 | G16: 20.02910271 | H16: 15.36954522 | I16: 19.89809698 | J16: 26.11067608 | K16: 23.2520459 | L16: =SUM(L11:L15) -> 31.49876064 | M16: =SUM(M11:M15) -> 20.79054467
C18: By Capital Type
C19: Top 10 Major Projects | D19: =+SUMIF($H$42:$H$1016,$C$19,Q$42:Q$1016) -> 53.027027 | E19: 23.509315 | F19: 7.72996374 | G19: 7.30297974 | H19: 1.7094 | I19: 0.75 | J19: 0 | K19: 0 | L19: =+SUMIF($H$42:$H$1016,$C$19,Y$42:Y$1016) -> 0 | M19: =+SUMIF($H$42:$H$1016,$C$19,Z$42:Z$1016) -> 0
C20: Significant projects | D20: =+SUMIF($H$42:$H$1016,$C$20,Q$42:Q$1016) -> 0 | E20: 0 | F20: 0 | G20: 0 | H20: 0 | I20: 0 | J20: 0 | K20: 0 | L20: =+SUMIF($H$42:$H$1016,$C$20,Y$42:Y$1016) -> 0 | M20: =+SUMIF($H$42:$H$1016,$C$20,Z$42:Z$1016) -> 0
C21: Capital Programs / Allocation | D21: =+SUMIF($H$42:$H$1016,$C$21,Q$42:Q$1016) -> 12.72873554 | E21: 12.52138138 | F21: 12.2808753 | G21: 12.72612297 | H21: 13.66014522 | I21: 19.14809698 | J21: 26.11067608 | K21: 23.2520459 | L21: =+SUMIF($H$42:$H$1016,$C$21,Y$42:Y$1016) -> 31.49876064 | M21: =+SUMIF($H$42:$H$1016,$C$21,Z$42:Z$1016) -> 20.79054467
C22: Other Capital expenditure | D22: =+SUMIF($H$42:$H$1016,$C$22,Q$42:Q$1016) -> 0 | E22: 0 | F22: 0 | G22: 0 | H22: 0 | I22: 0 | J22: 0 | K22: 0 | L22: =+SUMIF($H$42:$H$1016,$C$22,Y$42:Y$1016) -> 0 | M22: =+SUMIF($H$42:$H$1016,$C$22,Z$42:Z$1016) -> 0
C23: Total prescribed capex | D23: =SUM(D19:D22) -> 65.75576254 | E23: 36.03069638 | F23: 20.01083904 | G23: 20.02910271 | H23: 15.36954522 | I23: 19.89809698 | J23: 26.11067608 | K23: 23.2520459 | L23: =SUM(L19:L22) -> 31.49876064 | M23: =SUM(M19:M22) -> 20.79054467
C25: Difference | D25: =+D23-D16 -> 0 | E25: 0 | F25: 0 | G25: 0 | H25: 0 | I25: 0 | J25: 0 | K25: 0 | L25: =+L23-L16 -> 0 | M25: =+M23-M16 -> 0
C26: Test | D26: =IF(+D23=D16,0,1) -> 0 | E26: 0 | F26: 0 | G26: 0 | H26: 0 | I26: 0 | J26: 0 | K26: 0 | L26: 0 | M26: 0
C29: Total prescribed capex | D29: =+D23 -> 65.75576254 | E29: 36.03069638 | F29: 20.01083904 | G29: 20.02910271 | H29: 15.36954522 | I29: 19.89809698 | J29: 26.11067608 | K29: 23.2520459 | L29: =+L23 -> 31.49876064 | M29: =+M23 -> 20.79054467
C32: Regulatory Depreciation | D32: =+BI41 -> 0.547754878 | E32: 1.845508376 | F32: 3.426191372 | G32: 4.824331123 | H32: 5.45109024 | I32: 5.511854466 | J32: 5.660237508 | K32: 5.98524972 | L32: =+BQ41 -> 6.24279734 | M32: =+BR41 -> 6.413072336
B35: =Expenditure_Detail!$B$6 -> $m, 01/01/23
Q36: Gross capital expenditure | AB36: Government contributions | AM36: Customer contributions | AX36: Net capital expenditure | BI36: Regulatory Depreciation | BT36: Accumulated capex | CE36: Gross capital expenditure | CP36: Tax Depreciation
Q37: =Expenditure_Detail!$B$6 -> $m, 01/01/23 | AB37: =Expenditure_Detail!$B$6 -> $m, 01/01/23 | AM37: =Expenditure_Detail!$B$6 -> $m, 01/01/23 | AX37: =Expenditure_Detail!$B$6 -> $m, 01/01/23 | BI37: =Expenditure_Detail!$B$6 -> $m, 01/01/23 | BT37: =Expenditure_Detail!$B$6 -> $m, 01/01/23 | CE37: Nominal,$ | CP37: Nominal,$
Q39: 2023-24 | R39: 2024-25 | S39: 2025-26 | T39: 2026-27 | U39: 2027-28 | V39: 2028-29 | W39: 2029-30 | X39: 2030-31 | Y39: 2031-32 | Z39: 2032-33 | AB39: 2023-24 | AC39: 2024-25 | AD39: 2025-26 | AE39: 2026-27 | AF39: 2027-28 | AG39: 2028-29 | AH39: 2029-30 | AI39: 2030-31 | AJ39: 2031-32 | AK39: 2032-33 | AM39: 2023-24 | AN39: 2024-25 | AO39: 2025-26 | AP39: 2026-27 | AQ39: 2027-28 | AR39: 2028-29 | AS39: 2029-30 | AT39: 2030-31 | AU39: 2031-32 | AV39: 2032-33 | AX39: 2023-24 | AY39: 2024-25 | AZ39: 2025-26 | BA39: 2026-27 | BB39: 2027-28 | BC39: 2028-29 | BD39: 2029-30 | BE39: 2030-31 | BF39: 2031-32 | BG39: 2032-33 | BI39: 2023-24 | BJ39: 2024-25 | BK39: 2025-26 | BL39: 2026-27 | BM39: 2027-28 | BN39: 2028-29 | BO39: 2029-30 | BP39: 2030-31 | BQ39: 2031-32 | BR39: 2032-33 | BT39: 2023-24 | BU39: 2024-25 | BV39: 2025-26 | BW39: 2026-27 | BX39: 2027-28 | BY39: 2028-29 | BZ39: 2029-30 | CA39: 2030-31 | CB39: 2031-32 | CC39: 2032-33 | CE39: 2023-24 | CF39: 2024-25 | CG39: 2025-26 | CH39: 2026-27 | CI39: 2027-28 | CJ39: 2028-29 | CK39: 2029-30 | CL39: 2030-31 | CM39: 2031-32 | CN39: 2032-33 | CP39: 2023-24 | CQ39: 2024-25 | CR39: 2025-26 | CS39: 2026-27 | CT39: 2027-28 | CU39: 2028-29 | CV39: 2029-30 | CW39: 2030-31 | CX39: 2031-32 | CY39: 2032-33
BI40: 1 | BJ40: 2 | BK40: 3 | BL40: 4 | BM40: 5 | BN40: 6 | BO40: 7 | BP40: 8 | BQ40: 9 | BR40: 10 | CP40: 1 | CQ40: 2 | CR40: 3 | CS40: 4 | CT40: 5 | CU40: 6 | CV40: 7 | CW40: 8 | CX40: 9 | CY40: 10
C41: Project/program Name | E41: Service | F41: Major cost driver | G41: Asset category | H41: Capital type | J41: Reg Depreciation Method | K41: Year asset operational | L41: Asset life (Regulatory) | M41: Asset life (Tax) | Q41: =SUM(Q42:Q1016) -> 65.75576254 | R41: 36.03069638 | S41: 20.01083904 | T41: 20.02910271 | U41: 15.36954522 | V41: 19.89809698 | W41: 26.11067608 | X41: 23.2520459 | Y41: =SUM(Y42:Y1016) -> 31.49876064 | Z41: =SUM(Z42:Z1016) -> 20.79054467 | AB41: =SUM(AB42:AB1016) -> 0 | AC41: 0 | AD41: 0 | AE41: 0 | AF41: 0 | AG41: 0.05 | AH41: 0 | AI41: 0.05 | AJ41: 0 | AK41: 0.05 | AM41: =SUM(AM42:AM1016) -> 1.4619525 | AN41: 1.47426 | AO41: 1.4885475 | AP41: 1.4943 | AQ41: 1.5085875 | AR41: 1.520895 | AS41: 1.53042 | AT41: 1.5427275 | AU41: 1.54947 | AV41: 1.5703125 | AX41: =SUM(AX42:AX1016) -> 64.29381004 | AY41: 34.55643638 | AZ41: 18.52229154 | BA41: 18.53480271 | BB41: 13.86095772 | BC41: 18.32720198 | BD41: 24.58025608 | BE41: 21.6593184 | BF41: 29.94929064 | BG41: 19.17023217 | BI41: =SUM(BI42:BI1016) -> 0.547754878 | BJ41: 1.845508376 | BK41: 3.426191372 | BL41: 4.824331123 | BM41: 5.45109024 | BN41: 5.511854466 | BO41: 5.660237508 | BP41: 5.98524972 | BQ41: =SUM(BQ42:BQ1016) -> 6.24279734 | BR41: =SUM(BR42:BR1016) -> 6.413072336 | BT41: =SUM(BT42:BT1016) -> 11.80678304 | BU41: 17.84810638 | BV41: 77.71255854 | BW41: 23.61989271 | BX41: 18.78095772 | BY41: 18.32720198 | BZ41: 24.58025608 | CA41: 21.6593184 | CB41: =SUM(CB42:CB1016) -> 29.94929064 | CC41: =SUM(CC42:CC1016) -> 19.17023217 | CE41: =SUM(CE42:CE1016) -> 67.72843541 | CF41: 38.22496579 | CG41: 21.86638411 | CH41: 22.54293156 | CI41: 17.81751531 | CJ41: 23.75936839 | CK41: 32.11283811 | CL41: 29.45499607 | CM41: =SUM(CM42:CM1016) -> 41.09873821 | CN41: =SUM(CN42:CN1016) -> 27.94075352 | CP41: =SUM(CP42:CP1016) -> 1.083771469 | CQ41: 3.0237879 | CR41: 4.401842653 | CS41: 5.404029946 | CT41: 5.988174455 | CU41: 6.150517351 | CV41: 6.34128611 | CW41: 6.739685002 | CX41: =SUM(CX42:CX1016) -> 7.337953705 | CY41: =SUM(CY42:CY1016) -> 7.86320308
C42: Wbool STP upgrade - completion of works - carry over project | E42: Sewerage | F42: Growth | G42: Treatment | H42: Top 10 Major Projects | J42: Straight line | K42: 2025-26 | L42: 80 | M42: 80 | Q42: 39.279703 | R42: 13.513114 | S42: 0.049491 | T42: 0.049491 | U42: 0 | V42: 0 | W42: 0 | X42: 0 | Y42: 0 | Z42: 0 | AX42: =+Q42-AB42-AM42 -> 39.279703 | AY42: =+R42-AC42-AN42 -> 13.513114 | AZ42: =+S42-AD42-AO42 -> 0.049491 | BA42: =+T42-AE42-AP42 -> 0.049491 | BB42: =+U42-AF42-AQ42 -> 0 | BC42: =+V42-AG42-AR42 -> 0 | BD42: =+W42-AH42-AS42 -> 0 | BE42: =+X42-AI42-AT42 -> 0 | BF42: =+Y42-AJ42-AU42 -> 0 | BG42: =+Z42-AK42-AV42 -> 0 | BI42: =IF($L42=0,0, IF($L42<=0.5,BT42, IF($J42="straight line", IF((LEFT(BI$39,4)*1)-INT($L42)<LEFT($BI$39,4)*1,0,((OFFSET(BT42,0,-INT($L42+0.5),1,1))/$L42)*(IF($L42-INT($L42)>0.5,$L42-0.5-INT($L42),IF($L42-INT($L42)<=0.5,$L42-0.5-INT($L42)+1,0)))) +BT42/$L42*0.5, IF($J42="Declining Balance",-$BI$38,0)))) -> 0 | BJ42: =IF($L42=0,0, IF($L42<=0.5,BU42, IF(AND($J42="straight line",$L42<1.51),(BT42-((BT42/$L42)*0.5))+BU42/$L42*0.5, IF($J42="straight line", IF((LEFT(BJ$39,4)*1)-INT($L42)<LEFT($BI$39,4)*1,0,((OFFSET(BU42,0,-INT($L42+0.5),1,1))/$L42)*(IF($L42-INT($L42)>0.5,$L42-0.5-INT($L42),IF($L42-INT($L42)<=0.5,$L42-0.5-INT($L42)+1,0)))) +BU42/$L42*0.5 +SUM(OFFSET(BU42,0,MAX(-INT($L42+(0.5-(10^-12))),-BJ$40)+1,1,MIN(INT($L42+(0.5-(10^-12))),BJ$40)-1))*1/$L42, IF($J42="Declining Balance",-$BI$38,0))))) -> 0 | BK42: =IF($L42=0,0, IF($L42<=0.5,BV42, IF(AND($J42="straight line",$L42<1.51),(BU42-((BU42/$L42)*0.5))+BV42/$L42*0.5, IF($J42="straight line", IF((LEFT(BK$39,4)*1)-INT($L42)<LEFT($BI$39,4)*1,0,((OFFSET(BV42,0,-INT($L42+0.5),1,1))/$L42)*(IF($L42-INT($L42)>0.5,$L42-0.5-INT($L42),IF($L42-INT($L42)<=0.5,$L42-0.5-INT($L42)+1,0)))) +BV42/$L42*0.5 +SUM(OFFSET(BV42,0,MAX(-INT($L42+(0.5-(10^-12))),-BK$40)+1,1,MIN(INT($L42+(0.5-(10^-12))),BK$40)-1))*1/$L42, IF($J42="Declining Balance",-$BI$38,0))))) -> 0.330264425 | BL42: =IF($L42=0,0, IF($L42<=0.5,BW42, IF(AND($J42="straight line",$L42<1.51),(BV42-((BV42/$L42)*0.5))+BW42/$L42*0.5, IF($J42="straight line", IF((LEFT(BL$39,4)*1)-INT($L42)<LEFT($BI$39,4)*1,0,((OFFSET(BW42,0,-INT($L42+0.5),1,1))/$L42)*(IF($L42-INT($L42)>0.5,$L42-0.5-INT($L42),IF($L42-INT($L42)<=0.5,$L42-0.5-INT($L42)+1,0)))) +BW42/$L42*0.5 +SUM(OFFSET(BW42,0,MAX(-INT($L42+(0.5-(10^-12))),-BL$40)+1,1,MIN(INT($L42+(0.5-(10^-12))),BL$40)-1))*1/$L42, IF($J42="Declining Balance",-$BI$38,0))))) -> 0.6608381688 | BM42: =IF($L42=0,0, IF($L42<=0.5,BX42, IF(AND($J42="straight line",$L42<1.51),(BW42-((BW42/$L42)*0.5))+BX42/$L42*0.5, IF($J42="straight line", IF((LEFT(BM$39,4)*1)-INT($L42)<LEFT($BI$39,4)*1,0,((OFFSET(BX42,0,-INT($L42+0.5),1,1))/$L42)*(IF($L42-INT($L42)>0.5,$L42-0.5-INT($L42),IF($L42-INT($L42)<=0.5,$L42-0.5-INT($L42)+1,0)))) +BX42/$L42*0.5 +SUM(OFFSET(BX42,0,MAX(-INT($L42+(0.5-(10^-12))),-BM$40)+1,1,MIN(INT($L42+(0.5-(10^-12))),BM$40)-1))*1/$L42, IF($J42="Declining Balance",-$BI$38,0))))) -> 0.6611474875 | BN42: =IF($L42=0,0, IF($L42<=0.5,BY42, IF(AND($J42="straight line",$L42<1.51),(BX42-((BX42/$L42)*0.5))+BY42/$L42*0.5, IF($J42="straight line", IF((LEFT(BN$39,4)*1)-INT($L42)<LEFT($BI$39,4)*1,0,((OFFSET(BY42,0,-INT($L42+0.5),1,1))/$L42)*(IF($L42-INT($L42)>0.5,$L42-0.5-INT($L42),IF($L42-INT($L42)<=0.5,$L42-0.5-INT($L42)+1,0)))) +BY42/$L42*0.5 +SUM(OFFSET(BY42,0,MAX(-INT($L42+(0.5-(10^-12))),-BN$40)+1,1,MIN(INT($L42+(0.5-(10^-12))),BN$40)-1))*1/$L42, IF($J42="Declining Balance",-$BI$38,0))))) -> 0.6611474875 | BO42: =IF($L42=0,0, IF($L42<=0.5,BZ42, IF(AND($J42="straight line",$L42<1.51),(BY42-((BY42/$L42)*0.5))+BZ42/$L42*0.5, IF($J42="straight line", IF((LEFT(BO$39,4)*1)-INT($L42)<LEFT($BI$39,4)*1,0,((OFFSET(BZ42,0,-INT($L42+0.5),1,1))/$L42)*(IF($L42-INT($L42)>0.5,$L42-0.5-INT($L42),IF($L42-INT($L42)<=0.5,$L42-0.5-INT($L42)+1,0)))) +BZ42/$L42*0.5 +SUM(OFFSET(BZ42,0,MAX(-INT($L42+(0.5-(10^-12))),-BO$40)+1,1,MIN(INT($L42+(0.5-(10^-12))),BO$40)-1))*1/$L42, IF($J42="Declining Balance",-$BI$38,0))))) -> 0.6611474875 | BP42: =IF($L42=0,0, IF($L42<=0.5,CA42, IF(AND($J42="straight line",$L42<1.51),(BZ42-((BZ42/$L42)*0.5))+CA42/$L42*0.5, IF($J42="straight line", IF((LEFT(BP$39,4)*1)-INT($L42)<LEFT($BI$39,4)*1,0,((OFFSET(CA42,0,-INT($L42+0.5),1,1))/$L42)*(IF($L42-INT($L42)>0.5,$L42-0.5-INT($L42),IF($L42-INT($L42)<=0.5,$L42-0.5-INT($L42)+1,0)))) +CA42/$L42*0.5 +SUM(OFFSET(CA42,0,MAX(-INT($L42+(0.5-(10^-12))),-BP$40)+1,1,MIN(INT($L42+(0.5-(10^-12))),BP$40)-1))*1/$L42, IF($J42="Declining Balance",-$BI$38,0))))) -> 0.6611474875 | BQ42: =IF($L42=0,0, IF($L42<=0.5,CB42, IF(AND($J42="straight line",$L42<1.51),(CA42-((CA42/$L42)*0.5))+CB42/$L42*0.5, IF($J42="straight line", IF((LEFT(BQ$39,4)*1)-INT($L42)<LEFT($BI$39,4)*1,0,((OFFSET(CB42,0,-INT($L42+0.5),1,1))/$L42)*(IF($L42-INT($L42)>0.5,$L42-0.5-INT($L42),IF($L42-INT($L42)<=0.5,$L42-0.5-INT($L42)+1,0)))) +CB42/$L42*0.5 +SUM(OFFSET(CB42,0,MAX(-INT($L42+(0.5-(10^-12))),-BQ$40)+1,1,MIN(INT($L42+(0.5-(10^-12))),BQ$40)-1))*1/$L42, IF($J42="Declining Balance",-$BI$38,0))))) -> 0.6611474875 | BR42: =IF($L42=0,0, IF($L42<=0.5,CC42, IF(AND($J42="straight line",$L42<1.51),(CB42-((CB42/$L42)*0.5))+CC42/$L42*0.5, IF($J42="straight line", IF((LEFT(BR$39,4)*1)-INT($L42)<LEFT($BI$39,4)*1,0,((OFFSET(CC42,0,-INT($L42+0.5),1,1))/$L42)*(IF($L42-INT($L42)>0.5,$L42-0.5-INT($L42),IF($L42-INT($L42)<=0.5,$L42-0.5-INT($L42)+1,0)))) +CC42/$L42*0.5 +SUM(OFFSET(CC42,0,MAX(-INT($L42+(0.5-(10^-12))),-BR$40)+1,1,MIN(INT($L42+(0.5-(10^-12))),BR$40)-1))*1/$L42, IF($J42="Declining Balance",-$BI$38,0))))) -> 0.6611474875 | BT42: =+IF($K42="Ongoing",AX42,IF(RIGHT($K42,2)=RIGHT(BT$39,2),SUM($AX42:AX42),0)+IF(RIGHT(BT$39,2)>RIGHT($K42,2),AX42,0)) -> 0 | BU42: =+IF($K42="Ongoing",AY42,IF(RIGHT($K42,2)=RIGHT(BU$39,2),SUM($AX42:AY42),0)+IF(RIGHT(BU$39,2)>RIGHT($K42,2),AY42,0)) -> 0 | BV42: =+IF($K42="Ongoing",AZ42,IF(RIGHT($K42,2)=RIGHT(BV$39,2),SUM($AX42:AZ42),0)+IF(RIGHT(BV$39,2)>RIGHT($K42,2),AZ42,0)) -> 52.842308 | BW42: =+IF($K42="Ongoing",BA42,IF(RIGHT($K42,2)=RIGHT(BW$39,2),SUM($AX42:BA42),0)+IF(RIGHT(BW$39,2)>RIGHT($K42,2),BA42,0)) -> 0.049491 | BX42: =+IF($K42="Ongoing",BB42,IF(RIGHT($K42,2)=RIGHT(BX$39,2),SUM($AX42:BB42),0)+IF(RIGHT(BX$39,2)>RIGHT($K42,2),BB42,0)) -> 0 | BY42: =+IF($K42="Ongoing",BC42,IF(RIGHT($K42,2)=RIGHT(BY$39,2),SUM($AX42:BC42),0)+IF(RIGHT(BY$39,2)>RIGHT($K42,2),BC42,0)) -> 0 | BZ42: =+IF($K42="Ongoing",BD42,IF(RIGHT($K42,2)=RIGHT(BZ$39,2),SUM($AX42:BD42),0)+IF(RIGHT(BZ$39,2)>RIGHT($K42,2),BD42,0)) -> 0 | CA42: =+IF($K42="Ongoing",BE42,IF(RIGHT($K42,2)=RIGHT(CA$39,2),SUM($AX42:BE42),0)+IF(RIGHT(CA$39,2)>RIGHT($K42,2),BE42,0)) -> 0 | CB42: =+IF($K42="Ongoing",BF42,IF(RIGHT($K42,2)=RIGHT(CB$39,2),SUM($AX42:BF42),0)+IF(RIGHT(CB$39,2)>RIGHT($K42,2),BF42,0)) -> 0 | CC42: =+IF($K42="Ongoing",BG42,IF(RIGHT($K42,2)=RIGHT(CC$39,2),SUM($AX42:BG42),0)+IF(RIGHT(CC$39,2)>RIGHT($K42,2),BG42,0)) -> 0 | CE42: =+Q42*KeyAssumptionsPriceControl_FO!AC$15 -> 40.45809409 | CF42: =+R42*KeyAssumptionsPriceControl_FO!AD$15 -> 14.33606264 | CG42: =+S42*KeyAssumptionsPriceControl_FO!AE$15 -> 0.05408015196 | CH42: =+T42*KeyAssumptionsPriceControl_FO!AF$15 -> 0.05570255652 | CI42: =+U42*KeyAssumptionsPriceControl_FO!AG$15 -> 0 | CJ42: =+V42*KeyAssumptionsPriceControl_FO!AH$15 -> 0 | CK42: =+W42*KeyAssumptionsPriceControl_FO!AI$15 -> 0 | CL42: =+X42*KeyAssumptionsPriceControl_FO!AJ$15 -> 0 | CM42: =+Y42*KeyAssumptionsPriceControl_FO!AK$15 -> 0 | CN42: =+Z42*KeyAssumptionsPriceControl_FO!AL$15 -> 0 | CP42: =IF($M42=0,0, IF($M42<=0.5,CE42, IF($J42="straight line", IF((LEFT(CP$39,4)*1)-INT($M42)<LEFT($CP$39,4)*1,0,((OFFSET(CE42,0,-INT($M42+0.5),1,1))/$M42)*(IF($M42-INT($M42)>0.5,$M42-0.5-INT($M42),IF($M42-INT($M42)<=0.5,$M42-0.5-INT($M42)+1,0)))) +CE42/$M42*0.5, IF($J42="Declining Balance",-$CP$38,0)))) -> 0.2528630881 | CQ42: =IF($M42=0,0, IF($M42<=0.5,CF42, IF(AND($J42="straight line",$M42<1.51),(CE42-((CE42/$M42)*0.5))+CF42/$M42*0.5, IF($J42="straight line", IF((LEFT(CQ$39,4)*1)-INT($M42)<LEFT($CP$39,4)*1,0,((OFFSET(CF42,0,-INT($M42+0.5),1,1))/$M42)*(IF($M42-INT($M42)>0.5,$M42-0.5-INT($M42),IF($M42-INT($M42)<=0.5,$M42-0.5-INT($M42)+1,0)))) +CF42/$M42*0.5 +SUM(OFFSET(CF42,0,MAX(-INT($M42+(0.5-(10^-12))),-CQ$40)+1,1,MIN(INT($M42+(0.5-(10^-12))),CQ$40)-1))*1/$M42, IF($J42="Declining Balance",-$CP$38,0))))) -> 0.5953265676 | CR42: =IF($M42=0,0, IF($M42<=0.5,CG42, IF(AND($J42="straight line",$M42<1.51),(CF42-((CF42/$M42)*0.5))+CG42/$M42*0.5, IF($J42="straight line", IF((LEFT(CR$39,4)*1)-INT($M42)<LEFT($CP$39,4)*1,0,((OFFSET(CG42,0,-INT($M42+0.5),1,1))/$M42)*(IF($M42-INT($M42)>0.5,$M42-0.5-INT($M42),IF($M42-INT($M42)<=0.5,$M42-0.5-INT($M42)+1,0)))) +CG42/$M42*0.5 +SUM(OFFSET(CG42,0,MAX(-INT($M42+(0.5-(10^-12))),-CR$40)+1,1,MIN(INT($M42+(0.5-(10^-12))),CR$40)-1))*1/$M42, IF($J42="Declining Balance",-$CP$38,0))))) -> 0.6852649601 | CS42: =IF($M42=0,0, IF($M42<=0.5,CH42, IF(AND($J42="straight line",$M42<1.51),(CG42-((CG42/$M42)*0.5))+CH42/$M42*0.5, IF($J42="straight line", IF((LEFT(CS$39,4)*1)-INT($M42)<LEFT($CP$39,4)*1,0,((OFFSET(CH42,0,-INT($M42+0.5),1,1))/$M42)*(IF($M42-INT($M42)>0.5,$M42-0.5-INT($M42),IF($M42-INT($M42)<=0.5,$M42-0.5-INT($M42)+1,0)))) +CH42/$M42*0.5 +SUM(OFFSET(CH42,0,MAX(-INT($M42+(0.5-(10^-12))),-CS$40)+1,1,MIN(INT($M42+(0.5-(10^-12))),CS$40)-1))*1/$M42, IF($J42="Declining Balance",-$CP$38,0))))) -> 0.685951102 | CT42: =IF($M42=0,0, IF($M42<=0.5,CI42, IF(AND($J42="straight line",$M42<1.51),(CH42-((CH42/$M42)*0.5))+CI42/$M42*0.5, IF($J42="straight line", IF((LEFT(CT$39,4)*1)-INT($M42)<LEFT($CP$39,4)*1,0,((OFFSET(CI42,0,-INT($M42+0.5),1,1))/$M42)*(IF($M42-INT($M42)>0.5,$M42-0.5-INT($M42),IF($M42-INT($M42)<=0.5,$M42-0.5-INT($M42)+1,0)))) +CI42/$M42*0.5 +SUM(OFFSET(CI42,0,MAX(-INT($M42+(0.5-(10^-12))),-CT$40)+1,1,MIN(INT($M42+(0.5-(10^-12))),CT$40)-1))*1/$M42, IF($J42="Declining Balance",-$CP$38,0))))) -> 0.686299243 | CU42: =IF($M42=0,0, IF($M42<=0.5,CJ42, IF(AND($J42="straight line",$M42<1.51),(CI42-((CI42/$M42)*0.5))+CJ42/$M42*0.5, IF($J42="straight line", IF((LEFT(CU$39,4)*1)-INT($M42)<LEFT($CP$39,4)*1,0,((OFFSET(CJ42,0,-INT($M42+0.5),1,1))/$M42)*(IF($M42-INT($M42)>0.5,$M42-0.5-INT($M42),IF($M42-INT($M42)<=0.5,$M42-0.5-INT($M42)+1,0)))) +CJ42/$M42*0.5 +SUM(OFFSET(CJ42,0,MAX(-INT($M42+(0.5-(10^-12))),-CU$40)+1,1,MIN(INT($M42+(0.5-(10^-12))),CU$40)-1))*1/$M42, IF($J42="Declining Balance",-$CP$38,0))))) -> 0.686299243 | CV42: =IF($M42=0,0, IF($M42<=0.5,CK42, IF(AND($J42="straight line",$M42<1.51),(CJ42-((CJ42/$M42)*0.5))+CK42/$M42*0.5, IF($J42="straight line", IF((LEFT(CV$39,4)*1)-INT($M42)<LEFT($CP$39,4)*1,0,((OFFSET(CK42,0,-INT($M42+0.5),1,1))/$M42)*(IF($M42-INT($M42)>0.5,$M42-0.5-INT($M42),IF($M42-INT($M42)<=0.5,$M42-0.5-INT($M42)+1,0)))) +CK42/$M42*0.5 +SUM(OFFSET(CK42,0,MAX(-INT($M42+(0.5-(10^-12))),-CV$40)+1,1,MIN(INT($M42+(0.5-(10^-12))),CV$40)-1))*1/$M42, IF($J42="Declining Balance",-$CP$38,0))))) -> 0.686299243 | CW42: =IF($M42=0,0, IF($M42<=0.5,CL42, IF(AND($J42="straight line",$M42<1.51),(CK42-((CK42/$M42)*0.5))+CL42/$M42*0.5, IF($J42="straight line", IF((LEFT(CW$39,4)*1)-INT($M42)<LEFT($CP$39,4)*1,0,((OFFSET(CL42,0,-INT($M42+0.5),1,1))/$M42)*(IF($M42-INT($M42)>0.5,$M42-0.5-INT($M42),IF($M42-INT($M42)<=0.5,$M42-0.5-INT($M42)+1,0)))) +CL42/$M42*0.5 +SUM(OFFSET(CL42,0,MAX(-INT($M42+(0.5-(10^-12))),-CW$40)+1,1,MIN(INT($M42+(0.5-(10^-12))),CW$40)-1))*1/$M42, IF($J42="Declining Balance",-$CP$38,0))))) -> 0.686299243 | CX42: =IF($M42=0,0, IF($M42<=0.5,CM42, IF(AND($J42="straight line",$M42<1.51),(CL42-((CL42/$M42)*0.5))+CM42/$M42*0.5, IF($J42="straight line", IF((LEFT(CX$39,4)*1)-INT($M42)<LEFT($CP$39,4)*1,0,((OFFSET(CM42,0,-INT($M42+0.5),1,1))/$M42)*(IF($M42-INT($M42)>0.5,$M42-0.5-INT($M42),IF($M42-INT($M42)<=0.5,$M42-0.5-INT($M42)+1,0)))) +CM42/$M42*0.5 +SUM(OFFSET(CM42,0,MAX(-INT($M42+(0.5-(10^-12))),-CX$40)+1,1,MIN(INT($M42+(0.5-(10^-12))),CX$40)-1))*1/$M42, IF($J42="Declining Balance",-$CP$38,0))))) -> 0.686299243 | CY42: =IF($M42=0,0, IF($M42<=0.5,CN42, IF(AND($J42="straight line",$M42<1.51),(CM42-((CM42/$M42)*0.5))+CN42/$M42*0.5, IF($J42="straight line", IF((LEFT(CY$39,4)*1)-INT($M42)<LEFT($CP$39,4)*1,0,((OFFSET(CN42,0,-INT($M42+0.5),1,1))/$M42)*(IF($M42-INT($M42)>0.5,$M42-0.5-INT($M42),IF($M42-INT($M42)<=0.5,$M42-0.5-INT($M42)+1,0)))) +CN42/$M42*0.5 +SUM(OFFSET(CN42,0,MAX(-INT($M42+(0.5-(10^-12))),-CY$40)+1,1,MIN(INT($M42+(0.5-(10^-12))),CY$40)-1))*1/$M42, IF($J42="Declining Balance",-$CP$38,0))))) -> 0.686299243
C43: Great Tasting Water - Project | E43: Water | F43: Improvements / Compliance | G43: Treatment | H43: Top 10 Major Projects | J43: Straight line | K43: 2025-26 | L43: 80 | M43: 80 | Q43: 4.75 | R43: 4.75 | S43: 2.75 | T43: 2.75 | U43: 0.75 | V43: 0.75 | W43: 0 | X43: 0 | Y43: 0 | Z43: 0 | AX43: 4.75 | AY43: 4.75 | AZ43: 2.75 | BA43: 2.75 | BB43: 0.75 | BC43: 0.75 | BD43: 0 | BE43: 0 | BF43: 0 | BG43: 0 | BI43: =IF($L43=0,0, IF($L43<=0.5,BT43, IF($J43="straight line", IF((LEFT(BI$39,4)*1)-INT($L43)<LEFT($BI$39,4)*1,0,((OFFSET(BT43,0,-INT($L43+0.5),1,1))/$L43)*(IF($L43-INT($L43)>0.5,$L43-0.5-INT($L43),IF($L43-INT($L43)<=0.5,$L43-0.5-INT($L43)+1,0)))) +BT43/$L43*0.5, IF($J43="Declining Balance",-$BI$38,0)))) -> 0 | BJ43: =IF($L43=0,0, IF($L43<=0.5,BU43, IF(AND($J43="straight line",$L43<1.51),(BT43-((BT43/$L43)*0.5))+BU43/$L43*0.5, IF($J43="straight line", IF((LEFT(BJ$39,4)*1)-INT($L43)<LEFT($BI$39,4)*1,0,((OFFSET(BU43,0,-INT($L43+0.5),1,1))/$L43)*(IF($L43-INT($L43)>0.5,$L43-0.5-INT($L43),IF($L43-INT($L43)<=0.5,$L43-0.5-INT($L43)+1,0)))) +BU43/$L43*0.5 +SUM(OFFSET(BU43,0,MAX(-INT($L43+(0.5-(10^-12))),-BJ$40)+1,1,MIN(INT($L43+(0.5-(10^-12))),BJ$40)-1))*1/$L43, IF($J43="Declining Balance",-$BI$38,0))))) -> 0 | BK43: 0.0765625 | BL43: 0.1703125 | BM43: 0.1921875 | BN43: 0.2015625 | BO43: 0.20625 | BP43: 0.20625 | BQ43: 0.20625 | BR43: 0.20625 | BT43: =+IF($K43="Ongoing",AX43,IF(RIGHT($K43,2)=RIGHT(BT$39,2),SUM($AX43:AX43),0)+IF(RIGHT(BT$39,2)>RIGHT($K43,2),AX43,0)) -> 0 | BU43: =+IF($K43="Ongoing",AY43,IF(RIGHT($K43,2)=RIGHT(BU$39,2),SUM($AX43:AY43),0)+IF(RIGHT(BU$39,2)>RIGHT($K43,2),AY43,0)) -> 0 | BV43: =+IF($K43="Ongoing",AZ43,IF(RIGHT($K43,2)=RIGHT(BV$39,2),SUM($AX43:AZ43),0)+IF(RIGHT(BV$39,2)>RIGHT($K43,2),AZ43,0)) -> 12.25 | BW43: =+IF($K43="Ongoing",BA43,IF(RIGHT($K43,2)=RIGHT(BW$39,2),SUM($AX43:BA43),0)+IF(RIGHT(BW$39,2)>RIGHT($K43,2),BA43,0)) -> 2.75 | BX43: =+IF($K43="Ongoing",BB43,IF(RIGHT($K43,2)=RIGHT(BX$39,2),SUM($AX43:BB43),0)+IF(RIGHT(BX$39,2)>RIGHT($K43,2),BB43,0)) -> 0.75 | BY43: =+IF($K43="Ongoing",BC43,IF(RIGHT($K43,2)=RIGHT(BY$39,2),SUM($AX43:BC43),0)+IF(RIGHT(BY$39,2)>RIGHT($K43,2),BC43,0)) -> 0.75 | BZ43: =+IF($K43="Ongoing",BD43,IF(RIGHT($K43,2)=RIGHT(BZ$39,2),SUM($AX43:BD43),0)+IF(RIGHT(BZ$39,2)>RIGHT($K43,2),BD43,0)) -> 0 | CA43: =+IF($K43="Ongoing",BE43,IF(RIGHT($K43,2)=RIGHT(CA$39,2),SUM($AX43:BE43),0)+IF(RIGHT(CA$39,2)>RIGHT($K43,2),BE43,0)) -> 0 | CB43: =+IF($K43="Ongoing",BF43,IF(RIGHT($K43,2)=RIGHT(CB$39,2),SUM($AX43:BF43),0)+IF(RIGHT(CB$39,2)>RIGHT($K43,2),BF43,0)) -> 0 | CC43: =+IF($K43="Ongoing",BG43,IF(RIGHT($K43,2)=RIGHT(CC$39,2),SUM($AX43:BG43),0)+IF(RIGHT(CC$39,2)>RIGHT($K43,2),BG43,0)) -> 0 | CE43: =+Q43*KeyAssumptionsPriceControl_FO!AC$15 -> 4.8925 | CF43: =+R43*KeyAssumptionsPriceControl_FO!AD$15 -> 5.039275 | CG43: =+S43*KeyAssumptionsPriceControl_FO!AE$15 -> 3.00499925 | CH43: =+T43*KeyAssumptionsPriceControl_FO!AF$15 -> 3.095149228 | CI43: =+U43*KeyAssumptionsPriceControl_FO!AG$15 -> 0.8694555557 | CJ43: =+V43*KeyAssumptionsPriceControl_FO!AH$15 -> 0.8955392224 | CK43: =+W43*KeyAssumptionsPriceControl_FO!AI$15 -> 0 | CL43: =+X43*KeyAssumptionsPriceControl_FO!AJ$15 -> 0 | CM43: =+Y43*KeyAssumptionsPriceControl_FO!AK$15 -> 0 | CN43: =+Z43*KeyAssumptionsPriceControl_FO!AL$15 -> 0 | CP43: 0.030578125 | CQ43: 0.09265171875 | CR43: 0.1429284328 | CS43: 0.1810543608 | CT43: 0.2058331407 | CU43: 0.2168643581 | CV43: 0.2224614782 | CW43: 0.2224614782 | CX43: 0.2224614782 | CY43: 0.2224614782
C44: Wbool STP UV disinfection IDEA tanks | E44: Sewerage | F44: Improvements / Compliance | G44: Treatment | H44: Top 10 Major Projects | J44: Straight line | K44: 2026-27 | L44: 80 | M44: 80 | Q44: 2.8215 | R44: 0.5 | S44: 2.06275 | T44: 0.5 | U44: 0 | V44: 0 | W44: 0 | X44: 0 | Y44: 0 | Z44: 0 | AX44: 2.8215 | AY44: 0.5 | AZ44: 2.06275 | BA44: 0.5 | BB44: 0 | BC44: 0 | BD44: 0 | BE44: 0 | BF44: 0 | BG44: 0 | BI44: 0 | BJ44: 0 | BK44: 0 | BL44: 0.0367765625 | BM44: 0.073553125 | BN44: 0.073553125 | BO44: 0.073553125 | BP44: 0.073553125 | BQ44: 0.073553125 | BR44: 0.073553125 | BT44: =+IF($K44="Ongoing",AX44,IF(RIGHT($K44,2)=RIGHT(BT$39,2),SUM($AX44:AX44),0)+IF(RIGHT(BT$39,2)>RIGHT($K44,2),AX44,0)) -> 0 | BU44: =+IF($K44="Ongoing",AY44,IF(RIGHT($K44,2)=RIGHT(BU$39,2),SUM($AX44:AY44),0)+IF(RIGHT(BU$39,2)>RIGHT($K44,2),AY44,0)) -> 0 | BV44: =+IF($K44="Ongoing",AZ44,IF(RIGHT($K44,2)=RIGHT(BV$39,2),SUM($AX44:AZ44),0)+IF(RIGHT(BV$39,2)>RIGHT($K44,2),AZ44,0)) -> 0 | BW44: =+IF($K44="Ongoing",BA44,IF(RIGHT($K44,2)=RIGHT(BW$39,2),SUM($AX44:BA44),0)+IF(RIGHT(BW$39,2)>RIGHT($K44,2),BA44,0)) -> 5.88425 | BX44: =+IF($K44="Ongoing",BB44,IF(RIGHT($K44,2)=RIGHT(BX$39,2),SUM($AX44:BB44),0)+IF(RIGHT(BX$39,2)>RIGHT($K44,2),BB44,0)) -> 0 | BY44: =+IF($K44="Ongoing",BC44,IF(RIGHT($K44,2)=RIGHT(BY$39,2),SUM($AX44:BC44),0)+IF(RIGHT(BY$39,2)>RIGHT($K44,2),BC44,0)) -> 0 | BZ44: =+IF($K44="Ongoing",BD44,IF(RIGHT($K44,2)=RIGHT(BZ$39,2),SUM($AX44:BD44),0)+IF(RIGHT(BZ$39,2)>RIGHT($K44,2),BD44,0)) -> 0 | CA44: =+IF($K44="Ongoing",BE44,IF(RIGHT($K44,2)=RIGHT(CA$39,2),SUM($AX44:BE44),0)+IF(RIGHT(CA$39,2)>RIGHT($K44,2),BE44,0)) -> 0 | CB44: =+IF($K44="Ongoing",BF44,IF(RIGHT($K44,2)=RIGHT(CB$39,2),SUM($AX44:BF44),0)+IF(RIGHT(CB$39,2)>RIGHT($K44,2),BF44,0)) -> 0 | CC44: =+IF($K44="Ongoing",BG44,IF(RIGHT($K44,2)=RIGHT(CC$39,2),SUM($AX44:BG44),0)+IF(RIGHT(CC$39,2)>RIGHT($K44,2),BG44,0)) -> 0 | CE44: =+Q44*KeyAssumptionsPriceControl_FO!AC$15 -> 2.906145 | CF44: =+R44*KeyAssumptionsPriceControl_FO!AD$15 -> 0.53045 | CG44: =+S44*KeyAssumptionsPriceControl_FO!AE$15 -> 2.254022619 | CH44: =+T44*KeyAssumptionsPriceControl_FO!AF$15 -> 0.562754405 | CI44: =+U44*KeyAssumptionsPriceControl_FO!AG$15 -> 0 | CJ44: =+V44*KeyAssumptionsPriceControl_FO!AH$15 -> 0 | CK44: =+W44*KeyAssumptionsPriceControl_FO!AI$15 -> 0 | CL44: =+X44*KeyAssumptionsPriceControl_FO!AJ$15 -> 0 | CM44: =+Y44*KeyAssumptionsPriceControl_FO!AK$15 -> 0 | CN44: =+Z44*KeyAssumptionsPriceControl_FO!AL$15 -> 0 | CP44: 0.01816340625 | CQ44: 0.039642125 | CR44: 0.05704507887 | CS44: 0.07464993527 | CT44: 0.0781671503 | CU44: 0.0781671503 | CV44: 0.0781671503 | CW44: 0.0781671503 | CX44: 0.0781671503 | CY44: 0.0781671503
C45: Wbool effluent management investigation | E45: Sewerage | F45: Growth | G45: Treatment | H45: Top 10 Major Projects | J45: Straight line | K45: 2027-28 | L45: 80 | M45: 80 | Q45: 1.06 | R45: 1.34 | S45: 0.96 | T45: 1.56 | U45: 0.54 | V45: 0 | W45: 0 | X45: 0 | Y45: 0 | Z45: 0 | AX45: 1.06 | AY45: 1.34 | AZ45: 0.96 | BA45: 1.56 | BB45: 0.54 | BC45: 0 | BD45: 0 | BE45: 0 | BF45: 0 | BG45: 0 | BI45: 0 | BJ45: 0 | BK45: 0 | BL45: 0 | BM45: 0.034125 | BN45: 0.06825 | BO45: 0.06825 | BP45: 0.06825 | BQ45: 0.06825 | BR45: 0.06825 | BT45: =+IF($K45="Ongoing",AX45,IF(RIGHT($K45,2)=RIGHT(BT$39,2),SUM($AX45:AX45),0)+IF(RIGHT(BT$39,2)>RIGHT($K45,2),AX45,0)) -> 0 | BU45: =+IF($K45="Ongoing",AY45,IF(RIGHT($K45,2)=RIGHT(BU$39,2),SUM($AX45:AY45),0)+IF(RIGHT(BU$39,2)>RIGHT($K45,2),AY45,0)) -> 0 | BV45: =+IF($K45="Ongoing",AZ45,IF(RIGHT($K45,2)=RIGHT(BV$39,2),SUM($AX45:AZ45),0)+IF(RIGHT(BV$39,2)>RIGHT($K45,2),AZ45,0)) -> 0 | BW45: =+IF($K45="Ongoing",BA45,IF(RIGHT($K45,2)=RIGHT(BW$39,2),SUM($AX45:BA45),0)+IF(RIGHT(BW$39,2)>RIGHT($K45,2),BA45,0)) -> 0 | BX45: =+IF($K45="Ongoing",BB45,IF(RIGHT($K45,2)=RIGHT(BX$39,2),SUM($AX45:BB45),0)+IF(RIGHT(BX$39,2)>RIGHT($K45,2),BB45,0)) -> 5.46 | BY45: =+IF($K45="Ongoing",BC45,IF(RIGHT($K45,2)=RIGHT(BY$39,2),SUM($AX45:BC45),0)+IF(RIGHT(BY$39,2)>RIGHT($K45,2),BC45,0)) -> 0 | BZ45: =+IF($K45="Ongoing",BD45,IF(RIGHT($K45,2)=RIGHT(BZ$39,2),SUM($AX45:BD45),0)+IF(RIGHT(BZ$39,2)>RIGHT($K45,2),BD45,0)) -> 0 | CA45: =+IF($K45="Ongoing",BE45,IF(RIGHT($K45,2)=RIGHT(CA$39,2),SUM($AX45:BE45),0)+IF(RIGHT(CA$39,2)>RIGHT($K45,2),BE45,0)) -> 0 | CB45: =+IF($K45="Ongoing",BF45,IF(RIGHT($K45,2)=RIGHT(CB$39,2),SUM($AX45:BF45),0)+IF(RIGHT(CB$39,2)>RIGHT($K45,2),BF45,0)) -> 0 | CC45: =+IF($K45="Ongoing",BG45,IF(RIGHT($K45,2)=RIGHT(CC$39,2),SUM($AX45:BG45),0)+IF(RIGHT(CC$39,2)>RIGHT($K45,2),BG45,0)) -> 0 | CE45: =+Q45*KeyAssumptionsPriceControl_FO!AC$15 -> 1.0918 | CF45: =+R45*KeyAssumptionsPriceControl_FO!AD$15 -> 1.421606 | CG45: =+S45*KeyAssumptionsPriceControl_FO!AE$15 -> 1.04901792 | CH45: =+T45*KeyAssumptionsPriceControl_FO!AF$15 -> 1.755793744 | CI45: =+U45*KeyAssumptionsPriceControl_FO!AG$15 -> 0.6260080001 | CJ45: =+V45*KeyAssumptionsPriceControl_FO!AH$15 -> 0 | CK45: =+W45*KeyAssumptionsPriceControl_FO!AI$15 -> 0 | CL45: =+X45*KeyAssumptionsPriceControl_FO!AJ$15 -> 0 | CM45: =+Y45*KeyAssumptionsPriceControl_FO!AK$15 -> 0 | CN45: =+Z45*KeyAssumptionsPriceControl_FO!AL$15 -> 0 | CP45: 0.00682375 | CQ45: 0.0225325375 | CR45: 0.037973937 | CS45: 0.0555040099 | CT45: 0.0703902708 | CU45: 0.0743028208 | CV45: 0.0743028208 | CW45: 0.0743028208 | CX45: 0.0743028208 | CY45: 0.0743028208
C46: CX Plus - Billing and CRM System | E46: Water | F46: Improvements / Compliance | G46: Corporate | H46: Top 10 Major Projects | J46: Straight line | K46: 2024-25 | L46: 10 | M46: 10 | Q46: 3.439882 | R46: 0 | S46: 0 | T46: 0 | U46: 0 | V46: 0 | W46: 0 | X46: 0 | Y46: 0 | Z46: 0 | AX46: 3.439882 | AY46: 0 | AZ46: 0 | BA46: 0 | BB46: 0 | BC46: 0 | BD46: 0 | BE46: 0 | BF46: 0 | BG46: 0 | BI46: 0 | BJ46: 0.1719941 | BK46: 0.3439882 | BL46: 0.3439882 | BM46: 0.3439882 | BN46: 0.3439882 | BO46: 0.3439882 | BP46: 0.3439882 | BQ46: 0.3439882 | BR46: 0.3439882 | BT46: =+IF($K46="Ongoing",AX46,IF(RIGHT($K46,2)=RIGHT(BT$39,2),SUM($AX46:AX46),0)+IF(RIGHT(BT$39,2)>RIGHT($K46,2),AX46,0)) -> 0 | BU46: =+IF($K46="Ongoing",AY46,IF(RIGHT($K46,2)=RIGHT(BU$39,2),SUM($AX46:AY46),0)+IF(RIGHT(BU$39,2)>RIGHT($K46,2),AY46,0)) -> 3.439882 | BV46: =+IF($K46="Ongoing",AZ46,IF(RIGHT($K46,2)=RIGHT(BV$39,2),SUM($AX46:AZ46),0)+IF(RIGHT(BV$39,2)>RIGHT($K46,2),AZ46,0)) -> 0 | BW46: =+IF($K46="Ongoing",BA46,IF(RIGHT($K46,2)=RIGHT(BW$39,2),SUM($AX46:BA46),0)+IF(RIGHT(BW$39,2)>RIGHT($K46,2),BA46,0)) -> 0 | BX46: =+IF($K46="Ongoing",BB46,IF(RIGHT($K46,2)=RIGHT(BX$39,2),SUM($AX46:BB46),0)+IF(RIGHT(BX$39,2)>RIGHT($K46,2),BB46,0)) -> 0 | BY46: =+IF($K46="Ongoing",BC46,IF(RIGHT($K46,2)=RIGHT(BY$39,2),SUM($AX46:BC46),0)+IF(RIGHT(BY$39,2)>RIGHT($K46,2),BC46,0)) -> 0 | BZ46: =+IF($K46="Ongoing",BD46,IF(RIGHT($K46,2)=RIGHT(BZ$39,2),SUM($AX46:BD46),0)+IF(RIGHT(BZ$39,2)>RIGHT($K46,2),BD46,0)) -> 0 | CA46: =+IF($K46="Ongoing",BE46,IF(RIGHT($K46,2)=RIGHT(CA$39,2),SUM($AX46:BE46),0)+IF(RIGHT(CA$39,2)>RIGHT($K46,2),BE46,0)) -> 0 | CB46: =+IF($K46="Ongoing",BF46,IF(RIGHT($K46,2)=RIGHT(CB$39,2),SUM($AX46:BF46),0)+IF(RIGHT(CB$39,2)>RIGHT($K46,2),BF46,0)) -> 0 | CC46: =+IF($K46="Ongoing",BG46,IF(RIGHT($K46,2)=RIGHT(CC$39,2),SUM($AX46:BG46),0)+IF(RIGHT(CC$39,2)>RIGHT($K46,2),BG46,0)) -> 0 | CE46: =+Q46*KeyAssumptionsPriceControl_FO!AC$15 -> 3.54307846 | CF46: =+R46*KeyAssumptionsPriceControl_FO!AD$15 -> 0 | CG46: =+S46*KeyAssumptionsPriceControl_FO!AE$15 -> 0 | CH46: =+T46*KeyAssumptionsPriceControl_FO!AF$15 -> 0 | CI46: =+U46*KeyAssumptionsPriceControl_FO!AG$15 -> 0 | CJ46: =+V46*KeyAssumptionsPriceControl_FO!AH$15 -> 0 | CK46: =+W46*KeyAssumptionsPriceControl_FO!AI$15 -> 0 | CL46: =+X46*KeyAssumptionsPriceControl_FO!AJ$15 -> 0 | CM46: =+Y46*KeyAssumptionsPriceControl_FO!AK$15 -> 0 | CN46: =+Z46*KeyAssumptionsPriceControl_FO!AL$15 -> 0 | CP46: 0.177153923 | CQ46: 0.354307846 | CR46: 0.354307846 | CS46: 0.354307846 | CT46: 0.354307846 | CU46: 0.354307846 | CV46: 0.354307846 | CW46: 0.354307846 | CX46: 0.354307846 | CY46: 0.354307846
C47: Hopkins Point road water supply upgrade | E47: Water | F47: Growth | G47: Pipelines/network | H47: Top 10 Major Projects | J47: Straight line | K47: 2024-25 | L47: 100 | M47: 100 | Q47: 0.944422 | R47: 1.698181 | S47: 0.378659 | T47: 0 | U47: 0 | V47: 0 | W47: 0 | X47: 0 | Y47: 0 | Z47: 0 | AX47: 0.944422 | AY47: 1.698181 | AZ47: 0.378659 | BA47: 0 | BB47: 0 | BC47: 0 | BD47: 0 | BE47: 0 | BF47: 0 | BG47: 0 | BI47: 0 | BJ47: 0.013213015 | BK47: 0.028319325 | BL47: 0.03021262 | BM47: 0.03021262 | BN47: 0.03021262 | BO47: 0.03021262 | BP47: 0.03021262 | BQ47: 0.03021262 | BR47: 0.03021262 | BT47: =+IF($K47="Ongoing",AX47,IF(RIGHT($K47,2)=RIGHT(BT$39,2),SUM($AX47:AX47),0)+IF(RIGHT(BT$39,2)>RIGHT($K47,2),AX47,0)) -> 0 | BU47: =+IF($K47="Ongoing",AY47,IF(RIGHT($K47,2)=RIGHT(BU$39,2),SUM($AX47:AY47),0)+IF(RIGHT(BU$39,2)>RIGHT($K47,2),AY47,0)) -> 2.642603 | BV47: =+IF($K47="Ongoing",AZ47,IF(RIGHT($K47,2)=RIGHT(BV$39,2),SUM($AX47:AZ47),0)+IF(RIGHT(BV$39,2)>RIGHT($K47,2),AZ47,0)) -> 0.378659 | BW47: =+IF($K47="Ongoing",BA47,IF(RIGHT($K47,2)=RIGHT(BW$39,2),SUM($AX47:BA47),0)+IF(RIGHT(BW$39,2)>RIGHT($K47,2),BA47,0)) -> 0 | BX47: =+IF($K47="Ongoing",BB47,IF(RIGHT($K47,2)=RIGHT(BX$39,2),SUM($AX47:BB47),0)+IF(RIGHT(BX$39,2)>RIGHT($K47,2),BB47,0)) -> 0 | BY47: =+IF($K47="Ongoing",BC47,IF(RIGHT($K47,2)=RIGHT(BY$39,2),SUM($AX47:BC47),0)+IF(RIGHT(BY$39,2)>RIGHT($K47,2),BC47,0)) -> 0 | BZ47: =+IF($K47="Ongoing",BD47,IF(RIGHT($K47,2)=RIGHT(BZ$39,2),SUM($AX47:BD47),0)+IF(RIGHT(BZ$39,2)>RIGHT($K47,2),BD47,0)) -> 0 | CA47: =+IF($K47="Ongoing",BE47,IF(RIGHT($K47,2)=RIGHT(CA$39,2),SUM($AX47:BE47),0)+IF(RIGHT(CA$39,2)>RIGHT($K47,2),BE47,0)) -> 0 | CB47: =+IF($K47="Ongoing",BF47,IF(RIGHT($K47,2)=RIGHT(CB$39,2),SUM($AX47:BF47),0)+IF(RIGHT(CB$39,2)>RIGHT($K47,2),BF47,0)) -> 0 | CC47: =+IF($K47="Ongoing",BG47,IF(RIGHT($K47,2)=RIGHT(CC$39,2),SUM($AX47:BG47),0)+IF(RIGHT(CC$39,2)>RIGHT($K47,2),BG47,0)) -> 0 | CE47: =+Q47*KeyAssumptionsPriceControl_FO!AC$15 -> 0.97275466 | CF47: =+R47*KeyAssumptionsPriceControl_FO!AD$15 -> 1.801600223 | CG47: =+S47*KeyAssumptionsPriceControl_FO!AE$15 -> 0.4137709131 | CH47: =+T47*KeyAssumptionsPriceControl_FO!AF$15 -> 0 | CI47: =+U47*KeyAssumptionsPriceControl_FO!AG$15 -> 0 | CJ47: =+V47*KeyAssumptionsPriceControl_FO!AH$15 -> 0 | CK47: =+W47*KeyAssumptionsPriceControl_FO!AI$15 -> 0 | CL47: =+X47*KeyAssumptionsPriceControl_FO!AJ$15 -> 0 | CM47: =+Y47*KeyAssumptionsPriceControl_FO!AK$15 -> 0 | CN47: =+Z47*KeyAssumptionsPriceControl_FO!AL$15 -> 0 | CP47: 0.0048637733 | CQ47: 0.01873554771 | CR47: 0.02981240339 | CS47: 0.03188125796 | CT47: 0.03188125796 | CU47: 0.03188125796 | CV47: 0.03188125796 | CW47: 0.03188125796 | CX47: 0.03188125796 | CY47: 0.03188125796
C48: Operations Platform - Conversion of Citect to Clear SCADA | E48: Water | F48: Growth | G48: Pipelines/network | H48: Top 10 Major Projects | J48: Straight line | K48: Ongoing | L48: 10 | M48: 10 | Q48: 0.54 | R48: 0.54 | S48: 0.54 | T48: 0.18 | U48: 0.18 | V48: 0 | W48: 0 | X48: 0 | Y48: 0 | Z48: 0 | AX48: 0.54 | AY48: 0.54 | AZ48: 0.54 | BA48: 0.18 | BB48: 0.18 | BC48: 0 | BD48: 0 | BE48: 0 | BF48: 0 | BG48: 0 | BI48: 0.027 | BJ48: 0.081 | BK48: 0.135 | BL48: 0.171 | BM48: 0.189 | BN48: 0.198 | BO48: 0.198 | BP48: 0.198 | BQ48: 0.198 | BR48: 0.198 | BT48: =+IF($K48="Ongoing",AX48,IF(RIGHT($K48,2)=RIGHT(BT$39,2),SUM($AX48:AX48),0)+IF(RIGHT(BT$39,2)>RIGHT($K48,2),AX48,0)) -> 0.54 | BU48: =+IF($K48="Ongoing",AY48,IF(RIGHT($K48,2)=RIGHT(BU$39,2),SUM($AX48:AY48),0)+IF(RIGHT(BU$39,2)>RIGHT($K48,2),AY48,0)) -> 0.54 | BV48: =+IF($K48="Ongoing",AZ48,IF(RIGHT($K48,2)=RIGHT(BV$39,2),SUM($AX48:AZ48),0)+IF(RIGHT(BV$39,2)>RIGHT($K48,2),AZ48,0)) -> 0.54 | BW48: =+IF($K48="Ongoing",BA48,IF(RIGHT($K48,2)=RIGHT(BW$39,2),SUM($AX48:BA48),0)+IF(RIGHT(BW$39,2)>RIGHT($K48,2),BA48,0)) -> 0.18 | BX48: =+IF($K48="Ongoing",BB48,IF(RIGHT($K48,2)=RIGHT(BX$39,2),SUM($AX48:BB48),0)+IF(RIGHT(BX$39,2)>RIGHT($K48,2),BB48,0)) -> 0.18 | BY48: =+IF($K48="Ongoing",BC48,IF(RIGHT($K48,2)=RIGHT(BY$39,2),SUM($AX48:BC48),0)+IF(RIGHT(BY$39,2)>RIGHT($K48,2),BC48,0)) -> 0 | BZ48: =+IF($K48="Ongoing",BD48,IF(RIGHT($K48,2)=RIGHT(BZ$39,2),SUM($AX48:BD48),0)+IF(RIGHT(BZ$39,2)>RIGHT($K48,2),BD48,0)) -> 0 | CA48: =+IF($K48="Ongoing",BE48,IF(RIGHT($K48,2)=RIGHT(CA$39,2),SUM($AX48:BE48),0)+IF(RIGHT(CA$39,2)>RIGHT($K48,2),BE48,0)) -> 0 | CB48: =+IF($K48="Ongoing",BF48,IF(RIGHT($K48,2)=RIGHT(CB$39,2),SUM($AX48:BF48),0)+IF(RIGHT(CB$39,2)>RIGHT($K48,2),BF48,0)) -> 0 | CC48: =+IF($K48="Ongoing",BG48,IF(RIGHT($K48,2)=RIGHT(CC$39,2),SUM($AX48:BG48),0)+IF(RIGHT(CC$39,2)>RIGHT($K48,2),BG48,0)) -> 0 | CE48: =+Q48*KeyAssumptionsPriceControl_FO!AC$15 -> 0.5562 | CF48: =+R48*KeyAssumptionsPriceControl_FO!AD$15 -> 0.572886 | CG48: =+S48*KeyAssumptionsPriceControl_FO!AE$15 -> 0.59007258 | CH48: =+T48*KeyAssumptionsPriceControl_FO!AF$15 -> 0.2025915858 | CI48: =+U48*KeyAssumptionsPriceControl_FO!AG$15 -> 0.2086693334 | CJ48: =+V48*KeyAssumptionsPriceControl_FO!AH$15 -> 0 | CK48: =+W48*KeyAssumptionsPriceControl_FO!AI$15 -> 0 | CL48: =+X48*KeyAssumptionsPriceControl_FO!AJ$15 -> 0 | CM48: =+Y48*KeyAssumptionsPriceControl_FO!AK$15 -> 0 | CN48: =+Z48*KeyAssumptionsPriceControl_FO!AL$15 -> 0 | CP48: 0.02781 | CQ48: 0.0842643 | CR48: 0.142412229 | CS48: 0.1820454373 | CT48: 0.2026084832 | CU48: 0.2130419499 | CV48: 0.2130419499 | CW48: 0.2130419499 | CX48: 0.2130419499 | CY48: 0.2130419499
C49: Camperdown WTP - UV System | E49: Water | F49: Improvements / Compliance | G49: Corporate | H49: Top 10 Major Projects | J49: Straight line | K49: Ongoing | L49: 40 | M49: 40 | Q49: 0 | R49: 0 | S49: 0.25 | T49: 1.524425 | U49: 0 | V49: 0 | W49: 0 | X49: 0 | Y49: 0 | Z49: 0 | AX49: 0 | AY49: 0 | AZ49: 0.25 | BA49: 1.524425 | BB49: 0 | BC49: 0 | BD49: 0 | BE49: 0 | BF49: 0 | BG49: 0 | BI49: 0 | BJ49: 0 | BK49: 0.003125 | BL49: 0.0253053125 | BM49: 0.044360625 | BN49: 0.044360625 | BO49: 0.044360625 | BP49: 0.044360625 | BQ49: 0.044360625 | BR49: 0.044360625 | BT49: =+IF($K49="Ongoing",AX49,IF(RIGHT($K49,2)=RIGHT(BT$39,2),SUM($AX49:AX49),0)+IF(RIGHT(BT$39,2)>RIGHT($K49,2),AX49,0)) -> 0 | BU49: =+IF($K49="Ongoing",AY49,IF(RIGHT($K49,2)=RIGHT(BU$39,2),SUM($AX49:AY49),0)+IF(RIGHT(BU$39,2)>RIGHT($K49,2),AY49,0)) -> 0 | BV49: =+IF($K49="Ongoing",AZ49,IF(RIGHT($K49,2)=RIGHT(BV$39,2),SUM($AX49:AZ49),0)+IF(RIGHT(BV$39,2)>RIGHT($K49,2),AZ49,0)) -> 0.25 | BW49: =+IF($K49="Ongoing",BA49,IF(RIGHT($K49,2)=RIGHT(BW$39,2),SUM($AX49:BA49),0)+IF(RIGHT(BW$39,2)>RIGHT($K49,2),BA49,0)) -> 1.524425 | BX49: =+IF($K49="Ongoing",BB49,IF(RIGHT($K49,2)=RIGHT(BX$39,2),SUM($AX49:BB49),0)+IF(RIGHT(BX$39,2)>RIGHT($K49,2),BB49,0)) -> 0 | BY49: =+IF($K49="Ongoing",BC49,IF(RIGHT($K49,2)=RIGHT(BY$39,2),SUM($AX49:BC49),0)+IF(RIGHT(BY$39,2)>RIGHT($K49,2),BC49,0)) -> 0 | BZ49: =+IF($K49="Ongoing",BD49,IF(RIGHT($K49,2)=RIGHT(BZ$39,2),SUM($AX49:BD49),0)+IF(RIGHT(BZ$39,2)>RIGHT($K49,2),BD49,0)) -> 0 | CA49: =+IF($K49="Ongoing",BE49,IF(RIGHT($K49,2)=RIGHT(CA$39,2),SUM($AX49:BE49),0)+IF(RIGHT(CA$39,2)>RIGHT($K49,2),BE49,0)) -> 0 | CB49: =+IF($K49="Ongoing",BF49,IF(RIGHT($K49,2)=RIGHT(CB$39,2),SUM($AX49:BF49),0)+IF(RIGHT(CB$39,2)>RIGHT($K49,2),BF49,0)) -> 0 | CC49: =+IF($K49="Ongoing",BG49,IF(RIGHT($K49,2)=RIGHT(CC$39,2),SUM($AX49:BG49),0)+IF(RIGHT(CC$39,2)>RIGHT($K49,2),BG49,0)) -> 0 | CE49: =+Q49*KeyAssumptionsPriceControl_FO!AC$15 -> 0 | CF49: =+R49*KeyAssumptionsPriceControl_FO!AD$15 -> 0 | CG49: =+S49*KeyAssumptionsPriceControl_FO!AE$15 -> 0.27318175 | CH49: =+T49*KeyAssumptionsPriceControl_FO!AF$15 -> 1.715753768 | CI49: =+U49*KeyAssumptionsPriceControl_FO!AG$15 -> 0 | CJ49: =+V49*KeyAssumptionsPriceControl_FO!AH$15 -> 0 | CK49: =+W49*KeyAssumptionsPriceControl_FO!AI$15 -> 0 | CL49: =+X49*KeyAssumptionsPriceControl_FO!AJ$15 -> 0 | CM49: =+Y49*KeyAssumptionsPriceControl_FO!AK$15 -> 0 | CN49: =+Z49*KeyAssumptionsPriceControl_FO!AL$15 -> 0 | CP49: 0 | CQ49: 0 | CR49: 0.003414771875 | CS49: 0.02827646585 | CT49: 0.04972338794 | CU49: 0.04972338794 | CV49: 0.04972338794 | CW49: 0.04972338794 | CX49: 0.04972338794 | CY49: 0.04972338794
C50: Data Center - Servers, storage and backup | E50: Water | F50: Improvements / Compliance | G50: Treatment | H50: Top 10 Major Projects | J50: Straight line | K50: 2026-27 | L50: 5 | M50: 5 | Q50: 0.19152 | R50: 0.98952 | S50: 0.0798 | T50: 0.0798 | U50: 0.2394 | V50: 0 | W50: 0 | X50: 0 | Y50: 0 | Z50: 0 | AX50: 0.19152 | AY50: 0.98952 | AZ50: 0.0798 | BA50: 0.0798 | BB50: 0.2394 | BC50: 0 | BD50: 0 | BE50: 0 | BF50: 0 | BG50: 0 | BI50: 0 | BJ50: 0 | BK50: 0 | BL50: 0.134064 | BM50: 0.292068 | BN50: 0.316008 | BO50: 0.316008 | BP50: 0.316008 | BQ50: 0.181944 | BR50: 0.02394 | BT50: =+IF($K50="Ongoing",AX50,IF(RIGHT($K50,2)=RIGHT(BT$39,2),SUM($AX50:AX50),0)+IF(RIGHT(BT$39,2)>RIGHT($K50,2),AX50,0)) -> 0 | BU50: =+IF($K50="Ongoing",AY50,IF(RIGHT($K50,2)=RIGHT(BU$39,2),SUM($AX50:AY50),0)+IF(RIGHT(BU$39,2)>RIGHT($K50,2),AY50,0)) -> 0 | BV50: =+IF($K50="Ongoing",AZ50,IF(RIGHT($K50,2)=RIGHT(BV$39,2),SUM($AX50:AZ50),0)+IF(RIGHT(BV$39,2)>RIGHT($K50,2),AZ50,0)) -> 0 | BW50: =+IF($K50="Ongoing",BA50,IF(RIGHT($K50,2)=RIGHT(BW$39,2),SUM($AX50:BA50),0)+IF(RIGHT(BW$39,2)>RIGHT($K50,2),BA50,0)) -> 1.34064 | BX50: =+IF($K50="Ongoing",BB50,IF(RIGHT($K50,2)=RIGHT(BX$39,2),SUM($AX50:BB50),0)+IF(RIGHT(BX$39,2)>RIGHT($K50,2),BB50,0)) -> 0.2394 | BY50: =+IF($K50="Ongoing",BC50,IF(RIGHT($K50,2)=RIGHT(BY$39,2),SUM($AX50:BC50),0)+IF(RIGHT(BY$39,2)>RIGHT($K50,2),BC50,0)) -> 0 | BZ50: =+IF($K50="Ongoing",BD50,IF(RIGHT($K50,2)=RIGHT(BZ$39,2),SUM($AX50:BD50),0)+IF(RIGHT(BZ$39,2)>RIGHT($K50,2),BD50,0)) -> 0 | CA50: =+IF($K50="Ongoing",BE50,IF(RIGHT($K50,2)=RIGHT(CA$39,2),SUM($AX50:BE50),0)+IF(RIGHT(CA$39,2)>RIGHT($K50,2),BE50,0)) -> 0 | CB50: =+IF($K50="Ongoing",BF50,IF(RIGHT($K50,2)=RIGHT(CB$39,2),SUM($AX50:BF50),0)+IF(RIGHT(CB$39,2)>RIGHT($K50,2),BF50,0)) -> 0 | CC50: =+IF($K50="Ongoing",BG50,IF(RIGHT($K50,2)=RIGHT(CC$39,2),SUM($AX50:BG50),0)+IF(RIGHT(CC$39,2)>RIGHT($K50,2),BG50,0)) -> 0 | CE50: =+Q50*KeyAssumptionsPriceControl_FO!AC$15 -> 0.1972656 | CF50: =+R50*KeyAssumptionsPriceControl_FO!AD$15 -> 1.049781768 | CG50: =+S50*KeyAssumptionsPriceControl_FO!AE$15 -> 0.0871996146 | CH50: =+T50*KeyAssumptionsPriceControl_FO!AF$15 -> 0.08981560304 | CI50: =+U50*KeyAssumptionsPriceControl_FO!AG$15 -> 0.2775302134 | CJ50: =+V50*KeyAssumptionsPriceControl_FO!AH$15 -> 0 | CK50: =+W50*KeyAssumptionsPriceControl_FO!AI$15 -> 0 | CL50: =+X50*KeyAssumptionsPriceControl_FO!AJ$15 -> 0 | CM50: =+Y50*KeyAssumptionsPriceControl_FO!AK$15 -> 0 | CN50: =+Z50*KeyAssumptionsPriceControl_FO!AL$15 -> 0 | CP50: 0.01972656 | CQ50: 0.1444312968 | CR50: 0.2581294351 | CS50: 0.2758309568 | CT50: 0.3125655385 | CU50: 0.3205919998 | CV50: 0.195887263 | CW50: 0.08218912475 | CX50: 0.06448760298 | CY50: 0.02775302134
C51: Camperdown IWRP Lagoon No.2 - ANCOLD related dam safety work | E51: Water | F51: Improvements / Compliance | G51: Corporate | H51: Top 10 Major Projects | J51: Straight line | K51: Ongoing | L51: 100 | M51: 100 | Q51: 0 | R51: 0.1785 | S51: 0.65926374 | T51: 0.65926374 | U51: 0 | V51: 0 | W51: 0 | X51: 0 | Y51: 0 | Z51: 0 | AX51: 0 | AY51: 0.1785 | AZ51: 0.65926374 | BA51: 0.65926374 | BB51: 0 | BC51: 0 | BD51: 0 | BE51: 0 | BF51: 0 | BG51: 0 | BI51: 0 | BJ51: 0.0008925 | BK51: 0.0050813187 | BL51: 0.0116739561 | BM51: 0.0149702748 | BN51: 0.0149702748 | BO51: 0.0149702748 | BP51: 0.0149702748 | BQ51: 0.0149702748 | BR51: 0.0149702748 | BT51: =+IF($K51="Ongoing",AX51,IF(RIGHT($K51,2)=RIGHT(BT$39,2),SUM($AX51:AX51),0)+IF(RIGHT(BT$39,2)>RIGHT($K51,2),AX51,0)) -> 0 | BU51: =+IF($K51="Ongoing",AY51,IF(RIGHT($K51,2)=RIGHT(BU$39,2),SUM($AX51:AY51),0)+IF(RIGHT(BU$39,2)>RIGHT($K51,2),AY51,0)) -> 0.1785 | BV51: =+IF($K51="Ongoing",AZ51,IF(RIGHT($K51,2)=RIGHT(BV$39,2),SUM($AX51:AZ51),0)+IF(RIGHT(BV$39,2)>RIGHT($K51,2),AZ51,0)) -> 0.65926374 | BW51: =+IF($K51="Ongoing",BA51,IF(RIGHT($K51,2)=RIGHT(BW$39,2),SUM($AX51:BA51),0)+IF(RIGHT(BW$39,2)>RIGHT($K51,2),BA51,0)) -> 0.65926374 | BX51: =+IF($K51="Ongoing",BB51,IF(RIGHT($K51,2)=RIGHT(BX$39,2),SUM($AX51:BB51),0)+IF(RIGHT(BX$39,2)>RIGHT($K51,2),BB51,0)) -> 0 | BY51: =+IF($K51="Ongoing",BC51,IF(RIGHT($K51,2)=RIGHT(BY$39,2),SUM($AX51:BC51),0)+IF(RIGHT(BY$39,2)>RIGHT($K51,2),BC51,0)) -> 0 | BZ51: =+IF($K51="Ongoing",BD51,IF(RIGHT($K51,2)=RIGHT(BZ$39,2),SUM($AX51:BD51),0)+IF(RIGHT(BZ$39,2)>RIGHT($K51,2),BD51,0)) -> 0 | CA51: =+IF($K51="Ongoing",BE51,IF(RIGHT($K51,2)=RIGHT(CA$39,2),SUM($AX51:BE51),0)+IF(RIGHT(CA$39,2)>RIGHT($K51,2),BE51,0)) -> 0 | CB51: =+IF($K51="Ongoing",BF51,IF(RIGHT($K51,2)=RIGHT(CB$39,2),SUM($AX51:BF51),0)+IF(RIGHT(CB$39,2)>RIGHT($K51,2),BF51,0)) -> 0 | CC51: =+IF($K51="Ongoing",BG51,IF(RIGHT($K51,2)=RIGHT(CC$39,2),SUM($AX51:BG51),0)+IF(RIGHT(CC$39,2)>RIGHT($K51,2),BG51,0)) -> 0 | CE51: =+Q51*KeyAssumptionsPriceControl_FO!AC$15 -> 0 | CF51: =+R51*KeyAssumptionsPriceControl_FO!AD$15 -> 0.18937065 | CG51: =+S51*KeyAssumptionsPriceControl_FO!AE$15 -> 0.7203952888 | CH51: =+T51*KeyAssumptionsPriceControl_FO!AF$15 -> 0.7420071475 | CI51: =+U51*KeyAssumptionsPriceControl_FO!AG$15 -> 0 | CJ51: =+V51*KeyAssumptionsPriceControl_FO!AH$15 -> 0 | CK51: =+W51*KeyAssumptionsPriceControl_FO!AI$15 -> 0 | CL51: =+X51*KeyAssumptionsPriceControl_FO!AJ$15 -> 0 | CM51: =+Y51*KeyAssumptionsPriceControl_FO!AK$15 -> 0 | CN51: =+Z51*KeyAssumptionsPriceControl_FO!AL$15 -> 0 | CP51: 0 | CQ51: 0.00094685325 | CR51: 0.005495682944 | CS51: 0.01280769513 | CT51: 0.01651773086 | CU51: 0.01651773086 | CV51: 0.01651773086 | CW51: 0.01651773086 | CX51: 0.01651773086 | CY51: 0.01651773086
C53: Bores | E53: Water | F53: Renewals | G53: Headworks | H53: Capital Programs / Allocation | J53: Straight line | K53: Ongoing | L53: 40 | M53: 40 | Q53: 0 | R53: 0 | S53: 0 | T53: 0 | U53: 0 | V53: 0.2005 | W53: 0.45 | X53: 0.8150375 | Y53: 0.0150375 | Z53: 0.0150375 | AX53: =+Q53-AB53-AM53 -> 0 | AY53: 0 | AZ53: 0 | BA53: 0 | BB53: 0 | BC53: 0.2005 | BD53: 0.45 | BE53: 0.8150375 | BF53: 0.0150375 | BG53: 0.0150375 | BI53: =IF($L53=0,0, IF($L53<=0.5,BT53, IF($J53="straight line", IF((LEFT(BI$39,4)*1)-INT($L53)<LEFT($BI$39,4)*1,0,((OFFSET(BT53,0,-INT($L53+0.5),1,1))/$L53)*(IF($L53-INT($L53)>0.5,$L53-0.5-INT($L53),IF($L53-INT($L53)<=0.5,$L53-0.5-INT($L53)+1,0)))) +BT53/$L53*0.5, IF($J53="Declining Balance",-$BI$38,0)))) -> 0 | BJ53: =IF($L53=0,0, IF($L53<=0.5,BU53, IF(AND($J53="straight line",$L53<1.51),(BT53-((BT53/$L53)*0.5))+BU53/$L53*0.5, IF($J53="straight line", IF((LEFT(BJ$39,4)*1)-INT($L53)<LEFT($BI$39,4)*1,0,((OFFSET(BU53,0,-INT($L53+0.5),1,1))/$L53)*(IF($L53-INT($L53)>0.5,$L53-0.5-INT($L53),IF($L53-INT($L53)<=0.5,$L53-0.5-INT($L53)+1,0)))) +BU53/$L53*0.5 +SUM(OFFSET(BU53,0,MAX(-INT($L53+(0.5-(10^-12))),-BJ$40)+1,1,MIN(INT($L53+(0.5-(10^-12))),BJ$40)-1))*1/$L53, IF($J53="Declining Balance",-$BI$38,0))))) -> 0 | BK53: =IF($L53=0,0, IF($L53<=0.5,BV53, IF(AND($J53="straight line",$L53<1.51),(BU53-((BU53/$L53)*0.5))+BV53/$L53*0.5, IF($J53="straight line", IF((LEFT(BK$39,4)*1)-INT($L53)<LEFT($BI$39,4)*1,0,((OFFSET(BV53,0,-INT($L53+0.5),1,1))/$L53)*(IF($L53-INT($L53)>0.5,$L53-0.5-INT($L53),IF($L53-INT($L53)<=0.5,$L53-0.5-INT($L53)+1,0)))) +BV53/$L53*0.5 +SUM(OFFSET(BV53,0,MAX(-INT($L53+(0.5-(10^-12))),-BK$40)+1,1,MIN(INT($L53+(0.5-(10^-12))),BK$40)-1))*1/$L53, IF($J53="Declining Balance",-$BI$38,0))))) -> 0 | BL53: =IF($L53=0,0, IF($L53<=0.5,BW53, IF(AND($J53="straight line",$L53<1.51),(BV53-((BV53/$L53)*0.5))+BW53/$L53*0.5, IF($J53="straight line", IF((LEFT(BL$39,4)*1)-INT($L53)<LEFT($BI$39,4)*1,0,((OFFSET(BW53,0,-INT($L53+0.5),1,1))/$L53)*(IF($L53-INT($L53)>0.5,$L53-0.5-INT($L53),IF($L53-INT($L53)<=0.5,$L53-0.5-INT($L53)+1,0)))) +BW53/$L53*0.5 +SUM(OFFSET(BW53,0,MAX(-INT($L53+(0.5-(10^-12))),-BL$40)+1,1,MIN(INT($L53+(0.5-(10^-12))),BL$40)-1))*1/$L53, IF($J53="Declining Balance",-$BI$38,0))))) -> 0 | BM53: =IF($L53=0,0, IF($L53<=0.5,BX53, IF(AND($J53="straight line",$L53<1.51),(BW53-((BW53/$L53)*0.5))+BX53/$L53*0.5, IF($J53="straight line", IF((LEFT(BM$39,4)*1)-INT($L53)<LEFT($BI$39,4)*1,0,((OFFSET(BX53,0,-INT($L53+0.5),1,1))/$L53)*(IF($L53-INT($L53)>0.5,$L53-0.5-INT($L53),IF($L53-INT($L53)<=0.5,$L53-0.5-INT($L53)+1,0)))) +BX53/$L53*0.5 +SUM(OFFSET(BX53,0,MAX(-INT($L53+(0.5-(10^-12))),-BM$40)+1,1,MIN(INT($L53+(0.5-(10^-12))),BM$40)-1))*1/$L53, IF($J53="Declining Balance",-$BI$38,0))))) -> 0 | BN53: =IF($L53=0,0, IF($L53<=0.5,BY53, IF(AND($J53="straight line",$L53<1.51),(BX53-((BX53/$L53)*0.5))+BY53/$L53*0.5, IF($J53="straight line", IF((LEFT(BN$39,4)*1)-INT($L53)<LEFT($BI$39,4)*1,0,((OFFSET(BY53,0,-INT($L53+0.5),1,1))/$L53)*(IF($L53-INT($L53)>0.5,$L53-0.5-INT($L53),IF($L53-INT($L53)<=0.5,$L53-0.5-INT($L53)+1,0)))) +BY53/$L53*0.5 +SUM(OFFSET(BY53,0,MAX(-INT($L53+(0.5-(10^-12))),-BN$40)+1,1,MIN(INT($L53+(0.5-(10^-12))),BN$40)-1))*1/$L53, IF($J53="Declining Balance",-$BI$38,0))))) -> 0.00250625 | BO53: =IF($L53=0,0, IF($L53<=0.5,BZ53, IF(AND($J53="straight line",$L53<1.51),(BY53-((BY53/$L53)*0.5))+BZ53/$L53*0.5, IF($J53="straight line", IF((LEFT(BO$39,4)*1)-INT($L53)<LEFT($BI$39,4)*1,0,((OFFSET(BZ53,0,-INT($L53+0.5),1,1))/$L53)*(IF($L53-INT($L53)>0.5,$L53-0.5-INT($L53),IF($L53-INT($L53)<=0.5,$L53-0.5-INT($L53)+1,0)))) +BZ53/$L53*0.5 +SUM(OFFSET(BZ53,0,MAX(-INT($L53+(0.5-(10^-12))),-BO$40)+1,1,MIN(INT($L53+(0.5-(10^-12))),BO$40)-1))*1/$L53, IF($J53="Declining Balance",-$BI$38,0))))) -> 0.0106375 | BP53: =IF($L53=0,0, IF($L53<=0.5,CA53, IF(AND($J53="straight line",$L53<1.51),(BZ53-((BZ53/$L53)*0.5))+CA53/$L53*0.5, IF($J53="straight line", IF((LEFT(BP$39,4)*1)-INT($L53)<LEFT($BI$39,4)*1,0,((OFFSET(CA53,0,-INT($L53+0.5),1,1))/$L53)*(IF($L53-INT($L53)>0.5,$L53-0.5-INT($L53),IF($L53-INT($L53)<=0.5,$L53-0.5-INT($L53)+1,0)))) +CA53/$L53*0.5 +SUM(OFFSET(CA53,0,MAX(-INT($L53+(0.5-(10^-12))),-BP$40)+1,1,MIN(INT($L53+(0.5-(10^-12))),BP$40)-1))*1/$L53, IF($J53="Declining Balance",-$BI$38,0))))) -> 0.02645046875 | BQ53: =IF($L53=0,0, IF($L53<=0.5,CB53, IF(AND($J53="straight line",$L53<1.51),(CA53-((CA53/$L53)*0.5))+CB53/$L53*0.5, IF($J53="straight line", IF((LEFT(BQ$39,4)*1)-INT($L53)<LEFT($BI$39,4)*1,0,((OFFSET(CB53,0,-INT($L53+0.5),1,1))/$L53)*(IF($L53-INT($L53)>0.5,$L53-0.5-INT($L53),IF($L53-INT($L53)<=0.5,$L53-0.5-INT($L53)+1,0)))) +CB53/$L53*0.5 +SUM(OFFSET(CB53,0,MAX(-INT($L53+(0.5-(10^-12))),-BQ$40)+1,1,MIN(INT($L53+(0.5-(10^-12))),BQ$40)-1))*1/$L53, IF($J53="Declining Balance",-$BI$38,0))))) -> 0.03682640625 | BR53: =IF($L53=0,0, IF($L53<=0.5,CC53, IF(AND($J53="straight line",$L53<1.51),(CB53-((CB53/$L53)*0.5))+CC53/$L53*0.5, IF($J53="straight line", IF((LEFT(BR$39,4)*1)-INT($L53)<LEFT($BI$39,4)*1,0,((OFFSET(CC53,0,-INT($L53+0.5),1,1))/$L53)*(IF($L53-INT($L53)>0.5,$L53-0.5-INT($L53),IF($L53-INT($L53)<=0.5,$L53-0.5-INT($L53)+1,0)))) +CC53/$L53*0.5 +SUM(OFFSET(CC53,0,MAX(-INT($L53+(0.5-(10^-12))),-BR$40)+1,1,MIN(INT($L53+(0.5-(10^-12))),BR$40)-1))*1/$L53, IF($J53="Declining Balance",-$BI$38,0))))) -> 0.03720234375 | BT53: =+IF($K53="Ongoing",AX53,IF(RIGHT($K53,2)=RIGHT(BT$39,2),SUM($AX53:AX53),0)+IF(RIGHT(BT$39,2)>RIGHT($K53,2),AX53,0)) -> 0 | BU53: =+IF($K53="Ongoing",AY53,IF(RIGHT($K53,2)=RIGHT(BU$39,2),SUM($AX53:AY53),0)+IF(RIGHT(BU$39,2)>RIGHT($K53,2),AY53,0)) -> 0 | BV53: =+IF($K53="Ongoing",AZ53,IF(RIGHT($K53,2)=RIGHT(BV$39,2),SUM($AX53:AZ53),0)+IF(RIGHT(BV$39,2)>RIGHT($K53,2),AZ53,0)) -> 0 | BW53: =+IF($K53="Ongoing",BA53,IF(RIGHT($K53,2)=RIGHT(BW$39,2),SUM($AX53:BA53),0)+IF(RIGHT(BW$39,2)>RIGHT($K53,2),BA53,0)) -> 0 | BX53: =+IF($K53="Ongoing",BB53,IF(RIGHT($K53,2)=RIGHT(BX$39,2),SUM($AX53:BB53),0)+IF(RIGHT(BX$39,2)>RIGHT($K53,2),BB53,0)) -> 0 | BY53: =+IF($K53="Ongoing",BC53,IF(RIGHT($K53,2)=RIGHT(BY$39,2),SUM($AX53:BC53),0)+IF(RIGHT(BY$39,2)>RIGHT($K53,2),BC53,0)) -> 0.2005 | BZ53: =+IF($K53="Ongoing",BD53,IF(RIGHT($K53,2)=RIGHT(BZ$39,2),SUM($AX53:BD53),0)+IF(RIGHT(BZ$39,2)>RIGHT($K53,2),BD53,0)) -> 0.45 | CA53: =+IF($K53="Ongoing",BE53,IF(RIGHT($K53,2)=RIGHT(CA$39,2),SUM($AX53:BE53),0)+IF(RIGHT(CA$39,2)>RIGHT($K53,2),BE53,0)) -> 0.8150375 | CB53: =+IF($K53="Ongoing",BF53,IF(RIGHT($K53,2)=RIGHT(CB$39,2),SUM($AX53:BF53),0)+IF(RIGHT(CB$39,2)>RIGHT($K53,2),BF53,0)) -> 0.0150375 | CC53: =+IF($K53="Ongoing",BG53,IF(RIGHT($K53,2)=RIGHT(CC$39,2),SUM($AX53:BG53),0)+IF(RIGHT(CC$39,2)>RIGHT($K53,2),BG53,0)) -> 0.0150375 | CE53: =+Q53*KeyAssumptionsPriceControl_FO!AC$15 -> 0 | CF53: =+R53*KeyAssumptionsPriceControl_FO!AD$15 -> 0 | CG53: =+S53*KeyAssumptionsPriceControl_FO!AE$15 -> 0 | CH53: =+T53*KeyAssumptionsPriceControl_FO!AF$15 -> 0 | CI53: =+U53*KeyAssumptionsPriceControl_FO!AG$15 -> 0 | CJ53: =+V53*KeyAssumptionsPriceControl_FO!AH$15 -> 0.2394074855 | CK53: =+W53*KeyAssumptionsPriceControl_FO!AI$15 -> 0.5534432394 | CL53: =+X53*KeyAssumptionsPriceControl_FO!AJ$15 -> 1.03246512 | CM53: =+Y53*KeyAssumptionsPriceControl_FO!AK$15 -> 0.01962052675 | CN53: =+Z53*KeyAssumptionsPriceControl_FO!AL$15 -> 0.02020914255 | CP53: =IF($M53=0,0, IF($M53<=0.5,CE53, IF($J53="straight line", IF((LEFT(CP$39,4)*1)-INT($M53)<LEFT($CP$39,4)*1,0,((OFFSET(CE53,0,-INT($M53+0.5),1,1))/$M53)*(IF($M53-INT($M53)>0.5,$M53-0.5-INT($M53),IF($M53-INT($M53)<=0.5,$M53-0.5-INT($M53)+1,0)))) +CE53/$M53*0.5, IF($J53="Declining Balance",-$CP$38,0)))) -> 0 | CQ53: =IF($M53=0,0, IF($M53<=0.5,CF53, IF(AND($J53="straight line",$M53<1.51),(CE53-((CE53/$M53)*0.5))+CF53/$M53*0.5, IF($J53="straight line", IF((LEFT(CQ$39,4)*1)-INT($M53)<LEFT($CP$39,4)*1,0,((OFFSET(CF53,0,-INT($M53+0.5),1,1))/$M53)*(IF($M53-INT($M53)>0.5,$M53-0.5-INT($M53),IF($M53-INT($M53)<=0.5,$M53-0.5-INT($M53)+1,0)))) +CF53/$M53*0.5 +SUM(OFFSET(CF53,0,MAX(-INT($M53+(0.5-(10^-12))),-CQ$40)+1,1,MIN(INT($M53+(0.5-(10^-12))),CQ$40)-1))*1/$M53, IF($J53="Declining Balance",-$CP$38,0))))) -> 0 | CR53: =IF($M53=0,0, IF($M53<=0.5,CG53, IF(AND($J53="straight line",$M53<1.51),(CF53-((CF53/$M53)*0.5))+CG53/$M53*0.5, IF($J53="straight line", IF((LEFT(CR$39,4)*1)-INT($M53)<LEFT($CP$39,4)*1,0,((OFFSET(CG53,0,-INT($M53+0.5),1,1))/$M53)*(IF($M53-INT($M53)>0.5,$M53-0.5-INT($M53),IF($M53-INT($M53)<=0.5,$M53-0.5-INT($M53)+1,0)))) +CG53/$M53*0.5 +SUM(OFFSET(CG53,0,MAX(-INT($M53+(0.5-(10^-12))),-CR$40)+1,1,MIN(INT($M53+(0.5-(10^-12))),CR$40)-1))*1/$M53, IF($J53="Declining Balance",-$CP$38,0))))) -> 0 | CS53: =IF($M53=0,0, IF($M53<=0.5,CH53, IF(AND($J53="straight line",$M53<1.51),(CG53-((CG53/$M53)*0.5))+CH53/$M53*0.5, IF($J53="straight line", IF((LEFT(CS$39,4)*1)-INT($M53)<LEFT($CP$39,4)*1,0,((OFFSET(CH53,0,-INT($M53+0.5),1,1))/$M53)*(IF($M53-INT($M53)>0.5,$M53-0.5-INT($M53),IF($M53-INT($M53)<=0.5,$M53-0.5-INT($M53)+1,0)))) +CH53/$M53*0.5 +SUM(OFFSET(CH53,0,MAX(-INT($M53+(0.5-(10^-12))),-CS$40)+1,1,MIN(INT($M53+(0.5-(10^-12))),CS$40)-1))*1/$M53, IF($J53="Declining Balance",-$CP$38,0))))) -> 0 | CT53: =IF($M53=0,0, IF($M53<=0.5,CI53, IF(AND($J53="straight line",$M53<1.51),(CH53-((CH53/$M53)*0.5))+CI53/$M53*0.5, IF($J53="straight line", IF((LEFT(CT$39,4)*1)-INT($M53)<LEFT($CP$39,4)*1,0,((OFFSET(CI53,0,-INT($M53+0.5),1,1))/$M53)*(IF($M53-INT($M53)>0.5,$M53-0.5-INT($M53),IF($M53-INT($M53)<=0.5,$M53-0.5-INT($M53)+1,0)))) +CI53/$M53*0.5 +SUM(OFFSET(CI53,0,MAX(-INT($M53+(0.5-(10^-12))),-CT$40)+1,1,MIN(INT($M53+(0.5-(10^-12))),CT$40)-1))*1/$M53, IF($J53="Declining Balance",-$CP$38,0))))) -> 0 | CU53: =IF($M53=0,0, IF($M53<=0.5,CJ53, IF(AND($J53="straight line",$M53<1.51),(CI53-((CI53/$M53)*0.5))+CJ53/$M53*0.5, IF($J53="straight line", IF((LEFT(CU$39,4)*1)-INT($M53)<LEFT($CP$39,4)*1,0,((OFFSET(CJ53,0,-INT($M53+0.5),1,1))/$M53)*(IF($M53-INT($M53)>0.5,$M53-0.5-INT($M53),IF($M53-INT($M53)<=0.5,$M53-0.5-INT($M53)+1,0)))) +CJ53/$M53*0.5 +SUM(OFFSET(CJ53,0,MAX(-INT($M53+(0.5-(10^-12))),-CU$40)+1,1,MIN(INT($M53+(0.5-(10^-12))),CU$40)-1))*1/$M53, IF($J53="Declining Balance",-$CP$38,0))))) -> 0.002992593568 | CV53: =IF($M53=0,0, IF($M53<=0.5,CK53, IF(AND($J53="straight line",$M53<1.51),(CJ53-((CJ53/$M53)*0.5))+CK53/$M53*0.5, IF($J53="straight line", IF((LEFT(CV$39,4)*1)-INT($M53)<LEFT($CP$39,4)*1,0,((OFFSET(CK53,0,-INT($M53+0.5),1,1))/$M53)*(IF($M53-INT($M53)>0.5,$M53-0.5-INT($M53),IF($M53-INT($M53)<=0.5,$M53-0.5-INT($M53)+1,0)))) +CK53/$M53*0.5 +SUM(OFFSET(CK53,0,MAX(-INT($M53+(0.5-(10^-12))),-CV$40)+1,1,MIN(INT($M53+(0.5-(10^-12))),CV$40)-1))*1/$M53, IF($J53="Declining Balance",-$CP$38,0))))) -> 0.01290322763 | CW53: =IF($M53=0,0, IF($M53<=0.5,CL53, IF(AND($J53="straight line",$M53<1.51),(CK53-((CK53/$M53)*0.5))+CL53/$M53*0.5, IF($J53="straight line", IF((LEFT(CW$39,4)*1)-INT($M53)<LEFT($CP$39,4)*1,0,((OFFSET(CL53,0,-INT($M53+0.5),1,1))/$M53)*(IF($M53-INT($M53)>0.5,$M53-0.5-INT($M53),IF($M53-INT($M53)<=0.5,$M53-0.5-INT($M53)+1,0)))) +CL53/$M53*0.5 +SUM(OFFSET(CL53,0,MAX(-INT($M53+(0.5-(10^-12))),-CW$40)+1,1,MIN(INT($M53+(0.5-(10^-12))),CW$40)-1))*1/$M53, IF($J53="Declining Balance",-$CP$38,0))))) -> 0.03272708212 | CX53: =IF($M53=0,0, IF($M53<=0.5,CM53, IF(AND($J53="straight line",$M53<1.51),(CL53-((CL53/$M53)*0.5))+CM53/$M53*0.5, IF($J53="straight line", IF((LEFT(CX$39,4)*1)-INT($M53)<LEFT($CP$39,4)*1,0,((OFFSET(CM53,0,-INT($M53+0.5),1,1))/$M53)*(IF($M53-INT($M53)>0.5,$M53-0.5-INT($M53),IF($M53-INT($M53)<=0.5,$M53-0.5-INT($M53)+1,0)))) +CM53/$M53*0.5 +SUM(OFFSET(CM53,0,MAX(-INT($M53+(0.5-(10^-12))),-CX$40)+1,1,MIN(INT($M53+(0.5-(10^-12))),CX$40)-1))*1/$M53, IF($J53="Declining Balance",-$CP$38,0))))) -> 0.04587815271 | CY53: =IF($M53=0,0, IF($M53<=0.5,CN53, IF(AND($J53="straight line",$M53<1.51),(CM53-((CM53/$M53)*0.5))+CN53/$M53*0.5, IF($J53="straight line", IF((LEFT(CY$39,4)*1)-INT($M53)<LEFT($CP$39,4)*1,0,((OFFSET(CN53,0,-INT($M53+0.5),1,1))/$M53)*(IF($M53-INT($M53)>0.5,$M53-0.5-INT($M53),IF($M53-INT($M53)<=0.5,$M53-0.5-INT($M53)+1,0)))) +CN53/$M53*0.5 +SUM(OFFSET(CN53,0,MAX(-INT($M53+(0.5-(10^-12))),-CY$40)+1,1,MIN(INT($M53+(0.5-(10^-12))),CY$40)-1))*1/$M53, IF($J53="Declining Balance",-$CP$38,0))))) -> 0.04637602358
C54: Buildings | E54: Water | F54: Renewals | G54: Treatment | H54: Capital Programs / Allocation | J54: Straight line | K54: Ongoing | L54: 40 | M54: 40 | Q54: 0.03 | R54: 0.097125 | S54: 0.03 | T54: 0 | U54: 0.1 | V54: 0.3792 | W54: 0.1601125 | X54: 0.099 | Y54: 0.61 | Z54: 0.34565875 | AB54: 0 | AC54: 0 | AD54: 0 | AE54: 0 | AF54: 0 | AG54: 0.05 | AH54: 0 | AI54: 0.05 | AJ54: 0 | AK54: 0.05 | AX54: 0.03 | AY54: 0.097125 | AZ54: 0.03 | BA54: 0 | BB54: 0.1 | BC54: 0.3292 | BD54: 0.1601125 | BE54: 0.049 | BF54: 0.61 | BG54: 0.29565875 | BI54: 0.000375 | BJ54: 0.0019640625 | BK54: 0.003553125 | BL54: 0.003928125 | BM54: 0.005178125 | BN54: 0.010543125 | BO54: 0.01665953125 | BP54: 0.0192734375 | BQ54: 0.0275109375 | BR54: 0.03883167188 | BT54: =+IF($K54="Ongoing",AX54,IF(RIGHT($K54,2)=RIGHT(BT$39,2),SUM($AX54:AX54),0)+IF(RIGHT(BT$39,2)>RIGHT($K54,2),AX54,0)) -> 0.03 | BU54: =+IF($K54="Ongoing",AY54,IF(RIGHT($K54,2)=RIGHT(BU$39,2),SUM($AX54:AY54),0)+IF(RIGHT(BU$39,2)>RIGHT($K54,2),AY54,0)) -> 0.097125 | BV54: =+IF($K54="Ongoing",AZ54,IF(RIGHT($K54,2)=RIGHT(BV$39,2),SUM($AX54:AZ54),0)+IF(RIGHT(BV$39,2)>RIGHT($K54,2),AZ54,0)) -> 0.03 | BW54: =+IF($K54="Ongoing",BA54,IF(RIGHT($K54,2)=RIGHT(BW$39,2),SUM($AX54:BA54),0)+IF(RIGHT(BW$39,2)>RIGHT($K54,2),BA54,0)) -> 0 | BX54: =+IF($K54="Ongoing",BB54,IF(RIGHT($K54,2)=RIGHT(BX$39,2),SUM($AX54:BB54),0)+IF(RIGHT(BX$39,2)>RIGHT($K54,2),BB54,0)) -> 0.1 | BY54: =+IF($K54="Ongoing",BC54,IF(RIGHT($K54,2)=RIGHT(BY$39,2),SUM($AX54:BC54),0)+IF(RIGHT(BY$39,2)>RIGHT($K54,2),BC54,0)) -> 0.3292 | BZ54: =+IF($K54="Ongoing",BD54,IF(RIGHT($K54,2)=RIGHT(BZ$39,2),SUM($AX54:BD54),0)+IF(RIGHT(BZ$39,2)>RIGHT($K54,2),BD54,0)) -> 0.1601125 | CA54: =+IF($K54="Ongoing",BE54,IF(RIGHT($K54,2)=RIGHT(CA$39,2),SUM($AX54:BE54),0)+IF(RIGHT(CA$39,2)>RIGHT($K54,2),BE54,0)) -> 0.049 | CB54: =+IF($K54="Ongoing",BF54,IF(RIGHT($K54,2)=RIGHT(CB$39,2),SUM($AX54:BF54),0)+IF(RIGHT(CB$39,2)>RIGHT($K54,2),BF54,0)) -> 0.61 | CC54: =+IF($K54="Ongoing",BG54,IF(RIGHT($K54,2)=RIGHT(CC$39,2),SUM($AX54:BG54),0)+IF(RIGHT(CC$39,2)>RIGHT($K54,2),BG54,0)) -> 0.29565875 | CE54: =+Q54*KeyAssumptionsPriceControl_FO!AC$15 -> 0.0309 | CF54: =+R54*KeyAssumptionsPriceControl_FO!AD$15 -> 0.1030399125 | CG54: =+S54*KeyAssumptionsPriceControl_FO!AE$15 -> 0.03278181 | CH54: =+T54*KeyAssumptionsPriceControl_FO!AF$15 -> 0 | CI54: =+U54*KeyAssumptionsPriceControl_FO!AG$15 -> 0.1159274074 | CJ54: =+V54*KeyAssumptionsPriceControl_FO!AH$15 -> 0.4527846308 | CK54: =+W54*KeyAssumptionsPriceControl_FO!AI$15 -> 0.1969181793 | CL54: =+X54*KeyAssumptionsPriceControl_FO!AJ$15 -> 0.1254102381 | CM54: =+Y54*KeyAssumptionsPriceControl_FO!AK$15 -> 0.7959116421 | CN54: =+Z54*KeyAssumptionsPriceControl_FO!AL$15 -> 0.4645364558 | CP54: 0.00038625 | CQ54: 0.002060498906 | CR54: 0.003758270438 | CS54: 0.004168043062 | CT54: 0.005617135655 | CU54: 0.01272603613 | CV54: 0.02084732126 | CW54: 0.02487642648 | CX54: 0.03639294998 | CY54: 0.0521485512
C55: Headworks | E55: Water | F55: Renewals | G55: Headworks | H55: Capital Programs / Allocation | J55: Straight line | K55: Ongoing | L55: 100 | M55: 100 | Q55: 0.06996827787 | R55: 0.06979061837 | S55: 0.06996590004 | T55: 0.06900600748 | U55: 0.06891481229 | V55: 0.06994231355 | W55: 0.06954472358 | X55: 0.06694320132 | Y55: 0.02153043787 | Z55: 0.008200909125 | AX55: =+Q55-AB55-AM55 -> 0.06996827787 | AY55: =+R55-AC55-AN55 -> 0.06979061837 | AZ55: =+S55-AD55-AO55 -> 0.06996590004 | BA55: =+T55-AE55-AP55 -> 0.06900600748 | BB55: =+U55-AF55-AQ55 -> 0.06891481229 | BC55: =+V55-AG55-AR55 -> 0.06994231355 | BD55: =+W55-AH55-AS55 -> 0.06954472358 | BE55: =+X55-AI55-AT55 -> 0.06694320132 | BF55: =+Y55-AJ55-AU55 -> 0.02153043787 | BG55: =+Z55-AK55-AV55 -> 0.008200909125 | BI55: 0.0003498413894 | BJ55: 0.001048635871 | BK55: 0.001747418463 | BL55: 0.002442278 | BM55: 0.003131882099 | BN55: 0.003826167728 | BO55: 0.004523602914 | BP55: 0.005206042538 | BQ55: 0.005648410734 | BR55: 0.005797067469 | BT55: =+IF($K55="Ongoing",AX55,IF(RIGHT($K55,2)=RIGHT(BT$39,2),SUM($AX55:AX55),0)+IF(RIGHT(BT$39,2)>RIGHT($K55,2),AX55,0)) -> 0.06996827787 | BU55: =+IF($K55="Ongoing",AY55,IF(RIGHT($K55,2)=RIGHT(BU$39,2),SUM($AX55:AY55),0)+IF(RIGHT(BU$39,2)>RIGHT($K55,2),AY55,0)) -> 0.06979061837 | BV55: =+IF($K55="Ongoing",AZ55,IF(RIGHT($K55,2)=RIGHT(BV$39,2),SUM($AX55:AZ55),0)+IF(RIGHT(BV$39,2)>RIGHT($K55,2),AZ55,0)) -> 0.06996590004 | BW55: =+IF($K55="Ongoing",BA55,IF(RIGHT($K55,2)=RIGHT(BW$39,2),SUM($AX55:BA55),0)+IF(RIGHT(BW$39,2)>RIGHT($K55,2),BA55,0)) -> 0.06900600748 | BX55: =+IF($K55="Ongoing",BB55,IF(RIGHT($K55,2)=RIGHT(BX$39,2),SUM($AX55:BB55),0)+IF(RIGHT(BX$39,2)>RIGHT($K55,2),BB55,0)) -> 0.06891481229 | BY55: =+IF($K55="Ongoing",BC55,IF(RIGHT($K55,2)=RIGHT(BY$39,2),SUM($AX55:BC55),0)+IF(RIGHT(BY$39,2)>RIGHT($K55,2),BC55,0)) -> 0.06994231355 | BZ55: =+IF($K55="Ongoing",BD55,IF(RIGHT($K55,2)=RIGHT(BZ$39,2),SUM($AX55:BD55),0)+IF(RIGHT(BZ$39,2)>RIGHT($K55,2),BD55,0)) -> 0.06954472358 | CA55: =+IF($K55="Ongoing",BE55,IF(RIGHT($K55,2)=RIGHT(CA$39,2),SUM($AX55:BE55),0)+IF(RIGHT(CA$39,2)>RIGHT($K55,2),BE55,0)) -> 0.06694320132 | CB55: =+IF($K55="Ongoing",BF55,IF(RIGHT($K55,2)=RIGHT(CB$39,2),SUM($AX55:BF55),0)+IF(RIGHT(CB$39,2)>RIGHT($K55,2),BF55,0)) -> 0.02153043787 | CC55: =+IF($K55="Ongoing",BG55,IF(RIGHT($K55,2)=RIGHT(CC$39,2),SUM($AX55:BG55),0)+IF(RIGHT(CC$39,2)>RIGHT($K55,2),BG55,0)) -> 0.008200909125 | CE55: =+Q55*KeyAssumptionsPriceControl_FO!AC$15 -> 0.07206732621 | CF55: =+R55*KeyAssumptionsPriceControl_FO!AD$15 -> 0.07404086703 | CG55: =+S55*KeyAssumptionsPriceControl_FO!AE$15 -> 0.07645362805 | CH55: =+T55*KeyAssumptionsPriceControl_FO!AF$15 -> 0.07766686936 | CI55: =+U55*KeyAssumptionsPriceControl_FO!AG$15 -> 0.07989115522 | CJ55: =+V55*KeyAssumptionsPriceControl_FO!AH$15 -> 0.08351478012 | CK55: =+W55*KeyAssumptionsPriceControl_FO!AI$15 -> 0.08553123801 | CL55: =+X55*KeyAssumptionsPriceControl_FO!AJ$15 -> 0.08480164458 | CM55: =+Y55*KeyAssumptionsPriceControl_FO!AK$15 -> 0.02809233798 | CN55: =+Z55*KeyAssumptionsPriceControl_FO!AL$15 -> 0.0110213361 | CP55: 0.0003603366311 | CQ55: 0.001090877597 | CR55: 0.001843350073 | CS55: 0.00261395256 | CT55: 0.003401742683 | CU55: 0.004218772359 | CV55: 0.00506400245 | CW55: 0.005915666863 | CX55: 0.006480136776 | CY55: 0.006675705146
C56: Headworks | E56: Water | F56: Renewals | G56: Headworks | H56: Capital Programs / Allocation | J56: Straight line | K56: Ongoing | L56: 100 | M56: 100 | Q56: 0.04998903854 | R56: 0.04998981106 | S56: 0.04994501869 | T56: 0.04967609482 | U56: 0.04944813065 | V56: 0.04952398193 | W56: 0.04951450963 | X56: 0.04960249118 | Y56: 0.04938541058 | Z56: 0.04790629993 | AX56: 0.04998903854 | AY56: 0.04998981106 | AZ56: 0.04994501869 | BA56: 0.04967609482 | BB56: 0.04944813065 | BC56: 0.04952398193 | BD56: 0.04951450963 | BE56: 0.04960249118 | BF56: 0.04938541058 | BG56: 0.04790629993 | BI56: 0.0002499451927 | BJ56: 0.0007498394407 | BK56: 0.001249513589 | BL56: 0.001747619157 | BM56: 0.002243240284 | BN56: 0.002738100847 | BO56: 0.003233293305 | BP56: 0.003728878309 | BQ56: 0.004223817818 | BR56: 0.00471027637 | BT56: =+IF($K56="Ongoing",AX56,IF(RIGHT($K56,2)=RIGHT(BT$39,2),SUM($AX56:AX56),0)+IF(RIGHT(BT$39,2)>RIGHT($K56,2),AX56,0)) -> 0.04998903854 | BU56: =+IF($K56="Ongoing",AY56,IF(RIGHT($K56,2)=RIGHT(BU$39,2),SUM($AX56:AY56),0)+IF(RIGHT(BU$39,2)>RIGHT($K56,2),AY56,0)) -> 0.04998981106 | BV56: =+IF($K56="Ongoing",AZ56,IF(RIGHT($K56,2)=RIGHT(BV$39,2),SUM($AX56:AZ56),0)+IF(RIGHT(BV$39,2)>RIGHT($K56,2),AZ56,0)) -> 0.04994501869 | BW56: =+IF($K56="Ongoing",BA56,IF(RIGHT($K56,2)=RIGHT(BW$39,2),SUM($AX56:BA56),0)+IF(RIGHT(BW$39,2)>RIGHT($K56,2),BA56,0)) -> 0.04967609482 | BX56: =+IF($K56="Ongoing",BB56,IF(RIGHT($K56,2)=RIGHT(BX$39,2),SUM($AX56:BB56),0)+IF(RIGHT(BX$39,2)>RIGHT($K56,2),BB56,0)) -> 0.04944813065 | BY56: =+IF($K56="Ongoing",BC56,IF(RIGHT($K56,2)=RIGHT(BY$39,2),SUM($AX56:BC56),0)+IF(RIGHT(BY$39,2)>RIGHT($K56,2),BC56,0)) -> 0.04952398193 | BZ56: =+IF($K56="Ongoing",BD56,IF(RIGHT($K56,2)=RIGHT(BZ$39,2),SUM($AX56:BD56),0)+IF(RIGHT(BZ$39,2)>RIGHT($K56,2),BD56,0)) -> 0.04951450963 | CA56: =+IF($K56="Ongoing",BE56,IF(RIGHT($K56,2)=RIGHT(CA$39,2),SUM($AX56:BE56),0)+IF(RIGHT(CA$39,2)>RIGHT($K56,2),BE56,0)) -> 0.04960249118 | CB56: =+IF($K56="Ongoing",BF56,IF(RIGHT($K56,2)=RIGHT(CB$39,2),SUM($AX56:BF56),0)+IF(RIGHT(CB$39,2)>RIGHT($K56,2),BF56,0)) -> 0.04938541058 | CC56: =+IF($K56="Ongoing",BG56,IF(RIGHT($K56,2)=RIGHT(CC$39,2),SUM($AX56:BG56),0)+IF(RIGHT(CC$39,2)>RIGHT($K56,2),BG56,0)) -> 0.04790629993 | CE56: =+Q56*KeyAssumptionsPriceControl_FO!AC$15 -> 0.05148870969 | CF56: =+R56*KeyAssumptionsPriceControl_FO!AD$15 -> 0.05303419055 | CG56: =+S56*KeyAssumptionsPriceControl_FO!AE$15 -> 0.05457627044 | CH56: =+T56*KeyAssumptionsPriceControl_FO!AF$15 -> 0.05591088237 | CI56: =+U56*KeyAssumptionsPriceControl_FO!AG$15 -> 0.05732393589 | CJ56: =+V56*KeyAssumptionsPriceControl_FO!AH$15 -> 0.05913422436 | CK56: =+W56*KeyAssumptionsPriceControl_FO!AI$15 -> 0.06089660135 | CL56: =+X56*KeyAssumptionsPriceControl_FO!AJ$15 -> 0.06283495178 | CM56: =+Y56*KeyAssumptionsPriceControl_FO!AK$15 -> 0.0644367594 | CN56: =+Z56*KeyAssumptionsPriceControl_FO!AL$15 -> 0.06438206115 | CP56: 0.0002574435485 | CQ56: 0.0007800580497 | CR56: 0.001318110355 | CS56: 0.001870546119 | CT56: 0.00243672021 | CU56: 0.003019011011 | CV56: 0.00361916514 | CW56: 0.004237822905 | CX56: 0.004874181461 | CY56: 0.005518275564
C57: ICT | E57: Water | F57: Improvements / Compliance | G57: Corporate | H57: Capital Programs / Allocation | J57: Straight line | K57: Ongoing | L57: 4 | M57: 4 | Q57: 0 | R57: 0 | S57: 0 | T57: 0 | U57: 0 | V57: 0 | W57: 0 | X57: 0.45 | Y57: 0.45 | Z57: 0 | AX57: 0 | AY57: 0 | AZ57: 0 | BA57: 0 | BB57: 0 | BC57: 0 | BD57: 0 | BE57: 0.45 | BF57: 0.45 | BG57: 0 | BI57: 0 | BJ57: 0 | BK57: 0 | BL57: 0 | BM57: 0 | BN57: 0 | BO57: 0 | BP57: 0.05625 | BQ57: 0.16875 | BR57: 0.225 | BT57: =+IF($K57="Ongoing",AX57,IF(RIGHT($K57,2)=RIGHT(BT$39,2),SUM($AX57:AX57),0)+IF(RIGHT(BT$39,2)>RIGHT($K57,2),AX57,0)) -> 0 | BU57: =+IF($K57="Ongoing",AY57,IF(RIGHT($K57,2)=RIGHT(BU$39,2),SUM($AX57:AY57),0)+IF(RIGHT(BU$39,2)>RIGHT($K57,2),AY57,0)) -> 0 | BV57: =+IF($K57="Ongoing",AZ57,IF(RIGHT($K57,2)=RIGHT(BV$39,2),SUM($AX57:AZ57),0)+IF(RIGHT(BV$39,2)>RIGHT($K57,2),AZ57,0)) -> 0 | BW57: =+IF($K57="Ongoing",BA57,IF(RIGHT($K57,2)=RIGHT(BW$39,2),SUM($AX57:BA57),0)+IF(RIGHT(BW$39,2)>RIGHT($K57,2),BA57,0)) -> 0 | BX57: =+IF($K57="Ongoing",BB57,IF(RIGHT($K57,2)=RIGHT(BX$39,2),SUM($AX57:BB57),0)+IF(RIGHT(BX$39,2)>RIGHT($K57,2),BB57,0)) -> 0 | BY57: =+IF($K57="Ongoing",BC57,IF(RIGHT($K57,2)=RIGHT(BY$39,2),SUM($AX57:BC57),0)+IF(RIGHT(BY$39,2)>RIGHT($K57,2),BC57,0)) -> 0 | BZ57: =+IF($K57="Ongoing",BD57,IF(RIGHT($K57,2)=RIGHT(BZ$39,2),SUM($AX57:BD57),0)+IF(RIGHT(BZ$39,2)>RIGHT($K57,2),BD57,0)) -> 0 | CA57: =+IF($K57="Ongoing",BE57,IF(RIGHT($K57,2)=RIGHT(CA$39,2),SUM($AX57:BE57),0)+IF(RIGHT(CA$39,2)>RIGHT($K57,2),BE57,0)) -> 0.45 | CB57: =+IF($K57="Ongoing",BF57,IF(RIGHT($K57,2)=RIGHT(CB$39,2),SUM($AX57:BF57),0)+IF(RIGHT(CB$39,2)>RIGHT($K57,2),BF57,0)) -> 0.45 | CC57: =+IF($K57="Ongoing",BG57,IF(RIGHT($K57,2)=RIGHT(CC$39,2),SUM($AX57:BG57),0)+IF(RIGHT(CC$39,2)>RIGHT($K57,2),BG57,0)) -> 0 | CE57: =+Q57*KeyAssumptionsPriceControl_FO!AC$15 -> 0 | CF57: =+R57*KeyAssumptionsPriceControl_FO!AD$15 -> 0 | CG57: =+S57*KeyAssumptionsPriceControl_FO!AE$15 -> 0 | CH57: =+T57*KeyAssumptionsPriceControl_FO!AF$15 -> 0 | CI57: =+U57*KeyAssumptionsPriceControl_FO!AG$15 -> 0 | CJ57: =+V57*KeyAssumptionsPriceControl_FO!AH$15 -> 0 | CK57: =+W57*KeyAssumptionsPriceControl_FO!AI$15 -> 0 | CL57: =+X57*KeyAssumptionsPriceControl_FO!AJ$15 -> 0.5700465366 | CM57: =+Y57*KeyAssumptionsPriceControl_FO!AK$15 -> 0.5871479327 | CN57: =+Z57*KeyAssumptionsPriceControl_FO!AL$15 -> 0 | CP57: 0 | CQ57: 0 | CR57: 0 | CS57: 0 | CT57: 0 | CU57: 0 | CV57: 0 | CW57: 0.07125581708 | CX57: 0.2159051257 | CY57: 0.2892986173
C58: ICT | E58: Water | F58: Improvements / Compliance | G58: Corporate | H58: Capital Programs / Allocation | J58: Straight line | K58: Ongoing | L58: 4 | M58: 4 | Q58: 1.44345 | R58: 0.73035 | S58: 0.84035 | T58: 0.49545 | U58: 0.58035 | V58: 0.88 | W58: 0.75 | X58: 0.3975 | Y58: 0.5335 | Z58: 1.1045 | AX58: 1.44345 | AY58: 0.73035 | AZ58: 0.84035 | BA58: 0.49545 | BB58: 0.58035 | BC58: 0.88 | BD58: 0.75 | BE58: 0.3975 | BF58: 0.5335 | BG58: 1.1045 | BI58: 0.18043125 | BJ58: 0.45215625 | BK58: 0.64849375 | BL58: 0.81546875 | BM58: 0.7695125 | BN58: 0.68033125 | BO58: 0.68774375 | BP58: 0.66420625 | BQ58: 0.64610625 | BR58: 0.6683125 | BT58: =+IF($K58="Ongoing",AX58,IF(RIGHT($K58,2)=RIGHT(BT$39,2),SUM($AX58:AX58),0)+IF(RIGHT(BT$39,2)>RIGHT($K58,2),AX58,0)) -> 1.44345 | BU58: =+IF($K58="Ongoing",AY58,IF(RIGHT($K58,2)=RIGHT(BU$39,2),SUM($AX58:AY58),0)+IF(RIGHT(BU$39,2)>RIGHT($K58,2),AY58,0)) -> 0.73035 | BV58: =+IF($K58="Ongoing",AZ58,IF(RIGHT($K58,2)=RIGHT(BV$39,2),SUM($AX58:AZ58),0)+IF(RIGHT(BV$39,2)>RIGHT($K58,2),AZ58,0)) -> 0.84035 | BW58: =+IF($K58="Ongoing",BA58,IF(RIGHT($K58,2)=RIGHT(BW$39,2),SUM($AX58:BA58),0)+IF(RIGHT(BW$39,2)>RIGHT($K58,2),BA58,0)) -> 0.49545 | BX58: =+IF($K58="Ongoing",BB58,IF(RIGHT($K58,2)=RIGHT(BX$39,2),SUM($AX58:BB58),0)+IF(RIGHT(BX$39,2)>RIGHT($K58,2),BB58,0)) -> 0.58035 | BY58: =+IF($K58="Ongoing",BC58,IF(RIGHT($K58,2)=RIGHT(BY$39,2),SUM($AX58:BC58),0)+IF(RIGHT(BY$39,2)>RIGHT($K58,2),BC58,0)) -> 0.88 | BZ58: =+IF($K58="Ongoing",BD58,IF(RIGHT($K58,2)=RIGHT(BZ$39,2),SUM($AX58:BD58),0)+IF(RIGHT(BZ$39,2)>RIGHT($K58,2),BD58,0)) -> 0.75 | CA58: =+IF($K58="Ongoing",BE58,IF(RIGHT($K58,2)=RIGHT(CA$39,2),SUM($AX58:BE58),0)+IF(RIGHT(CA$39,2)>RIGHT($K58,2),BE58,0)) -> 0.3975 | CB58: =+IF($K58="Ongoing",BF58,IF(RIGHT($K58,2)=RIGHT(CB$39,2),SUM($AX58:BF58),0)+IF(RIGHT(CB$39,2)>RIGHT($K58,2),BF58,0)) -> 0.5335 | CC58: =+IF($K58="Ongoing",BG58,IF(RIGHT($K58,2)=RIGHT(CC$39,2),SUM($AX58:BG58),0)+IF(RIGHT(CC$39,2)>RIGHT($K58,2),BG58,0)) -> 1.1045 | CE58: =+Q58*KeyAssumptionsPriceControl_FO!AC$15 -> 1.4867535 | CF58: =+R58*KeyAssumptionsPriceControl_FO!AD$15 -> 0.774828315 | CG58: =+S58*KeyAssumptionsPriceControl_FO!AE$15 -> 0.9182731345 | CH58: =+T58*KeyAssumptionsPriceControl_FO!AF$15 -> 0.5576333399 | CI58: =+U58*KeyAssumptionsPriceControl_FO!AG$15 -> 0.672784709 | CJ58: =+V58*KeyAssumptionsPriceControl_FO!AH$15 -> 1.050766021 | CK58: =+W58*KeyAssumptionsPriceControl_FO!AI$15 -> 0.9224053991 | CL58: =+X58*KeyAssumptionsPriceControl_FO!AJ$15 -> 0.5035411074 | CM58: =+Y58*KeyAssumptionsPriceControl_FO!AK$15 -> 0.6960964936 | CN58: =+Z58*KeyAssumptionsPriceControl_FO!AL$15 -> 1.484355641 | CP58: 0.1858441875 | CQ58: 0.4685419144 | CR58: 0.6801795956 | CS58: 0.8646679049 | CT58: 0.8326259735 | CU58: 0.7653720878 | CV58: 0.8003808342 | CW58: 0.7941358382 | CX58: 0.7902882822 | CY58: 0.8474009577
C59: ICT | E59: Water | F59: Renewals | G59: Corporate | H59: Capital Programs / Allocation | J59: Straight line | K59: Ongoing | L59: 4 | M59: 4 | Q59: 0.4714996 | R59: 1.4715238 | S59: 0.7285514 | T59: 0.3799676 | U59: 0.6831638 | V59: 0.537111 | W59: 0.1833392 | X59: 0.1683392 | Y59: 0.552111 | Z59: 0.1683392 | AX59: 0.4714996 | AY59: 1.4715238 | AZ59: 0.7285514 | BA59: 0.3799676 | BB59: 0.6831638 | BC59: 0.537111 | BD59: 0.1833392 | BE59: 0.1683392 | BF59: 0.552111 | BG59: 0.1683392 | BI59: 0.05893745 | BJ59: 0.301815375 | BK59: 0.576824775 | BL59: 0.71538965 | BM59: 0.789343625 | BN59: 0.69900005 | BO59: 0.514046925 | BP59: 0.41944185 | BQ59: 0.3766067 | BR59: 0.314128625 | BT59: =+IF($K59="Ongoing",AX59,IF(RIGHT($K59,2)=RIGHT(BT$39,2),SUM($AX59:AX59),0)+IF(RIGHT(BT$39,2)>RIGHT($K59,2),AX59,0)) -> 0.4714996 | BU59: =+IF($K59="Ongoing",AY59,IF(RIGHT($K59,2)=RIGHT(BU$39,2),SUM($AX59:AY59),0)+IF(RIGHT(BU$39,2)>RIGHT($K59,2),AY59,0)) -> 1.4715238 | BV59: =+IF($K59="Ongoing",AZ59,IF(RIGHT($K59,2)=RIGHT(BV$39,2),SUM($AX59:AZ59),0)+IF(RIGHT(BV$39,2)>RIGHT($K59,2),AZ59,0)) -> 0.7285514 | BW59: =+IF($K59="Ongoing",BA59,IF(RIGHT($K59,2)=RIGHT(BW$39,2),SUM($AX59:BA59),0)+IF(RIGHT(BW$39,2)>RIGHT($K59,2),BA59,0)) -> 0.3799676 | BX59: =+IF($K59="Ongoing",BB59,IF(RIGHT($K59,2)=RIGHT(BX$39,2),SUM($AX59:BB59),0)+IF(RIGHT(BX$39,2)>RIGHT($K59,2),BB59,0)) -> 0.6831638 | BY59: =+IF($K59="Ongoing",BC59,IF(RIGHT($K59,2)=RIGHT(BY$39,2),SUM($AX59:BC59),0)+IF(RIGHT(BY$39,2)>RIGHT($K59,2),BC59,0)) -> 0.537111 | BZ59: =+IF($K59="Ongoing",BD59,IF(RIGHT($K59,2)=RIGHT(BZ$39,2),SUM($AX59:BD59),0)+IF(RIGHT(BZ$39,2)>RIGHT($K59,2),BD59,0)) -> 0.1833392 | CA59: =+IF($K59="Ongoing",BE59,IF(RIGHT($K59,2)=RIGHT(CA$39,2),SUM($AX59:BE59),0)+IF(RIGHT(CA$39,2)>RIGHT($K59,2),BE59,0)) -> 0.1683392 | CB59: =+IF($K59="Ongoing",BF59,IF(RIGHT($K59,2)=RIGHT(CB$39,2),SUM($AX59:BF59),0)+IF(RIGHT(CB$39,2)>RIGHT($K59,2),BF59,0)) -> 0.552111 | CC59: =+IF($K59="Ongoing",BG59,IF(RIGHT($K59,2)=RIGHT(CC$39,2),SUM($AX59:BG59),0)+IF(RIGHT(CC$39,2)>RIGHT($K59,2),BG59,0)) -> 0.1683392 | CE59: =+Q59*KeyAssumptionsPriceControl_FO!AC$15 -> 0.485644588 | CF59: =+R59*KeyAssumptionsPriceControl_FO!AD$15 -> 1.561139599 | CG59: =+S59*KeyAssumptionsPriceControl_FO!AE$15 -> 0.7961077857 | CH59: =+T59*KeyAssumptionsPriceControl_FO!AF$15 -> 0.4276568813 | CI59: =+U59*KeyAssumptionsPriceControl_FO!AG$15 -> 0.7919740818 | CJ59: =+V59*KeyAssumptionsPriceControl_FO!AH$15 -> 0.641338623 | CK59: =+W59*KeyAssumptionsPriceControl_FO!AI$15 -> 0.2254840906 | CL59: =+X59*KeyAssumptionsPriceControl_FO!AJ$15 -> 0.2132470621 | CM59: =+Y59*KeyAssumptionsPriceControl_FO!AK$15 -> 0.7203796273 | CN59: =+Z59*KeyAssumptionsPriceControl_FO!AL$15 -> 0.2262338082 | CP59: 0.0607055735 | CQ59: 0.3165535969 | CR59: 0.6112095201 | CS59: 0.7641801034 | CT59: 0.8559284003 | CU59: 0.779244465 | CV59: 0.5929413811 | CW59: 0.4948121918 | CX59: 0.4590616576 | CY59: 0.3982242489
C60: ICT | E60: Water | F60: Renewals | G60: Corporate | H60: Capital Programs / Allocation | J60: Straight line | K60: Ongoing | L60: 4 | M60: 4 | Q60: 0.81119145 | R60: 0.36161045 | S60: 0.42416045 | T60: 0.34980645 | U60: 0.61049345 | V60: 0.30336305 | W60: 0.05439045 | X60: 0.02439045 | Y60: 0.02439045 | Z60: 0.02439045 | AX60: 0.81119145 | AY60: 0.36161045 | AZ60: 0.42416045 | BA60: 0.34980645 | BB60: 0.61049345 | BC60: 0.30336305 | BD60: 0.05439045 | BE60: 0.02439045 | BF60: 0.02439045 | BG60: 0.02439045 | BI60: 0.1013989312 | BJ60: 0.2479991687 | BK60: 0.3462205313 | BL60: 0.4429663938 | BM60: 0.46160495 | BN60: 0.429236775 | BO60: 0.3757346 | BP60: 0.28883635 | BQ60: 0.174896475 | BR60: 0.066762025 | BT60: =+IF($K60="Ongoing",AX60,IF(RIGHT($K60,2)=RIGHT(BT$39,2),SUM($AX60:AX60),0)+IF(RIGHT(BT$39,2)>RIGHT($K60,2),AX60,0)) -> 0.81119145 | BU60: =+IF($K60="Ongoing",AY60,IF(RIGHT($K60,2)=RIGHT(BU$39,2),SUM($AX60:AY60),0)+IF(RIGHT(BU$39,2)>RIGHT($K60,2),AY60,0)) -> 0.36161045 | BV60: =+IF($K60="Ongoing",AZ60,IF(RIGHT($K60,2)=RIGHT(BV$39,2),SUM($AX60:AZ60),0)+IF(RIGHT(BV$39,2)>RIGHT($K60,2),AZ60,0)) -> 0.42416045 | BW60: =+IF($K60="Ongoing",BA60,IF(RIGHT($K60,2)=RIGHT(BW$39,2),SUM($AX60:BA60),0)+IF(RIGHT(BW$39,2)>RIGHT($K60,2),BA60,0)) -> 0.34980645 | BX60: =+IF($K60="Ongoing",BB60,IF(RIGHT($K60,2)=RIGHT(BX$39,2),SUM($AX60:BB60),0)+IF(RIGHT(BX$39,2)>RIGHT($K60,2),BB60,0)) -> 0.61049345 | BY60: =+IF($K60="Ongoing",BC60,IF(RIGHT($K60,2)=RIGHT(BY$39,2),SUM($AX60:BC60),0)+IF(RIGHT(BY$39,2)>RIGHT($K60,2),BC60,0)) -> 0.30336305 | BZ60: =+IF($K60="Ongoing",BD60,IF(RIGHT($K60,2)=RIGHT(BZ$39,2),SUM($AX60:BD60),0)+IF(RIGHT(BZ$39,2)>RIGHT($K60,2),BD60,0)) -> 0.05439045 | CA60: =+IF($K60="Ongoing",BE60,IF(RIGHT($K60,2)=RIGHT(CA$39,2),SUM($AX60:BE60),0)+IF(RIGHT(CA$39,2)>RIGHT($K60,2),BE60,0)) -> 0.02439045 | CB60: =+IF($K60="Ongoing",BF60,IF(RIGHT($K60,2)=RIGHT(CB$39,2),SUM($AX60:BF60),0)+IF(RIGHT(CB$39,2)>RIGHT($K60,2),BF60,0)) -> 0.02439045 | CC60: =+IF($K60="Ongoing",BG60,IF(RIGHT($K60,2)=RIGHT(CC$39,2),SUM($AX60:BG60),0)+IF(RIGHT(CC$39,2)>RIGHT($K60,2),BG60,0)) -> 0.02439045 | CE60: =+Q60*KeyAssumptionsPriceControl_FO!AC$15 -> 0.8355271935 | CF60: =+R60*KeyAssumptionsPriceControl_FO!AD$15 -> 0.3836325264 | CG60: =+S60*KeyAssumptionsPriceControl_FO!AE$15 -> 0.463491576 | CH60: =+T60*KeyAssumptionsPriceControl_FO!AF$15 -> 0.3937102413 | CI60: =+U60*KeyAssumptionsPriceControl_FO!AG$15 -> 0.7077292291 | CJ60: =+V60*KeyAssumptionsPriceControl_FO!AH$15 -> 0.3622313465 | CK60: =+W60*KeyAssumptionsPriceControl_FO!AI$15 -> 0.06689339298 | CL60: =+X60*KeyAssumptionsPriceControl_FO!AJ$15 -> 0.03089709233 | CM60: =+Y60*KeyAssumptionsPriceControl_FO!AK$15 -> 0.0318240051 | CN60: =+Z60*KeyAssumptionsPriceControl_FO!AL$15 -> 0.03277872525 | CP60: 0.1044408992 | CQ60: 0.2568358642 | CR60: 0.362726377 | CS60: 0.4698766041 | CT60: 0.5031156388 | CU60: 0.4844657457 | CV60: 0.4322158254 | CW60: 0.3372894089 | CX60: 0.2074496122 | CY60: 0.08177988158
C61: Mains | E61: Water | F61: Renewals | G61: Pipelines/network | H61: Capital Programs / Allocation | J61: Straight line | K61: Ongoing | L61: 100 | M61: 100 | Q61: 1.399931956 | R61: 1.399990233 | S61: 1.399917345 | T61: 1.399955263 | U61: 1.399961982 | V61: 1.399964403 | W61: 1.39996255 | X61: 1.399902159 | Y61: 1.399955671 | Z61: 1.399903581 | AX61: 1.399931956 | AY61: 1.399990233 | AZ61: 1.399917345 | BA61: 1.399955263 | BB61: 1.399961982 | BC61: 1.399964403 | BD61: 1.39996255 | BE61: 1.399902159 | BF61: 1.399955671 | BG61: 1.399903581 | BI61: 0.006999659782 | BJ61: 0.02099927073 | BK61: 0.03499880862 | BL61: 0.04899817166 | BM61: 0.06299775789 | BN61: 0.07699738982 | BO61: 0.09099702458 | BP61: 0.1049963481 | BQ61: 0.1189956373 | BR61: 0.1329949335 | BT61: =+IF($K61="Ongoing",AX61,IF(RIGHT($K61,2)=RIGHT(BT$39,2),SUM($AX61:AX61),0)+IF(RIGHT(BT$39,2)>RIGHT($K61,2),AX61,0)) -> 1.399931956 | BU61: =+IF($K61="Ongoing",AY61,IF(RIGHT($K61,2)=RIGHT(BU$39,2),SUM($AX61:AY61),0)+IF(RIGHT(BU$39,2)>RIGHT($K61,2),AY61,0)) -> 1.399990233 | BV61: =+IF($K61="Ongoing",AZ61,IF(RIGHT($K61,2)=RIGHT(BV$39,2),SUM($AX61:AZ61),0)+IF(RIGHT(BV$39,2)>RIGHT($K61,2),AZ61,0)) -> 1.399917345 | BW61: =+IF($K61="Ongoing",BA61,IF(RIGHT($K61,2)=RIGHT(BW$39,2),SUM($AX61:BA61),0)+IF(RIGHT(BW$39,2)>RIGHT($K61,2),BA61,0)) -> 1.399955263 | BX61: =+IF($K61="Ongoing",BB61,IF(RIGHT($K61,2)=RIGHT(BX$39,2),SUM($AX61:BB61),0)+IF(RIGHT(BX$39,2)>RIGHT($K61,2),BB61,0)) -> 1.399961982 | BY61: =+IF($K61="Ongoing",BC61,IF(RIGHT($K61,2)=RIGHT(BY$39,2),SUM($AX61:BC61),0)+IF(RIGHT(BY$39,2)>RIGHT($K61,2),BC61,0)) -> 1.399964403 | BZ61: =+IF($K61="Ongoing",BD61,IF(RIGHT($K61,2)=RIGHT(BZ$39,2),SUM($AX61:BD61),0)+IF(RIGHT(BZ$39,2)>RIGHT($K61,2),BD61,0)) -> 1.39996255 | CA61: =+IF($K61="Ongoing",BE61,IF(RIGHT($K61,2)=RIGHT(CA$39,2),SUM($AX61:BE61),0)+IF(RIGHT(CA$39,2)>RIGHT($K61,2),BE61,0)) -> 1.399902159 | CB61: =+IF($K61="Ongoing",BF61,IF(RIGHT($K61,2)=RIGHT(CB$39,2),SUM($AX61:BF61),0)+IF(RIGHT(CB$39,2)>RIGHT($K61,2),BF61,0)) -> 1.399955671 | CC61: =+IF($K61="Ongoing",BG61,IF(RIGHT($K61,2)=RIGHT(CC$39,2),SUM($AX61:BG61),0)+IF(RIGHT(CC$39,2)>RIGHT($K61,2),BG61,0)) -> 1.399903581 | CE61: =+Q61*KeyAssumptionsPriceControl_FO!AC$15 -> 1.441929915 | CF61: =+R61*KeyAssumptionsPriceControl_FO!AD$15 -> 1.485249639 | CG61: =+S61*KeyAssumptionsPriceControl_FO!AE$15 -> 1.52972748 | CH61: =+T61*KeyAssumptionsPriceControl_FO!AF$15 -> 1.575661982 | CI61: =+U61*KeyAssumptionsPriceControl_FO!AG$15 -> 1.622939631 | CJ61: =+V61*KeyAssumptionsPriceControl_FO!AH$15 -> 1.671630711 | CK61: =+W61*KeyAssumptionsPriceControl_FO!AI$15 -> 1.721777353 | CL61: =+X61*KeyAssumptionsPriceControl_FO!AJ$15 -> 1.773354172 | CM61: =+Y61*KeyAssumptionsPriceControl_FO!AK$15 -> 1.826624618 | CN61: =+Z61*KeyAssumptionsPriceControl_FO!AL$15 -> 1.881353353 | CP61: 0.007209649576 | CQ61: 0.02184554735 | CR61: 0.03692043294 | CS61: 0.05244738025 | CT61: 0.06844038832 | CU61: 0.08491324003 | CV61: 0.1018802803 | CW61: 0.119355938 | CX61: 0.1373558319 | CY61: 0.1558957218
C62: Mech and Elec | E62: Sewerage | F62: Growth | G62: Treatment | H62: Capital Programs / Allocation | J62: Straight line | K62: Ongoing | L62: 40 | M62: 40 | Q62: 0.5 | R62: 0 | S62: 0 | T62: 0 | U62: 0 | V62: 0 | W62: 0 | X62: 0 | Y62: 0 | Z62: 0 | AX62: 0.5 | AY62: 0 | AZ62: 0 | BA62: 0 | BB62: 0 | BC62: 0 | BD62: 0 | BE62: 0 | BF62: 0 | BG62: 0 | BI62: 0.00625 | BJ62: 0.0125 | BK62: 0.0125 | BL62: 0.0125 | BM62: 0.0125 | BN62: 0.0125 | BO62: 0.0125 | BP62: 0.0125 | BQ62: 0.0125 | BR62: 0.0125 | BT62: =+IF($K62="Ongoing",AX62,IF(RIGHT($K62,2)=RIGHT(BT$39,2),SUM($AX62:AX62),0)+IF(RIGHT(BT$39,2)>RIGHT($K62,2),AX62,0)) -> 0.5 | BU62: =+IF($K62="Ongoing",AY62,IF(RIGHT($K62,2)=RIGHT(BU$39,2),SUM($AX62:AY62),0)+IF(RIGHT(BU$39,2)>RIGHT($K62,2),AY62,0)) -> 0 | BV62: =+IF($K62="Ongoing",AZ62,IF(RIGHT($K62,2)=RIGHT(BV$39,2),SUM($AX62:AZ62),0)+IF(RIGHT(BV$39,2)>RIGHT($K62,2),AZ62,0)) -> 0 | BW62: =+IF($K62="Ongoing",BA62,IF(RIGHT($K62,2)=RIGHT(BW$39,2),SUM($AX62:BA62),0)+IF(RIGHT(BW$39,2)>RIGHT($K62,2),BA62,0)) -> 0 | BX62: =+IF($K62="Ongoing",BB62,IF(RIGHT($K62,2)=RIGHT(BX$39,2),SUM($AX62:BB62),0)+IF(RIGHT(BX$39,2)>RIGHT($K62,2),BB62,0)) -> 0 | BY62: =+IF($K62="Ongoing",BC62,IF(RIGHT($K62,2)=RIGHT(BY$39,2),SUM($AX62:BC62),0)+IF(RIGHT(BY$39,2)>RIGHT($K62,2),BC62,0)) -> 0 | BZ62: =+IF($K62="Ongoing",BD62,IF(RIGHT($K62,2)=RIGHT(BZ$39,2),SUM($AX62:BD62),0)+IF(RIGHT(BZ$39,2)>RIGHT($K62,2),BD62,0)) -> 0 | CA62: =+IF($K62="Ongoing",BE62,IF(RIGHT($K62,2)=RIGHT(CA$39,2),SUM($AX62:BE62),0)+IF(RIGHT(CA$39,2)>RIGHT($K62,2),BE62,0)) -> 0 | CB62: =+IF($K62="Ongoing",BF62,IF(RIGHT($K62,2)=RIGHT(CB$39,2),SUM($AX62:BF62),0)+IF(RIGHT(CB$39,2)>RIGHT($K62,2),BF62,0)) -> 0 | CC62: =+IF($K62="Ongoing",BG62,IF(RIGHT($K62,2)=RIGHT(CC$39,2),SUM($AX62:BG62),0)+IF(RIGHT(CC$39,2)>RIGHT($K62,2),BG62,0)) -> 0 | CE62: =+Q62*KeyAssumptionsPriceControl_FO!AC$15 -> 0.515 | CF62: =+R62*KeyAssumptionsPriceControl_FO!AD$15 -> 0 | CG62: =+S62*KeyAssumptionsPriceControl_FO!AE$15 -> 0 | CH62: =+T62*KeyAssumptionsPriceControl_FO!AF$15 -> 0 | CI62: =+U62*KeyAssumptionsPriceControl_FO!AG$15 -> 0 | CJ62: =+V62*KeyAssumptionsPriceControl_FO!AH$15 -> 0 | CK62: =+W62*KeyAssumptionsPriceControl_FO!AI$15 -> 0 | CL62: =+X62*KeyAssumptionsPriceControl_FO!AJ$15 -> 0 | CM62: =+Y62*KeyAssumptionsPriceControl_FO!AK$15 -> 0 | CN62: =+Z62*KeyAssumptionsPriceControl_FO!AL$15 -> 0 | CP62: 0.0064375 | CQ62: 0.012875 | CR62: 0.012875 | CS62: 0.012875 | CT62: 0.012875 | CU62: 0.012875 | CV62: 0.012875 | CW62: 0.012875 | CX62: 0.012875 | CY62: 0.012875
C63: Mech and Elec | E63: Sewerage | F63: Improvements / Compliance | G63: Treatment | H63: Capital Programs / Allocation | J63: Straight line | K63: Ongoing | L63: 20 | M63: 20 | Q63: 0.0571425 | R63: 0 | S63: 0 | T63: 0 | U63: 0 | V63: 0.15015 | W63: 0 | X63: 0.29 | Y63: 0.14 | Z63: 0.1450125 | AX63: 0.0571425 | AY63: 0 | AZ63: 0 | BA63: 0 | BB63: 0 | BC63: 0.15015 | BD63: 0 | BE63: 0.29 | BF63: 0.14 | BG63: 0.1450125 | BI63: 0.0014285625 | BJ63: 0.002857125 | BK63: 0.002857125 | BL63: 0.002857125 | BM63: 0.002857125 | BN63: 0.006610875 | BO63: 0.010364625 | BP63: 0.017614625 | BQ63: 0.028364625 | BR63: 0.0354899375 | BT63: =+IF($K63="Ongoing",AX63,IF(RIGHT($K63,2)=RIGHT(BT$39,2),SUM($AX63:AX63),0)+IF(RIGHT(BT$39,2)>RIGHT($K63,2),AX63,0)) -> 0.0571425 | BU63: =+IF($K63="Ongoing",AY63,IF(RIGHT($K63,2)=RIGHT(BU$39,2),SUM($AX63:AY63),0)+IF(RIGHT(BU$39,2)>RIGHT($K63,2),AY63,0)) -> 0 | BV63: =+IF($K63="Ongoing",AZ63,IF(RIGHT($K63,2)=RIGHT(BV$39,2),SUM($AX63:AZ63),0)+IF(RIGHT(BV$39,2)>RIGHT($K63,2),AZ63,0)) -> 0 | BW63: =+IF($K63="Ongoing",BA63,IF(RIGHT($K63,2)=RIGHT(BW$39,2),SUM($AX63:BA63),0)+IF(RIGHT(BW$39,2)>RIGHT($K63,2),BA63,0)) -> 0 | BX63: =+IF($K63="Ongoing",BB63,IF(RIGHT($K63,2)=RIGHT(BX$39,2),SUM($AX63:BB63),0)+IF(RIGHT(BX$39,2)>RIGHT($K63,2),BB63,0)) -> 0 | BY63: =+IF($K63="Ongoing",BC63,IF(RIGHT($K63,2)=RIGHT(BY$39,2),SUM($AX63:BC63),0)+IF(RIGHT(BY$39,2)>RIGHT($K63,2),BC63,0)) -> 0.15015 | BZ63: =+IF($K63="Ongoing",BD63,IF(RIGHT($K63,2)=RIGHT(BZ$39,2),SUM($AX63:BD63),0)+IF(RIGHT(BZ$39,2)>RIGHT($K63,2),BD63,0)) -> 0 | CA63: =+IF($K63="Ongoing",BE63,IF(RIGHT($K63,2)=RIGHT(CA$39,2),SUM($AX63:BE63),0)+IF(RIGHT(CA$39,2)>RIGHT($K63,2),BE63,0)) -> 0.29 | CB63: =+IF($K63="Ongoing",BF63,IF(RIGHT($K63,2)=RIGHT(CB$39,2),SUM($AX63:BF63),0)+IF(RIGHT(CB$39,2)>RIGHT($K63,2),BF63,0)) -> 0.14 | CC63: =+IF($K63="Ongoing",BG63,IF(RIGHT($K63,2)=RIGHT(CC$39,2),SUM($AX63:BG63),0)+IF(RIGHT(CC$39,2)>RIGHT($K63,2),BG63,0)) -> 0.1450125 | CE63: =+Q63*KeyAssumptionsPriceControl_FO!AC$15 -> 0.058856775 | CF63: =+R63*KeyAssumptionsPriceControl_FO!AD$15 -> 0 | CG63: =+S63*KeyAssumptionsPriceControl_FO!AE$15 -> 0 | CH63: =+T63*KeyAssumptionsPriceControl_FO!AF$15 -> 0 | CI63: =+U63*KeyAssumptionsPriceControl_FO!AG$15 -> 0 | CJ63: =+V63*KeyAssumptionsPriceControl_FO!AH$15 -> 0.1792869523 | CK63: =+W63*KeyAssumptionsPriceControl_FO!AI$15 -> 0 | CL63: =+X63*KeyAssumptionsPriceControl_FO!AJ$15 -> 0.3673633236 | CM63: =+Y63*KeyAssumptionsPriceControl_FO!AK$15 -> 0.1826682457 | CN63: =+Z63*KeyAssumptionsPriceControl_FO!AL$15 -> 0.194884674 | CP63: 0.001471419375 | CQ63: 0.00294283875 | CR63: 0.00294283875 | CS63: 0.00294283875 | CT63: 0.00294283875 | CU63: 0.007425012558 | CV63: 0.01190718637 | CW63: 0.02109126946 | CX63: 0.03484205869 | CY63: 0.04428088168
C64: Mech and Elec | E64: Sewerage | F64: Renewals | G64: Pipelines/network | H64: Capital Programs / Allocation | J64: Straight line | K64: Ongoing | L64: 15 | M64: 15 | Q64: 0 | R64: 0 | S64: 0 | T64: 0 | U64: 0 | V64: 0 | W64: 0 | X64: 0.15 | Y64: 0.42 | Z64: 0.3 | AX64: 0 | AY64: 0 | AZ64: 0 | BA64: 0 | BB64: 0 | BC64: 0 | BD64: 0 | BE64: 0.15 | BF64: 0.42 | BG64: 0.3 | BI64: 0 | BJ64: 0 | BK64: 0 | BL64: 0 | BM64: 0 | BN64: 0 | BO64: 0 | BP64: 0.005 | BQ64: 0.024 | BR64: 0.048 | BT64: =+IF($K64="Ongoing",AX64,IF(RIGHT($K64,2)=RIGHT(BT$39,2),SUM($AX64:AX64),0)+IF(RIGHT(BT$39,2)>RIGHT($K64,2),AX64,0)) -> 0 | BU64: =+IF($K64="Ongoing",AY64,IF(RIGHT($K64,2)=RIGHT(BU$39,2),SUM($AX64:AY64),0)+IF(RIGHT(BU$39,2)>RIGHT($K64,2),AY64,0)) -> 0 | BV64: =+IF($K64="Ongoing",AZ64,IF(RIGHT($K64,2)=RIGHT(BV$39,2),SUM($AX64:AZ64),0)+IF(RIGHT(BV$39,2)>RIGHT($K64,2),AZ64,0)) -> 0 | BW64: =+IF($K64="Ongoing",BA64,IF(RIGHT($K64,2)=RIGHT(BW$39,2),SUM($AX64:BA64),0)+IF(RIGHT(BW$39,2)>RIGHT($K64,2),BA64,0)) -> 0 | BX64: =+IF($K64="Ongoing",BB64,IF(RIGHT($K64,2)=RIGHT(BX$39,2),SUM($AX64:BB64),0)+IF(RIGHT(BX$39,2)>RIGHT($K64,2),BB64,0)) -> 0 | BY64: =+IF($K64="Ongoing",BC64,IF(RIGHT($K64,2)=RIGHT(BY$39,2),SUM($AX64:BC64),0)+IF(RIGHT(BY$39,2)>RIGHT($K64,2),BC64,0)) -> 0 | BZ64: =+IF($K64="Ongoing",BD64,IF(RIGHT($K64,2)=RIGHT(BZ$39,2),SUM($AX64:BD64),0)+IF(RIGHT(BZ$39,2)>RIGHT($K64,2),BD64,0)) -> 0 | CA64: =+IF($K64="Ongoing",BE64,IF(RIGHT($K64,2)=RIGHT(CA$39,2),SUM($AX64:BE64),0)+IF(RIGHT(CA$39,2)>RIGHT($K64,2),BE64,0)) -> 0.15 | CB64: =+IF($K64="Ongoing",BF64,IF(RIGHT($K64,2)=RIGHT(CB$39,2),SUM($AX64:BF64),0)+IF(RIGHT(CB$39,2)>RIGHT($K64,2),BF64,0)) -> 0.42 | CC64: =+IF($K64="Ongoing",BG64,IF(RIGHT($K64,2)=RIGHT(CC$39,2),SUM($AX64:BG64),0)+IF(RIGHT(CC$39,2)>RIGHT($K64,2),BG64,0)) -> 0.3 | CE64: =+Q64*KeyAssumptionsPriceControl_FO!AC$15 -> 0 | CF64: =+R64*KeyAssumptionsPriceControl_FO!AD$15 -> 0 | CG64: =+S64*KeyAssumptionsPriceControl_FO!AE$15 -> 0 | CH64: =+T64*KeyAssumptionsPriceControl_FO!AF$15 -> 0 | CI64: =+U64*KeyAssumptionsPriceControl_FO!AG$15 -> 0 | CJ64: =+V64*KeyAssumptionsPriceControl_FO!AH$15 -> 0 | CK64: =+W64*KeyAssumptionsPriceControl_FO!AI$15 -> 0 | CL64: =+X64*KeyAssumptionsPriceControl_FO!AJ$15 -> 0.1900155122 | CM64: =+Y64*KeyAssumptionsPriceControl_FO!AK$15 -> 0.5480047372 | CN64: =+Z64*KeyAssumptionsPriceControl_FO!AL$15 -> 0.4031749138 | CP64: 0 | CQ64: 0 | CR64: 0 | CS64: 0 | CT64: 0 | CU64: 0 | CV64: 0 | CW64: 0.006333850407 | CX64: 0.03093452539 | CY64: 0.06264051375
C65: Mech and Elec | E65: Sewerage | F65: Renewals | G65: Treatment | H65: Capital Programs / Allocation | J65: Straight line | K65: Ongoing | L65: 40 | M65: 40 | Q65: 0 | R65: 0 | S65: 0 | T65: 0 | U65: 0 | V65: 0.48025 | W65: 0.77425 | X65: 0.175 | Y65: 0.175 | Z65: 0 | AX65: 0 | AY65: 0 | AZ65: 0 | BA65: 0 | BB65: 0 | BC65: 0.48025 | BD65: 0.77425 | BE65: 0.175 | BF65: 0.175 | BG65: 0 | BI65: 0 | BJ65: 0 | BK65: 0 | BL65: 0 | BM65: 0 | BN65: 0.006003125 | BO65: 0.021684375 | BP65: 0.03355 | BQ65: 0.037925 | BR65: 0.0401125 | BT65: =+IF($K65="Ongoing",AX65,IF(RIGHT($K65,2)=RIGHT(BT$39,2),SUM($AX65:AX65),0)+IF(RIGHT(BT$39,2)>RIGHT($K65,2),AX65,0)) -> 0 | BU65: =+IF($K65="Ongoing",AY65,IF(RIGHT($K65,2)=RIGHT(BU$39,2),SUM($AX65:AY65),0)+IF(RIGHT(BU$39,2)>RIGHT($K65,2),AY65,0)) -> 0 | BV65: =+IF($K65="Ongoing",AZ65,IF(RIGHT($K65,2)=RIGHT(BV$39,2),SUM($AX65:AZ65),0)+IF(RIGHT(BV$39,2)>RIGHT($K65,2),AZ65,0)) -> 0 | BW65: =+IF($K65="Ongoing",BA65,IF(RIGHT($K65,2)=RIGHT(BW$39,2),SUM($AX65:BA65),0)+IF(RIGHT(BW$39,2)>RIGHT($K65,2),BA65,0)) -> 0 | BX65: =+IF($K65="Ongoing",BB65,IF(RIGHT($K65,2)=RIGHT(BX$39,2),SUM($AX65:BB65),0)+IF(RIGHT(BX$39,2)>RIGHT($K65,2),BB65,0)) -> 0 | BY65: =+IF($K65="Ongoing",BC65,IF(RIGHT($K65,2)=RIGHT(BY$39,2),SUM($AX65:BC65),0)+IF(RIGHT(BY$39,2)>RIGHT($K65,2),BC65,0)) -> 0.48025 | BZ65: =+IF($K65="Ongoing",BD65,IF(RIGHT($K65,2)=RIGHT(BZ$39,2),SUM($AX65:BD65),0)+IF(RIGHT(BZ$39,2)>RIGHT($K65,2),BD65,0)) -> 0.77425 | CA65: =+IF($K65="Ongoing",BE65,IF(RIGHT($K65,2)=RIGHT(CA$39,2),SUM($AX65:BE65),0)+IF(RIGHT(CA$39,2)>RIGHT($K65,2),BE65,0)) -> 0.175 | CB65: =+IF($K65="Ongoing",BF65,IF(RIGHT($K65,2)=RIGHT(CB$39,2),SUM($AX65:BF65),0)+IF(RIGHT(CB$39,2)>RIGHT($K65,2),BF65,0)) -> 0.175 | CC65: =+IF($K65="Ongoing",BG65,IF(RIGHT($K65,2)=RIGHT(CC$39,2),SUM($AX65:BG65),0)+IF(RIGHT(CC$39,2)>RIGHT($K65,2),BG65,0)) -> 0 | CE65: =+Q65*KeyAssumptionsPriceControl_FO!AC$15 -> 0 | CF65: =+R65*KeyAssumptionsPriceControl_FO!AD$15 -> 0 | CG65: =+S65*KeyAssumptionsPriceControl_FO!AE$15 -> 0 | CH65: =+T65*KeyAssumptionsPriceControl_FO!AF$15 -> 0 | CI65: =+U65*KeyAssumptionsPriceControl_FO!AG$15 -> 0 | CJ65: =+V65*KeyAssumptionsPriceControl_FO!AH$15 -> 0.5734436154 | CK65: =+W65*KeyAssumptionsPriceControl_FO!AI$15 -> 0.9522298403 | CL65: =+X65*KeyAssumptionsPriceControl_FO!AJ$15 -> 0.2216847642 | CM65: =+Y65*KeyAssumptionsPriceControl_FO!AK$15 -> 0.2283353072 | CN65: =+Z65*KeyAssumptionsPriceControl_FO!AL$15 -> 0 | CP65: 0 | CQ65: 0 | CR65: 0 | CS65: 0 | CT65: 0 | CU65: 0.007168045193 | CV65: 0.02623896339 | CW65: 0.04091289595 | CX65: 0.04653814684 | CY65: 0.04939233818
C66: Mech and Elec | E66: Water | F66: Improvements / Compliance | G66: Treatment | H66: Capital Programs / Allocation | J66: Straight line | K66: Ongoing | L66: 20 | M66: 20 | Q66: 0 | R66: 0 | S66: 0 | T66: 0 | U66: 0 | V66: 0.0401 | W66: 0 | X66: 0 | Y66: 0 | Z66: 0 | AX66: 0 | AY66: 0 | AZ66: 0 | BA66: 0 | BB66: 0 | BC66: 0.0401 | BD66: 0 | BE66: 0 | BF66: 0 | BG66: 0 | BI66: 0 | BJ66: 0 | BK66: 0 | BL66: 0 | BM66: 0 | BN66: 0.0010025 | BO66: 0.002005 | BP66: 0.002005 | BQ66: 0.002005 | BR66: 0.002005 | BT66: =+IF($K66="Ongoing",AX66,IF(RIGHT($K66,2)=RIGHT(BT$39,2),SUM($AX66:AX66),0)+IF(RIGHT(BT$39,2)>RIGHT($K66,2),AX66,0)) -> 0 | BU66: =+IF($K66="Ongoing",AY66,IF(RIGHT($K66,2)=RIGHT(BU$39,2),SUM($AX66:AY66),0)+IF(RIGHT(BU$39,2)>RIGHT($K66,2),AY66,0)) -> 0 | BV66: =+IF($K66="Ongoing",AZ66,IF(RIGHT($K66,2)=RIGHT(BV$39,2),SUM($AX66:AZ66),0)+IF(RIGHT(BV$39,2)>RIGHT($K66,2),AZ66,0)) -> 0 | BW66: =+IF($K66="Ongoing",BA66,IF(RIGHT($K66,2)=RIGHT(BW$39,2),SUM($AX66:BA66),0)+IF(RIGHT(BW$39,2)>RIGHT($K66,2),BA66,0)) -> 0 | BX66: =+IF($K66="Ongoing",BB66,IF(RIGHT($K66,2)=RIGHT(BX$39,2),SUM($AX66:BB66),0)+IF(RIGHT(BX$39,2)>RIGHT($K66,2),BB66,0)) -> 0 | BY66: =+IF($K66="Ongoing",BC66,IF(RIGHT($K66,2)=RIGHT(BY$39,2),SUM($AX66:BC66),0)+IF(RIGHT(BY$39,2)>RIGHT($K66,2),BC66,0)) -> 0.0401 | BZ66: =+IF($K66="Ongoing",BD66,IF(RIGHT($K66,2)=RIGHT(BZ$39,2),SUM($AX66:BD66),0)+IF(RIGHT(BZ$39,2)>RIGHT($K66,2),BD66,0)) -> 0 | CA66: =+IF($K66="Ongoing",BE66,IF(RIGHT($K66,2)=RIGHT(CA$39,2),SUM($AX66:BE66),0)+IF(RIGHT(CA$39,2)>RIGHT($K66,2),BE66,0)) -> 0 | CB66: =+IF($K66="Ongoing",BF66,IF(RIGHT($K66,2)=RIGHT(CB$39,2),SUM($AX66:BF66),0)+IF(RIGHT(CB$39,2)>RIGHT($K66,2),BF66,0)) -> 0 | CC66: =+IF($K66="Ongoing",BG66,IF(RIGHT($K66,2)=RIGHT(CC$39,2),SUM($AX66:BG66),0)+IF(RIGHT(CC$39,2)>RIGHT($K66,2),BG66,0)) -> 0 | CE66: =+Q66*KeyAssumptionsPriceControl_FO!AC$15 -> 0 | CF66: =+R66*KeyAssumptionsPriceControl_FO!AD$15 -> 0 | CG66: =+S66*KeyAssumptionsPriceControl_FO!AE$15 -> 0 | CH66: =+T66*KeyAssumptionsPriceControl_FO!AF$15 -> 0 | CI66: =+U66*KeyAssumptionsPriceControl_FO!AG$15 -> 0 | CJ66: =+V66*KeyAssumptionsPriceControl_FO!AH$15 -> 0.04788149709 | CK66: =+W66*KeyAssumptionsPriceControl_FO!AI$15 -> 0 | CL66: =+X66*KeyAssumptionsPriceControl_FO!AJ$15 -> 0 | CM66: =+Y66*KeyAssumptionsPriceControl_FO!AK$15 -> 0 | CN66: =+Z66*KeyAssumptionsPriceControl_FO!AL$15 -> 0 | CP66: 0 | CQ66: 0 | CR66: 0 | CS66: 0 | CT66: 0 | CU66: 0.001197037427 | CV66: 0.002394074855 | CW66: 0.002394074855 | CX66: 0.002394074855 | CY66: 0.002394074855
C67: Mech and Elec | E67: Water | F67: Improvements / Compliance | G67: Treatment | H67: Capital Programs / Allocation | J67: Straight line | K67: Ongoing | L67: 20 | M67: 20 | Q67: 0.25075 | R67: 0.1 | S67: 0.351125 | T67: 1.6255 | U67: 1.6552 | V67: 0.1500625 | W67: 0 | X67: 0 | Y67: 0.0852125 | Z67: 0.1654125 | AX67: 0.25075 | AY67: 0.1 | AZ67: 0.351125 | BA67: 1.6255 | BB67: 1.6552 | BC67: 0.1500625 | BD67: 0 | BE67: 0 | BF67: 0.0852125 | BG67: 0.1654125 | BI67: 0.00626875 | BJ67: 0.0150375 | BK67: 0.026315625 | BL67: 0.07573125 | BM67: 0.15774875 | BN67: 0.2028803125 | BO67: 0.206631875 | BP67: 0.206631875 | BQ67: 0.2087621875 | BR67: 0.2150278125 | BT67: =+IF($K67="Ongoing",AX67,IF(RIGHT($K67,2)=RIGHT(BT$39,2),SUM($AX67:AX67),0)+IF(RIGHT(BT$39,2)>RIGHT($K67,2),AX67,0)) -> 0.25075 | BU67: =+IF($K67="Ongoing",AY67,IF(RIGHT($K67,2)=RIGHT(BU$39,2),SUM($AX67:AY67),0)+IF(RIGHT(BU$39,2)>RIGHT($K67,2),AY67,0)) -> 0.1 | BV67: =+IF($K67="Ongoing",AZ67,IF(RIGHT($K67,2)=RIGHT(BV$39,2),SUM($AX67:AZ67),0)+IF(RIGHT(BV$39,2)>RIGHT($K67,2),AZ67,0)) -> 0.351125 | BW67: =+IF($K67="Ongoing",BA67,IF(RIGHT($K67,2)=RIGHT(BW$39,2),SUM($AX67:BA67),0)+IF(RIGHT(BW$39,2)>RIGHT($K67,2),BA67,0)) -> 1.6255 | BX67: =+IF($K67="Ongoing",BB67,IF(RIGHT($K67,2)=RIGHT(BX$39,2),SUM($AX67:BB67),0)+IF(RIGHT(BX$39,2)>RIGHT($K67,2),BB67,0)) -> 1.6552 | BY67: =+IF($K67="Ongoing",BC67,IF(RIGHT($K67,2)=RIGHT(BY$39,2),SUM($AX67:BC67),0)+IF(RIGHT(BY$39,2)>RIGHT($K67,2),BC67,0)) -> 0.1500625 | BZ67: =+IF($K67="Ongoing",BD67,IF(RIGHT($K67,2)=RIGHT(BZ$39,2),SUM($AX67:BD67),0)+IF(RIGHT(BZ$39,2)>RIGHT($K67,2),BD67,0)) -> 0 | CA67: =+IF($K67="Ongoing",BE67,IF(RIGHT($K67,2)=RIGHT(CA$39,2),SUM($AX67:BE67),0)+IF(RIGHT(CA$39,2)>RIGHT($K67,2),BE67,0)) -> 0 | CB67: =+IF($K67="Ongoing",BF67,IF(RIGHT($K67,2)=RIGHT(CB$39,2),SUM($AX67:BF67),0)+IF(RIGHT(CB$39,2)>RIGHT($K67,2),BF67,0)) -> 0.0852125 | CC67: =+IF($K67="Ongoing",BG67,IF(RIGHT($K67,2)=RIGHT(CC$39,2),SUM($AX67:BG67),0)+IF(RIGHT(CC$39,2)>RIGHT($K67,2),BG67,0)) -> 0.1654125 | CE67: =+Q67*KeyAssumptionsPriceControl_FO!AC$15 -> 0.2582725 | CF67: =+R67*KeyAssumptionsPriceControl_FO!AD$15 -> 0.10609 | CG67: =+S67*KeyAssumptionsPriceControl_FO!AE$15 -> 0.3836837679 | CH67: =+T67*KeyAssumptionsPriceControl_FO!AF$15 -> 1.829514571 | CI67: =+U67*KeyAssumptionsPriceControl_FO!AG$15 -> 1.918830448 | CJ67: =+V67*KeyAssumptionsPriceControl_FO!AH$15 -> 0.1791824727 | CK67: =+W67*KeyAssumptionsPriceControl_FO!AI$15 -> 0 | CL67: =+X67*KeyAssumptionsPriceControl_FO!AJ$15 -> 0 | CM67: =+Y67*KeyAssumptionsPriceControl_FO!AK$15 -> 0.1111829849 | CN67: =+Z67*KeyAssumptionsPriceControl_FO!AL$15 -> 0.2223005681 | CP67: 0.0064568125 | CQ67: 0.015565875 | CR67: 0.0278102192 | CS67: 0.08314017766 | CT67: 0.1768488031 | CU67: 0.2292991261 | CV67: 0.233778688 | CW67: 0.233778688 | CX67: 0.2365582626 | CY67: 0.2448953514
C68: Mech and Elec | E68: Water | F68: Renewals | G68: Treatment | H68: Capital Programs / Allocation | J68: Straight line | K68: Ongoing | L68: 20 | M68: 20 | Q68: 0.02005 | R68: 0 | S68: 0 | T68: 0 | U68: 0.2355875 | V68: 0.170425 | W68: 0 | X68: 0 | Y68: 0 | Z68: 0.10025 | AX68: 0.02005 | AY68: 0 | AZ68: 0 | BA68: 0 | BB68: 0.2355875 | BC68: 0.170425 | BD68: 0 | BE68: 0 | BF68: 0 | BG68: 0.10025 | BI68: 0.00050125 | BJ68: 0.0010025 | BK68: 0.0010025 | BL68: 0.0010025 | BM68: 0.0068921875 | BN68: 0.0170425 | BO68: 0.021303125 | BP68: 0.021303125 | BQ68: 0.021303125 | BR68: 0.023809375 | BT68: =+IF($K68="Ongoing",AX68,IF(RIGHT($K68,2)=RIGHT(BT$39,2),SUM($AX68:AX68),0)+IF(RIGHT(BT$39,2)>RIGHT($K68,2),AX68,0)) -> 0.02005 | BU68: =+IF($K68="Ongoing",AY68,IF(RIGHT($K68,2)=RIGHT(BU$39,2),SUM($AX68:AY68),0)+IF(RIGHT(BU$39,2)>RIGHT($K68,2),AY68,0)) -> 0 | BV68: =+IF($K68="Ongoing",AZ68,IF(RIGHT($K68,2)=RIGHT(BV$39,2),SUM($AX68:AZ68),0)+IF(RIGHT(BV$39,2)>RIGHT($K68,2),AZ68,0)) -> 0 | BW68: =+IF($K68="Ongoing",BA68,IF(RIGHT($K68,2)=RIGHT(BW$39,2),SUM($AX68:BA68),0)+IF(RIGHT(BW$39,2)>RIGHT($K68,2),BA68,0)) -> 0 | BX68: =+IF($K68="Ongoing",BB68,IF(RIGHT($K68,2)=RIGHT(BX$39,2),SUM($AX68:BB68),0)+IF(RIGHT(BX$39,2)>RIGHT($K68,2),BB68,0)) -> 0.2355875 | BY68: =+IF($K68="Ongoing",BC68,IF(RIGHT($K68,2)=RIGHT(BY$39,2),SUM($AX68:BC68),0)+IF(RIGHT(BY$39,2)>RIGHT($K68,2),BC68,0)) -> 0.170425 | BZ68: =+IF($K68="Ongoing",BD68,IF(RIGHT($K68,2)=RIGHT(BZ$39,2),SUM($AX68:BD68),0)+IF(RIGHT(BZ$39,2)>RIGHT($K68,2),BD68,0)) -> 0 | CA68: =+IF($K68="Ongoing",BE68,IF(RIGHT($K68,2)=RIGHT(CA$39,2),SUM($AX68:BE68),0)+IF(RIGHT(CA$39,2)>RIGHT($K68,2),BE68,0)) -> 0 | CB68: =+IF($K68="Ongoing",BF68,IF(RIGHT($K68,2)=RIGHT(CB$39,2),SUM($AX68:BF68),0)+IF(RIGHT(CB$39,2)>RIGHT($K68,2),BF68,0)) -> 0 | CC68: =+IF($K68="Ongoing",BG68,IF(RIGHT($K68,2)=RIGHT(CC$39,2),SUM($AX68:BG68),0)+IF(RIGHT(CC$39,2)>RIGHT($K68,2),BG68,0)) -> 0.10025 | CE68: =+Q68*KeyAssumptionsPriceControl_FO!AC$15 -> 0.0206515 | CF68: =+R68*KeyAssumptionsPriceControl_FO!AD$15 -> 0 | CG68: =+S68*KeyAssumptionsPriceControl_FO!AE$15 -> 0 | CH68: =+T68*KeyAssumptionsPriceControl_FO!AF$15 -> 0 | CI68: =+U68*KeyAssumptionsPriceControl_FO!AG$15 -> 0.273110481 | CJ68: =+V68*KeyAssumptionsPriceControl_FO!AH$15 -> 0.2034963626 | CK68: =+W68*KeyAssumptionsPriceControl_FO!AI$15 -> 0 | CL68: =+X68*KeyAssumptionsPriceControl_FO!AJ$15 -> 0 | CM68: =+Y68*KeyAssumptionsPriceControl_FO!AK$15 -> 0 | CN68: =+Z68*KeyAssumptionsPriceControl_FO!AL$15 -> 0.134727617 | CP68: 0.0005162875 | CQ68: 0.001032575 | CR68: 0.001032575 | CS68: 0.001032575 | CT68: 0.007860337024 | CU68: 0.01977550811 | CV68: 0.02486291718 | CW68: 0.02486291718 | CX68: 0.02486291718 | CY68: 0.02823110761
C69: Meters | E69: Water | F69: Growth | G69: Pipelines/network | H69: Capital Programs / Allocation | J69: Straight line | K69: Ongoing | L69: 40 | M69: 40 | Q69: 0 | R69: 0 | S69: 0 | T69: 0 | U69: 0 | V69: 0.02376 | W69: 0.02376 | X69: 0.02376 | Y69: 0.02376 | Z69: 0.02376 | AX69: 0 | AY69: 0 | AZ69: 0 | BA69: 0 | BB69: 0 | BC69: 0.02376 | BD69: 0.02376 | BE69: 0.02376 | BF69: 0.02376 | BG69: 0.02376 | BI69: 0 | BJ69: 0 | BK69: 0 | BL69: 0 | BM69: 0 | BN69: 0.000297 | BO69: 0.000891 | BP69: 0.001485 | BQ69: 0.002079 | BR69: 0.002673 | BT69: =+IF($K69="Ongoing",AX69,IF(RIGHT($K69,2)=RIGHT(BT$39,2),SUM($AX69:AX69),0)+IF(RIGHT(BT$39,2)>RIGHT($K69,2),AX69,0)) -> 0 | BU69: =+IF($K69="Ongoing",AY69,IF(RIGHT($K69,2)=RIGHT(BU$39,2),SUM($AX69:AY69),0)+IF(RIGHT(BU$39,2)>RIGHT($K69,2),AY69,0)) -> 0 | BV69: =+IF($K69="Ongoing",AZ69,IF(RIGHT($K69,2)=RIGHT(BV$39,2),SUM($AX69:AZ69),0)+IF(RIGHT(BV$39,2)>RIGHT($K69,2),AZ69,0)) -> 0 | BW69: =+IF($K69="Ongoing",BA69,IF(RIGHT($K69,2)=RIGHT(BW$39,2),SUM($AX69:BA69),0)+IF(RIGHT(BW$39,2)>RIGHT($K69,2),BA69,0)) -> 0 | BX69: =+IF($K69="Ongoing",BB69,IF(RIGHT($K69,2)=RIGHT(BX$39,2),SUM($AX69:BB69),0)+IF(RIGHT(BX$39,2)>RIGHT($K69,2),BB69,0)) -> 0 | BY69: =+IF($K69="Ongoing",BC69,IF(RIGHT($K69,2)=RIGHT(BY$39,2),SUM($AX69:BC69),0)+IF(RIGHT(BY$39,2)>RIGHT($K69,2),BC69,0)) -> 0.02376 | BZ69: =+IF($K69="Ongoing",BD69,IF(RIGHT($K69,2)=RIGHT(BZ$39,2),SUM($AX69:BD69),0)+IF(RIGHT(BZ$39,2)>RIGHT($K69,2),BD69,0)) -> 0.02376 | CA69: =+IF($K69="Ongoing",BE69,IF(RIGHT($K69,2)=RIGHT(CA$39,2),SUM($AX69:BE69),0)+IF(RIGHT(CA$39,2)>RIGHT($K69,2),BE69,0)) -> 0.02376 | CB69: =+IF($K69="Ongoing",BF69,IF(RIGHT($K69,2)=RIGHT(CB$39,2),SUM($AX69:BF69),0)+IF(RIGHT(CB$39,2)>RIGHT($K69,2),BF69,0)) -> 0.02376 | CC69: =+IF($K69="Ongoing",BG69,IF(RIGHT($K69,2)=RIGHT(CC$39,2),SUM($AX69:BG69),0)+IF(RIGHT(CC$39,2)>RIGHT($K69,2),BG69,0)) -> 0.02376 | CE69: =+Q69*KeyAssumptionsPriceControl_FO!AC$15 -> 0 | CF69: =+R69*KeyAssumptionsPriceControl_FO!AD$15 -> 0 | CG69: =+S69*KeyAssumptionsPriceControl_FO!AE$15 -> 0 | CH69: =+T69*KeyAssumptionsPriceControl_FO!AF$15 -> 0 | CI69: =+U69*KeyAssumptionsPriceControl_FO!AG$15 -> 0 | CJ69: =+V69*KeyAssumptionsPriceControl_FO!AH$15 -> 0.02837068257 | CK69: =+W69*KeyAssumptionsPriceControl_FO!AI$15 -> 0.02922180304 | CL69: =+X69*KeyAssumptionsPriceControl_FO!AJ$15 -> 0.03009845713 | CM69: =+Y69*KeyAssumptionsPriceControl_FO!AK$15 -> 0.03100141085 | CN69: =+Z69*KeyAssumptionsPriceControl_FO!AL$15 -> 0.03193145317 | CP69: 0 | CQ69: 0 | CR69: 0 | CS69: 0 | CT69: 0 | CU69: 0.0003546335321 | CV69: 0.001074539602 | CW69: 0.001816042854 | CX69: 0.002579791204 | CY69: 0.003366452004
C70: Office Equipment | E70: Water | F70: Improvements / Compliance | G70: Corporate | H70: Capital Programs / Allocation | J70: Straight line | K70: Ongoing | L70: 10 | M70: 10 | Q70: 0 | R70: 0 | S70: 0 | T70: 0 | U70: 0 | V70: 0.07 | W70: 0.184 | X70: 0.06 | Y70: 0.04 | Z70: 0.04 | AX70: 0 | AY70: 0 | AZ70: 0 | BA70: 0 | BB70: 0 | BC70: 0.07 | BD70: 0.184 | BE70: 0.06 | BF70: 0.04 | BG70: 0.04 | BI70: 0 | BJ70: 0 | BK70: 0 | BL70: 0 | BM70: 0 | BN70: 0.0035 | BO70: 0.0162 | BP70: 0.0284 | BQ70: 0.0334 | BR70: 0.0374 | BT70: =+IF($K70="Ongoing",AX70,IF(RIGHT($K70,2)=RIGHT(BT$39,2),SUM($AX70:AX70),0)+IF(RIGHT(BT$39,2)>RIGHT($K70,2),AX70,0)) -> 0 | BU70: =+IF($K70="Ongoing",AY70,IF(RIGHT($K70,2)=RIGHT(BU$39,2),SUM($AX70:AY70),0)+IF(RIGHT(BU$39,2)>RIGHT($K70,2),AY70,0)) -> 0 | BV70: =+IF($K70="Ongoing",AZ70,IF(RIGHT($K70,2)=RIGHT(BV$39,2),SUM($AX70:AZ70),0)+IF(RIGHT(BV$39,2)>RIGHT($K70,2),AZ70,0)) -> 0 | BW70: =+IF($K70="Ongoing",BA70,IF(RIGHT($K70,2)=RIGHT(BW$39,2),SUM($AX70:BA70),0)+IF(RIGHT(BW$39,2)>RIGHT($K70,2),BA70,0)) -> 0 | BX70: =+IF($K70="Ongoing",BB70,IF(RIGHT($K70,2)=RIGHT(BX$39,2),SUM($AX70:BB70),0)+IF(RIGHT(BX$39,2)>RIGHT($K70,2),BB70,0)) -> 0 | BY70: =+IF($K70="Ongoing",BC70,IF(RIGHT($K70,2)=RIGHT(BY$39,2),SUM($AX70:BC70),0)+IF(RIGHT(BY$39,2)>RIGHT($K70,2),BC70,0)) -> 0.07 | BZ70: =+IF($K70="Ongoing",BD70,IF(RIGHT($K70,2)=RIGHT(BZ$39,2),SUM($AX70:BD70),0)+IF(RIGHT(BZ$39,2)>RIGHT($K70,2),BD70,0)) -> 0.184 | CA70: =+IF($K70="Ongoing",BE70,IF(RIGHT($K70,2)=RIGHT(CA$39,2),SUM($AX70:BE70),0)+IF(RIGHT(CA$39,2)>RIGHT($K70,2),BE70,0)) -> 0.06 | CB70: =+IF($K70="Ongoing",BF70,IF(RIGHT($K70,2)=RIGHT(CB$39,2),SUM($AX70:BF70),0)+IF(RIGHT(CB$39,2)>RIGHT($K70,2),BF70,0)) -> 0.04 | CC70: =+IF($K70="Ongoing",BG70,IF(RIGHT($K70,2)=RIGHT(CC$39,2),SUM($AX70:BG70),0)+IF(RIGHT(CC$39,2)>RIGHT($K70,2),BG70,0)) -> 0.04 | CE70: =+Q70*KeyAssumptionsPriceControl_FO!AC$15 -> 0 | CF70: =+R70*KeyAssumptionsPriceControl_FO!AD$15 -> 0 | CG70: =+S70*KeyAssumptionsPriceControl_FO!AE$15 -> 0 | CH70: =+T70*KeyAssumptionsPriceControl_FO!AF$15 -> 0 | CI70: =+U70*KeyAssumptionsPriceControl_FO!AG$15 -> 0 | CJ70: =+V70*KeyAssumptionsPriceControl_FO!AH$15 -> 0.08358366076 | CK70: =+W70*KeyAssumptionsPriceControl_FO!AI$15 -> 0.2262967912 | CL70: =+X70*KeyAssumptionsPriceControl_FO!AJ$15 -> 0.07600620488 | CM70: =+Y70*KeyAssumptionsPriceControl_FO!AK$15 -> 0.05219092735 | CN70: =+Z70*KeyAssumptionsPriceControl_FO!AL$15 -> 0.05375665517 | CP70: 0 | CQ70: 0 | CR70: 0 | CS70: 0 | CT70: 0 | CU70: 0.004179183038 | CV70: 0.01967320564 | CW70: 0.03478835544 | CX70: 0.04119821206 | CY70: 0.04649559118
C71: Pipelines | E71: Sewerage | F71: Growth | G71: Pipelines/network | H71: Capital Programs / Allocation | J71: Straight line | K71: Ongoing | L71: 100 | M71: 100 | Q71: 0 | R71: 0 | S71: 0 | T71: 0 | U71: 0 | V71: 0.2125 | W71: 0.95875 | X71: 0.15 | Y71: 0.065 | Z71: 0.67245 | AX71: 0 | AY71: 0 | AZ71: 0 | BA71: 0 | BB71: 0 | BC71: 0.2125 | BD71: 0.95875 | BE71: 0.15 | BF71: 0.065 | BG71: 0.67245 | BI71: 0 | BJ71: 0 | BK71: 0 | BL71: 0 | BM71: 0 | BN71: 0.0010625 | BO71: 0.00691875 | BP71: 0.0124625 | BQ71: 0.0135375 | BR71: 0.01722475 | BT71: =+IF($K71="Ongoing",AX71,IF(RIGHT($K71,2)=RIGHT(BT$39,2),SUM($AX71:AX71),0)+IF(RIGHT(BT$39,2)>RIGHT($K71,2),AX71,0)) -> 0 | BU71: =+IF($K71="Ongoing",AY71,IF(RIGHT($K71,2)=RIGHT(BU$39,2),SUM($AX71:AY71),0)+IF(RIGHT(BU$39,2)>RIGHT($K71,2),AY71,0)) -> 0 | BV71: =+IF($K71="Ongoing",AZ71,IF(RIGHT($K71,2)=RIGHT(BV$39,2),SUM($AX71:AZ71),0)+IF(RIGHT(BV$39,2)>RIGHT($K71,2),AZ71,0)) -> 0 | BW71: =+IF($K71="Ongoing",BA71,IF(RIGHT($K71,2)=RIGHT(BW$39,2),SUM($AX71:BA71),0)+IF(RIGHT(BW$39,2)>RIGHT($K71,2),BA71,0)) -> 0 | BX71: =+IF($K71="Ongoing",BB71,IF(RIGHT($K71,2)=RIGHT(BX$39,2),SUM($AX71:BB71),0)+IF(RIGHT(BX$39,2)>RIGHT($K71,2),BB71,0)) -> 0 | BY71: =+IF($K71="Ongoing",BC71,IF(RIGHT($K71,2)=RIGHT(BY$39,2),SUM($AX71:BC71),0)+IF(RIGHT(BY$39,2)>RIGHT($K71,2),BC71,0)) -> 0.2125 | BZ71: =+IF($K71="Ongoing",BD71,IF(RIGHT($K71,2)=RIGHT(BZ$39,2),SUM($AX71:BD71),0)+IF(RIGHT(BZ$39,2)>RIGHT($K71,2),BD71,0)) -> 0.95875 | CA71: =+IF($K71="Ongoing",BE71,IF(RIGHT($K71,2)=RIGHT(CA$39,2),SUM($AX71:BE71),0)+IF(RIGHT(CA$39,2)>RIGHT($K71,2),BE71,0)) -> 0.15 | CB71: =+IF($K71="Ongoing",BF71,IF(RIGHT($K71,2)=RIGHT(CB$39,2),SUM($AX71:BF71),0)+IF(RIGHT(CB$39,2)>RIGHT($K71,2),BF71,0)) -> 0.065 | CC71: =+IF($K71="Ongoing",BG71,IF(RIGHT($K71,2)=RIGHT(CC$39,2),SUM($AX71:BG71),0)+IF(RIGHT(CC$39,2)>RIGHT($K71,2),BG71,0)) -> 0.67245 | CE71: =+Q71*KeyAssumptionsPriceControl_FO!AC$15 -> 0 | CF71: =+R71*KeyAssumptionsPriceControl_FO!AD$15 -> 0 | CG71: =+S71*KeyAssumptionsPriceControl_FO!AE$15 -> 0 | CH71: =+T71*KeyAssumptionsPriceControl_FO!AF$15 -> 0 | CI71: =+U71*KeyAssumptionsPriceControl_FO!AG$15 -> 0 | CJ71: =+V71*KeyAssumptionsPriceControl_FO!AH$15 -> 0.253736113 | CK71: =+W71*KeyAssumptionsPriceControl_FO!AI$15 -> 1.179141568 | CL71: =+X71*KeyAssumptionsPriceControl_FO!AJ$15 -> 0.1900155122 | CM71: =+Y71*KeyAssumptionsPriceControl_FO!AK$15 -> 0.08481025695 | CN71: =+Z71*KeyAssumptionsPriceControl_FO!AL$15 -> 0.9037165693 | CP71: 0 | CQ71: 0 | CR71: 0 | CS71: 0 | CT71: 0 | CU71: 0.001268680565 | CV71: 0.008433068973 | CW71: 0.01527885438 | CX71: 0.01665298322 | CY71: 0.02159561735
C72: Pipelines | E72: Sewerage | F72: Improvements / Compliance | G72: Pipelines/network | H72: Capital Programs / Allocation | J72: Straight line | K72: Ongoing | L72: 100 | M72: 100 | Q72: 0.11185 | R72: 0.105 | S72: 0.1003125 | T72: 0 | U72: 0 | V72: 0.497825 | W72: 2.350125 | X72: 0 | Y72: 0.04 | Z72: 0.302 | AX72: 0.11185 | AY72: 0.105 | AZ72: 0.1003125 | BA72: 0 | BB72: 0 | BC72: 0.497825 | BD72: 2.350125 | BE72: 0 | BF72: 0.04 | BG72: 0.302 | BI72: 0.00055925 | BJ72: 0.0016435 | BK72: 0.0026700625 | BL72: 0.003171625 | BM72: 0.003171625 | BN72: 0.00566075 | BO72: 0.0199005 | BP72: 0.031651125 | BQ72: 0.031851125 | BR72: 0.033561125 | BT72: =+IF($K72="Ongoing",AX72,IF(RIGHT($K72,2)=RIGHT(BT$39,2),SUM($AX72:AX72),0)+IF(RIGHT(BT$39,2)>RIGHT($K72,2),AX72,0)) -> 0.11185 | BU72: =+IF($K72="Ongoing",AY72,IF(RIGHT($K72,2)=RIGHT(BU$39,2),SUM($AX72:AY72),0)+IF(RIGHT(BU$39,2)>RIGHT($K72,2),AY72,0)) -> 0.105 | BV72: =+IF($K72="Ongoing",AZ72,IF(RIGHT($K72,2)=RIGHT(BV$39,2),SUM($AX72:AZ72),0)+IF(RIGHT(BV$39,2)>RIGHT($K72,2),AZ72,0)) -> 0.1003125 | BW72: =+IF($K72="Ongoing",BA72,IF(RIGHT($K72,2)=RIGHT(BW$39,2),SUM($AX72:BA72),0)+IF(RIGHT(BW$39,2)>RIGHT($K72,2),BA72,0)) -> 0 | BX72: =+IF($K72="Ongoing",BB72,IF(RIGHT($K72,2)=RIGHT(BX$39,2),SUM($AX72:BB72),0)+IF(RIGHT(BX$39,2)>RIGHT($K72,2),BB72,0)) -> 0 | BY72: =+IF($K72="Ongoing",BC72,IF(RIGHT($K72,2)=RIGHT(BY$39,2),SUM($AX72:BC72),0)+IF(RIGHT(BY$39,2)>RIGHT($K72,2),BC72,0)) -> 0.497825 | BZ72: =+IF($K72="Ongoing",BD72,IF(RIGHT($K72,2)=RIGHT(BZ$39,2),SUM($AX72:BD72),0)+IF(RIGHT(BZ$39,2)>RIGHT($K72,2),BD72,0)) -> 2.350125 | CA72: =+IF($K72="Ongoing",BE72,IF(RIGHT($K72,2)=RIGHT(CA$39,2),SUM($AX72:BE72),0)+IF(RIGHT(CA$39,2)>RIGHT($K72,2),BE72,0)) -> 0 | CB72: =+IF($K72="Ongoing",BF72,IF(RIGHT($K72,2)=RIGHT(CB$39,2),SUM($AX72:BF72),0)+IF(RIGHT(CB$39,2)>RIGHT($K72,2),BF72,0)) -> 0.04 | CC72: =+IF($K72="Ongoing",BG72,IF(RIGHT($K72,2)=RIGHT(CC$39,2),SUM($AX72:BG72),0)+IF(RIGHT(CC$39,2)>RIGHT($K72,2),BG72,0)) -> 0.302 | CE72: =+Q72*KeyAssumptionsPriceControl_FO!AC$15 -> 0.1152055 | CF72: =+R72*KeyAssumptionsPriceControl_FO!AD$15 -> 0.1113945 | CG72: =+S72*KeyAssumptionsPriceControl_FO!AE$15 -> 0.1096141772 | CH72: =+T72*KeyAssumptionsPriceControl_FO!AF$15 -> 0 | CI72: =+U72*KeyAssumptionsPriceControl_FO!AG$15 -> 0 | CJ72: =+V72*KeyAssumptionsPriceControl_FO!AH$15 -> 0.5944290845 | CK72: =+W72*KeyAssumptionsPriceControl_FO!AI$15 -> 2.890357318 | CL72: =+X72*KeyAssumptionsPriceControl_FO!AJ$15 -> 0 | CM72: =+Y72*KeyAssumptionsPriceControl_FO!AK$15 -> 0.05219092735 | CN72: =+Z72*KeyAssumptionsPriceControl_FO!AL$15 -> 0.4058627466 | CP72: 0.0005760275 | CQ72: 0.0017090275 | CR72: 0.002814070886 | CS72: 0.003362141772 | CT72: 0.003362141772 | CU72: 0.006334287194 | CV72: 0.02375821921 | CW72: 0.0382100058 | CX72: 0.03847096043 | CY72: 0.0407612288
C73: Pipelines | E73: Sewerage | F73: Renewals | G73: Pipelines/network | H73: Capital Programs / Allocation | J73: Straight line | K73: Ongoing | L73: 80 | M73: 80 | Q73: 1.399877702 | R73: 1.39949344 | S73: 1.399960742 | T73: 1.399552654 | U73: 1.399899783 | V73: 1.870216207 | W73: 1.509668688 | X73: 1.399705676 | Y73: 1.399808016 | Z73: 1.415620131 | AX73: =+Q73-AB73-AM73 -> 1.399877702 | AY73: 1.39949344 | AZ73: 1.399960742 | BA73: 1.399552654 | BB73: 1.399899783 | BC73: 1.870216207 | BD73: 1.509668688 | BE73: 1.399705676 | BF73: 1.399808016 | BG73: 1.415620131 | BI73: 0.008749235638 | BJ73: 0.02624530528 | BK73: 0.04374189392 | BL73: 0.06123885265 | BM73: 0.07873543038 | BN73: 0.09917365532 | BO73: 0.1202979359 | BP73: 0.1384815257 | BQ73: 0.1559784863 | BR73: 0.1735749122 | BT73: =+IF($K73="Ongoing",AX73,IF(RIGHT($K73,2)=RIGHT(BT$39,2),SUM($AX73:AX73),0)+IF(RIGHT(BT$39,2)>RIGHT($K73,2),AX73,0)) -> 1.399877702 | BU73: =+IF($K73="Ongoing",AY73,IF(RIGHT($K73,2)=RIGHT(BU$39,2),SUM($AX73:AY73),0)+IF(RIGHT(BU$39,2)>RIGHT($K73,2),AY73,0)) -> 1.39949344 | BV73: =+IF($K73="Ongoing",AZ73,IF(RIGHT($K73,2)=RIGHT(BV$39,2),SUM($AX73:AZ73),0)+IF(RIGHT(BV$39,2)>RIGHT($K73,2),AZ73,0)) -> 1.399960742 | BW73: =+IF($K73="Ongoing",BA73,IF(RIGHT($K73,2)=RIGHT(BW$39,2),SUM($AX73:BA73),0)+IF(RIGHT(BW$39,2)>RIGHT($K73,2),BA73,0)) -> 1.399552654 | BX73: =+IF($K73="Ongoing",BB73,IF(RIGHT($K73,2)=RIGHT(BX$39,2),SUM($AX73:BB73),0)+IF(RIGHT(BX$39,2)>RIGHT($K73,2),BB73,0)) -> 1.399899783 | BY73: =+IF($K73="Ongoing",BC73,IF(RIGHT($K73,2)=RIGHT(BY$39,2),SUM($AX73:BC73),0)+IF(RIGHT(BY$39,2)>RIGHT($K73,2),BC73,0)) -> 1.870216207 | BZ73: =+IF($K73="Ongoing",BD73,IF(RIGHT($K73,2)=RIGHT(BZ$39,2),SUM($AX73:BD73),0)+IF(RIGHT(BZ$39,2)>RIGHT($K73,2),BD73,0)) -> 1.509668688 | CA73: =+IF($K73="Ongoing",BE73,IF(RIGHT($K73,2)=RIGHT(CA$39,2),SUM($AX73:BE73),0)+IF(RIGHT(CA$39,2)>RIGHT($K73,2),BE73,0)) -> 1.399705676 | CB73: =+IF($K73="Ongoing",BF73,IF(RIGHT($K73,2)=RIGHT(CB$39,2),SUM($AX73:BF73),0)+IF(RIGHT(CB$39,2)>RIGHT($K73,2),BF73,0)) -> 1.399808016 | CC73: =+IF($K73="Ongoing",BG73,IF(RIGHT($K73,2)=RIGHT(CC$39,2),SUM($AX73:BG73),0)+IF(RIGHT(CC$39,2)>RIGHT($K73,2),BG73,0)) -> 1.415620131 | CE73: =+Q73*KeyAssumptionsPriceControl_FO!AC$15 -> 1.441874033 | CF73: =+R73*KeyAssumptionsPriceControl_FO!AD$15 -> 1.484722591 | CG73: =+S73*KeyAssumptionsPriceControl_FO!AE$15 -> 1.529774902 | CH73: =+T73*KeyAssumptionsPriceControl_FO!AF$15 -> 1.575208843 | CI73: =+U73*KeyAssumptionsPriceControl_FO!AG$15 -> 1.622867525 | CJ73: =+V73*KeyAssumptionsPriceControl_FO!AH$15 -> 2.233135957 | CK73: =+W73*KeyAssumptionsPriceControl_FO!AI$15 -> 1.856702064 | CL73: =+X73*KeyAssumptionsPriceControl_FO!AJ$15 -> 1.773105274 | CM73: =+Y73*KeyAssumptionsPriceControl_FO!AK$15 -> 1.826431962 | CN73: =+Z73*KeyAssumptionsPriceControl_FO!AL$15 -> 1.902475081 | CP73: 0.009011712707 | CQ73: 0.02730294161 | CR73: 0.04614355094 | CS73: 0.06554969934 | CT73: 0.08553767664 | CU73: 0.1096376984 | CV73: 0.135199186 | CW73: 0.1578854819 | CX73: 0.1803825896 | CY73: 0.2036882586
C74: Pipelines | E74: Water | F74: Growth | G74: Pipelines/network | H74: Capital Programs / Allocation | J74: Straight line | K74: Ongoing | L74: 80 | M74: 80 | Q74: 0.982 | R74: 0.57 | S74: 0 | T74: 0.37 | U74: 0.37 | V74: 0.52625 | W74: 1.732 | X74: 0 | Y74: 0.562 | Z74: 1.58475 | AX74: 0.982 | AY74: 0.57 | AZ74: 0 | BA74: 0.37 | BB74: 0.37 | BC74: 0.52625 | BD74: 1.732 | BE74: 0 | BF74: 0.562 | BG74: 1.58475 | BI74: 0.0061375 | BJ74: 0.0158375 | BK74: 0.0194 | BL74: 0.0217125 | BM74: 0.0263375 | BN74: 0.0319390625 | BO74: 0.046053125 | BP74: 0.056878125 | BQ74: 0.060390625 | BR74: 0.0738078125 | BT74: =+IF($K74="Ongoing",AX74,IF(RIGHT($K74,2)=RIGHT(BT$39,2),SUM($AX74:AX74),0)+IF(RIGHT(BT$39,2)>RIGHT($K74,2),AX74,0)) -> 0.982 | BU74: =+IF($K74="Ongoing",AY74,IF(RIGHT($K74,2)=RIGHT(BU$39,2),SUM($AX74:AY74),0)+IF(RIGHT(BU$39,2)>RIGHT($K74,2),AY74,0)) -> 0.57 | BV74: =+IF($K74="Ongoing",AZ74,IF(RIGHT($K74,2)=RIGHT(BV$39,2),SUM($AX74:AZ74),0)+IF(RIGHT(BV$39,2)>RIGHT($K74,2),AZ74,0)) -> 0 | BW74: =+IF($K74="Ongoing",BA74,IF(RIGHT($K74,2)=RIGHT(BW$39,2),SUM($AX74:BA74),0)+IF(RIGHT(BW$39,2)>RIGHT($K74,2),BA74,0)) -> 0.37 | BX74: =+IF($K74="Ongoing",BB74,IF(RIGHT($K74,2)=RIGHT(BX$39,2),SUM($AX74:BB74),0)+IF(RIGHT(BX$39,2)>RIGHT($K74,2),BB74,0)) -> 0.37 | BY74: =+IF($K74="Ongoing",BC74,IF(RIGHT($K74,2)=RIGHT(BY$39,2),SUM($AX74:BC74),0)+IF(RIGHT(BY$39,2)>RIGHT($K74,2),BC74,0)) -> 0.52625 | BZ74: =+IF($K74="Ongoing",BD74,IF(RIGHT($K74,2)=RIGHT(BZ$39,2),SUM($AX74:BD74),0)+IF(RIGHT(BZ$39,2)>RIGHT($K74,2),BD74,0)) -> 1.732 | CA74: =+IF($K74="Ongoing",BE74,IF(RIGHT($K74,2)=RIGHT(CA$39,2),SUM($AX74:BE74),0)+IF(RIGHT(CA$39,2)>RIGHT($K74,2),BE74,0)) -> 0 | CB74: =+IF($K74="Ongoing",BF74,IF(RIGHT($K74,2)=RIGHT(CB$39,2),SUM($AX74:BF74),0)+IF(RIGHT(CB$39,2)>RIGHT($K74,2),BF74,0)) -> 0.562 | CC74: =+IF($K74="Ongoing",BG74,IF(RIGHT($K74,2)=RIGHT(CC$39,2),SUM($AX74:BG74),0)+IF(RIGHT(CC$39,2)>RIGHT($K74,2),BG74,0)) -> 1.58475 | CE74: =+Q74*KeyAssumptionsPriceControl_FO!AC$15 -> 1.01146 | CF74: =+R74*KeyAssumptionsPriceControl_FO!AD$15 -> 0.604713 | CG74: =+S74*KeyAssumptionsPriceControl_FO!AE$15 -> 0 | CH74: =+T74*KeyAssumptionsPriceControl_FO!AF$15 -> 0.4164382597 | CI74: =+U74*KeyAssumptionsPriceControl_FO!AG$15 -> 0.4289314075 | CJ74: =+V74*KeyAssumptionsPriceControl_FO!AH$15 -> 0.628370021 | CK74: =+W74*KeyAssumptionsPriceControl_FO!AI$15 -> 2.130141535 | CL74: =+X74*KeyAssumptionsPriceControl_FO!AJ$15 -> 0 | CM74: =+Y74*KeyAssumptionsPriceControl_FO!AK$15 -> 0.7332825293 | CN74: =+Z74*KeyAssumptionsPriceControl_FO!AL$15 -> 2.129771482 | CP74: 0.006321625 | CQ74: 0.01642270625 | CR74: 0.0202021625 | CS74: 0.02280490162 | CT74: 0.02808846204 | CU74: 0.03469659597 | CV74: 0.0519372932 | CW74: 0.06525067779 | CX74: 0.0698336936 | CY74: 0.08772778117
C75: Pipelines | E75: Water | F75: Improvements / Compliance | G75: Pipelines/network | H75: Capital Programs / Allocation | J75: Straight line | K75: Ongoing | L75: 80 | M75: 80 | Q75: 0.39 | R75: 0.39 | S75: 0.39 | T75: 0.39 | U75: 0.39 | V75: 0.26088865 | W75: 0.25644433 | X75: 0.25644433 | Y75: 0.48 | Z75: 2.33108865 | AX75: 0.39 | AY75: 0.39 | AZ75: 0.39 | BA75: 0.39 | BB75: 0.39 | BC75: 0.26088865 | BD75: 0.25644433 | BE75: 0.25644433 | BF75: 0.48 | BG75: 2.33108865 | BI75: 0.0024375 | BJ75: 0.0073125 | BK75: 0.0121875 | BL75: 0.0170625 | BM75: 0.0219375 | BN75: 0.02600555406 | BO75: 0.02923888519 | BP75: 0.03244443931 | BQ75: 0.03704721638 | BR75: 0.05461652044 | BT75: =+IF($K75="Ongoing",AX75,IF(RIGHT($K75,2)=RIGHT(BT$39,2),SUM($AX75:AX75),0)+IF(RIGHT(BT$39,2)>RIGHT($K75,2),AX75,0)) -> 0.39 | BU75: =+IF($K75="Ongoing",AY75,IF(RIGHT($K75,2)=RIGHT(BU$39,2),SUM($AX75:AY75),0)+IF(RIGHT(BU$39,2)>RIGHT($K75,2),AY75,0)) -> 0.39 | BV75: =+IF($K75="Ongoing",AZ75,IF(RIGHT($K75,2)=RIGHT(BV$39,2),SUM($AX75:AZ75),0)+IF(RIGHT(BV$39,2)>RIGHT($K75,2),AZ75,0)) -> 0.39 | BW75: =+IF($K75="Ongoing",BA75,IF(RIGHT($K75,2)=RIGHT(BW$39,2),SUM($AX75:BA75),0)+IF(RIGHT(BW$39,2)>RIGHT($K75,2),BA75,0)) -> 0.39 | BX75: =+IF($K75="Ongoing",BB75,IF(RIGHT($K75,2)=RIGHT(BX$39,2),SUM($AX75:BB75),0)+IF(RIGHT(BX$39,2)>RIGHT($K75,2),BB75,0)) -> 0.39 | BY75: =+IF($K75="Ongoing",BC75,IF(RIGHT($K75,2)=RIGHT(BY$39,2),SUM($AX75:BC75),0)+IF(RIGHT(BY$39,2)>RIGHT($K75,2),BC75,0)) -> 0.26088865 | BZ75: =+IF($K75="Ongoing",BD75,IF(RIGHT($K75,2)=RIGHT(BZ$39,2),SUM($AX75:BD75),0)+IF(RIGHT(BZ$39,2)>RIGHT($K75,2),BD75,0)) -> 0.25644433 | CA75: =+IF($K75="Ongoing",BE75,IF(RIGHT($K75,2)=RIGHT(CA$39,2),SUM($AX75:BE75),0)+IF(RIGHT(CA$39,2)>RIGHT($K75,2),BE75,0)) -> 0.25644433 | CB75: =+IF($K75="Ongoing",BF75,IF(RIGHT($K75,2)=RIGHT(CB$39,2),SUM($AX75:BF75),0)+IF(RIGHT(CB$39,2)>RIGHT($K75,2),BF75,0)) -> 0.48 | CC75: =+IF($K75="Ongoing",BG75,IF(RIGHT($K75,2)=RIGHT(CC$39,2),SUM($AX75:BG75),0)+IF(RIGHT(CC$39,2)>RIGHT($K75,2),BG75,0)) -> 2.33108865 | CE75: =+Q75*KeyAssumptionsPriceControl_FO!AC$15 -> 0.4017 | CF75: =+R75*KeyAssumptionsPriceControl_FO!AD$15 -> 0.413751 | CG75: =+S75*KeyAssumptionsPriceControl_FO!AE$15 -> 0.42616353 | CH75: =+T75*KeyAssumptionsPriceControl_FO!AF$15 -> 0.4389484359 | CI75: =+U75*KeyAssumptionsPriceControl_FO!AG$15 -> 0.452116889 | CJ75: =+V75*KeyAssumptionsPriceControl_FO!AH$15 -> 0.3115146917 | CK75: =+W75*KeyAssumptionsPriceControl_FO!AI$15 -> 0.3153941794 | CL75: =+X75*KeyAssumptionsPriceControl_FO!AJ$15 -> 0.3248560048 | CM75: =+Y75*KeyAssumptionsPriceControl_FO!AK$15 -> 0.6262911282 | CN75: =+Z75*KeyAssumptionsPriceControl_FO!AL$15 -> 3.132788218 | CP75: 0.002510625 | CQ75: 0.00760719375 | CR75: 0.01285665956 | CS75: 0.01826360935 | CT75: 0.02383276763 | CU75: 0.02860546501 | CV75: 0.03252364545 | CW75: 0.0365252091 | CX75: 0.04246987869 | CY75: 0.0659641246
C76: Pipelines | E76: Water | F76: Improvements / Compliance | G76: Pipelines/network | H76: Capital Programs / Allocation | J76: Straight line | K76: Ongoing | L76: 100 | M76: 100 | Q76: 0.09 | R76: 0.2 | S76: 0.200626 | T76: 1e-06 | U76: 1e-06 | V76: 0.2325085 | W76: 0.6408835 | X76: 0.8808835 | Y76: 0.1058835 | Z76: 0.8196335 | AX76: 0.09 | AY76: 0.2 | AZ76: 0.200626 | BA76: 1e-06 | BB76: 1e-06 | BC76: 0.2325085 | BD76: 0.6408835 | BE76: 0.8808835 | BF76: 0.1058835 | BG76: 0.8196335 | BI76: 0.00045 | BJ76: 0.0019 | BK76: 0.00390313 | BL76: 0.004906265 | BM76: 0.004906275 | BN76: 0.0060688225 | BO76: 0.0104357825 | BP76: 0.0180446175 | BQ76: 0.0229784525 | BR76: 0.0276060375 | BT76: =+IF($K76="Ongoing",AX76,IF(RIGHT($K76,2)=RIGHT(BT$39,2),SUM($AX76:AX76),0)+IF(RIGHT(BT$39,2)>RIGHT($K76,2),AX76,0)) -> 0.09 | BU76: =+IF($K76="Ongoing",AY76,IF(RIGHT($K76,2)=RIGHT(BU$39,2),SUM($AX76:AY76),0)+IF(RIGHT(BU$39,2)>RIGHT($K76,2),AY76,0)) -> 0.2 | BV76: =+IF($K76="Ongoing",AZ76,IF(RIGHT($K76,2)=RIGHT(BV$39,2),SUM($AX76:AZ76),0)+IF(RIGHT(BV$39,2)>RIGHT($K76,2),AZ76,0)) -> 0.200626 | BW76: =+IF($K76="Ongoing",BA76,IF(RIGHT($K76,2)=RIGHT(BW$39,2),SUM($AX76:BA76),0)+IF(RIGHT(BW$39,2)>RIGHT($K76,2),BA76,0)) -> 1e-06 | BX76: =+IF($K76="Ongoing",BB76,IF(RIGHT($K76,2)=RIGHT(BX$39,2),SUM($AX76:BB76),0)+IF(RIGHT(BX$39,2)>RIGHT($K76,2),BB76,0)) -> 1e-06 | BY76: =+IF($K76="Ongoing",BC76,IF(RIGHT($K76,2)=RIGHT(BY$39,2),SUM($AX76:BC76),0)+IF(RIGHT(BY$39,2)>RIGHT($K76,2),BC76,0)) -> 0.2325085 | BZ76: =+IF($K76="Ongoing",BD76,IF(RIGHT($K76,2)=RIGHT(BZ$39,2),SUM($AX76:BD76),0)+IF(RIGHT(BZ$39,2)>RIGHT($K76,2),BD76,0)) -> 0.6408835 | CA76: =+IF($K76="Ongoing",BE76,IF(RIGHT($K76,2)=RIGHT(CA$39,2),SUM($AX76:BE76),0)+IF(RIGHT(CA$39,2)>RIGHT($K76,2),BE76,0)) -> 0.8808835 | CB76: =+IF($K76="Ongoing",BF76,IF(RIGHT($K76,2)=RIGHT(CB$39,2),SUM($AX76:BF76),0)+IF(RIGHT(CB$39,2)>RIGHT($K76,2),BF76,0)) -> 0.1058835 | CC76: =+IF($K76="Ongoing",BG76,IF(RIGHT($K76,2)=RIGHT(CC$39,2),SUM($AX76:BG76),0)+IF(RIGHT(CC$39,2)>RIGHT($K76,2),BG76,0)) -> 0.8196335 | CE76: =+Q76*KeyAssumptionsPriceControl_FO!AC$15 -> 0.0927 | CF76: =+R76*KeyAssumptionsPriceControl_FO!AD$15 -> 0.21218 | CG76: =+S76*KeyAssumptionsPriceControl_FO!AE$15 -> 0.2192294471 | CH76: =+T76*KeyAssumptionsPriceControl_FO!AF$15 -> 1.12550881e-06 | CI76: =+U76*KeyAssumptionsPriceControl_FO!AG$15 -> 1.159274074e-06 | CJ76: =+V76*KeyAssumptionsPriceControl_FO!AH$15 -> 0.2776273084 | CK76: =+W76*KeyAssumptionsPriceControl_FO!AI$15 -> 0.7882058674 | CL76: =+X76*KeyAssumptionsPriceControl_FO!AJ$15 -> 1.115876863 | CM76: =+Y76*KeyAssumptionsPriceControl_FO!AK$15 -> 0.1381539514 | CN76: =+Z76*KeyAssumptionsPriceControl_FO!AL$15 -> 1.101518886 | CP76: 0.0004635 | CQ76: 0.0019879 | CR76: 0.004144947236 | CS76: 0.005241100099 | CT76: 0.005241111522 | CU76: 0.006629253861 | CV76: 0.01195841974 | CW76: 0.02147883339 | CX76: 0.02774898746 | CY76: 0.03394735165
C77: Pipelines | E77: Water | F77: Renewals | G77: Pipelines/network | H77: Capital Programs / Allocation | J77: Straight line | K77: Ongoing | L77: 100 | M77: 100 | Q77: 0 | R77: 0 | S77: 0 | T77: 0 | U77: 0 | V77: 0 | W77: 0.075 | X77: 0.25 | Y77: 0 | Z77: 0 | AX77: 0 | AY77: 0 | AZ77: 0 | BA77: 0 | BB77: 0 | BC77: 0 | BD77: 0.075 | BE77: 0.25 | BF77: 0 | BG77: 0 | BI77: 0 | BJ77: 0 | BK77: 0 | BL77: 0 | BM77: 0 | BN77: 0 | BO77: 0.000375 | BP77: 0.002 | BQ77: 0.00325 | BR77: 0.00325 | BT77: =+IF($K77="Ongoing",AX77,IF(RIGHT($K77,2)=RIGHT(BT$39,2),SUM($AX77:AX77),0)+IF(RIGHT(BT$39,2)>RIGHT($K77,2),AX77,0)) -> 0 | BU77: =+IF($K77="Ongoing",AY77,IF(RIGHT($K77,2)=RIGHT(BU$39,2),SUM($AX77:AY77),0)+IF(RIGHT(BU$39,2)>RIGHT($K77,2),AY77,0)) -> 0 | BV77: =+IF($K77="Ongoing",AZ77,IF(RIGHT($K77,2)=RIGHT(BV$39,2),SUM($AX77:AZ77),0)+IF(RIGHT(BV$39,2)>RIGHT($K77,2),AZ77,0)) -> 0 | BW77: =+IF($K77="Ongoing",BA77,IF(RIGHT($K77,2)=RIGHT(BW$39,2),SUM($AX77:BA77),0)+IF(RIGHT(BW$39,2)>RIGHT($K77,2),BA77,0)) -> 0 | BX77: =+IF($K77="Ongoing",BB77,IF(RIGHT($K77,2)=RIGHT(BX$39,2),SUM($AX77:BB77),0)+IF(RIGHT(BX$39,2)>RIGHT($K77,2),BB77,0)) -> 0 | BY77: =+IF($K77="Ongoing",BC77,IF(RIGHT($K77,2)=RIGHT(BY$39,2),SUM($AX77:BC77),0)+IF(RIGHT(BY$39,2)>RIGHT($K77,2),BC77,0)) -> 0 | BZ77: =+IF($K77="Ongoing",BD77,IF(RIGHT($K77,2)=RIGHT(BZ$39,2),SUM($AX77:BD77),0)+IF(RIGHT(BZ$39,2)>RIGHT($K77,2),BD77,0)) -> 0.075 | CA77: =+IF($K77="Ongoing",BE77,IF(RIGHT($K77,2)=RIGHT(CA$39,2),SUM($AX77:BE77),0)+IF(RIGHT(CA$39,2)>RIGHT($K77,2),BE77,0)) -> 0.25 | CB77: =+IF($K77="Ongoing",BF77,IF(RIGHT($K77,2)=RIGHT(CB$39,2),SUM($AX77:BF77),0)+IF(RIGHT(CB$39,2)>RIGHT($K77,2),BF77,0)) -> 0 | CC77: =+IF($K77="Ongoing",BG77,IF(RIGHT($K77,2)=RIGHT(CC$39,2),SUM($AX77:BG77),0)+IF(RIGHT(CC$39,2)>RIGHT($K77,2),BG77,0)) -> 0 | CE77: =+Q77*KeyAssumptionsPriceControl_FO!AC$15 -> 0 | CF77: =+R77*KeyAssumptionsPriceControl_FO!AD$15 -> 0 | CG77: =+S77*KeyAssumptionsPriceControl_FO!AE$15 -> 0 | CH77: =+T77*KeyAssumptionsPriceControl_FO!AF$15 -> 0 | CI77: =+U77*KeyAssumptionsPriceControl_FO!AG$15 -> 0 | CJ77: =+V77*KeyAssumptionsPriceControl_FO!AH$15 -> 0 | CK77: =+W77*KeyAssumptionsPriceControl_FO!AI$15 -> 0.09224053991 | CL77: =+X77*KeyAssumptionsPriceControl_FO!AJ$15 -> 0.3166925203 | CM77: =+Y77*KeyAssumptionsPriceControl_FO!AK$15 -> 0 | CN77: =+Z77*KeyAssumptionsPriceControl_FO!AL$15 -> 0 | CP77: 0 | CQ77: 0 | CR77: 0 | CS77: 0 | CT77: 0 | CU77: 0 | CV77: 0.0004612026995 | CW77: 0.002505868001 | CX77: 0.004089330603 | CY77: 0.004089330603
C78: Pipelines | E78: Water | F78: Renewals | G78: Pipelines/network | H78: Capital Programs / Allocation | J78: Straight line | K78: Ongoing | L78: 80 | M78: 80 | Q78: 0 | R78: 0 | S78: 0 | T78: 0 | U78: 0 | V78: 0.2005 | W78: 0 | X78: 0 | Y78: 0 | Z78: 0 | AX78: 0 | AY78: 0 | AZ78: 0 | BA78: 0 | BB78: 0 | BC78: 0.2005 | BD78: 0 | BE78: 0 | BF78: 0 | BG78: 0 | BI78: 0 | BJ78: 0 | BK78: 0 | BL78: 0 | BM78: 0 | BN78: 0.001253125 | BO78: 0.00250625 | BP78: 0.00250625 | BQ78: 0.00250625 | BR78: 0.00250625 | BT78: =+IF($K78="Ongoing",AX78,IF(RIGHT($K78,2)=RIGHT(BT$39,2),SUM($AX78:AX78),0)+IF(RIGHT(BT$39,2)>RIGHT($K78,2),AX78,0)) -> 0 | BU78: =+IF($K78="Ongoing",AY78,IF(RIGHT($K78,2)=RIGHT(BU$39,2),SUM($AX78:AY78),0)+IF(RIGHT(BU$39,2)>RIGHT($K78,2),AY78,0)) -> 0 | BV78: =+IF($K78="Ongoing",AZ78,IF(RIGHT($K78,2)=RIGHT(BV$39,2),SUM($AX78:AZ78),0)+IF(RIGHT(BV$39,2)>RIGHT($K78,2),AZ78,0)) -> 0 | BW78: =+IF($K78="Ongoing",BA78,IF(RIGHT($K78,2)=RIGHT(BW$39,2),SUM($AX78:BA78),0)+IF(RIGHT(BW$39,2)>RIGHT($K78,2),BA78,0)) -> 0 | BX78: =+IF($K78="Ongoing",BB78,IF(RIGHT($K78,2)=RIGHT(BX$39,2),SUM($AX78:BB78),0)+IF(RIGHT(BX$39,2)>RIGHT($K78,2),BB78,0)) -> 0 | BY78: =+IF($K78="Ongoing",BC78,IF(RIGHT($K78,2)=RIGHT(BY$39,2),SUM($AX78:BC78),0)+IF(RIGHT(BY$39,2)>RIGHT($K78,2),BC78,0)) -> 0.2005 | BZ78: =+IF($K78="Ongoing",BD78,IF(RIGHT($K78,2)=RIGHT(BZ$39,2),SUM($AX78:BD78),0)+IF(RIGHT(BZ$39,2)>RIGHT($K78,2),BD78,0)) -> 0 | CA78: =+IF($K78="Ongoing",BE78,IF(RIGHT($K78,2)=RIGHT(CA$39,2),SUM($AX78:BE78),0)+IF(RIGHT(CA$39,2)>RIGHT($K78,2),BE78,0)) -> 0 | CB78: =+IF($K78="Ongoing",BF78,IF(RIGHT($K78,2)=RIGHT(CB$39,2),SUM($AX78:BF78),0)+IF(RIGHT(CB$39,2)>RIGHT($K78,2),BF78,0)) -> 0 | CC78: =+IF($K78="Ongoing",BG78,IF(RIGHT($K78,2)=RIGHT(CC$39,2),SUM($AX78:BG78),0)+IF(RIGHT(CC$39,2)>RIGHT($K78,2),BG78,0)) -> 0 | CE78: =+Q78*KeyAssumptionsPriceControl_FO!AC$15 -> 0 | CF78: =+R78*KeyAssumptionsPriceControl_FO!AD$15 -> 0 | CG78: =+S78*KeyAssumptionsPriceControl_FO!AE$15 -> 0 | CH78: =+T78*KeyAssumptionsPriceControl_FO!AF$15 -> 0 | CI78: =+U78*KeyAssumptionsPriceControl_FO!AG$15 -> 0 | CJ78: =+V78*KeyAssumptionsPriceControl_FO!AH$15 -> 0.2394074855 | CK78: =+W78*KeyAssumptionsPriceControl_FO!AI$15 -> 0 | CL78: =+X78*KeyAssumptionsPriceControl_FO!AJ$15 -> 0 | CM78: =+Y78*KeyAssumptionsPriceControl_FO!AK$15 -> 0 | CN78: =+Z78*KeyAssumptionsPriceControl_FO!AL$15 -> 0 | CP78: 0 | CQ78: 0 | CR78: 0 | CS78: 0 | CT78: 0 | CU78: 0.001496296784 | CV78: 0.002992593568 | CW78: 0.002992593568 | CX78: 0.002992593568 | CY78: 0.002992593568
C79: Plant and Equipment | E79: Water | F79: Renewals | G79: Corporate | H79: Capital Programs / Allocation | J79: Straight line | K79: Ongoing | L79: 20 | M79: 20 | Q79: 0.12 | R79: 0.12 | S79: 0.12 | T79: 0.12 | U79: 0.12 | V79: 0.635 | W79: 0.43 | X79: 0.64 | Y79: 0.28 | Z79: 0.22 | AX79: 0.12 | AY79: 0.12 | AZ79: 0.12 | BA79: 0.12 | BB79: 0.12 | BC79: 0.635 | BD79: 0.43 | BE79: 0.64 | BF79: 0.28 | BG79: 0.22 | BI79: 0.003 | BJ79: 0.009 | BK79: 0.015 | BL79: 0.021 | BM79: 0.027 | BN79: 0.045875 | BO79: 0.0725 | BP79: 0.09925 | BQ79: 0.12225 | BR79: 0.13475 | BT79: =+IF($K79="Ongoing",AX79,IF(RIGHT($K79,2)=RIGHT(BT$39,2),SUM($AX79:AX79),0)+IF(RIGHT(BT$39,2)>RIGHT($K79,2),AX79,0)) -> 0.12 | BU79: =+IF($K79="Ongoing",AY79,IF(RIGHT($K79,2)=RIGHT(BU$39,2),SUM($AX79:AY79),0)+IF(RIGHT(BU$39,2)>RIGHT($K79,2),AY79,0)) -> 0.12 | BV79: =+IF($K79="Ongoing",AZ79,IF(RIGHT($K79,2)=RIGHT(BV$39,2),SUM($AX79:AZ79),0)+IF(RIGHT(BV$39,2)>RIGHT($K79,2),AZ79,0)) -> 0.12 | BW79: =+IF($K79="Ongoing",BA79,IF(RIGHT($K79,2)=RIGHT(BW$39,2),SUM($AX79:BA79),0)+IF(RIGHT(BW$39,2)>RIGHT($K79,2),BA79,0)) -> 0.12 | BX79: =+IF($K79="Ongoing",BB79,IF(RIGHT($K79,2)=RIGHT(BX$39,2),SUM($AX79:BB79),0)+IF(RIGHT(BX$39,2)>RIGHT($K79,2),BB79,0)) -> 0.12 | BY79: =+IF($K79="Ongoing",BC79,IF(RIGHT($K79,2)=RIGHT(BY$39,2),SUM($AX79:BC79),0)+IF(RIGHT(BY$39,2)>RIGHT($K79,2),BC79,0)) -> 0.635 | BZ79: =+IF($K79="Ongoing",BD79,IF(RIGHT($K79,2)=RIGHT(BZ$39,2),SUM($AX79:BD79),0)+IF(RIGHT(BZ$39,2)>RIGHT($K79,2),BD79,0)) -> 0.43 | CA79: =+IF($K79="Ongoing",BE79,IF(RIGHT($K79,2)=RIGHT(CA$39,2),SUM($AX79:BE79),0)+IF(RIGHT(CA$39,2)>RIGHT($K79,2),BE79,0)) -> 0.64 | CB79: =+IF($K79="Ongoing",BF79,IF(RIGHT($K79,2)=RIGHT(CB$39,2),SUM($AX79:BF79),0)+IF(RIGHT(CB$39,2)>RIGHT($K79,2),BF79,0)) -> 0.28 | CC79: =+IF($K79="Ongoing",BG79,IF(RIGHT($K79,2)=RIGHT(CC$39,2),SUM($AX79:BG79),0)+IF(RIGHT(CC$39,2)>RIGHT($K79,2),BG79,0)) -> 0.22 | CE79: =+Q79*KeyAssumptionsPriceControl_FO!AC$15 -> 0.1236 | CF79: =+R79*KeyAssumptionsPriceControl_FO!AD$15 -> 0.127308 | CG79: =+S79*KeyAssumptionsPriceControl_FO!AE$15 -> 0.13112724 | CH79: =+T79*KeyAssumptionsPriceControl_FO!AF$15 -> 0.1350610572 | CI79: =+U79*KeyAssumptionsPriceControl_FO!AG$15 -> 0.1391128889 | CJ79: =+V79*KeyAssumptionsPriceControl_FO!AH$15 -> 0.7582232083 | CK79: =+W79*KeyAssumptionsPriceControl_FO!AI$15 -> 0.5288457621 | CL79: =+X79*KeyAssumptionsPriceControl_FO!AJ$15 -> 0.8107328521 | CM79: =+Y79*KeyAssumptionsPriceControl_FO!AK$15 -> 0.3653364915 | CN79: =+Z79*KeyAssumptionsPriceControl_FO!AL$15 -> 0.2956616035 | CP79: 0.00309 | CQ79: 0.0093627 | CR79: 0.015823581 | CS79: 0.02247828843 | CT79: 0.02933263708 | CU79: 0.05176603951 | CV79: 0.08394276377 | CW79: 0.1174322291 | CX79: 0.1468339627 | CY79: 0.1633589151
C80: Plant and Equipment | E80: Sewerage | F80: Improvements / Compliance | G80: Corporate | H80: Capital Programs / Allocation | J80: Straight line | K80: Ongoing | L80: 20 | M80: 20 | Q80: 0 | R80: 0 | S80: 0.03319867 | T80: 0.03319867 | U80: 0.03319867 | V80: 0.0228003 | W80: 0.0228003 | X80: 0.0228003 | Y80: 0.0228003 | Z80: 0.1429753 | AX80: 0 | AY80: 0 | AZ80: 0.03319867 | BA80: 0.03319867 | BB80: 0.03319867 | BC80: 0.0228003 | BD80: 0.0228003 | BE80: 0.0228003 | BF80: 0.0228003 | BG80: 0.1429753 | BI80: 0 | BJ80: 0 | BK80: 0.00082996675 | BL80: 0.00248990025 | BM80: 0.00414983375 | BN80: 0.005549808 | BO80: 0.006689823 | BP80: 0.007829838 | BQ80: 0.008969853 | BR80: 0.013114243 | BT80: =+IF($K80="Ongoing",AX80,IF(RIGHT($K80,2)=RIGHT(BT$39,2),SUM($AX80:AX80),0)+IF(RIGHT(BT$39,2)>RIGHT($K80,2),AX80,0)) -> 0 | BU80: =+IF($K80="Ongoing",AY80,IF(RIGHT($K80,2)=RIGHT(BU$39,2),SUM($AX80:AY80),0)+IF(RIGHT(BU$39,2)>RIGHT($K80,2),AY80,0)) -> 0 | BV80: =+IF($K80="Ongoing",AZ80,IF(RIGHT($K80,2)=RIGHT(BV$39,2),SUM($AX80:AZ80),0)+IF(RIGHT(BV$39,2)>RIGHT($K80,2),AZ80,0)) -> 0.03319867 | BW80: =+IF($K80="Ongoing",BA80,IF(RIGHT($K80,2)=RIGHT(BW$39,2),SUM($AX80:BA80),0)+IF(RIGHT(BW$39,2)>RIGHT($K80,2),BA80,0)) -> 0.03319867 | BX80: =+IF($K80="Ongoing",BB80,IF(RIGHT($K80,2)=RIGHT(BX$39,2),SUM($AX80:BB80),0)+IF(RIGHT(BX$39,2)>RIGHT($K80,2),BB80,0)) -> 0.03319867 | BY80: =+IF($K80="Ongoing",BC80,IF(RIGHT($K80,2)=RIGHT(BY$39,2),SUM($AX80:BC80),0)+IF(RIGHT(BY$39,2)>RIGHT($K80,2),BC80,0)) -> 0.0228003 | BZ80: =+IF($K80="Ongoing",BD80,IF(RIGHT($K80,2)=RIGHT(BZ$39,2),SUM($AX80:BD80),0)+IF(RIGHT(BZ$39,2)>RIGHT($K80,2),BD80,0)) -> 0.0228003 | CA80: =+IF($K80="Ongoing",BE80,IF(RIGHT($K80,2)=RIGHT(CA$39,2),SUM($AX80:BE80),0)+IF(RIGHT(CA$39,2)>RIGHT($K80,2),BE80,0)) -> 0.0228003 | CB80: =+IF($K80="Ongoing",BF80,IF(RIGHT($K80,2)=RIGHT(CB$39,2),SUM($AX80:BF80),0)+IF(RIGHT(CB$39,2)>RIGHT($K80,2),BF80,0)) -> 0.0228003 | CC80: =+IF($K80="Ongoing",BG80,IF(RIGHT($K80,2)=RIGHT(CC$39,2),SUM($AX80:BG80),0)+IF(RIGHT(CC$39,2)>RIGHT($K80,2),BG80,0)) -> 0.1429753 | CE80: =+Q80*KeyAssumptionsPriceControl_FO!AC$15 -> 0 | CF80: =+R80*KeyAssumptionsPriceControl_FO!AD$15 -> 0 | CG80: =+S80*KeyAssumptionsPriceControl_FO!AE$15 -> 0.03627708307 | CH80: =+T80*KeyAssumptionsPriceControl_FO!AF$15 -> 0.03736539557 | CI80: =+U80*KeyAssumptionsPriceControl_FO!AG$15 -> 0.03848635743 | CJ80: =+V80*KeyAssumptionsPriceControl_FO!AH$15 -> 0.02722475058 | CK80: =+W80*KeyAssumptionsPriceControl_FO!AI$15 -> 0.02804149309 | CL80: =+X80*KeyAssumptionsPriceControl_FO!AJ$15 -> 0.02888273789 | CM80: =+Y80*KeyAssumptionsPriceControl_FO!AK$15 -> 0.02974922002 | CN80: =+Z80*KeyAssumptionsPriceControl_FO!AL$15 -> 0.1921468475 | CP80: 0 | CQ80: 0 | CR80: 0.0009069270768 | CS80: 0.002747989043 | CT80: 0.004644282868 | CU80: 0.006287060568 | CV80: 0.00766871666 | CW80: 0.009091822434 | CX80: 0.01055762138 | CY80: 0.01610502307
C81: Plant and Equipment | E81: Sewerage | F81: Renewals | G81: Corporate | H81: Capital Programs / Allocation | J81: Straight line | K81: Ongoing | L81: 20 | M81: 20 | Q81: 0 | R81: 0 | S81: 0 | T81: 0 | U81: 0 | V81: 0.06 | W81: 0.06 | X81: 0.06 | Y81: 0.06 | Z81: 0.06 | AX81: 0 | AY81: 0 | AZ81: 0 | BA81: 0 | BB81: 0 | BC81: 0.06 | BD81: 0.06 | BE81: 0.06 | BF81: 0.06 | BG81: 0.06 | BI81: 0 | BJ81: 0 | BK81: 0 | BL81: 0 | BM81: 0 | BN81: 0.0015 | BO81: 0.0045 | BP81: 0.0075 | BQ81: 0.0105 | BR81: 0.0135 | BT81: =+IF($K81="Ongoing",AX81,IF(RIGHT($K81,2)=RIGHT(BT$39,2),SUM($AX81:AX81),0)+IF(RIGHT(BT$39,2)>RIGHT($K81,2),AX81,0)) -> 0 | BU81: =+IF($K81="Ongoing",AY81,IF(RIGHT($K81,2)=RIGHT(BU$39,2),SUM($AX81:AY81),0)+IF(RIGHT(BU$39,2)>RIGHT($K81,2),AY81,0)) -> 0 | BV81: =+IF($K81="Ongoing",AZ81,IF(RIGHT($K81,2)=RIGHT(BV$39,2),SUM($AX81:AZ81),0)+IF(RIGHT(BV$39,2)>RIGHT($K81,2),AZ81,0)) -> 0 | BW81: =+IF($K81="Ongoing",BA81,IF(RIGHT($K81,2)=RIGHT(BW$39,2),SUM($AX81:BA81),0)+IF(RIGHT(BW$39,2)>RIGHT($K81,2),BA81,0)) -> 0 | BX81: =+IF($K81="Ongoing",BB81,IF(RIGHT($K81,2)=RIGHT(BX$39,2),SUM($AX81:BB81),0)+IF(RIGHT(BX$39,2)>RIGHT($K81,2),BB81,0)) -> 0 | BY81: =+IF($K81="Ongoing",BC81,IF(RIGHT($K81,2)=RIGHT(BY$39,2),SUM($AX81:BC81),0)+IF(RIGHT(BY$39,2)>RIGHT($K81,2),BC81,0)) -> 0.06 | BZ81: =+IF($K81="Ongoing",BD81,IF(RIGHT($K81,2)=RIGHT(BZ$39,2),SUM($AX81:BD81),0)+IF(RIGHT(BZ$39,2)>RIGHT($K81,2),BD81,0)) -> 0.06 | CA81: =+IF($K81="Ongoing",BE81,IF(RIGHT($K81,2)=RIGHT(CA$39,2),SUM($AX81:BE81),0)+IF(RIGHT(CA$39,2)>RIGHT($K81,2),BE81,0)) -> 0.06 | CB81: =+IF($K81="Ongoing",BF81,IF(RIGHT($K81,2)=RIGHT(CB$39,2),SUM($AX81:BF81),0)+IF(RIGHT(CB$39,2)>RIGHT($K81,2),BF81,0)) -> 0.06 | CC81: =+IF($K81="Ongoing",BG81,IF(RIGHT($K81,2)=RIGHT(CC$39,2),SUM($AX81:BG81),0)+IF(RIGHT(CC$39,2)>RIGHT($K81,2),BG81,0)) -> 0.06 | CE81: =+Q81*KeyAssumptionsPriceControl_FO!AC$15 -> 0 | CF81: =+R81*KeyAssumptionsPriceControl_FO!AD$15 -> 0 | CG81: =+S81*KeyAssumptionsPriceControl_FO!AE$15 -> 0 | CH81: =+T81*KeyAssumptionsPriceControl_FO!AF$15 -> 0 | CI81: =+U81*KeyAssumptionsPriceControl_FO!AG$15 -> 0 | CJ81: =+V81*KeyAssumptionsPriceControl_FO!AH$15 -> 0.07164313779 | CK81: =+W81*KeyAssumptionsPriceControl_FO!AI$15 -> 0.07379243193 | CL81: =+X81*KeyAssumptionsPriceControl_FO!AJ$15 -> 0.07600620488 | CM81: =+Y81*KeyAssumptionsPriceControl_FO!AK$15 -> 0.07828639103 | CN81: =+Z81*KeyAssumptionsPriceControl_FO!AL$15 -> 0.08063498276 | CP81: 0 | CQ81: 0 | CR81: 0 | CS81: 0 | CT81: 0 | CU81: 0.001791078445 | CV81: 0.005426967688 | CW81: 0.009171933608 | CX81: 0.01302924851 | CY81: 0.01700228285
C82: Plant and Equipment | E82: Water | F82: Renewals | G82: Corporate | H82: Capital Programs / Allocation | J82: Straight line | K82: Ongoing | L82: 20 | M82: 20 | Q82: 0 | R82: 0 | S82: 0 | T82: 0 | U82: 0.42105 | V82: 0 | W82: 0 | X82: 0 | Y82: 0 | Z82: 0 | AX82: 0 | AY82: 0 | AZ82: 0 | BA82: 0 | BB82: 0.42105 | BC82: 0 | BD82: 0 | BE82: 0 | BF82: 0 | BG82: 0 | BI82: 0 | BJ82: 0 | BK82: 0 | BL82: 0 | BM82: 0.01052625 | BN82: 0.0210525 | BO82: 0.0210525 | BP82: 0.0210525 | BQ82: 0.0210525 | BR82: 0.0210525 | BT82: =+IF($K82="Ongoing",AX82,IF(RIGHT($K82,2)=RIGHT(BT$39,2),SUM($AX82:AX82),0)+IF(RIGHT(BT$39,2)>RIGHT($K82,2),AX82,0)) -> 0 | BU82: =+IF($K82="Ongoing",AY82,IF(RIGHT($K82,2)=RIGHT(BU$39,2),SUM($AX82:AY82),0)+IF(RIGHT(BU$39,2)>RIGHT($K82,2),AY82,0)) -> 0 | BV82: =+IF($K82="Ongoing",AZ82,IF(RIGHT($K82,2)=RIGHT(BV$39,2),SUM($AX82:AZ82),0)+IF(RIGHT(BV$39,2)>RIGHT($K82,2),AZ82,0)) -> 0 | BW82: =+IF($K82="Ongoing",BA82,IF(RIGHT($K82,2)=RIGHT(BW$39,2),SUM($AX82:BA82),0)+IF(RIGHT(BW$39,2)>RIGHT($K82,2),BA82,0)) -> 0 | BX82: =+IF($K82="Ongoing",BB82,IF(RIGHT($K82,2)=RIGHT(BX$39,2),SUM($AX82:BB82),0)+IF(RIGHT(BX$39,2)>RIGHT($K82,2),BB82,0)) -> 0.42105 | BY82: =+IF($K82="Ongoing",BC82,IF(RIGHT($K82,2)=RIGHT(BY$39,2),SUM($AX82:BC82),0)+IF(RIGHT(BY$39,2)>RIGHT($K82,2),BC82,0)) -> 0 | BZ82: =+IF($K82="Ongoing",BD82,IF(RIGHT($K82,2)=RIGHT(BZ$39,2),SUM($AX82:BD82),0)+IF(RIGHT(BZ$39,2)>RIGHT($K82,2),BD82,0)) -> 0 | CA82: =+IF($K82="Ongoing",BE82,IF(RIGHT($K82,2)=RIGHT(CA$39,2),SUM($AX82:BE82),0)+IF(RIGHT(CA$39,2)>RIGHT($K82,2),BE82,0)) -> 0 | CB82: =+IF($K82="Ongoing",BF82,IF(RIGHT($K82,2)=RIGHT(CB$39,2),SUM($AX82:BF82),0)+IF(RIGHT(CB$39,2)>RIGHT($K82,2),BF82,0)) -> 0 | CC82: =+IF($K82="Ongoing",BG82,IF(RIGHT($K82,2)=RIGHT(CC$39,2),SUM($AX82:BG82),0)+IF(RIGHT(CC$39,2)>RIGHT($K82,2),BG82,0)) -> 0 | CE82: =+Q82*KeyAssumptionsPriceControl_FO!AC$15 -> 0 | CF82: =+R82*KeyAssumptionsPriceControl_FO!AD$15 -> 0 | CG82: =+S82*KeyAssumptionsPriceControl_FO!AE$15 -> 0 | CH82: =+T82*KeyAssumptionsPriceControl_FO!AF$15 -> 0 | CI82: =+U82*KeyAssumptionsPriceControl_FO!AG$15 -> 0.488112349 | CJ82: =+V82*KeyAssumptionsPriceControl_FO!AH$15 -> 0 | CK82: =+W82*KeyAssumptionsPriceControl_FO!AI$15 -> 0 | CL82: =+X82*KeyAssumptionsPriceControl_FO!AJ$15 -> 0 | CM82: =+Y82*KeyAssumptionsPriceControl_FO!AK$15 -> 0 | CN82: =+Z82*KeyAssumptionsPriceControl_FO!AL$15 -> 0 | CP82: 0 | CQ82: 0 | CR82: 0 | CS82: 0 | CT82: 0.01220280872 | CU82: 0.02440561745 | CV82: 0.02440561745 | CW82: 0.02440561745 | CX82: 0.02440561745 | CY82: 0.02440561745
C83: Plant and Equipment | E83: Water | F83: Renewals | G83: Pipelines/network | H83: Capital Programs / Allocation | J83: Straight line | K83: Ongoing | L83: 20 | M83: 20 | Q83: 0 | R83: 0.125 | S83: 0 | T83: 0 | U83: 0 | V83: 0 | W83: 0.050125 | X83: 0 | Y83: 0 | Z83: 0 | AX83: 0 | AY83: 0.125 | AZ83: 0 | BA83: 0 | BB83: 0 | BC83: 0 | BD83: 0.050125 | BE83: 0 | BF83: 0 | BG83: 0 | BI83: 0 | BJ83: 0.003125 | BK83: 0.00625 | BL83: 0.00625 | BM83: 0.00625 | BN83: 0.00625 | BO83: 0.007503125 | BP83: 0.00875625 | BQ83: 0.00875625 | BR83: 0.00875625 | BT83: =+IF($K83="Ongoing",AX83,IF(RIGHT($K83,2)=RIGHT(BT$39,2),SUM($AX83:AX83),0)+IF(RIGHT(BT$39,2)>RIGHT($K83,2),AX83,0)) -> 0 | BU83: =+IF($K83="Ongoing",AY83,IF(RIGHT($K83,2)=RIGHT(BU$39,2),SUM($AX83:AY83),0)+IF(RIGHT(BU$39,2)>RIGHT($K83,2),AY83,0)) -> 0.125 | BV83: =+IF($K83="Ongoing",AZ83,IF(RIGHT($K83,2)=RIGHT(BV$39,2),SUM($AX83:AZ83),0)+IF(RIGHT(BV$39,2)>RIGHT($K83,2),AZ83,0)) -> 0 | BW83: =+IF($K83="Ongoing",BA83,IF(RIGHT($K83,2)=RIGHT(BW$39,2),SUM($AX83:BA83),0)+IF(RIGHT(BW$39,2)>RIGHT($K83,2),BA83,0)) -> 0 | BX83: =+IF($K83="Ongoing",BB83,IF(RIGHT($K83,2)=RIGHT(BX$39,2),SUM($AX83:BB83),0)+IF(RIGHT(BX$39,2)>RIGHT($K83,2),BB83,0)) -> 0 | BY83: =+IF($K83="Ongoing",BC83,IF(RIGHT($K83,2)=RIGHT(BY$39,2),SUM($AX83:BC83),0)+IF(RIGHT(BY$39,2)>RIGHT($K83,2),BC83,0)) -> 0 | BZ83: =+IF($K83="Ongoing",BD83,IF(RIGHT($K83,2)=RIGHT(BZ$39,2),SUM($AX83:BD83),0)+IF(RIGHT(BZ$39,2)>RIGHT($K83,2),BD83,0)) -> 0.050125 | CA83: =+IF($K83="Ongoing",BE83,IF(RIGHT($K83,2)=RIGHT(CA$39,2),SUM($AX83:BE83),0)+IF(RIGHT(CA$39,2)>RIGHT($K83,2),BE83,0)) -> 0 | CB83: =+IF($K83="Ongoing",BF83,IF(RIGHT($K83,2)=RIGHT(CB$39,2),SUM($AX83:BF83),0)+IF(RIGHT(CB$39,2)>RIGHT($K83,2),BF83,0)) -> 0 | CC83: =+IF($K83="Ongoing",BG83,IF(RIGHT($K83,2)=RIGHT(CC$39,2),SUM($AX83:BG83),0)+IF(RIGHT(CC$39,2)>RIGHT($K83,2),BG83,0)) -> 0 | CE83: =+Q83*KeyAssumptionsPriceControl_FO!AC$15 -> 0 | CF83: =+R83*KeyAssumptionsPriceControl_FO!AD$15 -> 0.1326125 | CG83: =+S83*KeyAssumptionsPriceControl_FO!AE$15 -> 0 | CH83: =+T83*KeyAssumptionsPriceControl_FO!AF$15 -> 0 | CI83: =+U83*KeyAssumptionsPriceControl_FO!AG$15 -> 0 | CJ83: =+V83*KeyAssumptionsPriceControl_FO!AH$15 -> 0 | CK83: =+W83*KeyAssumptionsPriceControl_FO!AI$15 -> 0.0616474275 | CL83: =+X83*KeyAssumptionsPriceControl_FO!AJ$15 -> 0 | CM83: =+Y83*KeyAssumptionsPriceControl_FO!AK$15 -> 0 | CN83: =+Z83*KeyAssumptionsPriceControl_FO!AL$15 -> 0 | CP83: 0 | CQ83: 0.0033153125 | CR83: 0.006630625 | CS83: 0.006630625 | CT83: 0.006630625 | CU83: 0.006630625 | CV83: 0.008171810688 | CW83: 0.009712996375 | CX83: 0.009712996375 | CY83: 0.009712996375
C84: Reuse | E84: Sewerage | F84: Renewals | G84: Pipelines/network | H84: Capital Programs / Allocation | J84: Straight line | K84: Ongoing | L84: 100 | M84: 100 | Q84: 0.08973688974 | R84: 0.08907202215 | S84: 0.08722121116 | T84: 0.08725432943 | U84: 0.08898763622 | V84: 0.08914936903 | W84: 0.08709599208 | X84: 0.0895831765 | Y84: 0.08995519906 | Z84: 0.08989811422 | AX84: 0.08973688974 | AY84: 0.08907202215 | AZ84: 0.08722121116 | BA84: 0.08725432943 | BB84: 0.08898763622 | BC84: 0.08914936903 | BD84: 0.08709599208 | BE84: 0.0895831765 | BF84: 0.08995519906 | BG84: 0.08989811422 | BI84: 0.0004486844487 | BJ84: 0.001342729008 | BK84: 0.002224195175 | BL84: 0.003096572878 | BM84: 0.003977782706 | BN84: 0.004868467732 | BO84: 0.005749694538 | BP84: 0.006633090381 | BQ84: 0.007530782258 | BR84: 0.008430048825 | BT84: =+IF($K84="Ongoing",AX84,IF(RIGHT($K84,2)=RIGHT(BT$39,2),SUM($AX84:AX84),0)+IF(RIGHT(BT$39,2)>RIGHT($K84,2),AX84,0)) -> 0.08973688974 | BU84: =+IF($K84="Ongoing",AY84,IF(RIGHT($K84,2)=RIGHT(BU$39,2),SUM($AX84:AY84),0)+IF(RIGHT(BU$39,2)>RIGHT($K84,2),AY84,0)) -> 0.08907202215 | BV84: =+IF($K84="Ongoing",AZ84,IF(RIGHT($K84,2)=RIGHT(BV$39,2),SUM($AX84:AZ84),0)+IF(RIGHT(BV$39,2)>RIGHT($K84,2),AZ84,0)) -> 0.08722121116 | BW84: =+IF($K84="Ongoing",BA84,IF(RIGHT($K84,2)=RIGHT(BW$39,2),SUM($AX84:BA84),0)+IF(RIGHT(BW$39,2)>RIGHT($K84,2),BA84,0)) -> 0.08725432943 | BX84: =+IF($K84="Ongoing",BB84,IF(RIGHT($K84,2)=RIGHT(BX$39,2),SUM($AX84:BB84),0)+IF(RIGHT(BX$39,2)>RIGHT($K84,2),BB84,0)) -> 0.08898763622 | BY84: =+IF($K84="Ongoing",BC84,IF(RIGHT($K84,2)=RIGHT(BY$39,2),SUM($AX84:BC84),0)+IF(RIGHT(BY$39,2)>RIGHT($K84,2),BC84,0)) -> 0.08914936903 | BZ84: =+IF($K84="Ongoing",BD84,IF(RIGHT($K84,2)=RIGHT(BZ$39,2),SUM($AX84:BD84),0)+IF(RIGHT(BZ$39,2)>RIGHT($K84,2),BD84,0)) -> 0.08709599208 | CA84: =+IF($K84="Ongoing",BE84,IF(RIGHT($K84,2)=RIGHT(CA$39,2),SUM($AX84:BE84),0)+IF(RIGHT(CA$39,2)>RIGHT($K84,2),BE84,0)) -> 0.0895831765 | CB84: =+IF($K84="Ongoing",BF84,IF(RIGHT($K84,2)=RIGHT(CB$39,2),SUM($AX84:BF84),0)+IF(RIGHT(CB$39,2)>RIGHT($K84,2),BF84,0)) -> 0.08995519906 | CC84: =+IF($K84="Ongoing",BG84,IF(RIGHT($K84,2)=RIGHT(CC$39,2),SUM($AX84:BG84),0)+IF(RIGHT(CC$39,2)>RIGHT($K84,2),BG84,0)) -> 0.08989811422 | CE84: =+Q84*KeyAssumptionsPriceControl_FO!AC$15 -> 0.09242899644 | CF84: =+R84*KeyAssumptionsPriceControl_FO!AD$15 -> 0.0944965083 | CG84: =+S84*KeyAssumptionsPriceControl_FO!AE$15 -> 0.09530897241 | CH84: =+T84*KeyAssumptionsPriceControl_FO!AF$15 -> 0.09820551648 | CI84: =+U84*KeyAssumptionsPriceControl_FO!AG$15 -> 0.1031610596 | CJ84: =+V84*KeyAssumptionsPriceControl_FO!AH$15 -> 0.1064490088 | CK84: =+W84*KeyAssumptionsPriceControl_FO!AI$15 -> 0.1071170844 | CL84: =+X84*KeyAssumptionsPriceControl_FO!AJ$15 -> 0.1134812878 | CM84: =+Y84*KeyAssumptionsPriceControl_FO!AK$15 -> 0.1173711315 | CN84: =+Z84*KeyAssumptionsPriceControl_FO!AL$15 -> 0.1208155482 | CP84: 0.0004621449822 | CQ84: 0.001396772506 | CR84: 0.002345799909 | CS84: 0.003313372354 | CT84: 0.004320205234 | CU84: 0.005368255576 | CV84: 0.006436086043 | CW84: 0.007539077904 | CX84: 0.00869334 | CY84: 0.009884273398
C85: SAP | E85: Sewerage | F85: Renewals | G85: Pipelines/network | H85: Capital Programs / Allocation | J85: Straight line | K85: Ongoing | L85: 100 | M85: 100 | Q85: 0.4981840912 | R85: 0.496338478 | S85: 0.499824406 | T85: 0.499956188 | U85: 0.4984916944 | V85: 0.4985795808 | W85: 0.4984916952 | X85: 0.4996486316 | Y85: 0.4983660168 | Z85: 0.4984916944 | AX85: =+Q85-AB85-AM85 -> 0.4981840912 | AY85: =+R85-AC85-AN85 -> 0.496338478 | AZ85: =+S85-AD85-AO85 -> 0.499824406 | BA85: =+T85-AE85-AP85 -> 0.499956188 | BB85: =+U85-AF85-AQ85 -> 0.4984916944 | BC85: =+V85-AG85-AR85 -> 0.4985795808 | BD85: =+W85-AH85-AS85 -> 0.4984916952 | BE85: =+X85-AI85-AT85 -> 0.4996486316 | BF85: 0.4983660168 | BG85: 0.4984916944 | BI85: 0.002490920456 | BJ85: 0.007463533302 | BK85: 0.01244434772 | BL85: 0.01744325069 | BM85: 0.0224354901 | BN85: 0.02742084648 | BO85: 0.03240620286 | BP85: 0.03739690449 | BQ85: 0.04238697774 | BR85: 0.04737126629 | BT85: =+IF($K85="Ongoing",AX85,IF(RIGHT($K85,2)=RIGHT(BT$39,2),SUM($AX85:AX85),0)+IF(RIGHT(BT$39,2)>RIGHT($K85,2),AX85,0)) -> 0.4981840912 | BU85: =+IF($K85="Ongoing",AY85,IF(RIGHT($K85,2)=RIGHT(BU$39,2),SUM($AX85:AY85),0)+IF(RIGHT(BU$39,2)>RIGHT($K85,2),AY85,0)) -> 0.496338478 | BV85: =+IF($K85="Ongoing",AZ85,IF(RIGHT($K85,2)=RIGHT(BV$39,2),SUM($AX85:AZ85),0)+IF(RIGHT(BV$39,2)>RIGHT($K85,2),AZ85,0)) -> 0.499824406 | BW85: =+IF($K85="Ongoing",BA85,IF(RIGHT($K85,2)=RIGHT(BW$39,2),SUM($AX85:BA85),0)+IF(RIGHT(BW$39,2)>RIGHT($K85,2),BA85,0)) -> 0.499956188 | BX85: =+IF($K85="Ongoing",BB85,IF(RIGHT($K85,2)=RIGHT(BX$39,2),SUM($AX85:BB85),0)+IF(RIGHT(BX$39,2)>RIGHT($K85,2),BB85,0)) -> 0.4984916944 | BY85: =+IF($K85="Ongoing",BC85,IF(RIGHT($K85,2)=RIGHT(BY$39,2),SUM($AX85:BC85),0)+IF(RIGHT(BY$39,2)>RIGHT($K85,2),BC85,0)) -> 0.4985795808 | BZ85: =+IF($K85="Ongoing",BD85,IF(RIGHT($K85,2)=RIGHT(BZ$39,2),SUM($AX85:BD85),0)+IF(RIGHT(BZ$39,2)>RIGHT($K85,2),BD85,0)) -> 0.4984916952 | CA85: =+IF($K85="Ongoing",BE85,IF(RIGHT($K85,2)=RIGHT(CA$39,2),SUM($AX85:BE85),0)+IF(RIGHT(CA$39,2)>RIGHT($K85,2),BE85,0)) -> 0.4996486316 | CB85: =+IF($K85="Ongoing",BF85,IF(RIGHT($K85,2)=RIGHT(CB$39,2),SUM($AX85:BF85),0)+IF(RIGHT(CB$39,2)>RIGHT($K85,2),BF85,0)) -> 0.4983660168 | CC85: =+IF($K85="Ongoing",BG85,IF(RIGHT($K85,2)=RIGHT(CC$39,2),SUM($AX85:BG85),0)+IF(RIGHT(CC$39,2)>RIGHT($K85,2),BG85,0)) -> 0.4984916944 | CE85: =+Q85*KeyAssumptionsPriceControl_FO!AC$15 -> 0.5131296139 | CF85: =+R85*KeyAssumptionsPriceControl_FO!AD$15 -> 0.5265654913 | CG85: =+S85*KeyAssumptionsPriceControl_FO!AE$15 -> 0.5461716237 | CH85: =+T85*KeyAssumptionsPriceControl_FO!AF$15 -> 0.5627050942 | CI85: =+U85*KeyAssumptionsPriceControl_FO!AG$15 -> 0.5778884976 | CJ85: =+V85*KeyAssumptionsPriceControl_FO!AH$15 -> 0.5953300935 | CK85: =+W85*KeyAssumptionsPriceControl_FO!AI$15 -> 0.6130819081 | CL85: =+X85*KeyAssumptionsPriceControl_FO!AJ$15 -> 0.6329399377 | CM85: =+Y85*KeyAssumptionsPriceControl_FO!AK$15 -> 0.6502546145 | CN85: =+Z85*KeyAssumptionsPriceControl_FO!AL$15 -> 0.6699311531 | CP85: =IF($M85=0,0, IF($M85<=0.5,CE85, IF($J85="straight line", IF((LEFT(CP$39,4)*1)-INT($M85)<LEFT($CP$39,4)*1,0,((OFFSET(CE85,0,-INT($M85+0.5),1,1))/$M85)*(IF($M85-INT($M85)>0.5,$M85-0.5-INT($M85),IF($M85-INT($M85)<=0.5,$M85-0.5-INT($M85)+1,0)))) +CE85/$M85*0.5, IF($J85="Declining Balance",-$CP$38,0)))) -> 0.00256564807 | CQ85: =IF($M85=0,0, IF($M85<=0.5,CF85, IF(AND($J85="straight line",$M85<1.51),(CE85-((CE85/$M85)*0.5))+CF85/$M85*0.5, IF($J85="straight line", IF((LEFT(CQ$39,4)*1)-INT($M85)<LEFT($CP$39,4)*1,0,((OFFSET(CF85,0,-INT($M85+0.5),1,1))/$M85)*(IF($M85-INT($M85)>0.5,$M85-0.5-INT($M85),IF($M85-INT($M85)<=0.5,$M85-0.5-INT($M85)+1,0)))) +CF85/$M85*0.5 +SUM(OFFSET(CF85,0,MAX(-INT($M85+(0.5-(10^-12))),-CQ$40)+1,1,MIN(INT($M85+(0.5-(10^-12))),CQ$40)-1))*1/$M85, IF($J85="Declining Balance",-$CP$38,0))))) -> 0.007764123596 | CR85: =IF($M85=0,0, IF($M85<=0.5,CG85, IF(AND($J85="straight line",$M85<1.51),(CF85-((CF85/$M85)*0.5))+CG85/$M85*0.5, IF($J85="straight line", IF((LEFT(CR$39,4)*1)-INT($M85)<LEFT($CP$39,4)*1,0,((OFFSET(CG85,0,-INT($M85+0.5),1,1))/$M85)*(IF($M85-INT($M85)>0.5,$M85-0.5-INT($M85),IF($M85-INT($M85)<=0.5,$M85-0.5-INT($M85)+1,0)))) +CG85/$M85*0.5 +SUM(OFFSET(CG85,0,MAX(-INT($M85+(0.5-(10^-12))),-CR$40)+1,1,MIN(INT($M85+(0.5-(10^-12))),CR$40)-1))*1/$M85, IF($J85="Declining Balance",-$CP$38,0))))) -> 0.01312780917 | CS85: =IF($M85=0,0, IF($M85<=0.5,CH85, IF(AND($J85="straight line",$M85<1.51),(CG85-((CG85/$M85)*0.5))+CH85/$M85*0.5, IF($J85="straight line", IF((LEFT(CS$39,4)*1)-INT($M85)<LEFT($CP$39,4)*1,0,((OFFSET(CH85,0,-INT($M85+0.5),1,1))/$M85)*(IF($M85-INT($M85)>0.5,$M85-0.5-INT($M85),IF($M85-INT($M85)<=0.5,$M85-0.5-INT($M85)+1,0)))) +CH85/$M85*0.5 +SUM(OFFSET(CH85,0,MAX(-INT($M85+(0.5-(10^-12))),-CS$40)+1,1,MIN(INT($M85+(0.5-(10^-12))),CS$40)-1))*1/$M85, IF($J85="Declining Balance",-$CP$38,0))))) -> 0.01867219276 | CT85: =IF($M85=0,0, IF($M85<=0.5,CI85, IF(AND($J85="straight line",$M85<1.51),(CH85-((CH85/$M85)*0.5))+CI85/$M85*0.5, IF($J85="straight line", IF((LEFT(CT$39,4)*1)-INT($M85)<LEFT($CP$39,4)*1,0,((OFFSET(CI85,0,-INT($M85+0.5),1,1))/$M85)*(IF($M85-INT($M85)>0.5,$M85-0.5-INT($M85),IF($M85-INT($M85)<=0.5,$M85-0.5-INT($M85)+1,0)))) +CI85/$M85*0.5 +SUM(OFFSET(CI85,0,MAX(-INT($M85+(0.5-(10^-12))),-CT$40)+1,1,MIN(INT($M85+(0.5-(10^-12))),CT$40)-1))*1/$M85, IF($J85="Declining Balance",-$CP$38,0))))) -> 0.02437516072 | CU85: =IF($M85=0,0, IF($M85<=0.5,CJ85, IF(AND($J85="straight line",$M85<1.51),(CI85-((CI85/$M85)*0.5))+CJ85/$M85*0.5, IF($J85="straight line", IF((LEFT(CU$39,4)*1)-INT($M85)<LEFT($CP$39,4)*1,0,((OFFSET(CJ85,0,-INT($M85+0.5),1,1))/$M85)*(IF($M85-INT($M85)>0.5,$M85-0.5-INT($M85),IF($M85-INT($M85)<=0.5,$M85-0.5-INT($M85)+1,0)))) +CJ85/$M85*0.5 +SUM(OFFSET(CJ85,0,MAX(-INT($M85+(0.5-(10^-12))),-CU$40)+1,1,MIN(INT($M85+(0.5-(10^-12))),CU$40)-1))*1/$M85, IF($J85="Declining Balance",-$CP$38,0))))) -> 0.03024125367 | CV85: =IF($M85=0,0, IF($M85<=0.5,CK85, IF(AND($J85="straight line",$M85<1.51),(CJ85-((CJ85/$M85)*0.5))+CK85/$M85*0.5, IF($J85="straight line", IF((LEFT(CV$39,4)*1)-INT($M85)<LEFT($CP$39,4)*1,0,((OFFSET(CK85,0,-INT($M85+0.5),1,1))/$M85)*(IF($M85-INT($M85)>0.5,$M85-0.5-INT($M85),IF($M85-INT($M85)<=0.5,$M85-0.5-INT($M85)+1,0)))) +CK85/$M85*0.5 +SUM(OFFSET(CK85,0,MAX(-INT($M85+(0.5-(10^-12))),-CV$40)+1,1,MIN(INT($M85+(0.5-(10^-12))),CV$40)-1))*1/$M85, IF($J85="Declining Balance",-$CP$38,0))))) -> 0.03628331368 | CW85: =IF($M85=0,0, IF($M85<=0.5,CL85, IF(AND($J85="straight line",$M85<1.51),(CK85-((CK85/$M85)*0.5))+CL85/$M85*0.5, IF($J85="straight line", IF((LEFT(CW$39,4)*1)-INT($M85)<LEFT($CP$39,4)*1,0,((OFFSET(CL85,0,-INT($M85+0.5),1,1))/$M85)*(IF($M85-INT($M85)>0.5,$M85-0.5-INT($M85),IF($M85-INT($M85)<=0.5,$M85-0.5-INT($M85)+1,0)))) +CL85/$M85*0.5 +SUM(OFFSET(CL85,0,MAX(-INT($M85+(0.5-(10^-12))),-CW$40)+1,1,MIN(INT($M85+(0.5-(10^-12))),CW$40)-1))*1/$M85, IF($J85="Declining Balance",-$CP$38,0))))) -> 0.04251342291 | CX85: =IF($M85=0,0, IF($M85<=0.5,CM85, IF(AND($J85="straight line",$M85<1.51),(CL85-((CL85/$M85)*0.5))+CM85/$M85*0.5, IF($J85="straight line", IF((LEFT(CX$39,4)*1)-INT($M85)<LEFT($CP$39,4)*1,0,((OFFSET(CM85,0,-INT($M85+0.5),1,1))/$M85)*(IF($M85-INT($M85)>0.5,$M85-0.5-INT($M85),IF($M85-INT($M85)<=0.5,$M85-0.5-INT($M85)+1,0)))) +CM85/$M85*0.5 +SUM(OFFSET(CM85,0,MAX(-INT($M85+(0.5-(10^-12))),-CX$40)+1,1,MIN(INT($M85+(0.5-(10^-12))),CX$40)-1))*1/$M85, IF($J85="Declining Balance",-$CP$38,0))))) -> 0.04892939567 | CY85: =IF($M85=0,0, IF($M85<=0.5,CN85, IF(AND($J85="straight line",$M85<1.51),(CM85-((CM85/$M85)*0.5))+CN85/$M85*0.5, IF($J85="straight line", IF((LEFT(CY$39,4)*1)-INT($M85)<LEFT($CP$39,4)*1,0,((OFFSET(CN85,0,-INT($M85+0.5),1,1))/$M85)*(IF($M85-INT($M85)>0.5,$M85-0.5-INT($M85),IF($M85-INT($M85)<=0.5,$M85-0.5-INT($M85)+1,0)))) +CN85/$M85*0.5 +SUM(OFFSET(CN85,0,MAX(-INT($M85+(0.5-(10^-12))),-CY$40)+1,1,MIN(INT($M85+(0.5-(10^-12))),CY$40)-1))*1/$M85, IF($J85="Declining Balance",-$CP$38,0))))) -> 0.05553032451
C86: SPS | E86: Sewerage | F86: Growth | G86: Pipelines/network | H86: Capital Programs / Allocation | J86: Straight line | K86: Ongoing | L86: 40 | M86: 40 | Q86: 0 | R86: 0 | S86: 0 | T86: 0.0802 | U86: 0.46917 | V86: 0.66002438 | W86: 3.28709675 | X86: 0.06171264 | Y86: 0.39192087 | Z86: 0.7475 | AX86: 0 | AY86: 0 | AZ86: 0 | BA86: 0.0802 | BB86: 0.46917 | BC86: 0.66002438 | BD86: 3.28709675 | BE86: 0.06171264 | BF86: 0.39192087 | BG86: 0.7475 | BI86: 0 | BJ86: 0 | BK86: 0 | BL86: 0.0010025 | BM86: 0.007869625 | BN86: 0.02198455475 | BO86: 0.07132356887 | BP86: 0.1131836862 | BQ86: 0.1188541051 | BR86: 0.133096866 | BT86: =+IF($K86="Ongoing",AX86,IF(RIGHT($K86,2)=RIGHT(BT$39,2),SUM($AX86:AX86),0)+IF(RIGHT(BT$39,2)>RIGHT($K86,2),AX86,0)) -> 0 | BU86: =+IF($K86="Ongoing",AY86,IF(RIGHT($K86,2)=RIGHT(BU$39,2),SUM($AX86:AY86),0)+IF(RIGHT(BU$39,2)>RIGHT($K86,2),AY86,0)) -> 0 | BV86: =+IF($K86="Ongoing",AZ86,IF(RIGHT($K86,2)=RIGHT(BV$39,2),SUM($AX86:AZ86),0)+IF(RIGHT(BV$39,2)>RIGHT($K86,2),AZ86,0)) -> 0 | BW86: =+IF($K86="Ongoing",BA86,IF(RIGHT($K86,2)=RIGHT(BW$39,2),SUM($AX86:BA86),0)+IF(RIGHT(BW$39,2)>RIGHT($K86,2),BA86,0)) -> 0.0802 | BX86: =+IF($K86="Ongoing",BB86,IF(RIGHT($K86,2)=RIGHT(BX$39,2),SUM($AX86:BB86),0)+IF(RIGHT(BX$39,2)>RIGHT($K86,2),BB86,0)) -> 0.46917 | BY86: =+IF($K86="Ongoing",BC86,IF(RIGHT($K86,2)=RIGHT(BY$39,2),SUM($AX86:BC86),0)+IF(RIGHT(BY$39,2)>RIGHT($K86,2),BC86,0)) -> 0.66002438 | BZ86: =+IF($K86="Ongoing",BD86,IF(RIGHT($K86,2)=RIGHT(BZ$39,2),SUM($AX86:BD86),0)+IF(RIGHT(BZ$39,2)>RIGHT($K86,2),BD86,0)) -> 3.28709675 | CA86: =+IF($K86="Ongoing",BE86,IF(RIGHT($K86,2)=RIGHT(CA$39,2),SUM($AX86:BE86),0)+IF(RIGHT(CA$39,2)>RIGHT($K86,2),BE86,0)) -> 0.06171264 | CB86: =+IF($K86="Ongoing",BF86,IF(RIGHT($K86,2)=RIGHT(CB$39,2),SUM($AX86:BF86),0)+IF(RIGHT(CB$39,2)>RIGHT($K86,2),BF86,0)) -> 0.39192087 | CC86: =+IF($K86="Ongoing",BG86,IF(RIGHT($K86,2)=RIGHT(CC$39,2),SUM($AX86:BG86),0)+IF(RIGHT(CC$39,2)>RIGHT($K86,2),BG86,0)) -> 0.7475 | CE86: =+Q86*KeyAssumptionsPriceControl_FO!AC$15 -> 0 | CF86: =+R86*KeyAssumptionsPriceControl_FO!AD$15 -> 0 | CG86: =+S86*KeyAssumptionsPriceControl_FO!AE$15 -> 0 | CH86: =+T86*KeyAssumptionsPriceControl_FO!AF$15 -> 0.09026580656 | CI86: =+U86*KeyAssumptionsPriceControl_FO!AG$15 -> 0.5438966174 | CJ86: =+V86*KeyAssumptionsPriceControl_FO!AH$15 -> 0.7881036267 | CK86: =+W86*KeyAssumptionsPriceControl_FO!AI$15 -> 4.042714386 | CL86: =+X86*KeyAssumptionsPriceControl_FO!AJ$15 -> 0.078175726 | CM86: =+Y86*KeyAssumptionsPriceControl_FO!AK$15 -> 0.5113678414 | CN86: =+Z86*KeyAssumptionsPriceControl_FO!AL$15 -> 1.004577494 | CP86: 0 | CQ86: 0 | CR86: 0 | CS86: 0.001128322582 | CT86: 0.009055352882 | CU86: 0.02570535593 | CV86: 0.08609058109 | CW86: 0.1376017075 | CX86: 0.1449710021 | CY86: 0.1639203188
C87: SPS | E87: Sewerage | F87: Improvements / Compliance | G87: Pipelines/network | H87: Capital Programs / Allocation | J87: Straight line | K87: Ongoing | L87: 40 | M87: 40 | Q87: 0 | R87: 0 | S87: 0 | T87: 0 | U87: 0 | V87: 0.195 | W87: 0 | X87: 1.02505 | Y87: 1.02505 | Z87: 0 | AX87: 0 | AY87: 0 | AZ87: 0 | BA87: 0 | BB87: 0 | BC87: 0.195 | BD87: 0 | BE87: 1.02505 | BF87: 1.02505 | BG87: 0 | BI87: 0 | BJ87: 0 | BK87: 0 | BL87: 0 | BM87: 0 | BN87: 0.0024375 | BO87: 0.004875 | BP87: 0.017688125 | BQ87: 0.043314375 | BR87: 0.0561275 | BT87: =+IF($K87="Ongoing",AX87,IF(RIGHT($K87,2)=RIGHT(BT$39,2),SUM($AX87:AX87),0)+IF(RIGHT(BT$39,2)>RIGHT($K87,2),AX87,0)) -> 0 | BU87: =+IF($K87="Ongoing",AY87,IF(RIGHT($K87,2)=RIGHT(BU$39,2),SUM($AX87:AY87),0)+IF(RIGHT(BU$39,2)>RIGHT($K87,2),AY87,0)) -> 0 | BV87: =+IF($K87="Ongoing",AZ87,IF(RIGHT($K87,2)=RIGHT(BV$39,2),SUM($AX87:AZ87),0)+IF(RIGHT(BV$39,2)>RIGHT($K87,2),AZ87,0)) -> 0 | BW87: =+IF($K87="Ongoing",BA87,IF(RIGHT($K87,2)=RIGHT(BW$39,2),SUM($AX87:BA87),0)+IF(RIGHT(BW$39,2)>RIGHT($K87,2),BA87,0)) -> 0 | BX87: =+IF($K87="Ongoing",BB87,IF(RIGHT($K87,2)=RIGHT(BX$39,2),SUM($AX87:BB87),0)+IF(RIGHT(BX$39,2)>RIGHT($K87,2),BB87,0)) -> 0 | BY87: =+IF($K87="Ongoing",BC87,IF(RIGHT($K87,2)=RIGHT(BY$39,2),SUM($AX87:BC87),0)+IF(RIGHT(BY$39,2)>RIGHT($K87,2),BC87,0)) -> 0.195 | BZ87: =+IF($K87="Ongoing",BD87,IF(RIGHT($K87,2)=RIGHT(BZ$39,2),SUM($AX87:BD87),0)+IF(RIGHT(BZ$39,2)>RIGHT($K87,2),BD87,0)) -> 0 | CA87: =+IF($K87="Ongoing",BE87,IF(RIGHT($K87,2)=RIGHT(CA$39,2),SUM($AX87:BE87),0)+IF(RIGHT(CA$39,2)>RIGHT($K87,2),BE87,0)) -> 1.02505 | CB87: =+IF($K87="Ongoing",BF87,IF(RIGHT($K87,2)=RIGHT(CB$39,2),SUM($AX87:BF87),0)+IF(RIGHT(CB$39,2)>RIGHT($K87,2),BF87,0)) -> 1.02505 | CC87: =+IF($K87="Ongoing",BG87,IF(RIGHT($K87,2)=RIGHT(CC$39,2),SUM($AX87:BG87),0)+IF(RIGHT(CC$39,2)>RIGHT($K87,2),BG87,0)) -> 0 | CE87: =+Q87*KeyAssumptionsPriceControl_FO!AC$15 -> 0 | CF87: =+R87*KeyAssumptionsPriceControl_FO!AD$15 -> 0 | CG87: =+S87*KeyAssumptionsPriceControl_FO!AE$15 -> 0 | CH87: =+T87*KeyAssumptionsPriceControl_FO!AF$15 -> 0 | CI87: =+U87*KeyAssumptionsPriceControl_FO!AG$15 -> 0 | CJ87: =+V87*KeyAssumptionsPriceControl_FO!AH$15 -> 0.2328401978 | CK87: =+W87*KeyAssumptionsPriceControl_FO!AI$15 -> 0 | CL87: =+X87*KeyAssumptionsPriceControl_FO!AJ$15 -> 1.298502672 | CM87: =+Y87*KeyAssumptionsPriceControl_FO!AK$15 -> 1.337457752 | CN87: =+Z87*KeyAssumptionsPriceControl_FO!AL$15 -> 0 | CP87: 0 | CQ87: 0 | CR87: 0 | CS87: 0 | CT87: 0 | CU87: 0.002910502473 | CV87: 0.005821004946 | CW87: 0.02205228834 | CX87: 0.05500179364 | CY87: 0.07172001555
C88: SPS | E88: Sewerage | F88: Renewals | G88: Pipelines/network | H88: Capital Programs / Allocation | J88: Straight line | K88: Ongoing | L88: 40 | M88: 40 | Q88: 0.1959969745 | R88: 0.1999928097 | S88: 0.1999829394 | T88: 0.1928039588 | U88: 0.1999659936 | V88: 0.19994164 | W88: 0.1994000975 | X88: 0.1897384148 | Y88: 0.1855613364 | Z88: 0.1619826554 | AX88: 0.1959969745 | AY88: 0.1999928097 | AZ88: 0.1999829394 | BA88: 0.1928039588 | BB88: 0.1999659936 | BC88: 0.19994164 | BD88: 0.1994000975 | BE88: 0.1897384148 | BF88: 0.1855613364 | BG88: 0.1619826554 | BI88: 0.002449962181 | BJ88: 0.007399834485 | BK88: 0.01239953135 | BL88: 0.01730936758 | BM88: 0.02221899198 | BN88: 0.0272178374 | BO88: 0.03220960912 | BP88: 0.03707384052 | BQ88: 0.04176508741 | BR88: 0.04610938731 | BT88: =+IF($K88="Ongoing",AX88,IF(RIGHT($K88,2)=RIGHT(BT$39,2),SUM($AX88:AX88),0)+IF(RIGHT(BT$39,2)>RIGHT($K88,2),AX88,0)) -> 0.1959969745 | BU88: =+IF($K88="Ongoing",AY88,IF(RIGHT($K88,2)=RIGHT(BU$39,2),SUM($AX88:AY88),0)+IF(RIGHT(BU$39,2)>RIGHT($K88,2),AY88,0)) -> 0.1999928097 | BV88: =+IF($K88="Ongoing",AZ88,IF(RIGHT($K88,2)=RIGHT(BV$39,2),SUM($AX88:AZ88),0)+IF(RIGHT(BV$39,2)>RIGHT($K88,2),AZ88,0)) -> 0.1999829394 | BW88: =+IF($K88="Ongoing",BA88,IF(RIGHT($K88,2)=RIGHT(BW$39,2),SUM($AX88:BA88),0)+IF(RIGHT(BW$39,2)>RIGHT($K88,2),BA88,0)) -> 0.1928039588 | BX88: =+IF($K88="Ongoing",BB88,IF(RIGHT($K88,2)=RIGHT(BX$39,2),SUM($AX88:BB88),0)+IF(RIGHT(BX$39,2)>RIGHT($K88,2),BB88,0)) -> 0.1999659936 | BY88: =+IF($K88="Ongoing",BC88,IF(RIGHT($K88,2)=RIGHT(BY$39,2),SUM($AX88:BC88),0)+IF(RIGHT(BY$39,2)>RIGHT($K88,2),BC88,0)) -> 0.19994164 | BZ88: =+IF($K88="Ongoing",BD88,IF(RIGHT($K88,2)=RIGHT(BZ$39,2),SUM($AX88:BD88),0)+IF(RIGHT(BZ$39,2)>RIGHT($K88,2),BD88,0)) -> 0.1994000975 | CA88: =+IF($K88="Ongoing",BE88,IF(RIGHT($K88,2)=RIGHT(CA$39,2),SUM($AX88:BE88),0)+IF(RIGHT(CA$39,2)>RIGHT($K88,2),BE88,0)) -> 0.1897384148 | CB88: =+IF($K88="Ongoing",BF88,IF(RIGHT($K88,2)=RIGHT(CB$39,2),SUM($AX88:BF88),0)+IF(RIGHT(CB$39,2)>RIGHT($K88,2),BF88,0)) -> 0.1855613364 | CC88: =+IF($K88="Ongoing",BG88,IF(RIGHT($K88,2)=RIGHT(CC$39,2),SUM($AX88:BG88),0)+IF(RIGHT(CC$39,2)>RIGHT($K88,2),BG88,0)) -> 0.1619826554 | CE88: =+Q88*KeyAssumptionsPriceControl_FO!AC$15 -> 0.2018768838 | CF88: =+R88*KeyAssumptionsPriceControl_FO!AD$15 -> 0.2121723719 | CG88: =+S88*KeyAssumptionsPriceControl_FO!AE$15 -> 0.2185267574 | CH88: =+T88*KeyAssumptionsPriceControl_FO!AF$15 -> 0.2170025543 | CI88: =+U88*KeyAssumptionsPriceControl_FO!AG$15 -> 0.2318153921 | CJ88: =+V88*KeyAssumptionsPriceControl_FO!AH$15 -> 0.2387407744 | CK88: =+W88*KeyAssumptionsPriceControl_FO!AI$15 -> 0.2452369687 | CL88: =+X88*KeyAssumptionsPriceControl_FO!AJ$15 -> 0.2403549472 | CM88: =+Y88*KeyAssumptionsPriceControl_FO!AK$15 -> 0.2421154557 | CN88: =+Z88*KeyAssumptionsPriceControl_FO!AL$15 -> 0.2176911438 | CP88: 0.002523461047 | CQ88: 0.007699076742 | CR88: 0.01308281586 | CS88: 0.01852693225 | CT88: 0.02413715658 | CU88: 0.03001910867 | CV88: 0.03606883045 | CW88: 0.0421387294 | CX88: 0.04816960944 | CY88: 0.05391719193
C89: SPS | E89: Water | F89: Improvements / Compliance | G89: Pipelines/network | H89: Capital Programs / Allocation | J89: Straight line | K89: Ongoing | L89: 40 | M89: 40 | Q89: 0 | R89: 0 | S89: 0 | T89: 0 | U89: 0 | V89: 0 | W89: 0 | X89: 0.312999 | Y89: 1.49529884 | Z89: 0.67005397 | AX89: 0 | AY89: 0 | AZ89: 0 | BA89: 0 | BB89: 0 | BC89: 0 | BD89: 0 | BE89: 0.312999 | BF89: 1.49529884 | BG89: 0.67005397 | BI89: 0 | BJ89: 0 | BK89: 0 | BL89: 0 | BM89: 0 | BN89: 0 | BO89: 0 | BP89: 0.0039124875 | BQ89: 0.0265162105 | BR89: 0.05358312062 | BT89: =+IF($K89="Ongoing",AX89,IF(RIGHT($K89,2)=RIGHT(BT$39,2),SUM($AX89:AX89),0)+IF(RIGHT(BT$39,2)>RIGHT($K89,2),AX89,0)) -> 0 | BU89: =+IF($K89="Ongoing",AY89,IF(RIGHT($K89,2)=RIGHT(BU$39,2),SUM($AX89:AY89),0)+IF(RIGHT(BU$39,2)>RIGHT($K89,2),AY89,0)) -> 0 | BV89: =+IF($K89="Ongoing",AZ89,IF(RIGHT($K89,2)=RIGHT(BV$39,2),SUM($AX89:AZ89),0)+IF(RIGHT(BV$39,2)>RIGHT($K89,2),AZ89,0)) -> 0 | BW89: =+IF($K89="Ongoing",BA89,IF(RIGHT($K89,2)=RIGHT(BW$39,2),SUM($AX89:BA89),0)+IF(RIGHT(BW$39,2)>RIGHT($K89,2),BA89,0)) -> 0 | BX89: =+IF($K89="Ongoing",BB89,IF(RIGHT($K89,2)=RIGHT(BX$39,2),SUM($AX89:BB89),0)+IF(RIGHT(BX$39,2)>RIGHT($K89,2),BB89,0)) -> 0 | BY89: =+IF($K89="Ongoing",BC89,IF(RIGHT($K89,2)=RIGHT(BY$39,2),SUM($AX89:BC89),0)+IF(RIGHT(BY$39,2)>RIGHT($K89,2),BC89,0)) -> 0 | BZ89: =+IF($K89="Ongoing",BD89,IF(RIGHT($K89,2)=RIGHT(BZ$39,2),SUM($AX89:BD89),0)+IF(RIGHT(BZ$39,2)>RIGHT($K89,2),BD89,0)) -> 0 | CA89: =+IF($K89="Ongoing",BE89,IF(RIGHT($K89,2)=RIGHT(CA$39,2),SUM($AX89:BE89),0)+IF(RIGHT(CA$39,2)>RIGHT($K89,2),BE89,0)) -> 0.312999 | CB89: =+IF($K89="Ongoing",BF89,IF(RIGHT($K89,2)=RIGHT(CB$39,2),SUM($AX89:BF89),0)+IF(RIGHT(CB$39,2)>RIGHT($K89,2),BF89,0)) -> 1.49529884 | CC89: =+IF($K89="Ongoing",BG89,IF(RIGHT($K89,2)=RIGHT(CC$39,2),SUM($AX89:BG89),0)+IF(RIGHT(CC$39,2)>RIGHT($K89,2),BG89,0)) -> 0.67005397 | CE89: =+Q89*KeyAssumptionsPriceControl_FO!AC$15 -> 0 | CF89: =+R89*KeyAssumptionsPriceControl_FO!AD$15 -> 0 | CG89: =+S89*KeyAssumptionsPriceControl_FO!AE$15 -> 0 | CH89: =+T89*KeyAssumptionsPriceControl_FO!AF$15 -> 0 | CI89: =+U89*KeyAssumptionsPriceControl_FO!AG$15 -> 0 | CJ89: =+V89*KeyAssumptionsPriceControl_FO!AH$15 -> 0 | CK89: =+W89*KeyAssumptionsPriceControl_FO!AI$15 -> 0 | CL89: =+X89*KeyAssumptionsPriceControl_FO!AJ$15 -> 0.3964977687 | CM89: =+Y89*KeyAssumptionsPriceControl_FO!AK$15 -> 1.951025828 | CN89: =+Z89*KeyAssumptionsPriceControl_FO!AL$15 -> 0.9004965053 | CP89: 0 | CQ89: 0 | CR89: 0 | CS89: 0 | CT89: 0 | CU89: 0 | CV89: 0 | CW89: 0.004956222109 | CX89: 0.03430026707 | CY89: 0.06994429624
C90: SPS | E90: Water | F90: Renewals | G90: Pipelines/network | H90: Capital Programs / Allocation | J90: Straight line | K90: Ongoing | L90: 40 | M90: 40 | Q90: 0 | R90: 0.409996 | S90: 0.55 | T90: 0 | U90: 0 | V90: 0 | W90: 0 | X90: 0 | Y90: 0 | Z90: 0.0651625 | AX90: 0 | AY90: 0.409996 | AZ90: 0.55 | BA90: 0 | BB90: 0 | BC90: 0 | BD90: 0 | BE90: 0 | BF90: 0 | BG90: 0.0651625 | BI90: 0 | BJ90: 0.00512495 | BK90: 0.0171249 | BL90: 0.0239999 | BM90: 0.0239999 | BN90: 0.0239999 | BO90: 0.0239999 | BP90: 0.0239999 | BQ90: 0.0239999 | BR90: 0.02481443125 | BT90: =+IF($K90="Ongoing",AX90,IF(RIGHT($K90,2)=RIGHT(BT$39,2),SUM($AX90:AX90),0)+IF(RIGHT(BT$39,2)>RIGHT($K90,2),AX90,0)) -> 0 | BU90: =+IF($K90="Ongoing",AY90,IF(RIGHT($K90,2)=RIGHT(BU$39,2),SUM($AX90:AY90),0)+IF(RIGHT(BU$39,2)>RIGHT($K90,2),AY90,0)) -> 0.409996 | BV90: =+IF($K90="Ongoing",AZ90,IF(RIGHT($K90,2)=RIGHT(BV$39,2),SUM($AX90:AZ90),0)+IF(RIGHT(BV$39,2)>RIGHT($K90,2),AZ90,0)) -> 0.55 | BW90: =+IF($K90="Ongoing",BA90,IF(RIGHT($K90,2)=RIGHT(BW$39,2),SUM($AX90:BA90),0)+IF(RIGHT(BW$39,2)>RIGHT($K90,2),BA90,0)) -> 0 | BX90: =+IF($K90="Ongoing",BB90,IF(RIGHT($K90,2)=RIGHT(BX$39,2),SUM($AX90:BB90),0)+IF(RIGHT(BX$39,2)>RIGHT($K90,2),BB90,0)) -> 0 | BY90: =+IF($K90="Ongoing",BC90,IF(RIGHT($K90,2)=RIGHT(BY$39,2),SUM($AX90:BC90),0)+IF(RIGHT(BY$39,2)>RIGHT($K90,2),BC90,0)) -> 0 | BZ90: =+IF($K90="Ongoing",BD90,IF(RIGHT($K90,2)=RIGHT(BZ$39,2),SUM($AX90:BD90),0)+IF(RIGHT(BZ$39,2)>RIGHT($K90,2),BD90,0)) -> 0 | CA90: =+IF($K90="Ongoing",BE90,IF(RIGHT($K90,2)=RIGHT(CA$39,2),SUM($AX90:BE90),0)+IF(RIGHT(CA$39,2)>RIGHT($K90,2),BE90,0)) -> 0 | CB90: =+IF($K90="Ongoing",BF90,IF(RIGHT($K90,2)=RIGHT(CB$39,2),SUM($AX90:BF90),0)+IF(RIGHT(CB$39,2)>RIGHT($K90,2),BF90,0)) -> 0 | CC90: =+IF($K90="Ongoing",BG90,IF(RIGHT($K90,2)=RIGHT(CC$39,2),SUM($AX90:BG90),0)+IF(RIGHT(CC$39,2)>RIGHT($K90,2),BG90,0)) -> 0.0651625 | CE90: =+Q90*KeyAssumptionsPriceControl_FO!AC$15 -> 0 | CF90: =+R90*KeyAssumptionsPriceControl_FO!AD$15 -> 0.4349647564 | CG90: =+S90*KeyAssumptionsPriceControl_FO!AE$15 -> 0.60099985 | CH90: =+T90*KeyAssumptionsPriceControl_FO!AF$15 -> 0 | CI90: =+U90*KeyAssumptionsPriceControl_FO!AG$15 -> 0 | CJ90: =+V90*KeyAssumptionsPriceControl_FO!AH$15 -> 0 | CK90: =+W90*KeyAssumptionsPriceControl_FO!AI$15 -> 0 | CL90: =+X90*KeyAssumptionsPriceControl_FO!AJ$15 -> 0 | CM90: =+Y90*KeyAssumptionsPriceControl_FO!AK$15 -> 0 | CN90: =+Z90*KeyAssumptionsPriceControl_FO!AL$15 -> 0.08757295107 | CP90: 0 | CQ90: 0.005437059455 | CR90: 0.01838661704 | CS90: 0.02589911516 | CT90: 0.02589911516 | CU90: 0.02589911516 | CV90: 0.02589911516 | CW90: 0.02589911516 | CX90: 0.02589911516 | CY90: 0.02699377705
C91: Storage | E91: Sewerage | F91: Renewals | G91: Treatment | H91: Capital Programs / Allocation | J91: Straight line | K91: Ongoing | L91: 100 | M91: 100 | Q91: 0 | R91: 0 | S91: 0 | T91: 0 | U91: 0 | V91: 0.0451125 | W91: 0 | X91: 0 | Y91: 0.042 | Z91: 0.1328474 | AX91: 0 | AY91: 0 | AZ91: 0 | BA91: 0 | BB91: 0 | BC91: 0.0451125 | BD91: 0 | BE91: 0 | BF91: 0.042 | BG91: 0.1328474 | BI91: 0 | BJ91: 0 | BK91: 0 | BL91: 0 | BM91: 0 | BN91: 0.0002255625 | BO91: 0.000451125 | BP91: 0.000451125 | BQ91: 0.000661125 | BR91: 0.001535362 | BT91: =+IF($K91="Ongoing",AX91,IF(RIGHT($K91,2)=RIGHT(BT$39,2),SUM($AX91:AX91),0)+IF(RIGHT(BT$39,2)>RIGHT($K91,2),AX91,0)) -> 0 | BU91: =+IF($K91="Ongoing",AY91,IF(RIGHT($K91,2)=RIGHT(BU$39,2),SUM($AX91:AY91),0)+IF(RIGHT(BU$39,2)>RIGHT($K91,2),AY91,0)) -> 0 | BV91: =+IF($K91="Ongoing",AZ91,IF(RIGHT($K91,2)=RIGHT(BV$39,2),SUM($AX91:AZ91),0)+IF(RIGHT(BV$39,2)>RIGHT($K91,2),AZ91,0)) -> 0 | BW91: =+IF($K91="Ongoing",BA91,IF(RIGHT($K91,2)=RIGHT(BW$39,2),SUM($AX91:BA91),0)+IF(RIGHT(BW$39,2)>RIGHT($K91,2),BA91,0)) -> 0 | BX91: =+IF($K91="Ongoing",BB91,IF(RIGHT($K91,2)=RIGHT(BX$39,2),SUM($AX91:BB91),0)+IF(RIGHT(BX$39,2)>RIGHT($K91,2),BB91,0)) -> 0 | BY91: =+IF($K91="Ongoing",BC91,IF(RIGHT($K91,2)=RIGHT(BY$39,2),SUM($AX91:BC91),0)+IF(RIGHT(BY$39,2)>RIGHT($K91,2),BC91,0)) -> 0.0451125 | BZ91: =+IF($K91="Ongoing",BD91,IF(RIGHT($K91,2)=RIGHT(BZ$39,2),SUM($AX91:BD91),0)+IF(RIGHT(BZ$39,2)>RIGHT($K91,2),BD91,0)) -> 0 | CA91: =+IF($K91="Ongoing",BE91,IF(RIGHT($K91,2)=RIGHT(CA$39,2),SUM($AX91:BE91),0)+IF(RIGHT(CA$39,2)>RIGHT($K91,2),BE91,0)) -> 0 | CB91: =+IF($K91="Ongoing",BF91,IF(RIGHT($K91,2)=RIGHT(CB$39,2),SUM($AX91:BF91),0)+IF(RIGHT(CB$39,2)>RIGHT($K91,2),BF91,0)) -> 0.042 | CC91: =+IF($K91="Ongoing",BG91,IF(RIGHT($K91,2)=RIGHT(CC$39,2),SUM($AX91:BG91),0)+IF(RIGHT(CC$39,2)>RIGHT($K91,2),BG91,0)) -> 0.1328474 | CE91: =+Q91*KeyAssumptionsPriceControl_FO!AC$15 -> 0 | CF91: =+R91*KeyAssumptionsPriceControl_FO!AD$15 -> 0 | CG91: =+S91*KeyAssumptionsPriceControl_FO!AE$15 -> 0 | CH91: =+T91*KeyAssumptionsPriceControl_FO!AF$15 -> 0 | CI91: =+U91*KeyAssumptionsPriceControl_FO!AG$15 -> 0 | CJ91: =+V91*KeyAssumptionsPriceControl_FO!AH$15 -> 0.05386668423 | CK91: =+W91*KeyAssumptionsPriceControl_FO!AI$15 -> 0 | CL91: =+X91*KeyAssumptionsPriceControl_FO!AJ$15 -> 0 | CM91: =+Y91*KeyAssumptionsPriceControl_FO!AK$15 -> 0.05480047372 | CN91: =+Z91*KeyAssumptionsPriceControl_FO!AL$15 -> 0.1785357968 | CP91: 0 | CQ91: 0 | CR91: 0 | CS91: 0 | CT91: 0 | CU91: 0.0002693334211 | CV91: 0.0005386668423 | CW91: 0.0005386668423 | CX91: 0.0008126692109 | CY91: 0.001979350564
C92: Storage | E92: Water | F92: Growth | G92: Headworks | H92: Capital Programs / Allocation | J92: Straight line | K92: Ongoing | L92: 100 | M92: 100 | Q92: 0 | R92: 0 | S92: 0 | T92: 0 | U92: 0 | V92: 0.475145 | W92: 0 | X92: 0.918 | Y92: 2.76 | Z92: 0 | AX92: 0 | AY92: 0 | AZ92: 0 | BA92: 0 | BB92: 0 | BC92: 0.475145 | BD92: 0 | BE92: 0.918 | BF92: 2.76 | BG92: 0 | BI92: 0 | BJ92: 0 | BK92: 0 | BL92: 0 | BM92: 0 | BN92: 0.002375725 | BO92: 0.00475145 | BP92: 0.00934145 | BQ92: 0.02773145 | BR92: 0.04153145 | BT92: =+IF($K92="Ongoing",AX92,IF(RIGHT($K92,2)=RIGHT(BT$39,2),SUM($AX92:AX92),0)+IF(RIGHT(BT$39,2)>RIGHT($K92,2),AX92,0)) -> 0 | BU92: =+IF($K92="Ongoing",AY92,IF(RIGHT($K92,2)=RIGHT(BU$39,2),SUM($AX92:AY92),0)+IF(RIGHT(BU$39,2)>RIGHT($K92,2),AY92,0)) -> 0 | BV92: =+IF($K92="Ongoing",AZ92,IF(RIGHT($K92,2)=RIGHT(BV$39,2),SUM($AX92:AZ92),0)+IF(RIGHT(BV$39,2)>RIGHT($K92,2),AZ92,0)) -> 0 | BW92: =+IF($K92="Ongoing",BA92,IF(RIGHT($K92,2)=RIGHT(BW$39,2),SUM($AX92:BA92),0)+IF(RIGHT(BW$39,2)>RIGHT($K92,2),BA92,0)) -> 0 | BX92: =+IF($K92="Ongoing",BB92,IF(RIGHT($K92,2)=RIGHT(BX$39,2),SUM($AX92:BB92),0)+IF(RIGHT(BX$39,2)>RIGHT($K92,2),BB92,0)) -> 0 | BY92: =+IF($K92="Ongoing",BC92,IF(RIGHT($K92,2)=RIGHT(BY$39,2),SUM($AX92:BC92),0)+IF(RIGHT(BY$39,2)>RIGHT($K92,2),BC92,0)) -> 0.475145 | BZ92: =+IF($K92="Ongoing",BD92,IF(RIGHT($K92,2)=RIGHT(BZ$39,2),SUM($AX92:BD92),0)+IF(RIGHT(BZ$39,2)>RIGHT($K92,2),BD92,0)) -> 0 | CA92: =+IF($K92="Ongoing",BE92,IF(RIGHT($K92,2)=RIGHT(CA$39,2),SUM($AX92:BE92),0)+IF(RIGHT(CA$39,2)>RIGHT($K92,2),BE92,0)) -> 0.918 | CB92: =+IF($K92="Ongoing",BF92,IF(RIGHT($K92,2)=RIGHT(CB$39,2),SUM($AX92:BF92),0)+IF(RIGHT(CB$39,2)>RIGHT($K92,2),BF92,0)) -> 2.76 | CC92: =+IF($K92="Ongoing",BG92,IF(RIGHT($K92,2)=RIGHT(CC$39,2),SUM($AX92:BG92),0)+IF(RIGHT(CC$39,2)>RIGHT($K92,2),BG92,0)) -> 0 | CE92: =+Q92*KeyAssumptionsPriceControl_FO!AC$15 -> 0 | CF92: =+R92*KeyAssumptionsPriceControl_FO!AD$15 -> 0 | CG92: =+S92*KeyAssumptionsPriceControl_FO!AE$15 -> 0 | CH92: =+T92*KeyAssumptionsPriceControl_FO!AF$15 -> 0 | CI92: =+U92*KeyAssumptionsPriceControl_FO!AG$15 -> 0 | CJ92: =+V92*KeyAssumptionsPriceControl_FO!AH$15 -> 0.5673479784 | CK92: =+W92*KeyAssumptionsPriceControl_FO!AI$15 -> 0 | CL92: =+X92*KeyAssumptionsPriceControl_FO!AJ$15 -> 1.162894935 | CM92: =+Y92*KeyAssumptionsPriceControl_FO!AK$15 -> 3.601173987 | CN92: =+Z92*KeyAssumptionsPriceControl_FO!AL$15 -> 0 | CP92: 0 | CQ92: 0 | CR92: 0 | CS92: 0 | CT92: 0 | CU92: 0.002836739892 | CV92: 0.005673479784 | CW92: 0.01148795446 | CX92: 0.03530829907 | CY92: 0.05331416901
C93: Storage | E93: Water | F93: Renewals | G93: Pipelines/network | H93: Capital Programs / Allocation | J93: Straight line | K93: Ongoing | L93: 100 | M93: 100 | Q93: 0.7999928011 | R93: 0.7999202771 | S93: 0.7999950615 | T93: 0.7998295104 | U93: 0.7998728058 | V93: 0.9498735575 | W93: 0.7999827034 | X93: 0.9128320762 | Y93: 1.092012039 | Z93: 0.922654462 | AX93: 0.7999928011 | AY93: 0.7999202771 | AZ93: 0.7999950615 | BA93: 0.7998295104 | BB93: 0.7998728058 | BC93: 0.9498735575 | BD93: 0.7999827034 | BE93: 0.9128320762 | BF93: 1.092012039 | BG93: 0.922654462 | BI93: 0.003999964006 | BJ93: 0.0119995294 | BK93: 0.01999910609 | BL93: 0.02799822895 | BM93: 0.03599674053 | BN93: 0.04474547235 | BO93: 0.05349475365 | BP93: 0.06205882755 | BQ93: 0.07208304813 | BR93: 0.08215638063 | BT93: =+IF($K93="Ongoing",AX93,IF(RIGHT($K93,2)=RIGHT(BT$39,2),SUM($AX93:AX93),0)+IF(RIGHT(BT$39,2)>RIGHT($K93,2),AX93,0)) -> 0.7999928011 | BU93: =+IF($K93="Ongoing",AY93,IF(RIGHT($K93,2)=RIGHT(BU$39,2),SUM($AX93:AY93),0)+IF(RIGHT(BU$39,2)>RIGHT($K93,2),AY93,0)) -> 0.7999202771 | BV93: =+IF($K93="Ongoing",AZ93,IF(RIGHT($K93,2)=RIGHT(BV$39,2),SUM($AX93:AZ93),0)+IF(RIGHT(BV$39,2)>RIGHT($K93,2),AZ93,0)) -> 0.7999950615 | BW93: =+IF($K93="Ongoing",BA93,IF(RIGHT($K93,2)=RIGHT(BW$39,2),SUM($AX93:BA93),0)+IF(RIGHT(BW$39,2)>RIGHT($K93,2),BA93,0)) -> 0.7998295104 | BX93: =+IF($K93="Ongoing",BB93,IF(RIGHT($K93,2)=RIGHT(BX$39,2),SUM($AX93:BB93),0)+IF(RIGHT(BX$39,2)>RIGHT($K93,2),BB93,0)) -> 0.7998728058 | BY93: =+IF($K93="Ongoing",BC93,IF(RIGHT($K93,2)=RIGHT(BY$39,2),SUM($AX93:BC93),0)+IF(RIGHT(BY$39,2)>RIGHT($K93,2),BC93,0)) -> 0.9498735575 | BZ93: =+IF($K93="Ongoing",BD93,IF(RIGHT($K93,2)=RIGHT(BZ$39,2),SUM($AX93:BD93),0)+IF(RIGHT(BZ$39,2)>RIGHT($K93,2),BD93,0)) -> 0.7999827034 | CA93: =+IF($K93="Ongoing",BE93,IF(RIGHT($K93,2)=RIGHT(CA$39,2),SUM($AX93:BE93),0)+IF(RIGHT(CA$39,2)>RIGHT($K93,2),BE93,0)) -> 0.9128320762 | CB93: =+IF($K93="Ongoing",BF93,IF(RIGHT($K93,2)=RIGHT(CB$39,2),SUM($AX93:BF93),0)+IF(RIGHT(CB$39,2)>RIGHT($K93,2),BF93,0)) -> 1.092012039 | CC93: =+IF($K93="Ongoing",BG93,IF(RIGHT($K93,2)=RIGHT(CC$39,2),SUM($AX93:BG93),0)+IF(RIGHT(CC$39,2)>RIGHT($K93,2),BG93,0)) -> 0.922654462 | CE93: =+Q93*KeyAssumptionsPriceControl_FO!AC$15 -> 0.8239925851 | CF93: =+R93*KeyAssumptionsPriceControl_FO!AD$15 -> 0.848635422 | CG93: =+S93*KeyAssumptionsPriceControl_FO!AE$15 -> 0.8741762036 | CH93: =+T93*KeyAssumptionsPriceControl_FO!AF$15 -> 0.9002151605 | CI93: =+U93*KeyAssumptionsPriceControl_FO!AG$15 -> 0.9272718065 | CJ93: =+V93*KeyAssumptionsPriceControl_FO!AH$15 -> 1.134198703 | CK93: =+W93*KeyAssumptionsPriceControl_FO!AI$15 -> 0.9838778197 | CL93: =+X93*KeyAssumptionsPriceControl_FO!AJ$15 -> 1.156348363 | CM93: =+Y93*KeyAssumptionsPriceControl_FO!AK$15 -> 1.424828025 | CN93: =+Z93*KeyAssumptionsPriceControl_FO!AL$15 -> 1.239970444 | CP93: 0.004119962926 | CQ93: 0.01248310296 | CR93: 0.02109716109 | CS93: 0.02996911791 | CT93: 0.03910655274 | CU93: 0.04941390529 | CV93: 0.0600042879 | CW93: 0.07070541882 | CX93: 0.08361130076 | CY93: 0.09693529311
C94: Towers and Tanks | E94: Water | F94: Improvements / Compliance | G94: Pipelines/network | H94: Capital Programs / Allocation | J94: Straight line | K94: Ongoing | L94: 40 | M94: 40 | Q94: 0.2 | R94: 0 | S94: 0 | T94: 0 | U94: 0 | V94: 0.0794638 | W94: 0 | X94: 0 | Y94: 0 | Z94: 0.129188 | AX94: 0.2 | AY94: 0 | AZ94: 0 | BA94: 0 | BB94: 0 | BC94: 0.0794638 | BD94: 0 | BE94: 0 | BF94: 0 | BG94: 0.129188 | BI94: 0.0025 | BJ94: 0.005 | BK94: 0.005 | BL94: 0.005 | BM94: 0.005 | BN94: 0.0059932975 | BO94: 0.006986595 | BP94: 0.006986595 | BQ94: 0.006986595 | BR94: 0.008601445 | BT94: =+IF($K94="Ongoing",AX94,IF(RIGHT($K94,2)=RIGHT(BT$39,2),SUM($AX94:AX94),0)+IF(RIGHT(BT$39,2)>RIGHT($K94,2),AX94,0)) -> 0.2 | BU94: =+IF($K94="Ongoing",AY94,IF(RIGHT($K94,2)=RIGHT(BU$39,2),SUM($AX94:AY94),0)+IF(RIGHT(BU$39,2)>RIGHT($K94,2),AY94,0)) -> 0 | BV94: =+IF($K94="Ongoing",AZ94,IF(RIGHT($K94,2)=RIGHT(BV$39,2),SUM($AX94:AZ94),0)+IF(RIGHT(BV$39,2)>RIGHT($K94,2),AZ94,0)) -> 0 | BW94: =+IF($K94="Ongoing",BA94,IF(RIGHT($K94,2)=RIGHT(BW$39,2),SUM($AX94:BA94),0)+IF(RIGHT(BW$39,2)>RIGHT($K94,2),BA94,0)) -> 0 | BX94: =+IF($K94="Ongoing",BB94,IF(RIGHT($K94,2)=RIGHT(BX$39,2),SUM($AX94:BB94),0)+IF(RIGHT(BX$39,2)>RIGHT($K94,2),BB94,0)) -> 0 | BY94: =+IF($K94="Ongoing",BC94,IF(RIGHT($K94,2)=RIGHT(BY$39,2),SUM($AX94:BC94),0)+IF(RIGHT(BY$39,2)>RIGHT($K94,2),BC94,0)) -> 0.0794638 | BZ94: =+IF($K94="Ongoing",BD94,IF(RIGHT($K94,2)=RIGHT(BZ$39,2),SUM($AX94:BD94),0)+IF(RIGHT(BZ$39,2)>RIGHT($K94,2),BD94,0)) -> 0 | CA94: =+IF($K94="Ongoing",BE94,IF(RIGHT($K94,2)=RIGHT(CA$39,2),SUM($AX94:BE94),0)+IF(RIGHT(CA$39,2)>RIGHT($K94,2),BE94,0)) -> 0 | CB94: =+IF($K94="Ongoing",BF94,IF(RIGHT($K94,2)=RIGHT(CB$39,2),SUM($AX94:BF94),0)+IF(RIGHT(CB$39,2)>RIGHT($K94,2),BF94,0)) -> 0 | CC94: =+IF($K94="Ongoing",BG94,IF(RIGHT($K94,2)=RIGHT(CC$39,2),SUM($AX94:BG94),0)+IF(RIGHT(CC$39,2)>RIGHT($K94,2),BG94,0)) -> 0.129188 | CE94: =+Q94*KeyAssumptionsPriceControl_FO!AC$15 -> 0.206 | CF94: =+R94*KeyAssumptionsPriceControl_FO!AD$15 -> 0 | CG94: =+S94*KeyAssumptionsPriceControl_FO!AE$15 -> 0 | CH94: =+T94*KeyAssumptionsPriceControl_FO!AF$15 -> 0 | CI94: =+U94*KeyAssumptionsPriceControl_FO!AG$15 -> 0 | CJ94: =+V94*KeyAssumptionsPriceControl_FO!AH$15 -> 0.09488393288 | CK94: =+W94*KeyAssumptionsPriceControl_FO!AI$15 -> 0 | CL94: =+X94*KeyAssumptionsPriceControl_FO!AJ$15 -> 0 | CM94: =+Y94*KeyAssumptionsPriceControl_FO!AK$15 -> 0 | CN94: =+Z94*KeyAssumptionsPriceControl_FO!AL$15 -> 0.1736178692 | CP94: 0.002575 | CQ94: 0.00515 | CR94: 0.00515 | CS94: 0.00515 | CT94: 0.00515 | CU94: 0.006336049161 | CV94: 0.007522098322 | CW94: 0.007522098322 | CX94: 0.007522098322 | CY94: 0.009692321687
C95: Towers and Tanks | E95: Water | F95: Renewals | G95: Pipelines/network | H95: Capital Programs / Allocation | J95: Straight line | K95: Ongoing | L95: 40 | M95: 40 | Q95: 0 | R95: 0 | S95: 0 | T95: 0.130325 | U95: 0 | V95: 0.0751875 | W95: 0.1 | X95: 0.15 | Y95: 0.01253125 | Z95: 0 | AX95: 0 | AY95: 0 | AZ95: 0 | BA95: 0.130325 | BB95: 0 | BC95: 0.0751875 | BD95: 0.1 | BE95: 0.15 | BF95: 0.01253125 | BG95: 0 | BI95: 0 | BJ95: 0 | BK95: 0 | BL95: 0.0016290625 | BM95: 0.003258125 | BN95: 0.00419796875 | BO95: 0.0063878125 | BP95: 0.0095128125 | BQ95: 0.01154445312 | BR95: 0.01170109375 | BT95: =+IF($K95="Ongoing",AX95,IF(RIGHT($K95,2)=RIGHT(BT$39,2),SUM($AX95:AX95),0)+IF(RIGHT(BT$39,2)>RIGHT($K95,2),AX95,0)) -> 0 | BU95: =+IF($K95="Ongoing",AY95,IF(RIGHT($K95,2)=RIGHT(BU$39,2),SUM($AX95:AY95),0)+IF(RIGHT(BU$39,2)>RIGHT($K95,2),AY95,0)) -> 0 | BV95: =+IF($K95="Ongoing",AZ95,IF(RIGHT($K95,2)=RIGHT(BV$39,2),SUM($AX95:AZ95),0)+IF(RIGHT(BV$39,2)>RIGHT($K95,2),AZ95,0)) -> 0 | BW95: =+IF($K95="Ongoing",BA95,IF(RIGHT($K95,2)=RIGHT(BW$39,2),SUM($AX95:BA95),0)+IF(RIGHT(BW$39,2)>RIGHT($K95,2),BA95,0)) -> 0.130325 | BX95: =+IF($K95="Ongoing",BB95,IF(RIGHT($K95,2)=RIGHT(BX$39,2),SUM($AX95:BB95),0)+IF(RIGHT(BX$39,2)>RIGHT($K95,2),BB95,0)) -> 0 | BY95: =+IF($K95="Ongoing",BC95,IF(RIGHT($K95,2)=RIGHT(BY$39,2),SUM($AX95:BC95),0)+IF(RIGHT(BY$39,2)>RIGHT($K95,2),BC95,0)) -> 0.0751875 | BZ95: =+IF($K95="Ongoing",BD95,IF(RIGHT($K95,2)=RIGHT(BZ$39,2),SUM($AX95:BD95),0)+IF(RIGHT(BZ$39,2)>RIGHT($K95,2),BD95,0)) -> 0.1 | CA95: =+IF($K95="Ongoing",BE95,IF(RIGHT($K95,2)=RIGHT(CA$39,2),SUM($AX95:BE95),0)+IF(RIGHT(CA$39,2)>RIGHT($K95,2),BE95,0)) -> 0.15 | CB95: =+IF($K95="Ongoing",BF95,IF(RIGHT($K95,2)=RIGHT(CB$39,2),SUM($AX95:BF95),0)+IF(RIGHT(CB$39,2)>RIGHT($K95,2),BF95,0)) -> 0.01253125 | CC95: =+IF($K95="Ongoing",BG95,IF(RIGHT($K95,2)=RIGHT(CC$39,2),SUM($AX95:BG95),0)+IF(RIGHT(CC$39,2)>RIGHT($K95,2),BG95,0)) -> 0 | CE95: =+Q95*KeyAssumptionsPriceControl_FO!AC$15 -> 0 | CF95: =+R95*KeyAssumptionsPriceControl_FO!AD$15 -> 0 | CG95: =+S95*KeyAssumptionsPriceControl_FO!AE$15 -> 0 | CH95: =+T95*KeyAssumptionsPriceControl_FO!AF$15 -> 0.1466819357 | CI95: =+U95*KeyAssumptionsPriceControl_FO!AG$15 -> 0 | CJ95: =+V95*KeyAssumptionsPriceControl_FO!AH$15 -> 0.08977780705 | CK95: =+W95*KeyAssumptionsPriceControl_FO!AI$15 -> 0.1229873865 | CL95: =+X95*KeyAssumptionsPriceControl_FO!AJ$15 -> 0.1900155122 | CM95: =+Y95*KeyAssumptionsPriceControl_FO!AK$15 -> 0.01635043896 | CN95: =+Z95*KeyAssumptionsPriceControl_FO!AL$15 -> 0 | CP95: 0 | CQ95: 0 | CR95: 0 | CS95: 0.001833524196 | CT95: 0.003667048392 | CU95: 0.00478927098 | CV95: 0.007448835899 | CW95: 0.01136137213 | CX95: 0.01394094652 | CY95: 0.01414532701
C96: Treatment Plants | E96: Sewerage | F96: Growth | G96: Treatment | H96: Capital Programs / Allocation | J96: Straight line | K96: Ongoing | L96: 80 | M96: 80 | Q96: 0 | R96: 0 | S96: 0 | T96: 0 | U96: 0 | V96: 0.1 | W96: 0.5 | X96: 0 | Y96: 0 | Z96: 0 | AX96: 0 | AY96: 0 | AZ96: 0 | BA96: 0 | BB96: 0 | BC96: 0.1 | BD96: 0.5 | BE96: 0 | BF96: 0 | BG96: 0 | BI96: 0 | BJ96: 0 | BK96: 0 | BL96: 0 | BM96: 0 | BN96: 0.000625 | BO96: 0.004375 | BP96: 0.0075 | BQ96: 0.0075 | BR96: 0.0075 | BT96: =+IF($K96="Ongoing",AX96,IF(RIGHT($K96,2)=RIGHT(BT$39,2),SUM($AX96:AX96),0)+IF(RIGHT(BT$39,2)>RIGHT($K96,2),AX96,0)) -> 0 | BU96: =+IF($K96="Ongoing",AY96,IF(RIGHT($K96,2)=RIGHT(BU$39,2),SUM($AX96:AY96),0)+IF(RIGHT(BU$39,2)>RIGHT($K96,2),AY96,0)) -> 0 | BV96: =+IF($K96="Ongoing",AZ96,IF(RIGHT($K96,2)=RIGHT(BV$39,2),SUM($AX96:AZ96),0)+IF(RIGHT(BV$39,2)>RIGHT($K96,2),AZ96,0)) -> 0 | BW96: =+IF($K96="Ongoing",BA96,IF(RIGHT($K96,2)=RIGHT(BW$39,2),SUM($AX96:BA96),0)+IF(RIGHT(BW$39,2)>RIGHT($K96,2),BA96,0)) -> 0 | BX96: =+IF($K96="Ongoing",BB96,IF(RIGHT($K96,2)=RIGHT(BX$39,2),SUM($AX96:BB96),0)+IF(RIGHT(BX$39,2)>RIGHT($K96,2),BB96,0)) -> 0 | BY96: =+IF($K96="Ongoing",BC96,IF(RIGHT($K96,2)=RIGHT(BY$39,2),SUM($AX96:BC96),0)+IF(RIGHT(BY$39,2)>RIGHT($K96,2),BC96,0)) -> 0.1 | BZ96: =+IF($K96="Ongoing",BD96,IF(RIGHT($K96,2)=RIGHT(BZ$39,2),SUM($AX96:BD96),0)+IF(RIGHT(BZ$39,2)>RIGHT($K96,2),BD96,0)) -> 0.5 | CA96: =+IF($K96="Ongoing",BE96,IF(RIGHT($K96,2)=RIGHT(CA$39,2),SUM($AX96:BE96),0)+IF(RIGHT(CA$39,2)>RIGHT($K96,2),BE96,0)) -> 0 | CB96: =+IF($K96="Ongoing",BF96,IF(RIGHT($K96,2)=RIGHT(CB$39,2),SUM($AX96:BF96),0)+IF(RIGHT(CB$39,2)>RIGHT($K96,2),BF96,0)) -> 0 | CC96: =+IF($K96="Ongoing",BG96,IF(RIGHT($K96,2)=RIGHT(CC$39,2),SUM($AX96:BG96),0)+IF(RIGHT(CC$39,2)>RIGHT($K96,2),BG96,0)) -> 0 | CE96: =+Q96*KeyAssumptionsPriceControl_FO!AC$15 -> 0 | CF96: =+R96*KeyAssumptionsPriceControl_FO!AD$15 -> 0 | CG96: =+S96*KeyAssumptionsPriceControl_FO!AE$15 -> 0 | CH96: =+T96*KeyAssumptionsPriceControl_FO!AF$15 -> 0 | CI96: =+U96*KeyAssumptionsPriceControl_FO!AG$15 -> 0 | CJ96: =+V96*KeyAssumptionsPriceControl_FO!AH$15 -> 0.1194052297 | CK96: =+W96*KeyAssumptionsPriceControl_FO!AI$15 -> 0.6149369327 | CL96: =+X96*KeyAssumptionsPriceControl_FO!AJ$15 -> 0 | CM96: =+Y96*KeyAssumptionsPriceControl_FO!AK$15 -> 0 | CN96: =+Z96*KeyAssumptionsPriceControl_FO!AL$15 -> 0 | CP96: 0 | CQ96: 0 | CR96: 0 | CS96: 0 | CT96: 0 | CU96: 0.0007462826853 | CV96: 0.0053359212 | CW96: 0.00917927703 | CX96: 0.00917927703 | CY96: 0.00917927703
C97: Treatment Plants | E97: Sewerage | F97: Improvements / Compliance | G97: Treatment | H97: Capital Programs / Allocation | J97: Straight line | K97: Ongoing | L97: 80 | M97: 80 | Q97: 0.2216 | R97: 0.3716 | S97: 0.2716 | T97: 0.48855 | U97: 0.4716 | V97: 3.160875 | W97: 1.9986 | X97: 8.58639 | Y97: 13.109925 | Z97: 0.1716 | AX97: 0.2216 | AY97: 0.3716 | AZ97: 0.2716 | BA97: 0.48855 | BB97: 0.4716 | BC97: 3.160875 | BD97: 1.9986 | BE97: 8.58639 | BF97: 13.109925 | BG97: 0.1716 | BI97: 0.001385 | BJ97: 0.0050925 | BK97: 0.0091125 | BL97: 0.0138634375 | BM97: 0.019864375 | BN97: 0.04256734375 | BO97: 0.0748140625 | BP97: 0.14097025 | BQ97: 0.2765722187 | BR97: 0.35958175 | BT97: =+IF($K97="Ongoing",AX97,IF(RIGHT($K97,2)=RIGHT(BT$39,2),SUM($AX97:AX97),0)+IF(RIGHT(BT$39,2)>RIGHT($K97,2),AX97,0)) -> 0.2216 | BU97: =+IF($K97="Ongoing",AY97,IF(RIGHT($K97,2)=RIGHT(BU$39,2),SUM($AX97:AY97),0)+IF(RIGHT(BU$39,2)>RIGHT($K97,2),AY97,0)) -> 0.3716 | BV97: =+IF($K97="Ongoing",AZ97,IF(RIGHT($K97,2)=RIGHT(BV$39,2),SUM($AX97:AZ97),0)+IF(RIGHT(BV$39,2)>RIGHT($K97,2),AZ97,0)) -> 0.2716 | BW97: =+IF($K97="Ongoing",BA97,IF(RIGHT($K97,2)=RIGHT(BW$39,2),SUM($AX97:BA97),0)+IF(RIGHT(BW$39,2)>RIGHT($K97,2),BA97,0)) -> 0.48855 | BX97: =+IF($K97="Ongoing",BB97,IF(RIGHT($K97,2)=RIGHT(BX$39,2),SUM($AX97:BB97),0)+IF(RIGHT(BX$39,2)>RIGHT($K97,2),BB97,0)) -> 0.4716 | BY97: =+IF($K97="Ongoing",BC97,IF(RIGHT($K97,2)=RIGHT(BY$39,2),SUM($AX97:BC97),0)+IF(RIGHT(BY$39,2)>RIGHT($K97,2),BC97,0)) -> 3.160875 | BZ97: =+IF($K97="Ongoing",BD97,IF(RIGHT($K97,2)=RIGHT(BZ$39,2),SUM($AX97:BD97),0)+IF(RIGHT(BZ$39,2)>RIGHT($K97,2),BD97,0)) -> 1.9986 | CA97: =+IF($K97="Ongoing",BE97,IF(RIGHT($K97,2)=RIGHT(CA$39,2),SUM($AX97:BE97),0)+IF(RIGHT(CA$39,2)>RIGHT($K97,2),BE97,0)) -> 8.58639 | CB97: =+IF($K97="Ongoing",BF97,IF(RIGHT($K97,2)=RIGHT(CB$39,2),SUM($AX97:BF97),0)+IF(RIGHT(CB$39,2)>RIGHT($K97,2),BF97,0)) -> 13.109925 | CC97: =+IF($K97="Ongoing",BG97,IF(RIGHT($K97,2)=RIGHT(CC$39,2),SUM($AX97:BG97),0)+IF(RIGHT(CC$39,2)>RIGHT($K97,2),BG97,0)) -> 0.1716 | CE97: =+Q97*KeyAssumptionsPriceControl_FO!AC$15 -> 0.228248 | CF97: =+R97*KeyAssumptionsPriceControl_FO!AD$15 -> 0.39423044 | CG97: =+S97*KeyAssumptionsPriceControl_FO!AE$15 -> 0.2967846532 | CH97: =+T97*KeyAssumptionsPriceControl_FO!AF$15 -> 0.5498673291 | CI97: =+U97*KeyAssumptionsPriceControl_FO!AG$15 -> 0.5467136534 | CJ97: =+V97*KeyAssumptionsPriceControl_FO!AH$15 -> 3.774250053 | CK97: =+W97*KeyAssumptionsPriceControl_FO!AI$15 -> 2.458025907 | CL97: =+X97*KeyAssumptionsPriceControl_FO!AJ$15 -> 10.87698196 | CM97: =+Y97*KeyAssumptionsPriceControl_FO!AK$15 -> 17.10547858 | CN97: =+Z97*KeyAssumptionsPriceControl_FO!AL$15 -> 0.2306160507 | CP97: 0.00142655 | CQ97: 0.00531704025 | CR97: 0.009635884583 | CS97: 0.01492745947 | CT97: 0.02178109061 | CU97: 0.04878711378 | CV97: 0.08773883853 | CW97: 0.1710826377 | CX97: 0.3459730161 | CY97: 0.4543236075
C98: Treatment Plants | E98: Sewerage | F98: Renewals | G98: Treatment | H98: Capital Programs / Allocation | J98: Straight line | K98: Ongoing | L98: 80 | M98: 80 | Q98: 0 | R98: 0 | S98: 0 | T98: 0 | U98: 0 | V98: 0.3358375 | W98: 0.10025 | X98: 0 | Y98: 0 | Z98: 0 | AX98: 0 | AY98: 0 | AZ98: 0 | BA98: 0 | BB98: 0 | BC98: 0.3358375 | BD98: 0.10025 | BE98: 0 | BF98: 0 | BG98: 0 | BI98: 0 | BJ98: 0 | BK98: 0 | BL98: 0 | BM98: 0 | BN98: 0.002098984375 | BO98: 0.00482453125 | BP98: 0.00545109375 | BQ98: 0.00545109375 | BR98: 0.00545109375 | BT98: =+IF($K98="Ongoing",AX98,IF(RIGHT($K98,2)=RIGHT(BT$39,2),SUM($AX98:AX98),0)+IF(RIGHT(BT$39,2)>RIGHT($K98,2),AX98,0)) -> 0 | BU98: =+IF($K98="Ongoing",AY98,IF(RIGHT($K98,2)=RIGHT(BU$39,2),SUM($AX98:AY98),0)+IF(RIGHT(BU$39,2)>RIGHT($K98,2),AY98,0)) -> 0 | BV98: =+IF($K98="Ongoing",AZ98,IF(RIGHT($K98,2)=RIGHT(BV$39,2),SUM($AX98:AZ98),0)+IF(RIGHT(BV$39,2)>RIGHT($K98,2),AZ98,0)) -> 0 | BW98: =+IF($K98="Ongoing",BA98,IF(RIGHT($K98,2)=RIGHT(BW$39,2),SUM($AX98:BA98),0)+IF(RIGHT(BW$39,2)>RIGHT($K98,2),BA98,0)) -> 0 | BX98: =+IF($K98="Ongoing",BB98,IF(RIGHT($K98,2)=RIGHT(BX$39,2),SUM($AX98:BB98),0)+IF(RIGHT(BX$39,2)>RIGHT($K98,2),BB98,0)) -> 0 | BY98: =+IF($K98="Ongoing",BC98,IF(RIGHT($K98,2)=RIGHT(BY$39,2),SUM($AX98:BC98),0)+IF(RIGHT(BY$39,2)>RIGHT($K98,2),BC98,0)) -> 0.3358375 | BZ98: =+IF($K98="Ongoing",BD98,IF(RIGHT($K98,2)=RIGHT(BZ$39,2),SUM($AX98:BD98),0)+IF(RIGHT(BZ$39,2)>RIGHT($K98,2),BD98,0)) -> 0.10025 | CA98: =+IF($K98="Ongoing",BE98,IF(RIGHT($K98,2)=RIGHT(CA$39,2),SUM($AX98:BE98),0)+IF(RIGHT(CA$39,2)>RIGHT($K98,2),BE98,0)) -> 0 | CB98: =+IF($K98="Ongoing",BF98,IF(RIGHT($K98,2)=RIGHT(CB$39,2),SUM($AX98:BF98),0)+IF(RIGHT(CB$39,2)>RIGHT($K98,2),BF98,0)) -> 0 | CC98: =+IF($K98="Ongoing",BG98,IF(RIGHT($K98,2)=RIGHT(CC$39,2),SUM($AX98:BG98),0)+IF(RIGHT(CC$39,2)>RIGHT($K98,2),BG98,0)) -> 0 | CE98: =+Q98*KeyAssumptionsPriceControl_FO!AC$15 -> 0 | CF98: =+R98*KeyAssumptionsPriceControl_FO!AD$15 -> 0 | CG98: =+S98*KeyAssumptionsPriceControl_FO!AE$15 -> 0 | CH98: =+T98*KeyAssumptionsPriceControl_FO!AF$15 -> 0 | CI98: =+U98*KeyAssumptionsPriceControl_FO!AG$15 -> 0 | CJ98: =+V98*KeyAssumptionsPriceControl_FO!AH$15 -> 0.4010075381 | CK98: =+W98*KeyAssumptionsPriceControl_FO!AI$15 -> 0.123294855 | CL98: =+X98*KeyAssumptionsPriceControl_FO!AJ$15 -> 0 | CM98: =+Y98*KeyAssumptionsPriceControl_FO!AK$15 -> 0 | CN98: =+Z98*KeyAssumptionsPriceControl_FO!AL$15 -> 0 | CP98: 0 | CQ98: 0 | CR98: 0 | CS98: 0 | CT98: 0 | CU98: 0.002506297113 | CV98: 0.00578318707 | CW98: 0.006553779914 | CX98: 0.006553779914 | CY98: 0.006553779914
C99: Treatment Plants | E99: Water | F99: Growth | G99: Treatment | H99: Capital Programs / Allocation | J99: Straight line | K99: Ongoing | L99: 80 | M99: 80 | Q99: 0 | R99: 0 | S99: 0 | T99: 0 | U99: 0 | V99: 0 | W99: 0.285 | X99: 0 | Y99: 0.285 | Z99: 0 | AX99: 0 | AY99: 0 | AZ99: 0 | BA99: 0 | BB99: 0 | BC99: 0 | BD99: 0.285 | BE99: 0 | BF99: 0.285 | BG99: 0 | BI99: 0 | BJ99: 0 | BK99: 0 | BL99: 0 | BM99: 0 | BN99: 0 | BO99: 0.00178125 | BP99: 0.0035625 | BQ99: 0.00534375 | BR99: 0.007125 | BT99: =+IF($K99="Ongoing",AX99,IF(RIGHT($K99,2)=RIGHT(BT$39,2),SUM($AX99:AX99),0)+IF(RIGHT(BT$39,2)>RIGHT($K99,2),AX99,0)) -> 0 | BU99: =+IF($K99="Ongoing",AY99,IF(RIGHT($K99,2)=RIGHT(BU$39,2),SUM($AX99:AY99),0)+IF(RIGHT(BU$39,2)>RIGHT($K99,2),AY99,0)) -> 0 | BV99: =+IF($K99="Ongoing",AZ99,IF(RIGHT($K99,2)=RIGHT(BV$39,2),SUM($AX99:AZ99),0)+IF(RIGHT(BV$39,2)>RIGHT($K99,2),AZ99,0)) -> 0 | BW99: =+IF($K99="Ongoing",BA99,IF(RIGHT($K99,2)=RIGHT(BW$39,2),SUM($AX99:BA99),0)+IF(RIGHT(BW$39,2)>RIGHT($K99,2),BA99,0)) -> 0 | BX99: =+IF($K99="Ongoing",BB99,IF(RIGHT($K99,2)=RIGHT(BX$39,2),SUM($AX99:BB99),0)+IF(RIGHT(BX$39,2)>RIGHT($K99,2),BB99,0)) -> 0 | BY99: =+IF($K99="Ongoing",BC99,IF(RIGHT($K99,2)=RIGHT(BY$39,2),SUM($AX99:BC99),0)+IF(RIGHT(BY$39,2)>RIGHT($K99,2),BC99,0)) -> 0 | BZ99: =+IF($K99="Ongoing",BD99,IF(RIGHT($K99,2)=RIGHT(BZ$39,2),SUM($AX99:BD99),0)+IF(RIGHT(BZ$39,2)>RIGHT($K99,2),BD99,0)) -> 0.285 | CA99: =+IF($K99="Ongoing",BE99,IF(RIGHT($K99,2)=RIGHT(CA$39,2),SUM($AX99:BE99),0)+IF(RIGHT(CA$39,2)>RIGHT($K99,2),BE99,0)) -> 0 | CB99: =+IF($K99="Ongoing",BF99,IF(RIGHT($K99,2)=RIGHT(CB$39,2),SUM($AX99:BF99),0)+IF(RIGHT(CB$39,2)>RIGHT($K99,2),BF99,0)) -> 0.285 | CC99: =+IF($K99="Ongoing",BG99,IF(RIGHT($K99,2)=RIGHT(CC$39,2),SUM($AX99:BG99),0)+IF(RIGHT(CC$39,2)>RIGHT($K99,2),BG99,0)) -> 0 | CE99: =+Q99*KeyAssumptionsPriceControl_FO!AC$15 -> 0 | CF99: =+R99*KeyAssumptionsPriceControl_FO!AD$15 -> 0 | CG99: =+S99*KeyAssumptionsPriceControl_FO!AE$15 -> 0 | CH99: =+T99*KeyAssumptionsPriceControl_FO!AF$15 -> 0 | CI99: =+U99*KeyAssumptionsPriceControl_FO!AG$15 -> 0 | CJ99: =+V99*KeyAssumptionsPriceControl_FO!AH$15 -> 0 | CK99: =+W99*KeyAssumptionsPriceControl_FO!AI$15 -> 0.3505140516 | CL99: =+X99*KeyAssumptionsPriceControl_FO!AJ$15 -> 0 | CM99: =+Y99*KeyAssumptionsPriceControl_FO!AK$15 -> 0.3718603574 | CN99: =+Z99*KeyAssumptionsPriceControl_FO!AL$15 -> 0 | CP99: 0 | CQ99: 0 | CR99: 0 | CS99: 0 | CT99: 0 | CU99: 0 | CV99: 0.002190712823 | CW99: 0.004381425646 | CX99: 0.006705552879 | CY99: 0.009029680113
C100: Treatment Plants | E100: Water | F100: Improvements / Compliance | G100: Treatment | H100: Capital Programs / Allocation | J100: Straight line | K100: Ongoing | L100: 80 | M100: 80 | Q100: 0 | R100: 0.145175 | S100: 0.676875 | T100: 0.852125 | U100: 0 | V100: 0.0150375 | W100: 0 | X100: 0 | Y100: 0 | Z100: 0 | AX100: 0 | AY100: 0.145175 | AZ100: 0.676875 | BA100: 0.852125 | BB100: 0 | BC100: 0.0150375 | BD100: 0 | BE100: 0 | BF100: 0 | BG100: 0 | BI100: 0 | BJ100: 0.00090734375 | BK100: 0.00604515625 | BL100: 0.01560140625 | BM100: 0.0209271875 | BN100: 0.02102117188 | BO100: 0.02111515625 | BP100: 0.02111515625 | BQ100: 0.02111515625 | BR100: 0.02111515625 | BT100: =+IF($K100="Ongoing",AX100,IF(RIGHT($K100,2)=RIGHT(BT$39,2),SUM($AX100:AX100),0)+IF(RIGHT(BT$39,2)>RIGHT($K100,2),AX100,0)) -> 0 | BU100: =+IF($K100="Ongoing",AY100,IF(RIGHT($K100,2)=RIGHT(BU$39,2),SUM($AX100:AY100),0)+IF(RIGHT(BU$39,2)>RIGHT($K100,2),AY100,0)) -> 0.145175 | BV100: =+IF($K100="Ongoing",AZ100,IF(RIGHT($K100,2)=RIGHT(BV$39,2),SUM($AX100:AZ100),0)+IF(RIGHT(BV$39,2)>RIGHT($K100,2),AZ100,0)) -> 0.676875 | BW100: =+IF($K100="Ongoing",BA100,IF(RIGHT($K100,2)=RIGHT(BW$39,2),SUM($AX100:BA100),0)+IF(RIGHT(BW$39,2)>RIGHT($K100,2),BA100,0)) -> 0.852125 | BX100: =+IF($K100="Ongoing",BB100,IF(RIGHT($K100,2)=RIGHT(BX$39,2),SUM($AX100:BB100),0)+IF(RIGHT(BX$39,2)>RIGHT($K100,2),BB100,0)) -> 0 | BY100: =+IF($K100="Ongoing",BC100,IF(RIGHT($K100,2)=RIGHT(BY$39,2),SUM($AX100:BC100),0)+IF(RIGHT(BY$39,2)>RIGHT($K100,2),BC100,0)) -> 0.0150375 | BZ100: =+IF($K100="Ongoing",BD100,IF(RIGHT($K100,2)=RIGHT(BZ$39,2),SUM($AX100:BD100),0)+IF(RIGHT(BZ$39,2)>RIGHT($K100,2),BD100,0)) -> 0 | CA100: =+IF($K100="Ongoing",BE100,IF(RIGHT($K100,2)=RIGHT(CA$39,2),SUM($AX100:BE100),0)+IF(RIGHT(CA$39,2)>RIGHT($K100,2),BE100,0)) -> 0 | CB100: =+IF($K100="Ongoing",BF100,IF(RIGHT($K100,2)=RIGHT(CB$39,2),SUM($AX100:BF100),0)+IF(RIGHT(CB$39,2)>RIGHT($K100,2),BF100,0)) -> 0 | CC100: =+IF($K100="Ongoing",BG100,IF(RIGHT($K100,2)=RIGHT(CC$39,2),SUM($AX100:BG100),0)+IF(RIGHT(CC$39,2)>RIGHT($K100,2),BG100,0)) -> 0 | CE100: =+Q100*KeyAssumptionsPriceControl_FO!AC$15 -> 0 | CF100: =+R100*KeyAssumptionsPriceControl_FO!AD$15 -> 0.1540161575 | CG100: =+S100*KeyAssumptionsPriceControl_FO!AE$15 -> 0.7396395881 | CH100: =+T100*KeyAssumptionsPriceControl_FO!AF$15 -> 0.9590741947 | CI100: =+U100*KeyAssumptionsPriceControl_FO!AG$15 -> 0 | CJ100: =+V100*KeyAssumptionsPriceControl_FO!AH$15 -> 0.01795556141 | CK100: =+W100*KeyAssumptionsPriceControl_FO!AI$15 -> 0 | CL100: =+X100*KeyAssumptionsPriceControl_FO!AJ$15 -> 0 | CM100: =+Y100*KeyAssumptionsPriceControl_FO!AK$15 -> 0 | CN100: =+Z100*KeyAssumptionsPriceControl_FO!AL$15 -> 0 | CP100: 0 | CQ100: 0.0009626009844 | CR100: 0.006547949395 | CS100: 0.01716491054 | CT100: 0.02315912425 | CU100: 0.02327134651 | CV100: 0.02338356877 | CW100: 0.02338356877 | CX100: 0.02338356877 | CY100: 0.02338356877
C101: Treatment Plants | E101: Water | F101: Renewals | G101: Treatment | H101: Capital Programs / Allocation | J101: Straight line | K101: Ongoing | L101: 80 | M101: 80 | Q101: 0.0451125 | R101: 0 | S101: 0 | T101: 0.08 | U101: 0.6401 | V101: 0 | W101: 0 | X101: 0 | Y101: 0 | Z101: 0.010025 | AX101: 0.0451125 | AY101: 0 | AZ101: 0 | BA101: 0.08 | BB101: 0.6401 | BC101: 0 | BD101: 0 | BE101: 0 | BF101: 0 | BG101: 0.010025 | BI101: 0.000281953125 | BJ101: 0.00056390625 | BK101: 0.00056390625 | BL101: 0.00106390625 | BM101: 0.00556453125 | BN101: 0.00956515625 | BO101: 0.00956515625 | BP101: 0.00956515625 | BQ101: 0.00956515625 | BR101: 0.0096278125 | BT101: =+IF($K101="Ongoing",AX101,IF(RIGHT($K101,2)=RIGHT(BT$39,2),SUM($AX101:AX101),0)+IF(RIGHT(BT$39,2)>RIGHT($K101,2),AX101,0)) -> 0.0451125 | BU101: =+IF($K101="Ongoing",AY101,IF(RIGHT($K101,2)=RIGHT(BU$39,2),SUM($AX101:AY101),0)+IF(RIGHT(BU$39,2)>RIGHT($K101,2),AY101,0)) -> 0 | BV101: =+IF($K101="Ongoing",AZ101,IF(RIGHT($K101,2)=RIGHT(BV$39,2),SUM($AX101:AZ101),0)+IF(RIGHT(BV$39,2)>RIGHT($K101,2),AZ101,0)) -> 0 | BW101: =+IF($K101="Ongoing",BA101,IF(RIGHT($K101,2)=RIGHT(BW$39,2),SUM($AX101:BA101),0)+IF(RIGHT(BW$39,2)>RIGHT($K101,2),BA101,0)) -> 0.08 | BX101: =+IF($K101="Ongoing",BB101,IF(RIGHT($K101,2)=RIGHT(BX$39,2),SUM($AX101:BB101),0)+IF(RIGHT(BX$39,2)>RIGHT($K101,2),BB101,0)) -> 0.6401 | BY101: =+IF($K101="Ongoing",BC101,IF(RIGHT($K101,2)=RIGHT(BY$39,2),SUM($AX101:BC101),0)+IF(RIGHT(BY$39,2)>RIGHT($K101,2),BC101,0)) -> 0 | BZ101: =+IF($K101="Ongoing",BD101,IF(RIGHT($K101,2)=RIGHT(BZ$39,2),SUM($AX101:BD101),0)+IF(RIGHT(BZ$39,2)>RIGHT($K101,2),BD101,0)) -> 0 | CA101: =+IF($K101="Ongoing",BE101,IF(RIGHT($K101,2)=RIGHT(CA$39,2),SUM($AX101:BE101),0)+IF(RIGHT(CA$39,2)>RIGHT($K101,2),BE101,0)) -> 0 | CB101: =+IF($K101="Ongoing",BF101,IF(RIGHT($K101,2)=RIGHT(CB$39,2),SUM($AX101:BF101),0)+IF(RIGHT(CB$39,2)>RIGHT($K101,2),BF101,0)) -> 0 | CC101: =+IF($K101="Ongoing",BG101,IF(RIGHT($K101,2)=RIGHT(CC$39,2),SUM($AX101:BG101),0)+IF(RIGHT(CC$39,2)>RIGHT($K101,2),BG101,0)) -> 0.010025 | CE101: =+Q101*KeyAssumptionsPriceControl_FO!AC$15 -> 0.046465875 | CF101: =+R101*KeyAssumptionsPriceControl_FO!AD$15 -> 0 | CG101: =+S101*KeyAssumptionsPriceControl_FO!AE$15 -> 0 | CH101: =+T101*KeyAssumptionsPriceControl_FO!AF$15 -> 0.0900407048 | CI101: =+U101*KeyAssumptionsPriceControl_FO!AG$15 -> 0.742051335 | CJ101: =+V101*KeyAssumptionsPriceControl_FO!AH$15 -> 0 | CK101: =+W101*KeyAssumptionsPriceControl_FO!AI$15 -> 0 | CL101: =+X101*KeyAssumptionsPriceControl_FO!AJ$15 -> 0 | CM101: =+Y101*KeyAssumptionsPriceControl_FO!AK$15 -> 0 | CN101: =+Z101*KeyAssumptionsPriceControl_FO!AL$15 -> 0.0134727617 | CP101: 0.0002904117188 | CQ101: 0.0005808234375 | CR101: 0.0005808234375 | CS101: 0.001143577843 | CT101: 0.006344153091 | CU101: 0.01098197393 | CV101: 0.01098197393 | CW101: 0.01098197393 | CX101: 0.01098197393 | CY101: 0.0110661787
C102: Vehicles | E102: Water | F102: Renewals | G102: Corporate | H102: Capital Programs / Allocation | J102: Straight line | K102: Ongoing | L102: 4 | M102: 4 | Q102: 0.9705 | R102: 1.3095 | S102: 0.615 | T102: 0.83175 | U102: 0.86475 | V102: 1.092 | W102: 1.167 | X102: 1.167 | Y102: 1.176 | Z102: 1.176 | AX102: 0.9705 | AY102: 1.3095 | AZ102: 0.615 | BA102: 0.83175 | BB102: 0.86475 | BC102: 1.092 | BD102: 1.167 | BE102: 1.167 | BF102: 1.176 | BG102: 1.176 | BI102: 0.1213125 | BJ102: 0.4063125 | BK102: 0.646875 | BL102: 0.82771875 | BM102: 0.91846875 | BN102: 0.8780625 | BO102: 0.919875 | BP102: 1.03078125 | BQ102: 1.11159375 | BR102: 1.161 | BT102: =+IF($K102="Ongoing",AX102,IF(RIGHT($K102,2)=RIGHT(BT$39,2),SUM($AX102:AX102),0)+IF(RIGHT(BT$39,2)>RIGHT($K102,2),AX102,0)) -> 0.9705 | BU102: =+IF($K102="Ongoing",AY102,IF(RIGHT($K102,2)=RIGHT(BU$39,2),SUM($AX102:AY102),0)+IF(RIGHT(BU$39,2)>RIGHT($K102,2),AY102,0)) -> 1.3095 | BV102: =+IF($K102="Ongoing",AZ102,IF(RIGHT($K102,2)=RIGHT(BV$39,2),SUM($AX102:AZ102),0)+IF(RIGHT(BV$39,2)>RIGHT($K102,2),AZ102,0)) -> 0.615 | BW102: =+IF($K102="Ongoing",BA102,IF(RIGHT($K102,2)=RIGHT(BW$39,2),SUM($AX102:BA102),0)+IF(RIGHT(BW$39,2)>RIGHT($K102,2),BA102,0)) -> 0.83175 | BX102: =+IF($K102="Ongoing",BB102,IF(RIGHT($K102,2)=RIGHT(BX$39,2),SUM($AX102:BB102),0)+IF(RIGHT(BX$39,2)>RIGHT($K102,2),BB102,0)) -> 0.86475 | BY102: =+IF($K102="Ongoing",BC102,IF(RIGHT($K102,2)=RIGHT(BY$39,2),SUM($AX102:BC102),0)+IF(RIGHT(BY$39,2)>RIGHT($K102,2),BC102,0)) -> 1.092 | BZ102: =+IF($K102="Ongoing",BD102,IF(RIGHT($K102,2)=RIGHT(BZ$39,2),SUM($AX102:BD102),0)+IF(RIGHT(BZ$39,2)>RIGHT($K102,2),BD102,0)) -> 1.167 | CA102: =+IF($K102="Ongoing",BE102,IF(RIGHT($K102,2)=RIGHT(CA$39,2),SUM($AX102:BE102),0)+IF(RIGHT(CA$39,2)>RIGHT($K102,2),BE102,0)) -> 1.167 | CB102: =+IF($K102="Ongoing",BF102,IF(RIGHT($K102,2)=RIGHT(CB$39,2),SUM($AX102:BF102),0)+IF(RIGHT(CB$39,2)>RIGHT($K102,2),BF102,0)) -> 1.176 | CC102: =+IF($K102="Ongoing",BG102,IF(RIGHT($K102,2)=RIGHT(CC$39,2),SUM($AX102:BG102),0)+IF(RIGHT(CC$39,2)>RIGHT($K102,2),BG102,0)) -> 1.176 | CE102: =+Q102*KeyAssumptionsPriceControl_FO!AC$15 -> 0.999615 | CF102: =+R102*KeyAssumptionsPriceControl_FO!AD$15 -> 1.38924855 | CG102: =+S102*KeyAssumptionsPriceControl_FO!AE$15 -> 0.672027105 | CH102: =+T102*KeyAssumptionsPriceControl_FO!AF$15 -> 0.9361419527 | CI102: =+U102*KeyAssumptionsPriceControl_FO!AG$15 -> 1.002482256 | CJ102: =+V102*KeyAssumptionsPriceControl_FO!AH$15 -> 1.303905108 | CK102: =+W102*KeyAssumptionsPriceControl_FO!AI$15 -> 1.435262801 | CL102: =+X102*KeyAssumptionsPriceControl_FO!AJ$15 -> 1.478320685 | CM102: =+Y102*KeyAssumptionsPriceControl_FO!AK$15 -> 1.534413264 | CN102: =+Z102*KeyAssumptionsPriceControl_FO!AL$15 -> 1.580445662 | CP102: 0.124951875 | CQ102: 0.4235598188 | CR102: 0.6812192756 | CS102: 0.8822404078 | CT102: 0.9996165589 | CU102: 0.9893070356 | CV102: 1.074043567 | CW102: 1.237220371 | CX102: 1.371484088 | CY102: 1.472543034
